Workbook

Sheet TOC
A1: Aldo Benini
A2: for Okular Analytics
A4: Companion workbook to the note on
A5: Priorities and preferences in humanitarian needs assessments - Their measurement by rating and ranking methods
A6: Version 25 January 2018 | C6: See acknowledgement at the bottom.
A8: Table of Contents
A9: Focus in on cases:
B10: Ratings, case-wise | C10: No1a_RatingsCasewise_Data
C11: No1b_RankStatistics
C12: No1c_Ridit(SmallDemo)
B13: Copeland's Method | C13: No2a_Copeland
C14: No2b_OutrankingMatrix
C15: No2c_OutrankingScore
C16: No2d_Covars_of_Interest
A17: Focus is on indicators:
B18: Ratings, item-wise | C18: No3a_RatingsItemwise
C19: No3b_SignTest
B20: Borda count | C20: No4a_BordaCount_Data
C21: No4b_Borda_RawResults
C22: No4c_Borda_SortedTable
C23: No4d_Borda_by_SiteType
B24: Plackett-Luce model | C24: No5a_Ranks_for_PlackettLuce
A25: Convenience table:
B26: List of named ranges | C26: NamedRanges
A29: The section on Copeland's Method is a modification of an Excel workbook accompanying
B30: Saisana, Michaela. (2016). Step 6: Aggregation rules: Non-compensatory approaches. COIN 2016 - 14th JRC Annual Training on Composite Indicators & Scoreboards, 26-28/09/2016. Ispra (IT), The European Commission’s science and knowledge service and Joint Research Centre.
A31: with significantly modified worksheet architecture and cell functions.
A32: The contribution of Professor Saisana, who was the first to implement Copeland's Method in an adaptable Excel format, is gratefully acknowledged.

Sheet No1a_RatingsCasewise_Data
A1: ID | B1: Cash | C1: Food | D1: Water | E1: WASHs | F1: Shelter | G1: Education | H1: Health | I1: Hygiene | J1: PSS | K1: Clothing | L1: Utensils | M1: Firewood | N1: Jobs | O1: Training | P1: Registration | Q1: Transport | R1: Security | S1: Ratings: Row medians | T1: Ratings: Row maxima | U1: Households | V1: Population | W1: 5 quantiles of pop | X1: Period when majority of camp point pop. arrived
A2: ID | B2: var303s | C2: var304s | D2: var305s | E2: var306s | F2: var307s | G2: var308s | H2: var309s | I2: var310s | J2: var311s | K2: var312s | L2: var313s | M2: var314s | N2: var315s | O2: var316s | P2: var317s | Q2: var318s | R2: var319s | S2: MedianRating | T2: MaximumRating | U2: HH | V2: pop | W2: pop_5tiles | X2: ArrivalPeriod
A3: 1 | B3: 4 | C3: 3 | D3: 4 | E3: 3 | F3: 4 | G3: 3 | H3: 3 | I3: 3 | J3: 4 | K3: 3 | L3: 4 | M3: 4 | N3: 3 | O3: 4 | P3: 4 | Q3: 3 | R3: 4 | S3: =MEDIAN($B3:$R3) -> 4 | T3: =MAX($B3:$R3) -> 4 | U3: 7 | V3: 40 | W3: 1 | X3: Before 25 Aug 2017
A4: 2 | B4: 2 | C4: 3 | D4: 4 | E4: 4 | F4: 4 | G4: 3 | H4: 4 | I4: 1 | J4: 3 | K4: 2 | L4: 4 | M4: 5 | N4: 2 | O4: 3 | P4: 2 | Q4: 2 | R4: 4 | S4: =MEDIAN($B4:$R4) -> 3 | T4: =MAX($B4:$R4) -> 5 | U4: 40 | V4: 140 | W4: 1 | X4: Before 25 Aug 2017
A5: 3 | B5: 4 | C5: 3 | D5: 3 | E5: 3 | F5: 3 | G5: 4 | H5: 3 | I5: 3 | J5: 4 | K5: 4 | L5: 3 | M5: 4 | N5: 4 | O5: 3 | P5: 3 | Q5: 3 | R5: 3 | S5: 3 | T5: 4 | U5: 50 | V5: 220 | W5: 1 | X5: Before 25 Aug 2017
A6: 4 | B6: 3 | C6: 3 | D6: 4 | E6: 3 | F6: 4 | G6: 3 | H6: 3 | I6: 3 | J6: 4 | K6: 3 | L6: 3 | M6: 4 | N6: 3 | O6: 3 | P6: 3 | Q6: 2 | R6: 3 | S6: 3 | T6: 4 | U6: 25 | V6: 130 | W6: 1 | X6: Before 25 Aug 2017
A7: 5 | B7: 5 | C7: 3 | D7: 2 | E7: 3 | F7: 3 | G7: 3 | H7: 4 | I7: 3 | J7: 2 | K7: 3 | L7: 3 | M7: 4 | N7: 5 | O7: 3 | P7: 1 | Q7: 2 | R7: 4 | S7: 3 | T7: 5 | U7: 29 | V7: 135 | W7: 1 | X7: Before 25 Aug 2017
A8: 6 | B8: 3 | C8: 3 | D8: 5 | E8: 3 | F8: 5 | G8: 3 | H8: 3 | I8: 2 | J8: 2 | K8: 2 | L8: 2 | M8: 5 | N8: 3 | O8: 3 | P8: 3 | Q8: 4 | R8: 3 | S8: 3 | T8: 5 | U8: 13 | V8: 65 | W8: 1 | X8: Before 25 Aug 2017
A9: 7 | B9: 5 | C9: 4 | D9: 5 | E9: 3 | F9: 5 | G9: 5 | H9: 3 | I9: 2 | J9: 4 | K9: 3 | L9: 2 | M9: 3 | N9: 5 | O9: 3 | P9: 2 | Q9: 5 | R9: 5 | S9: 4 | T9: 5 | U9: 50 | V9: 228 | W9: 1 | X9: Before 25 Aug 2017
A10: 8 | B10: 2 | C10: 3 | D10: 4 | E10: 2 | F10: 4 | G10: 3 | H10: 4 | I10: 2 | J10: 2 | K10: 2 | L10: 2 | M10: 4 | N10: 2 | O10: 2 | P10: 2 | Q10: 2 | R10: 3 | S10: 2 | T10: 4 | U10: 20 | V10: 100 | W10: 1 | X10: Before 25 Aug 2017
A11: 9 | B11: 3 | C11: 3 | D11: 5 | E11: 3 | F11: 5 | G11: 3 | H11: 5 | I11: 2 | J11: 3 | K11: 3 | L11: 3 | M11: 5 | N11: 4 | O11: 2 | P11: 2 | Q11: 2 | R11: 3 | S11: 3 | T11: 5 | U11: 137 | V11: 675 | W11: 5 | X11: After 25 Aug 2017
A12: 10 | B12: 5 | C12: 4 | D12: 5 | E12: 3 | F12: 5 | G12: 4 | H12: 5 | I12: 3 | J12: 4 | K12: 3 | L12: 2 | M12: 4 | N12: 5 | O12: 4 | P12: 3 | Q12: 3 | R12: 4 | S12: 4 | T12: 5 | U12: 15 | V12: 67 | W12: 1 | X12: Before 25 Aug 2017
A13: 11 | B13: 5 | C13: 4 | D13: 5 | E13: 4 | F13: 4 | G13: 3 | H13: 4 | I13: 3 | J13: 3 | K13: 3 | L13: 2 | M13: 3 | N13: 2 | O13: 2 | P13: 3 | Q13: 4 | R13: 3 | S13: 3 | T13: 5 | U13: 107 | V13: 385 | W13: 2 | X13: After 25 Aug 2017
A14: 12 | B14: 4 | C14: 4 | D14: 4 | E14: 3 | F14: 4 | G14: 3 | H14: 3 | I14: 3 | J14: 3 | K14: 3 | L14: 4 | M14: 4 | N14: 4 | O14: 3 | P14: 4 | Q14: 3 | R14: 5 | S14: 4 | T14: 5 | U14: 101 | V14: 375 | W14: 2 | X14: After 25 Aug 2017
A15: 13 | B15: 4 | C15: 4 | D15: 4 | E15: 3 | F15: 4 | G15: 3 | H15: 3 | I15: 3 | J15: 3 | K15: 3 | L15: 3 | M15: 4 | N15: 4 | O15: 3 | P15: 3 | Q15: 3 | R15: 3 | S15: 3 | T15: 4 | U15: 126 | V15: 457 | W15: 3 | X15: After 25 Aug 2017
A16: 14 | B16: 4 | C16: 4 | D16: 4 | E16: 3 | F16: 3 | G16: 3 | H16: 3 | I16: 3 | J16: 3 | K16: 3 | L16: 4 | M16: 4 | N16: 4 | O16: 3 | P16: 4 | Q16: 3 | R16: 5 | S16: 3 | T16: 5 | U16: 105 | V16: 393 | W16: 2 | X16: After 25 Aug 2017
A17: 15 | B17: 4 | C17: 4 | D17: 4 | E17: 3 | F17: 4 | G17: 3 | H17: 3 | I17: 3 | J17: 3 | K17: 3 | L17: 3 | M17: 4 | N17: 4 | O17: 3 | P17: 3 | Q17: 3 | R17: 3 | S17: 3 | T17: 4 | U17: 99 | V17: 422 | W17: 3 | X17: After 25 Aug 2017
A18: 16 | B18: 2 | C18: 4 | D18: 5 | E18: 2 | F18: 1 | G18: 4 | H18: 3 | I18: 2 | J18: 2 | K18: 1 | L18: 1 | M18: 4 | N18: 2 | O18: 1 | P18: 2 | Q18: 1 | R18: 3 | S18: 2 | T18: 5 | U18: 99 | V18: 424 | W18: 3 | X18: After 25 Aug 2017
A19: 17 | B19: 5 | C19: 4 | D19: 5 | E19: 3 | F19: 4 | G19: 5 | H19: 3 | I19: 2 | J19: 1 | K19: 1 | L19: 1 | M19: 5 | N19: 5 | O19: 1 | P19: 1 | Q19: 2 | R19: 4 | S19: 3 | T19: 5 | U19: 99 | V19: 333 | W19: 1 | X19: After 25 Aug 2017
A20: 18 | B20: 2 | C20: 4 | D20: 5 | E20: 2 | F20: 1 | G20: 4 | H20: 3 | I20: 2 | J20: 2 | K20: 1 | L20: 1 | M20: 4 | N20: 3 | O20: 2 | P20: 2 | Q20: 1 | R20: 3 | S20: 2 | T20: 5 | U20: 91 | V20: 370 | W20: 2 | X20: After 25 Aug 2017
A21: 19 | B21: 4 | C21: 4 | D21: 3 | E21: 3 | F21: 4 | G21: 3 | H21: 3 | I21: 3 | J21: 3 | K21: 3 | L21: 4 | M21: 4 | N21: 4 | O21: 3 | P21: 3 | Q21: 3 | R21: 3 | S21: 3 | T21: 4 | U21: 128 | V21: 457 | W21: 3 | X21: After 25 Aug 2017
A22: 20 | B22: 2 | C22: 4 | D22: 5 | E22: 2 | F22: 1 | G22: 4 | H22: 3 | I22: 2 | J22: 2 | K22: 1 | L22: 1 | M22: 4 | N22: 2 | O22: 1 | P22: 2 | Q22: 1 | R22: 3 | S22: 2 | T22: 5 | U22: 87 | V22: 375 | W22: 2 | X22: After 25 Aug 2017
A23: 21 | B23: 2 | C23: 4 | D23: 4 | E23: 1 | F23: 2 | G23: 4 | H23: 3 | I23: 2 | J23: 2 | K23: 1 | L23: 1 | M23: 4 | N23: 2 | O23: 1 | P23: 2 | Q23: 1 | R23: 3 | S23: 2 | T23: 4 | U23: 85 | V23: 360 | W23: 2 | X23: After 25 Aug 2017
A24: 22 | B24: 5 | C24: 5 | D24: 4 | E24: 5 | F24: 5 | G24: 5 | H24: 4 | I24: 4 | J24: 4 | K24: 4 | L24: 4 | M24: 4 | N24: 4 | O24: 4 | P24: 4 | Q24: 4 | R24: 5 | S24: 4 | T24: 5 | U24: 90 | V24: 395 | W24: 2 | X24: After 25 Aug 2017
A25: 23 | B25: 5 | C25: 3 | D25: 4 | E25: 3 | F25: 4 | G25: 2 | H25: 3 | I25: 2 | J25: 3 | K25: 3 | L25: 3 | M25: 3 | N25: 4 | O25: 2 | P25: 3 | Q25: 4 | R25: 4 | S25: 3 | T25: 5 | U25: 99 | V25: 424 | W25: 3 | X25: After 25 Aug 2017
A26: 24 | B26: 5 | C26: 4 | D26: 5 | E26: 2 | F26: 2 | G26: 4 | H26: 3 | I26: 5 | J26: 1 | K26: 1 | L26: 1 | M26: 4 | N26: 5 | O26: 2 | P26: 3 | Q26: 3 | R26: 5 | S26: 3 | T26: 5 | U26: 101 | V26: 455 | W26: 3 | X26: After 25 Aug 2017
A27: 25 | B27: 5 | C27: 2 | D27: 4 | E27: 2 | F27: 3 | G27: 4 | H27: 4 | I27: 3 | J27: 4 | K27: 4 | L27: 2 | M27: 5 | N27: 4 | O27: 3 | P27: 2 | Q27: 2 | R27: 3 | S27: 3 | T27: 5 | U27: 112 | V27: 485 | W27: 4 | X27: After 25 Aug 2017
A28: 26 | B28: 5 | C28: 4 | D28: 5 | E28: 4 | F28: 5 | G28: 4 | H28: 3 | I28: 2 | J28: 3 | K28: 3 | L28: 4 | M28: 4 | N28: 3 | O28: 2 | P28: 3 | Q28: 4 | R28: 3 | S28: 4 | T28: 5 | U28: 119 | V28: 501 | W28: 4 | X28: After 25 Aug 2017
A29: 27 | B29: 4 | C29: 4 | D29: 4 | E29: 3 | F29: 4 | G29: 3 | H29: 3 | I29: 3 | J29: 3 | K29: 3 | L29: 4 | M29: 4 | N29: 3 | O29: 3 | P29: 4 | Q29: 3 | R29: 5 | S29: 3 | T29: 5 | U29: 91 | V29: 428 | W29: 3 | X29: After 25 Aug 2017
A30: 28 | B30: 4 | C30: 4 | D30: 4 | E30: 3 | F30: 4 | G30: 3 | H30: 3 | I30: 3 | J30: 3 | K30: 3 | L30: 4 | M30: 4 | N30: 4 | O30: 3 | P30: 4 | Q30: 3 | R30: 5 | S30: 4 | T30: 5 | U30: 98 | V30: 384 | W30: 2 | X30: After 25 Aug 2017
A31: 29 | B31: 2 | C31: 4 | D31: 4 | E31: 2 | F31: 1 | G31: 4 | H31: 3 | I31: 2 | J31: 1 | K31: 2 | L31: 1 | M31: 4 | N31: 2 | O31: 1 | P31: 2 | Q31: 1 | R31: 3 | S31: 2 | T31: 4 | U31: 88 | V31: 386 | W31: 2 | X31: After 25 Aug 2017
A32: 30 | B32: 4 | C32: 4 | D32: 4 | E32: 3 | F32: 4 | G32: 3 | H32: 3 | I32: 3 | J32: 3 | K32: 3 | L32: 4 | M32: 4 | N32: 4 | O32: 3 | P32: 4 | Q32: 3 | R32: 5 | S32: 4 | T32: 5 | U32: 77 | V32: 310 | W32: 1 | X32: After 25 Aug 2017
A33: 31 | B33: 2 | C33: 4 | D33: 5 | E33: 1 | F33: 4 | G33: 2 | H33: 3 | I33: 2 | J33: 2 | K33: 1 | L33: 1 | M33: 4 | N33: 2 | O33: 2 | P33: 3 | Q33: 2 | R33: 3 | S33: 2 | T33: 5 | U33: 91 | V33: 398 | W33: 2 | X33: Unknown
A34: 32 | B34: 4 | C34: 4 | D34: 4 | E34: 3 | F34: 4 | G34: 3 | H34: 3 | I34: 3 | J34: 3 | K34: 3 | L34: 3 | M34: 4 | N34: 4 | O34: 3 | P34: 3 | Q34: 3 | R34: 3 | S34: 3 | T34: 4 | U34: 85 | V34: 325 | W34: 1 | X34: Unknown
A35: 33 | B35: 4 | C35: 4 | D35: 4 | E35: 3 | F35: 4 | G35: 3 | H35: 3 | I35: 3 | J35: 3 | K35: 3 | L35: 3 | M35: 4 | N35: 4 | O35: 3 | P35: 3 | Q35: 3 | R35: 3 | S35: 3 | T35: 4 | U35: 100 | V35: 400 | W35: 2 | X35: Unknown
A36: 34 | B36: 5 | C36: 4 | D36: 4 | E36: 4 | F36: 4 | G36: 3 | H36: 4 | I36: 2 | J36: 2 | K36: 3 | L36: 3 | M36: 5 | N36: 5 | O36: 4 | P36: 3 | Q36: 3 | R36: 2 | S36: 4 | T36: 5 | U36: 50 | V36: 200 | W36: 1 | X36: Unknown
A37: 35 | B37: 4 | C37: 4 | D37: 3 | E37: 3 | F37: 5 | G37: 3 | H37: 3 | I37: 3 | J37: 3 | K37: 3 | L37: 3 | M37: 5 | N37: 5 | O37: 3 | P37: 3 | Q37: 3 | R37: 4 | S37: 3 | T37: 5 | U37: 15 | V37: 66 | W37: 1 | X37: Before 25 Aug 2017
A38: 36 | B38: 5 | C38: 5 | D38: 4 | E38: 4 | F38: 5 | G38: 4 | H38: 4 | I38: 3 | J38: 3 | K38: 3 | L38: 3 | M38: 4 | N38: 5 | O38: 3 | P38: 3 | Q38: 3 | R38: 4 | S38: 4 | T38: 5 | U38: 70 | V38: 312 | W38: 1 | X38: Before 25 Aug 2017
A39: 37 | B39: 4 | C39: 5 | D39: 5 | E39: 3 | F39: 4 | G39: 4 | H39: 5 | I39: 3 | J39: 4 | K39: 3 | L39: 4 | M39: 4 | N39: 5 | O39: 3 | P39: 4 | Q39: 3 | R39: 4 | S39: 4 | T39: 5 | U39: 40 | V39: 180 | W39: 1 | X39: Before 25 Aug 2017
A40: 38 | B40: 3 | C40: 3 | D40: 4 | E40: 3 | F40: 4 | G40: 3 | H40: 3 | I40: 3 | J40: 3 | K40: 3 | L40: 3 | M40: 4 | N40: 3 | O40: 2 | P40: 3 | Q40: 2 | R40: 3 | S40: 3 | T40: 4 | U40: 73 | V40: 318 | W40: 1 | X40: Before 25 Aug 2017
A41: 39 | B41: 4 | C41: 5 | D41: 4 | E41: 3 | F41: 4 | G41: 4 | H41: 3 | I41: 3 | J41: 3 | K41: 4 | L41: 4 | M41: 4 | N41: 5 | O41: 3 | P41: 4 | Q41: 3 | R41: 4 | S41: 4 | T41: 5 | U41: 7 | V41: 35 | W41: 1 | X41: Before 25 Aug 2017
A42: 40 | B42: 5 | C42: 2 | D42: 5 | E42: 3 | F42: 5 | G42: 3 | H42: 4 | I42: 3 | J42: 5 | K42: 3 | L42: 1 | M42: 5 | N42: 5 | O42: 2 | P42: 2 | Q42: 3 | R42: 5 | S42: 3 | T42: 5 | U42: 130 | V42: 525 | W42: 4 | X42: After 25 Aug 2017
A43: 41 | B43: 5 | C43: 3 | D43: 5 | E43: 3 | F43: 2 | G43: 3 | H43: 4 | I43: 3 | J43: 5 | K43: 2 | L43: 2 | M43: 5 | N43: 4 | O43: 2 | P43: 2 | Q43: 1 | R43: 5 | S43: 3 | T43: 5 | U43: 60 | V43: 305 | W43: 1 | X43: After 25 Aug 2017
A44: 42 | B44: 5 | C44: 5 | D44: 3 | E44: 3 | F44: 4 | G44: 4 | H44: 4 | I44: 3 | J44: 3 | K44: 3 | L44: 2 | M44: 4 | N44: 4 | O44: 2 | P44: 2 | Q44: 2 | R44: 3 | S44: 3 | T44: 5 | U44: 105 | V44: 435 | W44: 3 | X44: After 25 Aug 2017
A45: 43 | B45: 5 | C45: 1 | D45: 5 | E45: 1 | F45: 2 | G45: 3 | H45: 3 | I45: 1 | J45: 2 | K45: 2 | L45: 1 | M45: 2 | N45: 5 | O45: 2 | P45: 1 | Q45: 1 | R45: 2 | S45: 2 | T45: 5 | U45: 90 | V45: 375 | W45: 2 | X45: After 25 Aug 2017
A46: 44 | B46: 5 | C46: 5 | D46: 5 | E46: 5 | F46: 4 | G46: 5 | H46: 3 | I46: 2 | J46: 5 | K46: 3 | L46: 3 | M46: 5 | N46: 4 | O46: 3 | P46: 3 | Q46: 3 | R46: 4 | S46: 4 | T46: 5 | U46: 75 | V46: 405 | W46: 2 | X46: After 25 Aug 2017
A47: 45 | B47: 5 | C47: 4 | D47: 5 | E47: 5 | F47: 4 | G47: 5 | H47: 5 | I47: 3 | J47: 4 | K47: 3 | L47: 3 | M47: 5 | N47: 4 | O47: 3 | P47: 2 | Q47: 3 | R47: 3 | S47: 4 | T47: 5 | U47: 120 | V47: 630 | W47: 5 | X47: After 25 Aug 2017
A48: 46 | B48: 5 | C48: 3 | D48: 4 | E48: 3 | F48: 3 | G48: 2 | H48: 4 | I48: 2 | J48: 2 | K48: 2 | L48: 3 | M48: 3 | N48: 4 | O48: 2 | P48: 2 | Q48: 2 | R48: 5 | S48: 3 | T48: 5 | U48: 130 | V48: 510 | W48: 4 | X48: After 25 Aug 2017
A49: 47 | B49: 4 | C49: 5 | D49: 5 | E49: 3 | F49: 4 | G49: 4 | H49: 4 | I49: 3 | J49: 3 | K49: 3 | L49: 2 | M49: 5 | N49: 4 | O49: 3 | P49: 3 | Q49: 3 | R49: 4 | S49: 4 | T49: 5 | U49: 100 | V49: 462 | W49: 3 | X49: After 25 Aug 2017
A50: 48 | B50: 5 | C50: 4 | D50: 5 | E50: 3 | F50: 4 | G50: 4 | H50: 4 | I50: 3 | J50: 3 | K50: 2 | L50: 2 | M50: 5 | N50: 5 | O50: 3 | P50: 4 | Q50: 3 | R50: 4 | S50: 4 | T50: 5 | U50: 89 | V50: 333 | W50: 1 | X50: After 25 Aug 2017
A51: 49 | B51: 5 | C51: 3 | D51: 3 | E51: 3 | F51: 4 | G51: 2 | H51: 4 | I51: 2 | J51: 2 | K51: 2 | L51: 3 | M51: 4 | N51: 3 | O51: 2 | P51: 2 | Q51: 2 | R51: 4 | S51: 3 | T51: 5 | U51: 120 | V51: 474 | W51: 3 | X51: After 25 Aug 2017
A52: 50 | B52: 5 | C52: 3 | D52: 4 | E52: 3 | F52: 4 | G52: 3 | H52: 3 | I52: 3 | J52: 4 | K52: 3 | L52: 3 | M52: 4 | N52: 4 | O52: 4 | P52: 3 | Q52: 4 | R52: 3 | S52: 3 | T52: 5 | U52: 70 | V52: 339 | W52: 1 | X52: After 25 Aug 2017
A53: 51 | B53: 5 | C53: 3 | D53: 4 | E53: 3 | F53: 4 | G53: 3 | H53: 3 | I53: 3 | J53: 4 | K53: 3 | L53: 3 | M53: 5 | N53: 4 | O53: 3 | P53: 3 | Q53: 4 | R53: 3 | S53: 3 | T53: 5 | U53: 103 | V53: 411 | W53: 2 | X53: After 25 Aug 2017
A54: 52 | B54: 5 | C54: 5 | D54: 3 | E54: 3 | F54: 3 | G54: 5 | H54: 3 | I54: 2 | J54: 3 | K54: 2 | L54: 2 | M54: 4 | N54: 5 | O54: 2 | P54: 3 | Q54: 2 | R54: 3 | S54: 3 | T54: 5 | U54: 99 | V54: 415 | W54: 2 | X54: After 25 Aug 2017
A55: 53 | B55: 5 | C55: 3 | D55: 4 | E55: 3 | F55: 3 | G55: 3 | H55: 2 | I55: 2 | J55: 2 | K55: 2 | L55: 3 | M55: 4 | N55: 3 | O55: 2 | P55: 2 | Q55: 2 | R55: 4 | S55: 3 | T55: 5 | U55: 70 | V55: 317 | W55: 1 | X55: After 25 Aug 2017
A56: 54 | B56: 5 | C56: 3 | D56: 4 | E56: 3 | F56: 3 | G56: 3 | H56: 2 | I56: 2 | J56: 2 | K56: 2 | L56: 2 | M56: 3 | N56: 3 | O56: 2 | P56: 3 | Q56: 3 | R56: 5 | S56: 3 | T56: 5 | U56: 51 | V56: 218 | W56: 1 | X56: After 25 Aug 2017
A57: 55 | B57: 5 | C57: 5 | D57: 5 | E57: 4 | F57: 4 | G57: 5 | H57: 5 | I57: 4 | J57: 3 | K57: 4 | L57: 3 | M57: 5 | N57: 5 | O57: 4 | P57: 4 | Q57: 3 | R57: 5 | S57: 4 | T57: 5 | U57: 100 | V57: 420 | W57: 3 | X57: After 25 Aug 2017
A58: 56 | B58: 5 | C58: 3 | D58: 4 | E58: 4 | F58: 4 | G58: 3 | H58: 3 | I58: 3 | J58: 4 | K58: 3 | L58: 3 | M58: 4 | N58: 4 | O58: 3 | P58: 3 | Q58: 3 | R58: 3 | S58: 3 | T58: 5 | U58: 60 | V58: 262 | W58: 1 | X58: After 25 Aug 2017
A59: 57 | B59: 5 | C59: 2 | D59: 5 | E59: 1 | F59: 2 | G59: 2 | H59: 1 | I59: 1 | J59: 2 | K59: 2 | L59: 1 | M59: 1 | N59: 2 | O59: 1 | P59: 1 | Q59: 5 | R59: 2 | S59: 2 | T59: 5 | U59: 78 | V59: 375 | W59: 2 | X59: After 25 Aug 2017
A60: 58 | B60: 5 | C60: 2 | D60: 5 | E60: 1 | F60: 2 | G60: 3 | H60: 2 | I60: 1 | J60: 2 | K60: 3 | L60: 1 | M60: 5 | N60: 5 | O60: 1 | P60: 2 | Q60: 5 | R60: 2 | S60: 2 | T60: 5 | U60: 101 | V60: 439 | W60: 3 | X60: After 25 Aug 2017
A61: 59 | B61: 5 | C61: 4 | D61: 3 | E61: 4 | F61: 3 | G61: 5 | H61: 4 | I61: 3 | J61: 3 | K61: 4 | L61: 3 | M61: 5 | N61: 5 | O61: 3 | P61: 2 | Q61: 3 | R61: 4 | S61: 4 | T61: 5 | U61: 89 | V61: 361 | W61: 2 | X61: After 25 Aug 2017
A62: 60 | B62: 5 | C62: 5 | D62: 5 | E62: 5 | F62: 3 | G62: 5 | H62: 5 | I62: 4 | J62: 4 | K62: 4 | L62: 3 | M62: 5 | N62: 5 | O62: 5 | P62: 4 | Q62: 4 | R62: 5 | S62: 5 | T62: 5 | U62: 103 | V62: 470 | W62: 3 | X62: After 25 Aug 2017
A63: 61 | B63: 5 | C63: 4 | D63: 5 | E63: 3 | F63: 3 | G63: 4 | H63: 5 | I63: 3 | J63: 2 | K63: 3 | L63: 3 | M63: 5 | N63: 5 | O63: 3 | P63: 2 | Q63: 4 | R63: 4 | S63: 4 | T63: 5 | U63: 88 | V63: 360 | W63: 2 | X63: After 25 Aug 2017
A64: 62 | B64: 5 | C64: 4 | D64: 4 | E64: 3 | F64: 2 | G64: 3 | H64: 3 | I64: 3 | J64: 2 | K64: 2 | L64: 1 | M64: 4 | N64: 4 | O64: 2 | P64: 2 | Q64: 3 | R64: 3 | S64: 3 | T64: 5 | U64: 150 | V64: 630 | W64: 5 | X64: After 25 Aug 2017
A65: 63 | B65: 5 | C65: 3 | D65: 4 | E65: 4 | F65: 4 | G65: 3 | H65: 3 | I65: 3 | J65: 4 | K65: 3 | L65: 3 | M65: 5 | N65: 4 | O65: 3 | P65: 3 | Q65: 3 | R65: 3 | S65: 3 | T65: 5 | U65: 86 | V65: 331 | W65: 1 | X65: After 25 Aug 2017
A66: 64 | B66: 5 | C66: 4 | D66: 4 | E66: 3 | F66: 3 | G66: 3 | H66: 3 | I66: 2 | J66: 3 | K66: 2 | L66: 1 | M66: 4 | N66: 4 | O66: 2 | P66: 2 | Q66: 3 | R66: 3 | S66: 3 | T66: 5 | U66: 118 | V66: 530 | W66: 4 | X66: After 25 Aug 2017
A67: 65 | B67: 5 | C67: 4 | D67: 5 | E67: 2 | F67: 2 | G67: 1 | H67: 2 | I67: 1 | J67: 1 | K67: 4 | L67: 3 | M67: 2 | N67: 5 | O67: 1 | P67: 2 | Q67: 5 | R67: 1 | S67: 2 | T67: 5 | U67: 135 | V67: 675 | W67: 5 | X67: After 25 Aug 2017
A68: 66 | B68: 4 | C68: 4 | D68: 5 | E68: 3 | F68: 3 | G68: 4 | H68: 4 | I68: 3 | J68: 3 | K68: 2 | L68: 2 | M68: 5 | N68: 3 | O68: 2 | P68: 3 | Q68: 3 | R68: 4 | S68: =MEDIAN($B68:$R68) -> 3 | T68: =MAX($B68:$R68) -> 5 | U68: 105 | V68: 430 | W68: 3 | X68: After 25 Aug 2017
A69: 67 | B69: 5 | C69: 4 | D69: 5 | E69: 3 | F69: 4 | G69: 5 | H69: 4 | I69: 3 | J69: 3 | K69: 4 | L69: 2 | M69: 5 | N69: 4 | O69: 3 | P69: 2 | Q69: 3 | R69: 4 | S69: 4 | T69: 5 | U69: 48 | V69: 188 | W69: 1 | X69: Unknown
A70: 68 | B70: 5 | C70: 4 | D70: 5 | E70: 3 | F70: 3 | G70: 4 | H70: 3 | I70: 3 | J70: 4 | K70: 3 | L70: 4 | M70: 5 | N70: 4 | O70: 4 | P70: 3 | Q70: 3 | R70: 4 | S70: 4 | T70: 5 | U70: 83 | V70: 361 | W70: 2 | X70: After 25 Aug 2017
A71: 69 | B71: 5 | C71: 5 | D71: 5 | E71: 4 | F71: 5 | G71: 5 | H71: 4 | I71: 4 | J71: 4 | K71: 3 | L71: 3 | M71: 5 | N71: 4 | O71: 4 | P71: 3 | Q71: 2 | R71: 4 | S71: 4 | T71: 5 | U71: 44 | V71: 215 | W71: 1 | X71: After 25 Aug 2017
A72: 70 | B72: 5 | C72: 4 | D72: 5 | E72: 4 | F72: 3 | G72: 3 | H72: 4 | I72: 3 | J72: 4 | K72: 3 | L72: 4 | M72: 5 | N72: 5 | O72: 3 | P72: 3 | Q72: 3 | R72: 4 | S72: 4 | T72: 5 | U72: 54 | V72: 211 | W72: 1 | X72: After 25 Aug 2017
A73: 71 | B73: 5 | C73: 3 | D73: 4 | E73: 3 | F73: 3 | G73: 2 | H73: 3 | I73: 2 | J73: 3 | K73: 2 | L73: 2 | M73: 3 | N73: 2 | O73: 3 | P73: 2 | Q73: 2 | R73: 4 | S73: 3 | T73: 5 | U73: 35 | V73: 165 | W73: 1 | X73: After 25 Aug 2017
A74: 72 | B74: 4 | C74: 4 | D74: 5 | E74: 3 | F74: 4 | G74: 3 | H74: 4 | I74: 2 | J74: 2 | K74: 3 | L74: 1 | M74: 5 | N74: 4 | O74: 2 | P74: 2 | Q74: 3 | R74: 4 | S74: 3 | T74: 5 | U74: 117 | V74: 520 | W74: 4 | X74: After 25 Aug 2017
A75: 73 | B75: 5 | C75: 4 | D75: 5 | E75: 3 | F75: 4 | G75: 4 | H75: 4 | I75: 3 | J75: 4 | K75: 3 | L75: 3 | M75: 5 | N75: 4 | O75: 3 | P75: 4 | Q75: 3 | R75: 4 | S75: 4 | T75: 5 | U75: 59 | V75: 272 | W75: 1 | X75: After 25 Aug 2017
A76: 74 | B76: 5 | C76: 5 | D76: 5 | E76: 4 | F76: 5 | G76: 3 | H76: 4 | I76: 2 | J76: 4 | K76: 1 | L76: 4 | M76: 5 | N76: 4 | O76: 3 | P76: 2 | Q76: 1 | R76: 4 | S76: 4 | T76: 5 | U76: 51 | V76: 278 | W76: 1 | X76: Unknown
A77: 75 | B77: 5 | C77: 5 | D77: 5 | E77: 3 | F77: 4 | G77: 2 | H77: 4 | I77: 1 | J77: 4 | K77: 1 | L77: 2 | M77: 5 | N77: 4 | O77: 3 | P77: 2 | Q77: 1 | R77: 4 | S77: 4 | T77: 5 | U77: 60 | V77: 335 | W77: 1 | X77: Unknown
A78: 76 | B78: 5 | C78: 5 | D78: 5 | E78: 4 | F78: 3 | G78: 2 | H78: 4 | I78: 1 | J78: 4 | K78: 2 | L78: 3 | M78: 5 | N78: 4 | O78: 2 | P78: 1 | Q78: 4 | R78: 4 | S78: 4 | T78: 5 | U78: 32 | V78: 160 | W78: 1 | X78: Unknown
A79: 77 | B79: 5 | C79: 5 | D79: 5 | E79: 3 | F79: 4 | G79: 3 | H79: 4 | I79: 2 | J79: 5 | K79: 2 | L79: 3 | M79: 5 | N79: 4 | O79: 1 | P79: 1 | Q79: 1 | R79: 2 | S79: 3 | T79: 5 | U79: 80 | V79: 297 | W79: 1 | X79: Unknown
A80: 78 | B80: 4 | C80: 5 | D80: 5 | E80: 5 | F80: 4 | G80: 4 | H80: 5 | I80: 5 | J80: 4 | K80: 4 | L80: 3 | M80: 5 | N80: 4 | O80: 4 | P80: 4 | Q80: 3 | R80: 4 | S80: 4 | T80: 5 | U80: 51 | V80: 250 | W80: 1 | X80: Unknown
A81: 79 | B81: 5 | C81: 4 | D81: 5 | E81: 4 | F81: 4 | G81: 4 | H81: 5 | I81: 5 | J81: 3 | K81: 4 | L81: 4 | M81: 5 | N81: 4 | O81: 4 | P81: 3 | Q81: 4 | R81: 3 | S81: 4 | T81: 5 | U81: 50 | V81: 197 | W81: 1 | X81: Unknown
A82: 80 | B82: 5 | C82: 4 | D82: 5 | E82: 5 | F82: 4 | G82: 4 | H82: 5 | I82: 5 | J82: 3 | K82: 4 | L82: 4 | M82: 5 | N82: 5 | O82: 4 | P82: 3 | Q82: 4 | R82: 3 | S82: 4 | T82: 5 | U82: 64 | V82: 310 | W82: 1 | X82: Unknown
A83: 81 | B83: 4 | C83: 4 | D83: 5 | E83: 3 | F83: 3 | G83: 3 | H83: 4 | I83: 3 | J83: 3 | K83: 2 | L83: 2 | M83: 5 | N83: 4 | O83: 3 | P83: 2 | Q83: 3 | R83: 4 | S83: 3 | T83: 5 | U83: 60 | V83: 242 | W83: 1 | X83: Unknown
A84: 82 | B84: 5 | C84: 4 | D84: 5 | E84: 3 | F84: 4 | G84: 4 | H84: 3 | I84: 3 | J84: 3 | K84: 2 | L84: 2 | M84: 5 | N84: 5 | O84: 4 | P84: 4 | Q84: 3 | R84: 4 | S84: 4 | T84: 5 | U84: 60 | V84: 280 | W84: 1 | X84: Unknown
A85: 83 | B85: 5 | C85: 4 | D85: 5 | E85: 3 | F85: 4 | G85: 4 | H85: 4 | I85: 3 | J85: 3 | K85: 3 | L85: 3 | M85: 5 | N85: 4 | O85: 4 | P85: 4 | Q85: 3 | R85: 4 | S85: 4 | T85: 5 | U85: 53 | V85: 250 | W85: 1 | X85: Unknown
A86: 84 | B86: 5 | C86: 4 | D86: 5 | E86: 3 | F86: 4 | G86: 4 | H86: 4 | I86: 3 | J86: 3 | K86: 2 | L86: 2 | M86: 5 | N86: 5 | O86: 3 | P86: 4 | Q86: 3 | R86: 4 | S86: 4 | T86: 5 | U86: 110 | V86: 455 | W86: 3 | X86: Unknown
A87: 85 | B87: 5 | C87: 4 | D87: 5 | E87: 4 | F87: 5 | G87: 5 | H87: 4 | I87: 3 | J87: 4 | K87: 3 | L87: 3 | M87: 4 | N87: 3 | O87: 2 | P87: 2 | Q87: 3 | R87: 3 | S87: 4 | T87: 5 | U87: 65 | V87: 321 | W87: 1 | X87: Unknown
A88: 86 | B88: 5 | C88: 4 | D88: 5 | E88: 3 | F88: 4 | G88: 4 | H88: 3 | I88: 3 | J88: 2 | K88: 3 | L88: 3 | M88: 5 | N88: 5 | O88: 3 | P88: 4 | Q88: 3 | R88: 4 | S88: 4 | T88: 5 | U88: 74 | V88: 385 | W88: 2 | X88: Unknown
A89: 87 | B89: 5 | C89: 4 | D89: 5 | E89: 4 | F89: 4 | G89: 4 | H89: 5 | I89: 3 | J89: 4 | K89: 4 | L89: 4 | M89: 5 | N89: 5 | O89: 4 | P89: 4 | Q89: 4 | R89: 5 | S89: 4 | T89: 5 | U89: 130 | V89: 551 | W89: 4 | X89: Unknown
A90: 88 | B90: 5 | C90: 4 | D90: 5 | E90: 5 | F90: 4 | G90: 5 | H90: 5 | I90: 3 | J90: 5 | K90: 3 | L90: 3 | M90: 4 | N90: 3 | O90: 3 | P90: 2 | Q90: 3 | R90: 3 | S90: 4 | T90: 5 | U90: 82 | V90: 390 | W90: 2 | X90: Unknown
A91: 89 | B91: 4 | C91: 4 | D91: 5 | E91: 4 | F91: 5 | G91: 4 | H91: 4 | I91: 2 | J91: 2 | K91: 4 | L91: 3 | M91: 4 | N91: 2 | O91: 3 | P91: 4 | Q91: 3 | R91: 4 | S91: 4 | T91: 5 | U91: 124 | V91: 567 | W91: 4 | X91: Unknown
A92: 90 | B92: 4 | C92: 5 | D92: 4 | E92: 5 | F92: 4 | G92: 5 | H92: 5 | I92: 3 | J92: 2 | K92: 3 | L92: 3 | M92: 4 | N92: 3 | O92: 2 | P92: 4 | Q92: 3 | R92: 4 | S92: 4 | T92: 5 | U92: 55 | V92: 263 | W92: 1 | X92: Unknown
A93: 91 | B93: 4 | C93: 4 | D93: 3 | E93: 4 | F93: 5 | G93: 5 | H93: 4 | I93: 3 | J93: 2 | K93: 3 | L93: 2 | M93: 4 | N93: 3 | O93: 3 | P93: 4 | Q93: 3 | R93: 3 | S93: 3 | T93: 5 | U93: 92 | V93: 342 | W93: 1 | X93: Unknown
A94: 92 | B94: 5 | C94: 4 | D94: 4 | E94: 5 | F94: 5 | G94: 4 | H94: 3 | I94: 3 | J94: 2 | K94: 3 | L94: 2 | M94: 4 | N94: 3 | O94: 3 | P94: 4 | Q94: 4 | R94: 5 | S94: 4 | T94: 5 | U94: 89 | V94: 368 | W94: 2 | X94: Unknown
A95: 93 | B95: 4 | C95: 5 | D95: 4 | E95: 4 | F95: 4 | G95: 5 | H95: 5 | I95: 3 | J95: 2 | K95: 3 | L95: 3 | M95: 4 | N95: 3 | O95: 3 | P95: 4 | Q95: 3 | R95: 4 | S95: 4 | T95: 5 | U95: 55 | V95: 255 | W95: 1 | X95: Unknown
A96: 94 | B96: 4 | C96: 4 | D96: 3 | E96: 4 | F96: 4 | G96: 5 | H96: 4 | I96: 2 | J96: 2 | K96: 3 | L96: 3 | M96: 4 | N96: 3 | O96: 2 | P96: 4 | Q96: 3 | R96: 4 | S96: 4 | T96: 5 | U96: 80 | V96: 340 | W96: 1 | X96: Unknown
A97: 95 | B97: 5 | C97: 4 | D97: 4 | E97: 3 | F97: 2 | G97: 2 | H97: 3 | I97: 3 | J97: 3 | K97: 2 | L97: 1 | M97: 4 | N97: 4 | O97: 2 | P97: 2 | Q97: 1 | R97: 2 | S97: 3 | T97: 5 | U97: 75 | V97: 339 | W97: 1 | X97: Unknown
A98: 96 | B98: 5 | C98: 4 | D98: 4 | E98: 3 | F98: 2 | G98: 3 | H98: 4 | I98: 2 | J98: 2 | K98: 2 | L98: 1 | M98: 5 | N98: 4 | O98: 2 | P98: 2 | Q98: 1 | R98: 2 | S98: 2 | T98: 5 | U98: 89 | V98: 354 | W98: 2 | X98: Unknown
A99: 97 | B99: 5 | C99: 4 | D99: 4 | E99: 3 | F99: 3 | G99: 3 | H99: 3 | I99: 3 | J99: 3 | K99: 2 | L99: 1 | M99: 5 | N99: 4 | O99: 2 | P99: 2 | Q99: 1 | R99: 3 | S99: 3 | T99: 5 | U99: 75 | V99: 307 | W99: 1 | X99: Unknown
A100: 98 | B100: 5 | C100: 5 | D100: 3 | E100: 2 | F100: 4 | G100: 4 | H100: 3 | I100: 2 | J100: 3 | K100: 2 | L100: 2 | M100: 4 | N100: 5 | O100: 2 | P100: 2 | Q100: 2 | R100: 3 | S100: 3 | T100: 5 | U100: 47 | V100: 215 | W100: 1 | X100: Unknown
A101: 99 | B101: 5 | C101: 4 | D101: 5 | E101: 2 | F101: 4 | G101: 5 | H101: 2 | I101: 2 | J101: 5 | K101: 3 | L101: 2 | M101: 5 | N101: 3 | O101: 2 | P101: 2 | Q101: 3 | R101: 5 | S101: 3 | T101: 5 | U101: 72 | V101: 320 | W101: 1 | X101: Unknown
A102: 100 | B102: 5 | C102: 3 | D102: 5 | E102: 3 | F102: 5 | G102: 4 | H102: 4 | I102: 3 | J102: 5 | K102: 2 | L102: 2 | M102: 5 | N102: 5 | O102: 2 | P102: 1 | Q102: 1 | R102: 5 | S102: 4 | T102: 5 | U102: 80 | V102: 350 | W102: 2 | X102: Unknown
A103: 101 | B103: 5 | C103: 3 | D103: 5 | E103: 3 | F103: 5 | G103: 5 | H103: 3 | I103: 2 | J103: 5 | K103: 2 | L103: 1 | M103: 5 | N103: 5 | O103: 3 | P103: 2 | Q103: 3 | R103: 5 | S103: 3 | T103: 5 | U103: 92 | V103: 416 | W103: 2 | X103: Unknown
A104: 102 | B104: 5 | C104: 5 | D104: 5 | E104: 5 | F104: 4 | G104: 5 | H104: 4 | I104: 3 | J104: 4 | K104: 3 | L104: 3 | M104: 5 | N104: 5 | O104: 3 | P104: 4 | Q104: 3 | R104: 4 | S104: 4 | T104: 5 | U104: 108 | V104: 471 | W104: 3 | X104: Unknown
A105: 103 | B105: 5 | C105: 5 | D105: 5 | E105: 5 | F105: 4 | G105: 5 | H105: 5 | I105: 4 | J105: 4 | K105: 3 | L105: 3 | M105: 5 | N105: 5 | O105: 4 | P105: 4 | Q105: 3 | R105: 5 | S105: 5 | T105: 5 | U105: 61 | V105: 235 | W105: 1 | X105: Unknown
A106: 104 | B106: 5 | C106: 4 | D106: 5 | E106: 4 | F106: 4 | G106: 5 | H106: 4 | I106: 3 | J106: 5 | K106: 3 | L106: 4 | M106: 4 | N106: 3 | O106: 3 | P106: 3 | Q106: 3 | R106: 4 | S106: 4 | T106: 5 | U106: 87 | V106: 404 | W106: 2 | X106: Unknown
A107: 105 | B107: 1 | C107: 3 | D107: 5 | E107: 1 | F107: 2 | G107: 4 | H107: 3 | I107: 1 | J107: 2 | K107: 2 | L107: 3 | M107: 3 | N107: 1 | O107: 3 | P107: 1 | Q107: 5 | R107: 1 | S107: 2 | T107: 5 | U107: 45 | V107: 247 | W107: 1 | X107: Unknown
A108: 106 | B108: 5 | C108: 4 | D108: 3 | E108: 4 | F108: 2 | G108: 3 | H108: 4 | I108: 2 | J108: 3 | K108: 2 | L108: 1 | M108: 4 | N108: 4 | O108: 2 | P108: 2 | Q108: 4 | R108: 2 | S108: 3 | T108: 5 | U108: 62 | V108: 274 | W108: 1 | X108: Unknown
A109: 107 | B109: 5 | C109: 5 | D109: 3 | E109: 2 | F109: 3 | G109: 3 | H109: 3 | I109: 2 | J109: 3 | K109: 2 | L109: 2 | M109: 5 | N109: 4 | O109: 2 | P109: 2 | Q109: 3 | R109: 3 | S109: 3 | T109: 5 | U109: 146 | V109: 563 | W109: 4 | X109: Unknown
A110: 108 | B110: 5 | C110: 4 | D110: 3 | E110: 3 | F110: 5 | G110: 4 | H110: 3 | I110: 3 | J110: 2 | K110: 3 | L110: 4 | M110: 5 | N110: 4 | O110: 3 | P110: 3 | Q110: 2 | R110: 2 | S110: 3 | T110: 5 | U110: 30 | V110: 130 | W110: 1 | X110: Unknown
A111: 109 | B111: 5 | C111: 5 | D111: 4 | E111: 4 | F111: 5 | G111: 5 | H111: 4 | I111: 4 | J111: 4 | K111: 4 | L111: 4 | M111: 4 | N111: 4 | O111: 4 | P111: 3 | Q111: 3 | R111: 5 | S111: 4 | T111: 5 | U111: 8 | V111: 33 | W111: 1 | X111: Unknown
A112: 110 | B112: 5 | C112: 4 | D112: 4 | E112: 4 | F112: 3 | G112: 4 | H112: 4 | I112: 3 | J112: 2 | K112: 3 | L112: 4 | M112: 4 | N112: 5 | O112: 5 | P112: 3 | Q112: 4 | R112: 4 | S112: 4 | T112: 5 | U112: 5 | V112: 29 | W112: 1 | X112: Unknown
A113: 111 | B113: 2 | C113: 3 | D113: 2 | E113: 4 | F113: 4 | G113: 3 | H113: 4 | I113: 2 | J113: 4 | K113: 3 | L113: 3 | M113: 4 | N113: 2 | O113: 2 | P113: 2 | Q113: 2 | R113: 2 | S113: 3 | T113: 4 | U113: 45 | V113: 181 | W113: 1 | X113: Before 25 Aug 2017
A114: 112 | B114: 4 | C114: 5 | D114: 5 | E114: 3 | F114: 4 | G114: 4 | H114: 5 | I114: 3 | J114: 3 | K114: 3 | L114: 3 | M114: 4 | N114: 4 | O114: 3 | P114: 4 | Q114: 3 | R114: 4 | S114: 4 | T114: 5 | U114: 3 | V114: 12 | W114: 1 | X114: Before 25 Aug 2017
A115: 113 | B115: 3 | C115: 3 | D115: 5 | E115: 2 | F115: 5 | G115: 3 | H115: 3 | I115: 2 | J115: 2 | K115: 2 | L115: 2 | M115: 5 | N115: 3 | O115: 3 | P115: 2 | Q115: 3 | R115: 3 | S115: 3 | T115: 5 | U115: 12 | V115: 55 | W115: 1 | X115: Before 25 Aug 2017
A116: 114 | B116: 4 | C116: 4 | D116: 5 | E116: 4 | F116: 3 | G116: 4 | H116: 4 | I116: 3 | J116: 2 | K116: 3 | L116: 2 | M116: 5 | N116: 4 | O116: 2 | P116: 4 | Q116: 2 | R116: 2 | S116: 4 | T116: 5 | U116: 38 | V116: 164 | W116: 1 | X116: Unknown
A117: 115 | B117: 4 | C117: 4 | D117: 4 | E117: 3 | F117: 3 | G117: 4 | H117: 3 | I117: 3 | J117: 3 | K117: 3 | L117: 4 | M117: 3 | N117: 4 | O117: 3 | P117: 4 | Q117: 4 | R117: 3 | S117: 3 | T117: 4 | U117: 61 | V117: 255 | W117: 1 | X117: Unknown
A118: 116 | B118: 5 | C118: 4 | D118: 5 | E118: 4 | F118: 3 | G118: 4 | H118: 4 | I118: 2 | J118: 2 | K118: 3 | L118: 2 | M118: 5 | N118: 4 | O118: 3 | P118: 3 | Q118: 3 | R118: 2 | S118: 3 | T118: 5 | U118: 42 | V118: 185 | W118: 1 | X118: Unknown
A119: 117 | B119: 4 | C119: 4 | D119: 4 | E119: 3 | F119: 3 | G119: 4 | H119: 4 | I119: 2 | J119: 3 | K119: 3 | L119: 3 | M119: 4 | N119: 2 | O119: 4 | P119: 3 | Q119: 2 | R119: 4 | S119: 3 | T119: 4 | U119: 48 | V119: 231 | W119: 1 | X119: Unknown
A120: 118 | B120: 4 | C120: 4 | D120: 4 | E120: 3 | F120: 3 | G120: 4 | H120: 3 | I120: 3 | J120: 3 | K120: 2 | L120: 4 | M120: 4 | N120: 2 | O120: 3 | P120: 3 | Q120: 3 | R120: 4 | S120: 3 | T120: 4 | U120: 40 | V120: 150 | W120: 1 | X120: Unknown
A121: 119 | B121: 4 | C121: 4 | D121: 4 | E121: 3 | F121: 3 | G121: 4 | H121: 4 | I121: 3 | J121: 3 | K121: 3 | L121: 4 | M121: 4 | N121: 3 | O121: 3 | P121: 3 | Q121: 2 | R121: 4 | S121: 3 | T121: 4 | U121: 50 | V121: 210 | W121: 1 | X121: Unknown
A122: 120 | B122: 4 | C122: 4 | D122: 4 | E122: 3 | F122: 4 | G122: 4 | H122: 4 | I122: 2 | J122: 2 | K122: 3 | L122: 4 | M122: 5 | N122: 5 | O122: 3 | P122: 4 | Q122: 4 | R122: 5 | S122: 4 | T122: 5 | U122: 126 | V122: 580 | W122: 4 | X122: After 25 Aug 2017
A123: 121 | B123: 4 | C123: 4 | D123: 4 | E123: 3 | F123: 2 | G123: 4 | H123: 5 | I123: 2 | J123: 4 | K123: 3 | L123: 4 | M123: 5 | N123: 5 | O123: 2 | P123: 3 | Q123: 3 | R123: 4 | S123: 4 | T123: 5 | U123: 154 | V123: 605 | W123: 4 | X123: After 25 Aug 2017
A124: 122 | B124: 5 | C124: 3 | D124: 5 | E124: 5 | F124: 4 | G124: 3 | H124: 3 | I124: 3 | J124: 3 | K124: 3 | L124: 3 | M124: 4 | N124: 5 | O124: 3 | P124: 3 | Q124: 3 | R124: 4 | S124: 3 | T124: 5 | U124: 117 | V124: 550 | W124: 4 | X124: After 25 Aug 2017
A125: 123 | B125: 4 | C125: 4 | D125: 4 | E125: 5 | F125: 2 | G125: 4 | H125: 3 | I125: 2 | J125: 4 | K125: 3 | L125: 4 | M125: 4 | N125: 4 | O125: 3 | P125: 4 | Q125: 3 | R125: 4 | S125: 4 | T125: 5 | U125: 76 | V125: 345 | W125: 1 | X125: After 25 Aug 2017
A126: 124 | B126: 5 | C126: 2 | D126: 5 | E126: 5 | F126: 5 | G126: 4 | H126: 3 | I126: 3 | J126: 2 | K126: 2 | L126: 2 | M126: 5 | N126: 5 | O126: 3 | P126: 2 | Q126: 3 | R126: 4 | S126: 3 | T126: 5 | U126: 126 | V126: 547 | W126: 4 | X126: After 25 Aug 2017
A127: 125 | B127: 5 | C127: 4 | D127: 5 | E127: 2 | F127: 4 | G127: 2 | H127: 2 | I127: 2 | J127: 3 | K127: 4 | L127: 1 | M127: 4 | N127: 3 | O127: 1 | P127: 4 | Q127: 2 | R127: 4 | S127: 3 | T127: 5 | U127: 130 | V127: 537 | W127: 4 | X127: After 25 Aug 2017
A128: 126 | B128: 5 | C128: 4 | D128: 5 | E128: 2 | F128: 4 | G128: 2 | H128: 2 | I128: 1 | J128: 2 | K128: 3 | L128: 1 | M128: 5 | N128: 4 | O128: 1 | P128: 4 | Q128: 2 | R128: 5 | S128: 3 | T128: 5 | U128: 122 | V128: 458 | W128: 3 | X128: After 25 Aug 2017
A129: 127 | B129: 4 | C129: 4 | D129: 4 | E129: 5 | F129: 3 | G129: 4 | H129: 3 | I129: 2 | J129: 3 | K129: 2 | L129: 4 | M129: 4 | N129: 2 | O129: 4 | P129: 3 | Q129: 2 | R129: 4 | S129: 4 | T129: 5 | U129: 132 | V129: 545 | W129: 4 | X129: After 25 Aug 2017
A130: 128 | B130: 5 | C130: 4 | D130: 5 | E130: 4 | F130: 3 | G130: 4 | H130: 3 | I130: 3 | J130: 3 | K130: 2 | L130: 2 | M130: 3 | N130: 5 | O130: 2 | P130: 2 | Q130: 2 | R130: 3 | S130: 3 | T130: 5 | U130: 95 | V130: 430 | W130: 3 | X130: After 25 Aug 2017
A131: 129 | B131: 5 | C131: 4 | D131: 5 | E131: 4 | F131: 3 | G131: 5 | H131: 4 | I131: 3 | J131: 4 | K131: 4 | L131: 3 | M131: 5 | N131: 4 | O131: 2 | P131: 2 | Q131: 2 | R131: 4 | S131: 4 | T131: 5 | U131: 37 | V131: 145 | W131: 1 | X131: After 25 Aug 2017
A132: 130 | B132: 5 | C132: 5 | D132: 5 | E132: 4 | F132: 3 | G132: 5 | H132: 4 | I132: 3 | J132: 3 | K132: 2 | L132: 2 | M132: 4 | N132: 5 | O132: 2 | P132: 2 | Q132: 2 | R132: 3 | S132: =MEDIAN($B132:$R132) -> 3 | T132: =MAX($B132:$R132) -> 5 | U132: 54 | V132: 182 | W132: 1 | X132: After 25 Aug 2017
A133: 131 | B133: 5 | C133: 4 | D133: 5 | E133: 3 | F133: 4 | G133: 4 | H133: 5 | I133: 3 | J133: 4 | K133: 3 | L133: 3 | M133: 4 | N133: 5 | O133: 3 | P133: 4 | Q133: 3 | R133: 4 | S133: 4 | T133: 5 | U133: 15 | V133: 68 | W133: 1 | X133: Before 25 Aug 2017
A134: 132 | B134: 5 | C134: 5 | D134: 4 | E134: 4 | F134: 4 | G134: 4 | H134: 4 | I134: 3 | J134: 5 | K134: 4 | L134: 3 | M134: 5 | N134: 4 | O134: 3 | P134: 3 | Q134: 4 | R134: 4 | S134: 4 | T134: 5 | U134: 64 | V134: 272 | W134: 1 | X134: After 25 Aug 2017
A135: 133 | B135: 5 | C135: 4 | D135: 5 | E135: 4 | F135: 3 | G135: 4 | H135: 4 | I135: 3 | J135: 3 | K135: 2 | L135: 2 | M135: 3 | N135: 5 | O135: 2 | P135: 2 | Q135: 1 | R135: 4 | S135: 3 | T135: 5 | U135: 85 | V135: 390 | W135: 2 | X135: After 25 Aug 2017
A136: 134 | B136: 4 | C136: 3 | D136: 5 | E136: 4 | F136: 5 | G136: 1 | H136: 1 | I136: 2 | J136: 1 | K136: 2 | L136: 4 | M136: 5 | N136: 5 | O136: 1 | P136: 1 | Q136: 4 | R136: 5 | S136: 4 | T136: 5 | U136: 247 | V136: 1145 | W136: 5 | X136: Before 25 Aug 2017
A137: 135 | B137: 5 | C137: 4 | D137: 4 | E137: 3 | F137: 3 | G137: 4 | H137: 3 | I137: 3 | J137: 5 | K137: 4 | L137: 3 | M137: 5 | N137: 4 | O137: 3 | P137: 3 | Q137: 3 | R137: 4 | S137: 4 | T137: 5 | U137: 163 | V137: 749 | W137: 5 | X137: Before 25 Aug 2017
A138: 136 | B138: 5 | C138: 5 | D138: 3 | E138: 2 | F138: 4 | G138: 4 | H138: 3 | I138: 2 | J138: 3 | K138: 2 | L138: 2 | M138: 4 | N138: 4 | O138: 2 | P138: 2 | Q138: 2 | R138: 3 | S138: 3 | T138: 5 | U138: 98 | V138: 400 | W138: 2 | X138: Unknown
A139: 137 | B139: 5 | C139: 4 | D139: 5 | E139: 4 | F139: 3 | G139: 5 | H139: 3 | I139: 3 | J139: 3 | K139: 2 | L139: 2 | M139: 3 | N139: 5 | O139: 2 | P139: 2 | Q139: 2 | R139: 4 | S139: 3 | T139: 5 | U139: 115 | V139: 500 | W139: 4 | X139: Unknown
A140: 138 | B140: 5 | C140: 4 | D140: 5 | E140: 4 | F140: 3 | G140: 5 | H140: 3 | I140: 3 | J140: 3 | K140: 2 | L140: 2 | M140: 3 | N140: 5 | O140: 3 | P140: 2 | Q140: 1 | R140: 3 | S140: 3 | T140: 5 | U140: 83 | V140: 360 | W140: 2 | X140: Unknown
A141: 139 | B141: 5 | C141: 3 | D141: 4 | E141: 4 | F141: 4 | G141: 3 | H141: 3 | I141: 3 | J141: 4 | K141: 3 | L141: 3 | M141: 4 | N141: 4 | O141: 3 | P141: 3 | Q141: 4 | R141: 3 | S141: 3 | T141: 5 | U141: 49 | V141: 223 | W141: 1 | X141: Unknown
A142: 140 | B142: 4 | C142: 3 | D142: 5 | E142: 3 | F142: 3 | G142: 4 | H142: 3 | I142: 3 | J142: 4 | K142: 3 | L142: 4 | M142: 5 | N142: 4 | O142: 4 | P142: 3 | Q142: 4 | R142: 5 | S142: 4 | T142: 5 | U142: 320 | V142: 1600 | W142: 5 | X142: After 25 Aug 2017
A143: 141 | B143: 4 | C143: 3 | D143: 4 | E143: 3 | F143: 3 | G143: 4 | H143: 3 | I143: 3 | J143: 3 | K143: 3 | L143: 4 | M143: 5 | N143: 3 | O143: 3 | P143: 4 | Q143: 3 | R143: 5 | S143: 3 | T143: 5 | U143: 140 | V143: 560 | W143: 4 | X143: After 25 Aug 2017
A144: 142 | B144: 4 | C144: 3 | D144: 4 | E144: 3 | F144: 4 | G144: 4 | H144: 3 | I144: 4 | J144: 3 | K144: 3 | L144: 4 | M144: 5 | N144: 4 | O144: 3 | P144: 3 | Q144: 4 | R144: 5 | S144: 4 | T144: 5 | U144: 170 | V144: 680 | W144: 5 | X144: After 25 Aug 2017
A145: 143 | B145: 4 | C145: 3 | D145: 5 | E145: 4 | F145: 4 | G145: 4 | H145: 3 | I145: 3 | J145: 3 | K145: 3 | L145: 4 | M145: 5 | N145: 3 | O145: 4 | P145: 4 | Q145: 3 | R145: 5 | S145: 4 | T145: 5 | U145: 195 | V145: 780 | W145: 5 | X145: After 25 Aug 2017
A146: 144 | B146: 4 | C146: 4 | D146: 4 | E146: 3 | F146: 4 | G146: 3 | H146: 3 | I146: 2 | J146: 3 | K146: 2 | L146: 3 | M146: 5 | N146: 5 | O146: 2 | P146: 2 | Q146: 2 | R146: 3 | S146: 3 | T146: 5 | U146: 140 | V146: 556 | W146: 4 | X146: After 25 Aug 2017
A147: 145 | B147: 4 | C147: 4 | D147: 3 | E147: 2 | F147: 3 | G147: 2 | H147: 3 | I147: 2 | J147: 3 | K147: 2 | L147: 3 | M147: 5 | N147: 5 | O147: 2 | P147: 2 | Q147: 2 | R147: 3 | S147: 3 | T147: 5 | U147: 145 | V147: 692 | W147: 5 | X147: After 25 Aug 2017
A148: 146 | B148: 4 | C148: 4 | D148: 2 | E148: 2 | F148: 4 | G148: 4 | H148: 4 | I148: 4 | J148: 2 | K148: 4 | L148: 2 | M148: 5 | N148: 4 | O148: 2 | P148: 3 | Q148: 3 | R148: 4 | S148: 4 | T148: 5 | U148: 120 | V148: 600 | W148: 4 | X148: After 25 Aug 2017
A149: 147 | B149: 4 | C149: 4 | D149: 2 | E149: 2 | F149: 4 | G149: 4 | H149: 4 | I149: 4 | J149: 2 | K149: 4 | L149: 2 | M149: 5 | N149: 4 | O149: 2 | P149: 3 | Q149: 1 | R149: 4 | S149: 4 | T149: 5 | U149: 150 | V149: 710 | W149: 5 | X149: Unknown
A150: 148 | B150: 4 | C150: 4 | D150: 2 | E150: 2 | F150: 4 | G150: 4 | H150: 4 | I150: 4 | J150: 2 | K150: 4 | L150: 2 | M150: 5 | N150: 4 | O150: 2 | P150: 3 | Q150: 2 | R150: 4 | S150: 4 | T150: 5 | U150: 110 | V150: 480 | W150: 3 | X150: Unknown
A151: 149 | B151: 4 | C151: 4 | D151: 2 | E151: 2 | F151: 4 | G151: 4 | H151: 4 | I151: 4 | J151: 2 | K151: 4 | L151: 2 | M151: 5 | N151: 4 | O151: 2 | P151: 3 | Q151: 2 | R151: 4 | S151: 4 | T151: 5 | U151: 150 | V151: 604 | W151: 4 | X151: Unknown
A152: 150 | B152: 4 | C152: 4 | D152: 2 | E152: 2 | F152: 4 | G152: 4 | H152: 4 | I152: 4 | J152: 2 | K152: 4 | L152: 2 | M152: 5 | N152: 4 | O152: 1 | P152: 3 | Q152: 1 | R152: 4 | S152: 4 | T152: 5 | U152: 110 | V152: 462 | W152: 3 | X152: Unknown
A153: 151 | B153: 4 | C153: 3 | D153: 3 | E153: 2 | F153: 4 | G153: 2 | H153: 3 | I153: 2 | J153: 3 | K153: 3 | L153: 4 | M153: 5 | N153: 4 | O153: 2 | P153: 2 | Q153: 2 | R153: 3 | S153: 3 | T153: 5 | U153: 165 | V153: 770 | W153: 5 | X153: Unknown
A154: 152 | B154: 4 | C154: 3 | D154: 4 | E154: 3 | F154: 4 | G154: 3 | H154: 3 | I154: 2 | J154: 3 | K154: 3 | L154: 2 | M154: 4 | N154: 2 | O154: 3 | P154: 4 | Q154: 3 | R154: 4 | S154: 3 | T154: 4 | U154: 155 | V154: 770 | W154: 5 | X154: Unknown
A155: 153 | B155: 4 | C155: 3 | D155: 4 | E155: 3 | F155: 3 | G155: 3 | H155: 2 | I155: 3 | J155: 3 | K155: 3 | L155: 3 | M155: 4 | N155: 3 | O155: 3 | P155: 4 | Q155: 3 | R155: 3 | S155: 3 | T155: 4 | U155: 210 | V155: 868 | W155: 5 | X155: Unknown
A156: 154 | B156: 4 | C156: 3 | D156: 3 | E156: 2 | F156: 4 | G156: 3 | H156: 3 | I156: 2 | J156: 3 | K156: 3 | L156: 3 | M156: 4 | N156: 3 | O156: 3 | P156: 4 | Q156: 3 | R156: 3 | S156: 3 | T156: 4 | U156: 120 | V156: 570 | W156: 4 | X156: Unknown
A157: 155 | B157: 4 | C157: 3 | D157: 3 | E157: 3 | F157: 3 | G157: 3 | H157: 3 | I157: 3 | J157: 3 | K157: 3 | L157: 2 | M157: 4 | N157: 3 | O157: 2 | P157: 3 | Q157: 3 | R157: 3 | S157: 3 | T157: 4 | U157: 216 | V157: 765 | W157: 5 | X157: Unknown
A158: 156 | B158: 4 | C158: 3 | D158: 4 | E158: 3 | F158: 4 | G158: 4 | H158: 4 | I158: 3 | J158: 4 | K158: 3 | L158: 4 | M158: 3 | N158: 3 | O158: 4 | P158: 3 | Q158: 4 | R158: 3 | S158: 4 | T158: 4 | U158: 248 | V158: 1009 | W158: 5 | X158: Unknown
A159: 157 | B159: 4 | C159: 4 | D159: 4 | E159: 3 | F159: 3 | G159: 4 | H159: 4 | I159: 2 | J159: 3 | K159: 3 | L159: 3 | M159: 4 | N159: 3 | O159: 2 | P159: 4 | Q159: 2 | R159: 4 | S159: 3 | T159: 4 | U159: 95 | V159: 379 | W159: 2 | X159: After 25 Aug 2017
A160: 158 | B160: 4 | C160: 3 | D160: 4 | E160: 3 | F160: 3 | G160: 3 | H160: 4 | I160: 4 | J160: 3 | K160: 3 | L160: 4 | M160: 4 | N160: 3 | O160: 3 | P160: 4 | Q160: 3 | R160: 4 | S160: 3 | T160: 4 | U160: 50 | V160: 212 | W160: 1 | X160: After 25 Aug 2017
A161: 159 | B161: 4 | C161: 3 | D161: 4 | E161: 3 | F161: 4 | G161: 4 | H161: 4 | I161: 2 | J161: 2 | K161: 2 | L161: 2 | M161: 4 | N161: 3 | O161: 3 | P161: 2 | Q161: 3 | R161: 4 | S161: 3 | T161: 4 | U161: 65 | V161: 295 | W161: 1 | X161: After 25 Aug 2017
A162: 160 | B162: 4 | C162: 4 | D162: 4 | E162: 4 | F162: 4 | G162: 4 | H162: 4 | I162: 4 | J162: 4 | K162: 3 | L162: 3 | M162: 4 | N162: 4 | O162: 4 | P162: 4 | Q162: 3 | R162: 2 | S162: 4 | T162: 4 | U162: 34 | V162: 121 | W162: 1 | X162: After 25 Aug 2017
A163: 161 | B163: 4 | C163: 5 | D163: 5 | E163: 3 | F163: 3 | G163: 4 | H163: 4 | I163: 2 | J163: 3 | K163: 2 | L163: 3 | M163: 4 | N163: 5 | O163: 3 | P163: 2 | Q163: 2 | R163: 3 | S163: 3 | T163: 5 | U163: 45 | V163: 200 | W163: 1 | X163: After 25 Aug 2017
A164: 162 | B164: 3 | C164: 3 | D164: 5 | E164: 4 | F164: 3 | G164: 4 | H164: 5 | I164: 3 | J164: 3 | K164: 3 | L164: 3 | M164: 4 | N164: 5 | O164: 3 | P164: 3 | Q164: 3 | R164: 3 | S164: 3 | T164: 5 | U164: 64 | V164: 280 | W164: 1 | X164: Before 25 Aug 2017
A165: 163 | B165: 3 | C165: 3 | D165: 5 | E165: 4 | F165: 3 | G165: 5 | H165: 5 | I165: 3 | J165: 3 | K165: 3 | L165: 3 | M165: 4 | N165: 5 | O165: 3 | P165: 3 | Q165: 3 | R165: 3 | S165: 3 | T165: 5 | U165: 67 | V165: 323 | W165: 1 | X165: After 25 Aug 2017
A166: 164 | B166: 3 | C166: 4 | D166: 5 | E166: 4 | F166: 3 | G166: 5 | H166: 5 | I166: 3 | J166: 3 | K166: 3 | L166: 3 | M166: 4 | N166: 5 | O166: 3 | P166: 3 | Q166: 3 | R166: 3 | S166: 3 | T166: 5 | U166: 66 | V166: 292 | W166: 1 | X166: After 25 Aug 2017
A167: 165 | B167: 3 | C167: 3 | D167: 5 | E167: 4 | F167: 3 | G167: 5 | H167: 5 | I167: 3 | J167: 3 | K167: 3 | L167: 3 | M167: 4 | N167: 5 | O167: 3 | P167: 3 | Q167: 3 | R167: 3 | S167: 3 | T167: 5 | U167: 55 | V167: 246 | W167: 1 | X167: After 25 Aug 2017
A168: 166 | B168: 3 | C168: 3 | D168: 5 | E168: 4 | F168: 3 | G168: 5 | H168: 5 | I168: 3 | J168: 3 | K168: 3 | L168: 3 | M168: 4 | N168: 5 | O168: 3 | P168: 3 | Q168: 3 | R168: 3 | S168: 3 | T168: 5 | U168: 48 | V168: 218 | W168: 1 | X168: After 25 Aug 2017
A169: 167 | B169: 4 | C169: 3 | D169: 5 | E169: 3 | F169: 4 | G169: 5 | H169: 5 | I169: 3 | J169: 2 | K169: 2 | L169: 2 | M169: 4 | N169: 4 | O169: 3 | P169: 3 | Q169: 3 | R169: 4 | S169: 3 | T169: 5 | U169: 54 | V169: 247 | W169: 1 | X169: After 25 Aug 2017
A170: 168 | B170: 4 | C170: 3 | D170: 5 | E170: 3 | F170: 5 | G170: 5 | H170: 4 | I170: 3 | J170: 3 | K170: 2 | L170: 2 | M170: 4 | N170: 4 | O170: 3 | P170: 2 | Q170: 3 | R170: 4 | S170: 3 | T170: 5 | U170: 47 | V170: 219 | W170: 1 | X170: After 25 Aug 2017
A171: 169 | B171: 4 | C171: 3 | D171: 5 | E171: 3 | F171: 5 | G171: 5 | H171: 4 | I171: 3 | J171: 2 | K171: 2 | L171: 2 | M171: 4 | N171: 4 | O171: 3 | P171: 2 | Q171: 3 | R171: 4 | S171: 3 | T171: 5 | U171: 73 | V171: 322 | W171: 1 | X171: After 25 Aug 2017
A172: 170 | B172: 4 | C172: 3 | D172: 5 | E172: 3 | F172: 5 | G172: 5 | H172: 3 | I172: 3 | J172: 2 | K172: 2 | L172: 2 | M172: 4 | N172: 4 | O172: 3 | P172: 2 | Q172: 3 | R172: 4 | S172: 3 | T172: 5 | U172: 42 | V172: 213 | W172: 1 | X172: After 25 Aug 2017
A173: 171 | B173: 4 | C173: 3 | D173: 5 | E173: 3 | F173: 4 | G173: 5 | H173: 5 | I173: 3 | J173: 2 | K173: 2 | L173: 2 | M173: 4 | N173: 4 | O173: 3 | P173: 2 | Q173: 3 | R173: 4 | S173: 3 | T173: 5 | U173: 41 | V173: 159 | W173: 1 | X173: After 25 Aug 2017
A174: 172 | B174: 4 | C174: 3 | D174: 5 | E174: 3 | F174: 4 | G174: 5 | H174: 5 | I174: 3 | J174: 3 | K174: 2 | L174: 2 | M174: 4 | N174: 4 | O174: 3 | P174: 3 | Q174: 3 | R174: 4 | S174: 3 | T174: 5 | U174: 81 | V174: 353 | W174: 2 | X174: After 25 Aug 2017
A175: 173 | B175: 5 | C175: 4 | D175: 5 | E175: 4 | F175: 5 | G175: 5 | H175: 4 | I175: 3 | J175: 3 | K175: 3 | L175: 4 | M175: 5 | N175: 4 | O175: 4 | P175: 3 | Q175: 3 | R175: 3 | S175: 4 | T175: 5 | U175: 29 | V175: 120 | W175: 1 | X175: After 25 Aug 2017
A176: 174 | B176: 5 | C176: 4 | D176: 5 | E176: 4 | F176: 4 | G176: 5 | H176: 4 | I176: 4 | J176: 3 | K176: 2 | L176: 3 | M176: 5 | N176: 4 | O176: 3 | P176: 3 | Q176: 3 | R176: 3 | S176: 4 | T176: 5 | U176: 60 | V176: 260 | W176: 1 | X176: After 25 Aug 2017
A177: 175 | B177: 5 | C177: 4 | D177: 5 | E177: 4 | F177: 4 | G177: 5 | H177: 4 | I177: 3 | J177: 3 | K177: 3 | L177: 5 | M177: 5 | N177: 4 | O177: 4 | P177: 4 | Q177: 3 | R177: 3 | S177: 4 | T177: 5 | U177: 75 | V177: 345 | W177: 1 | X177: After 25 Aug 2017
A178: 176 | B178: 5 | C178: 4 | D178: 4 | E178: 3 | F178: 4 | G178: 4 | H178: 3 | I178: 2 | J178: 3 | K178: 2 | L178: 2 | M178: 5 | N178: 4 | O178: 2 | P178: 2 | Q178: 2 | R178: 3 | S178: 3 | T178: 5 | U178: 71 | V178: 311 | W178: 1 | X178: After 25 Aug 2017
A179: 177 | B179: 5 | C179: 4 | D179: 5 | E179: 4 | F179: 4 | G179: 5 | H179: 3 | I179: 2 | J179: 3 | K179: 4 | L179: 2 | M179: 5 | N179: 4 | O179: 2 | P179: 2 | Q179: 3 | R179: 3 | S179: 4 | T179: 5 | U179: 109 | V179: 441 | W179: 3 | X179: After 25 Aug 2017
A180: 178 | B180: 5 | C180: 4 | D180: 4 | E180: 3 | F180: 3 | G180: 4 | H180: 3 | I180: 2 | J180: 2 | K180: 3 | L180: 2 | M180: 4 | N180: 4 | O180: 2 | P180: 2 | Q180: 2 | R180: 3 | S180: 3 | T180: 5 | U180: 111 | V180: 496 | W180: 4 | X180: After 25 Aug 2017
A181: 179 | B181: 5 | C181: 4 | D181: 4 | E181: 3 | F181: 4 | G181: 4 | H181: 3 | I181: 2 | J181: 2 | K181: 3 | L181: 2 | M181: 4 | N181: 2 | O181: 2 | P181: 3 | Q181: 2 | R181: 2 | S181: 3 | T181: 5 | U181: 103 | V181: 419 | W181: 2 | X181: After 25 Aug 2017
A182: 180 | B182: 5 | C182: 4 | D182: 5 | E182: 4 | F182: 4 | G182: 5 | H182: 4 | I182: 2 | J182: 2 | K182: 3 | L182: 2 | M182: 5 | N182: 4 | O182: 2 | P182: 2 | Q182: 1 | R182: 3 | S182: 4 | T182: 5 | U182: 70 | V182: 337 | W182: 1 | X182: After 25 Aug 2017
A183: 181 | B183: 5 | C183: 4 | D183: 4 | E183: 3 | F183: 4 | G183: 4 | H183: 3 | I183: 2 | J183: 2 | K183: 2 | L183: 3 | M183: 4 | N183: 5 | O183: 2 | P183: 2 | Q183: 2 | R183: 3 | S183: 3 | T183: 5 | U183: 65 | V183: 270 | W183: 1 | X183: After 25 Aug 2017
A184: 182 | B184: 5 | C184: 4 | D184: 5 | E184: 3 | F184: 3 | G184: 4 | H184: 4 | I184: 2 | J184: 2 | K184: 4 | L184: 2 | M184: 4 | N184: 3 | O184: 2 | P184: 3 | Q184: 2 | R184: 3 | S184: 3 | T184: 5 | U184: 70 | V184: 365 | W184: 2 | X184: After 25 Aug 2017
A185: 183 | B185: 5 | C185: 4 | D185: 5 | E185: 4 | F185: 4 | G185: 4 | H185: 3 | I185: 3 | J185: 3 | K185: 3 | L185: 4 | M185: 5 | N185: 4 | O185: 4 | P185: 3 | Q185: 3 | R185: 3 | S185: 4 | T185: 5 | U185: 68 | V185: 297 | W185: 1 | X185: After 25 Aug 2017
A186: 184 | B186: 4 | C186: 4 | D186: 4 | E186: 4 | F186: 4 | G186: 4 | H186: 4 | I186: 4 | J186: 4 | K186: 3 | L186: 3 | M186: 4 | N186: 4 | O186: 4 | P186: 4 | Q186: 4 | R186: 2 | S186: 4 | T186: 4 | U186: 56 | V186: 242 | W186: 1 | X186: After 25 Aug 2017
A187: 185 | B187: 4 | C187: 4 | D187: 4 | E187: 4 | F187: 4 | G187: 4 | H187: 4 | I187: 4 | J187: 3 | K187: 3 | L187: 4 | M187: 4 | N187: 4 | O187: 4 | P187: 4 | Q187: 4 | R187: 2 | S187: 4 | T187: 4 | U187: 130 | V187: 450 | W187: 3 | X187: After 25 Aug 2017
A188: 186 | B188: 4 | C188: 4 | D188: 4 | E188: 4 | F188: 4 | G188: 4 | H188: 4 | I188: 4 | J188: 4 | K188: 3 | L188: 4 | M188: 4 | N188: 4 | O188: 4 | P188: 4 | Q188: 4 | R188: 2 | S188: 4 | T188: 4 | U188: 57 | V188: 252 | W188: 1 | X188: After 25 Aug 2017
A189: 187 | B189: 4 | C189: 4 | D189: 4 | E189: 4 | F189: 4 | G189: 4 | H189: 4 | I189: 4 | J189: 4 | K189: 3 | L189: 3 | M189: 4 | N189: 4 | O189: 4 | P189: 4 | Q189: 3 | R189: 3 | S189: 4 | T189: 4 | U189: 75 | V189: 330 | W189: 1 | X189: After 25 Aug 2017
A190: 188 | B190: 4 | C190: 4 | D190: 4 | E190: 4 | F190: 4 | G190: 4 | H190: 4 | I190: 4 | J190: 4 | K190: 3 | L190: 4 | M190: 4 | N190: 4 | O190: 4 | P190: 4 | Q190: 3 | R190: 3 | S190: 4 | T190: 4 | U190: 158 | V190: 607 | W190: 4 | X190: After 25 Aug 2017
A191: 189 | B191: 4 | C191: 4 | D191: 5 | E191: 3 | F191: 3 | G191: 4 | H191: 4 | I191: 2 | J191: 3 | K191: 2 | L191: 3 | M191: 4 | N191: 5 | O191: 3 | P191: 2 | Q191: 2 | R191: 3 | S191: 3 | T191: 5 | U191: 95 | V191: 340 | W191: 1 | X191: After 25 Aug 2017
A192: 190 | B192: 5 | C192: 4 | D192: 5 | E192: 3 | F192: 3 | G192: 4 | H192: 4 | I192: 2 | J192: 3 | K192: 2 | L192: 4 | M192: 4 | N192: 5 | O192: 3 | P192: 2 | Q192: 2 | R192: 3 | S192: 3 | T192: 5 | U192: 75 | V192: 285 | W192: 1 | X192: Unknown
A193: 191 | B193: 4 | C193: 5 | D193: 5 | E193: 3 | F193: 3 | G193: 4 | H193: 4 | I193: 2 | J193: 3 | K193: 2 | L193: 3 | M193: 4 | N193: 5 | O193: 2 | P193: 3 | Q193: 2 | R193: 3 | S193: 3 | T193: 5 | U193: 60 | V193: 250 | W193: 1 | X193: Unknown
A194: 192 | B194: 4 | C194: 5 | D194: 5 | E194: 3 | F194: 3 | G194: 4 | H194: 4 | I194: 2 | J194: 3 | K194: 2 | L194: 3 | M194: 4 | N194: 5 | O194: 2 | P194: 2 | Q194: 2 | R194: 3 | S194: 3 | T194: 5 | U194: 120 | V194: 448 | W194: 3 | X194: Unknown
A195: 193 | B195: 5 | C195: 4 | D195: 5 | E195: 3 | F195: 3 | G195: 3 | H195: 4 | I195: 2 | J195: 4 | K195: 3 | L195: 4 | M195: 5 | N195: 5 | O195: 2 | P195: 2 | Q195: 3 | R195: 3 | S195: 3 | T195: 5 | U195: 77 | V195: 301 | W195: 1 | X195: Unknown
A196: 194 | B196: 5 | C196: 4 | D196: 5 | E196: 2 | F196: 4 | G196: 4 | H196: 4 | I196: 2 | J196: 2 | K196: 1 | L196: 2 | M196: 4 | N196: 5 | O196: 1 | P196: 4 | Q196: 2 | R196: 1 | S196: =MEDIAN($B196:$R196) -> 4 | T196: =MAX($B196:$R196) -> 5 | U196: 54 | V196: 257 | W196: 1 | X196: After 25 Aug 2017
A197: 195 | B197: 5 | C197: 4 | D197: 5 | E197: 5 | F197: 4 | G197: 2 | H197: 2 | I197: 3 | J197: 2 | K197: 2 | L197: 3 | M197: 4 | N197: 5 | O197: 1 | P197: 2 | Q197: 1 | R197: 4 | S197: 3 | T197: 5 | U197: 74 | V197: 300 | W197: 1 | X197: After 25 Aug 2017
A198: 196 | B198: 5 | C198: 4 | D198: 5 | E198: 5 | F198: 4 | G198: 3 | H198: 2 | I198: 3 | J198: 1 | K198: 2 | L198: 3 | M198: 3 | N198: 5 | O198: 1 | P198: 2 | Q198: 3 | R198: 4 | S198: 3 | T198: 5 | U198: 87 | V198: 372 | W198: 2 | X198: After 25 Aug 2017
A199: 197 | B199: 5 | C199: 4 | D199: 5 | E199: 5 | F199: 4 | G199: 2 | H199: 3 | I199: 2 | J199: 1 | K199: 2 | L199: 3 | M199: 4 | N199: 5 | O199: 2 | P199: 3 | Q199: 2 | R199: 4 | S199: 3 | T199: 5 | U199: 64 | V199: 232 | W199: 1 | X199: After 25 Aug 2017
A200: 198 | B200: 5 | C200: 4 | D200: 5 | E200: 2 | F200: 4 | G200: 2 | H200: 4 | I200: 2 | J200: 3 | K200: 2 | L200: 1 | M200: 4 | N200: 5 | O200: 1 | P200: 4 | Q200: 3 | R200: 4 | S200: 4 | T200: 5 | U200: 97 | V200: 393 | W200: 2 | X200: After 25 Aug 2017
... 1609 more rows

Sheet No1b_RankStatistics
A1: Case-wise rank statistics, over all needs areas:
A3: Scale, verbal: | D3: Not severe | E3: Somewhat severe | F3: Moderately severe | G3: Very severe | H3: Extremely severe
A4: Scale, numeric: | D4: 1 | E4: 2 | F4: 3 | G4: 4 | H4: 5 | I4: Sum:
A5: Frequencies: | B5: All ratings | D5: =COUNTIF(AllRatings, D$4) / COUNT(AllRatings) -> 0.03685015788 | E5: =COUNTIF(AllRatings, E$4) / COUNT(AllRatings) -> 0.1611380579 | F5: =COUNTIF(AllRatings, F$4) / COUNT(AllRatings) -> 0.3090920928 | G5: =COUNTIF(AllRatings, G$4) / COUNT(AllRatings) -> 0.3073667763 | H5: =COUNTIF(AllRatings, H$4) / COUNT(AllRatings) -> 0.1855529151 | I5: =SUM(D5:H5) -> 1
B6: Median ratings | D6: =COUNTIF(MedianRating, D$4) / COUNT(MedianRating) -> 0 | E6: =COUNTIF(MedianRating, E$4) / COUNT(MedianRating) -> 0.0658550083 | F6: =COUNTIF(MedianRating, F$4) / COUNT(MedianRating) -> 0.4908688434 | G6: =COUNTIF(MedianRating, G$4) / COUNT(MedianRating) -> 0.4294410625 | H6: =COUNTIF(MedianRating, H$4) / COUNT(MedianRating) -> 0.01383508578 | I6: =SUM(D6:H6) -> 1 | K6: The key result
B7: Maximum ratings | D7: =COUNTIF(MaximumRating, D$4) / COUNT(MaximumRating) -> 0 | E7: =COUNTIF(MaximumRating, E$4) / COUNT(MaximumRating) -> 0 | F7: =COUNTIF(MaximumRating, F$4) / COUNT(MaximumRating) -> 0.0005534034311 | G7: =COUNTIF(MaximumRating, G$4) / COUNT(MaximumRating) -> 0.1444382955 | H7: =COUNTIF(MaximumRating, H$4) / COUNT(MaximumRating) -> 0.8550083011 | I7: 1
A9: Population-weighted:
B10: Median ratings | D10: =SUMPRODUCT(--(MedianRating = D$4), pop) / SUM(pop) -> 0 | E10: =SUMPRODUCT(--(MedianRating = E$4), pop) / SUM(pop) -> 0.06436961768 | F10: =SUMPRODUCT(--(MedianRating = F$4), pop) / SUM(pop) -> 0.4880631674 | G10: =SUMPRODUCT(--(MedianRating = G$4), pop) / SUM(pop) -> 0.4317386387 | H10: =SUMPRODUCT(--(MedianRating = H$4), pop) / SUM(pop) -> 0.01582857626 | I10: =SUM(D10:H10) -> 1
B11: Maximum ratings | D11: =SUMPRODUCT(--(MaximumRating = D$4), pop) / SUM(pop) -> 0 | E11: =SUMPRODUCT(--(MaximumRating = E$4), pop) / SUM(pop) -> 0 | F11: =SUMPRODUCT(--(MaximumRating = F$4), pop) / SUM(pop) -> 0.0001202254896 | G11: =SUMPRODUCT(--(MaximumRating = G$4), pop) / SUM(pop) -> 0.1333868411 | H11: =SUMPRODUCT(--(MaximumRating = H$4), pop) / SUM(pop) -> 0.8664929334 | I11: =SUM(D11:H11) -> 1
B12: Note: Calculating the population-weighted frequencies for "All ratings" would require expanding the population vector to an arrow the same widthe as the named range "AllRatings".
A14: By categories of interest: Period when majority of camp point pop. arrived
C15: Camp points | D15: Median ratings:
B16: Before 25 Aug 2017 | C16: =COUNTIF(ArrivalPeriod,$B16) -> 206 | D16: =COUNTIFS(ArrivalPeriod,$B16,MedianRating,D$4) / COUNTIFS(ArrivalPeriod,$B16) -> 0 | E16: 0.08737864078 | F16: 0.5145631068 | G16: 0.3932038835 | H16: 0.004854368932 | I16: =SUM(D16:H16) -> 1
B17: After 25 Aug 2017 | C17: =COUNTIF(ArrivalPeriod,$B17) -> 1387 | D17: 0 | E17: 0.06849315068 | F17: 0.4953136265 | G17: 0.4210526316 | H17: 0.0151405912 | I17: 1
B18: Unknown | C18: =COUNTIF(ArrivalPeriod,$B18) -> 214 | D18: 0 | E18: 0.02803738318 | F18: 0.4392523364 | G18: 0.5186915888 | H18: 0.01401869159 | I18: 1
B19: All camp points | C19: =SUM(C16:C18) -> 1807 | D19: =COUNTIF(MedianRating, D$4) / COUNT(MedianRating) -> 0 | E19: =COUNTIF(MedianRating, E$4) / COUNT(MedianRating) -> 0.0658550083 | F19: =COUNTIF(MedianRating, F$4) / COUNT(MedianRating) -> 0.4908688434 | G19: =COUNTIF(MedianRating, G$4) / COUNT(MedianRating) -> 0.4294410625 | H19: =COUNTIF(MedianRating, H$4) / COUNT(MedianRating) -> 0.01383508578 | I19: =SUM(D19:H19) -> 1
A21: Population-weighted:
C22: Population | D22: Median ratings:
B23: Before 25 Aug 2017 | C23: =SUMPRODUCT(--(ArrivalPeriod = $B23), pop) -> 116949 | D23: =SUMPRODUCT(--(MedianRating = D$4), --(ArrivalPeriod = $B23), pop) / SUMPRODUCT(--(ArrivalPeriod = $B23), pop) -> 0 | E23: 0.08025720613 | F23: 0.4841512112 | G23: 0.4314273743 | H23: 0.00416420833 | I23: =SUM(D23:H23) -> 1
B24: After 25 Aug 2017 | C24: =SUMPRODUCT(--(ArrivalPeriod = $B24), pop) -> 687975 | D24: 0 | E24: 0.06631636324 | F24: 0.4924350449 | G24: 0.4228889131 | H24: 0.01835967877 | I24: 1
B25: Unknown | C25: =SUMPRODUCT(--(ArrivalPeriod = $B25), pop) -> 93388 | D25: 0 | E25: 0.03013235105 | F25: 0.4607551291 | G25: 0.4973229965 | H25: 0.01178952328 | I25: 1
B26: All camp points | C26: =SUM(C23:C25) -> 898312 | D26: =SUMPRODUCT(--(MedianRating = D$4), pop) / SUM(pop) -> 0 | E26: =SUMPRODUCT(--(MedianRating = E$4), pop) / SUM(pop) -> 0.06436961768 | F26: =SUMPRODUCT(--(MedianRating = F$4), pop) / SUM(pop) -> 0.4880631674 | G26: =SUMPRODUCT(--(MedianRating = G$4), pop) / SUM(pop) -> 0.4317386387 | H26: =SUMPRODUCT(--(MedianRating = H$4), pop) / SUM(pop) -> 0.01582857626 | I26: 1
A28: "Population-weighted" is not the same as "By population size category of units (e.g. camp points)":
A29: By categories of interest: Camp point population, quintiles:
A30: Quintile | B30: Population range | C30: Camp points | D30: Median ratings: | J30: MinPop | K30: MaxPop
A31: 1 | B31: =CONCATENATE(J31, " - ", K31) -> 4 - 345 | C31: =COUNTIF(pop_5tiles,$A31) -> 366 | D31: =COUNTIFS(pop_5tiles,$A31,MedianRating,D$4) / COUNTIFS(pop_5tiles,$A31) -> 0 | E31: 0.05737704918 | F31: 0.4644808743 | G31: 0.4699453552 | H31: 0.008196721311 | I31: =SUM(D31:H31) -> 1 | J31: =MIN(IF(pop_5tiles=$A31,pop)) -> 4 | K31: =MAX(IF(pop_5tiles=$A31,pop)) -> 345
A32: 2 | B32: =CONCATENATE(J32, " - ", K32) -> 346 - 419 | C32: =COUNTIF(pop_5tiles,$A32) -> 357 | D32: 0 | E32: 0.08403361345 | F32: 0.5182072829 | G32: 0.3837535014 | H32: 0.01400560224 | I32: 1 | J32: =MIN(IF(pop_5tiles=$A32,pop)) -> 346 | K32: =MAX(IF(pop_5tiles=$A32,pop)) -> 419
A33: 3 | B33: 420 - 480 | C33: =COUNTIF(pop_5tiles,$A33) -> 362 | D33: 0 | E33: 0.04143646409 | F33: 0.5580110497 | G33: 0.3895027624 | H33: 0.01104972376 | I33: 1 | J33: =MIN(IF(pop_5tiles=$A33,pop)) -> 420 | K33: =MAX(IF(pop_5tiles=$A33,pop)) -> 480
A34: 4 | B34: 481 - 609 | C34: =COUNTIF(pop_5tiles,$A34) -> 361 | D34: 0 | E34: 0.08864265928 | F34: 0.4542936288 | G34: 0.4432132964 | H34: 0.01385041551 | I34: 1 | J34: =MIN(IF(pop_5tiles=$A34,pop)) -> 481 | K34: =MAX(IF(pop_5tiles=$A34,pop)) -> 609
A35: 5 | B35: 610 - 4850 | C35: =COUNTIF(pop_5tiles,$A35) -> 361 | D35: 0 | E35: 0.05817174515 | F35: 0.459833795 | G35: 0.459833795 | H35: 0.02216066482 | I35: 1 | J35: =MIN(IF(pop_5tiles=$A35,pop)) -> 610 | K35: =MAX(IF(pop_5tiles=$A35,pop)) -> 4850
B36: All camp points | C36: =SUM(C31:C35) -> 1807 | D36: =COUNTIF(MedianRating, D$4) / COUNT(MedianRating) -> 0 | E36: =COUNTIF(MedianRating, E$4) / COUNT(MedianRating) -> 0.0658550083 | F36: =COUNTIF(MedianRating, F$4) / COUNT(MedianRating) -> 0.4908688434 | G36: =COUNTIF(MedianRating, G$4) / COUNT(MedianRating) -> 0.4294410625 | H36: =COUNTIF(MedianRating, H$4) / COUNT(MedianRating) -> 0.01383508578 | I36: 1

Sheet No1c_Ridit(SmallDemo)
A1: Scale, verbal: | B1: Not severe | C1: Somewhat severe | D1: Moderately severe | E1: Very severe | F1: Extremely severe
A2: Scale, numeric: | B2: 1 | C2: 2 | D2: 3 | E2: 4 | F2: 5
A3: Frequency, all ratings | B3: =COUNTIF(SmallDemoRatings, B$2) / COUNT(SmallDemoRatings) -> 0.02142857143 | C3: =COUNTIF(SmallDemoRatings, C$2) / COUNT(SmallDemoRatings) -> 0.07142857143 | D3: =COUNTIF(SmallDemoRatings, D$2) / COUNT(SmallDemoRatings) -> 0.4071428571 | E3: =COUNTIF(SmallDemoRatings, E$2) / COUNT(SmallDemoRatings) -> 0.3428571429 | F3: =COUNTIF(SmallDemoRatings, F$2) / COUNT(SmallDemoRatings) -> 0.1571428571
A4: Cumul. Frequency | B4: =SUM($B$3:B$3) -> 0.02142857143 | C4: =SUM($B$3:C$3) -> 0.09285714286 | D4: =SUM($B$3:D$3) -> 0.5 | E4: =SUM($B$3:E$3) -> 0.8428571429 | F4: =SUM($B$3:F$3) -> 1
A5: Ridit | B5: =B$3 / 2 -> 0.01071428571 | C5: =C$3 / 2 + B$4 -> 0.05714285714 | D5: =D$3 / 2 + C$4 -> 0.2964285714 | E5: 0.6714285714 | F5: 0.9214285714 | G5: Comment | J5: Data, original and riditized: | M5: Scroll right!
K6: Original ratings | S6: Ridits
A7: Ordinal scale and ridits: | H7: Scroll down! | J7: Sort order | K7: Cash | L7: Food | M7: Water | N7: WASHs | O7: Shelter | P7: Education | Q7: Health | R7: Median 7 items | S7: Cash | T7: Food | U7: Water | V7: WASHs | W7: Shelter | X7: Education | Y7: Health | Z7: Mean 7 ridits
A8: Scale, numeric: | B8: 1 | C8: 2 | D8: 3 | E8: 4 | F8: 5 | J8: ID | K8: var303 | L8: var304 | M8: var305 | N8: var306 | O8: var307 | P8: var308 | Q8: var309 | R8: RowMedian7items | S8: r_var303 | T8: r_var304 | U8: r_var305 | V8: r_var306 | W8: r_var307 | X8: r_var308 | Y8: r_var309 | Z8: RowMean7Ridits
A9: Cumul. frequency (copy) | B9: =SUM($B$3:B$3) -> 0.02142857143 | C9: =SUM($B$3:C$3) -> 0.09285714286 | D9: =SUM($B$3:D$3) -> 0.5 | E9: =SUM($B$3:E$3) -> 0.8428571429 | F9: =SUM($B$3:F$3) -> 1 | J9: 1 | K9: 4 | L9: 3 | M9: 4 | N9: 3 | O9: 4 | P9: 3 | Q9: 3 | R9: =MEDIAN(K9:Q9) -> 3 | S9: =INDEX(RiditScale,1,K9) -> 0.6714285714 | T9: =INDEX(RiditScale,1,L9) -> 0.2964285714 | U9: =INDEX(RiditScale,1,M9) -> 0.6714285714 | V9: =INDEX(RiditScale,1,N9) -> 0.2964285714 | W9: =INDEX(RiditScale,1,O9) -> 0.6714285714 | X9: =INDEX(RiditScale,1,P9) -> 0.2964285714 | Y9: =INDEX(RiditScale,1,Q9) -> 0.2964285714 | Z9: =AVERAGE(S9:Y9) -> 0.4571428571
A10: Ridit (copy) | B10: =B5 -> 0.01071428571 | C10: =C5 -> 0.05714285714 | D10: =D5 -> 0.2964285714 | E10: =E5 -> 0.6714285714 | F10: =F5 -> 0.9214285714 | J10: 2 | K10: 2 | L10: 3 | M10: 4 | N10: 4 | O10: 4 | P10: 3 | Q10: 4 | R10: =MEDIAN(K10:Q10) -> 4 | S10: 0.05714285714 | T10: 0.2964285714 | U10: 0.6714285714 | V10: 0.6714285714 | W10: 0.6714285714 | X10: 0.2964285714 | Y10: 0.6714285714 | Z10: =AVERAGE(S10:Y10) -> 0.4765306122
A11: Possible transformations of the Ridit (selection): | J11: 3 | K11: 4 | L11: 3 | M11: 3 | N11: 3 | O11: 3 | P11: 4 | Q11: 3 | R11: 3 | S11: 0.6714285714 | T11: 0.2964285714 | U11: 0.2964285714 | V11: 0.2964285714 | W11: 0.2964285714 | X11: 0.6714285714 | Y11: 0.2964285714 | Z11: 0.4035714286
A12: Raw: | J12: 4 | K12: 3 | L12: 3 | M12: 4 | N12: 3 | O12: 4 | P12: 3 | Q12: 3 | R12: 3 | S12: 0.2964285714 | T12: 0.2964285714 | U12: 0.6714285714 | V12: 0.2964285714 | W12: 0.6714285714 | X12: 0.2964285714 | Y12: 0.2964285714 | Z12: 0.4035714286
A13: Logit | B13: =B$10 / (1 - B$10) -> 0.01083032491 | C13: =C$10 / (1 - C$10) -> 0.06060606061 | D13: =D$10 / (1 - D$10) -> 0.421319797 | E13: =E$10 / (1 - E$10) -> 2.043478261 | F13: =F$10 / (1 - F$10) -> 11.72727273 | J13: 5 | K13: 5 | L13: 3 | M13: 2 | N13: 3 | O13: 3 | P13: 3 | Q13: 4 | R13: 3 | S13: 0.9214285714 | T13: 0.2964285714 | U13: 0.05714285714 | V13: 0.2964285714 | W13: 0.2964285714 | X13: 0.2964285714 | Y13: 0.6714285714 | Z13: 0.4051020408
A14: Formula: | B14: =R10C / (1 - R10C) | J14: 6 | K14: 3 | L14: 3 | M14: 5 | N14: 3 | O14: 5 | P14: 3 | Q14: 3 | R14: 3 | S14: 0.2964285714 | T14: 0.2964285714 | U14: 0.9214285714 | V14: 0.2964285714 | W14: 0.9214285714 | X14: 0.2964285714 | Y14: 0.2964285714 | Z14: 0.475
A15: Power function, base = 10 | B15: =10^B$10 -> 1.024977391 | C15: =10^C$10 -> 1.140624924 | D15: =10^D$10 -> 1.978921521 | E15: =10^E$10 -> 4.692762459 | F15: =10^F$10 -> 8.345042858 | J15: 7 | K15: 5 | L15: 4 | M15: 5 | N15: 3 | O15: 5 | P15: 5 | Q15: 3 | R15: 5 | S15: 0.9214285714 | T15: 0.6714285714 | U15: 0.9214285714 | V15: 0.2964285714 | W15: 0.9214285714 | X15: 0.9214285714 | Y15: 0.2964285714 | Z15: 0.7071428571
A16: Formula: | B16: = 10^R10C | J16: 8 | K16: 2 | L16: 3 | M16: 4 | N16: 2 | O16: 4 | P16: 3 | Q16: 4 | R16: 3 | S16: 0.05714285714 | T16: 0.2964285714 | U16: 0.6714285714 | V16: 0.05714285714 | W16: 0.6714285714 | X16: 0.2964285714 | Y16: 0.6714285714 | Z16: 0.3887755102
A17: Power function, base = 15 | B17: =15^B$10 -> 1.029439854 | C17: =15^C$10 -> 1.167361094 | D17: =15^D$10 -> 2.231654977 | E17: =15^E$10 -> 6.161142788 | F17: =15^F$10 -> 12.12506537 | J17: 9 | K17: 3 | L17: 3 | M17: 5 | N17: 3 | O17: 5 | P17: 3 | Q17: 5 | R17: 3 | S17: 0.2964285714 | T17: 0.2964285714 | U17: 0.9214285714 | V17: 0.2964285714 | W17: 0.9214285714 | X17: 0.2964285714 | Y17: 0.9214285714 | Z17: 0.5642857143
A18: Formula: | B18: = 15^R10C | J18: 10 | K18: 5 | L18: 4 | M18: 5 | N18: 3 | O18: 5 | P18: 4 | Q18: 5 | R18: 5 | S18: 0.9214285714 | T18: 0.6714285714 | U18: 0.9214285714 | V18: 0.2964285714 | W18: 0.9214285714 | X18: 0.6714285714 | Y18: 0.9214285714 | Z18: 0.7607142857
A19: Exponentiation | B19: =EXP(B$10) -> 1.010771889 | C19: =EXP(C$10) -> 1.058807058 | D19: =EXP(D$10) -> 1.345046482 | E19: =EXP(E$10) -> 1.957031083 | F19: =EXP(F$10) -> 2.512877652 | J19: 11 | K19: 5 | L19: 4 | M19: 5 | N19: 4 | O19: 4 | P19: 3 | Q19: 4 | R19: 4 | S19: 0.9214285714 | T19: 0.6714285714 | U19: 0.9214285714 | V19: 0.6714285714 | W19: 0.6714285714 | X19: 0.2964285714 | Y19: 0.6714285714 | Z19: 0.6892857143
A20: Formula: | B20: = EXP(R10C) | J20: 12 | K20: 4 | L20: 4 | M20: 4 | N20: 3 | O20: 4 | P20: 3 | Q20: 3 | R20: 4 | S20: 0.6714285714 | T20: 0.6714285714 | U20: 0.6714285714 | V20: 0.2964285714 | W20: 0.6714285714 | X20: 0.2964285714 | Y20: 0.2964285714 | Z20: 0.5107142857
A21: Softmax function | B21: =EXP(B$10) / SUM($B$19:$F$19) -> 0.1281967797 | C21: =EXP(C$10) / SUM($B$19:$F$19) -> 0.1342891077 | D21: =EXP(D$10) / SUM($B$19:$F$19) -> 0.1705930184 | E21: =EXP(E$10) / SUM($B$19:$F$19) -> 0.2482113772 | F21: =EXP(F$10) / SUM($B$19:$F$19) -> 0.318709717 | J21: 13 | K21: 4 | L21: 4 | M21: 4 | N21: 3 | O21: 4 | P21: 3 | Q21: 3 | R21: 4 | S21: 0.6714285714 | T21: 0.6714285714 | U21: 0.6714285714 | V21: 0.2964285714 | W21: 0.6714285714 | X21: 0.2964285714 | Y21: 0.2964285714 | Z21: 0.5107142857
A22: Formula: | B22: = EXP(R10C) / SUM(R19C2:R19C6) [sums to 1] | J22: 14 | K22: 4 | L22: 4 | M22: 4 | N22: 3 | O22: 3 | P22: 3 | Q22: 3 | R22: 3 | S22: 0.6714285714 | T22: 0.6714285714 | U22: 0.6714285714 | V22: 0.2964285714 | W22: 0.2964285714 | X22: 0.2964285714 | Y22: 0.2964285714 | Z22: 0.4571428571
A23: Rescaled so that maximum = 1: | J23: 15 | K23: 4 | L23: 4 | M23: 4 | N23: 3 | O23: 4 | P23: 3 | Q23: 3 | R23: 4 | S23: 0.6714285714 | T23: 0.6714285714 | U23: 0.6714285714 | V23: 0.2964285714 | W23: 0.6714285714 | X23: 0.2964285714 | Y23: 0.2964285714 | Z23: 0.5107142857
A24: Logit | B24: =B13/$F13 -> 0.0009235160776 | C24: =C13/$F13 -> 0.005167958656 | D24: =D13/$F13 -> 0.03592649431 | E24: =E13/$F13 -> 0.1742500843 | F24: =F13/$F13 -> 1 | J24: 16 | K24: 2 | L24: 4 | M24: 5 | N24: 2 | O24: 1 | P24: 4 | Q24: 3 | R24: 3 | S24: 0.05714285714 | T24: 0.6714285714 | U24: 0.9214285714 | V24: 0.05714285714 | W24: 0.01071428571 | X24: 0.6714285714 | Y24: 0.2964285714 | Z24: 0.3836734694
A25: Power function, base = 10 | B25: =B15/$F15 -> 0.1228247006 | C25: =C15/$F15 -> 0.1366829318 | D25: =D15/$F15 -> 0.2371373706 | E25: =E15/$F15 -> 0.5623413252 | F25: =F15/$F15 -> 1 | J25: 17 | K25: 5 | L25: 4 | M25: 5 | N25: 3 | O25: 4 | P25: 5 | Q25: 3 | R25: 4 | S25: 0.9214285714 | T25: 0.6714285714 | U25: 0.9214285714 | V25: 0.2964285714 | W25: 0.6714285714 | X25: 0.9214285714 | Y25: 0.2964285714 | Z25: 0.6714285714
A26: Power function, base = 15 | B26: =B17/$F17 -> 0.08490179829 | C26: =C17/$F17 -> 0.09627668453 | D26: =D17/$F17 -> 0.1840530264 | E26: =E17/$F17 -> 0.5081327482 | F26: =F17/$F17 -> 1 | J26: 18 | K26: 2 | L26: 4 | M26: 5 | N26: 2 | O26: 1 | P26: 4 | Q26: 3 | R26: 3 | S26: 0.05714285714 | T26: 0.6714285714 | U26: 0.9214285714 | V26: 0.05714285714 | W26: 0.01071428571 | X26: 0.6714285714 | Y26: 0.2964285714 | Z26: 0.3836734694
A27: Exponentiation | B27: =B19/$F19 -> 0.4022368094 | C27: =C19/$F19 -> 0.4213524112 | D27: =D19/$F19 -> 0.5352614285 | E27: =E19/$F19 -> 0.7788007831 | F27: =F19/$F19 -> 1 | J27: 19 | K27: 4 | L27: 4 | M27: 3 | N27: 3 | O27: 4 | P27: 3 | Q27: 3 | R27: 3 | S27: 0.6714285714 | T27: 0.6714285714 | U27: 0.2964285714 | V27: 0.2964285714 | W27: 0.6714285714 | X27: 0.2964285714 | Y27: 0.2964285714 | Z27: 0.4571428571
A28: Softmax function | B28: =B21/$F21 -> 0.4022368094 | C28: 0.4213524112 | D28: 0.5352614285 | E28: 0.7788007831 | F28: 1 | J28: 20 | K28: 2 | L28: 4 | M28: 5 | N28: 2 | O28: 1 | P28: 4 | Q28: 3 | R28: 3 | S28: 0.05714285714 | T28: 0.6714285714 | U28: 0.9214285714 | V28: 0.05714285714 | W28: 0.01071428571 | X28: 0.6714285714 | Y28: 0.2964285714 | Z28: 0.3836734694

Sheet No2a_Copeland
E3: How many people DO NOT have enough water to drink? (0-20%->1; 20-40%->2; etc.) | F3: How many people DO NOT have enough containers to fetch/store water? (0-20%->1; 20-40%->2; etc.) | G3: Estimated water supply shortfall against 35 l / person-day | H3: How many people live in areas where dumped garbage is frequently visible? (0-20%->1; 20-40%->2; etc.) | I3: How many people DO NOT have access to a functioning sanitation facility? (0-20%->1; 20-40%->2; etc.) | J3: Last distribution of female hygiene products was more than two weeks back? (yes = 1, no = 0) | K3: Potential indicator7 | L3: Potential indicator8 | M3: Potential indicator9 | N3: Potential indicator10 | O3: <- Indicator long names, and codings Key informant ratings Metric estimate by agencies Binary, from agency records
E4: 1 | F4: 1 | G4: 1 | H4: 1 | I4: 1 | J4: 1 | O4: <- User-defined weights ("Weights")
E5: =IFERROR(E$4/SUM(Weights),0) -> 0.1666666667 | F5: 0.1666666667 | G5: 0.1666666667 | H5: 0.1666666667 | I5: 0.1666666667 | J5: 0.1666666667 | K5: 0 | L5: 0 | M5: 0 | N5: 0 | O5: <- Scaled to sum to 1 ("WeightsS")
A6: ID | B6: NameOfUnit | C6: Copeland score | D6: Copeland rank | E6: Indic1 | F6: Indic2 | G6: Indic3 | H6: Indic4 | I6: Indic5 | J6: Indic6 | K6: Indic7 | L6: Indic8 | M6: Indic9 | N6: Indic10
A7: 1 | B7: Unit1 | C7: =IF(B7=No2c_OutrankingScore!B7, SUM(INDEX(OutrankScore,A7,0)),"") -> -49 | D7: =_xlfn.RANK.AVG($C7,CopelScore,1) -> 1 | E7: 1 | F7: 1 | G7: 5 | H7: 1 | I7: 1 | J7: 0
A8: 2 | B8: Unit2 | C8: =IF(B8=No2c_OutrankingScore!B8, SUM(INDEX(OutrankScore,A8,0)),"") -> -46 | D8: 2 | E8: 1 | F8: 1 | G8: 5 | H8: 1 | I8: 2 | J8: 0
A9: 3 | B9: Unit3 | C9: =IF(B9=No2c_OutrankingScore!B9, SUM(INDEX(OutrankScore,A9,0)),"") -> -42 | D9: 4 | E9: 1 | F9: 1 | G9: 5 | H9: 1 | I9: 3 | J9: 0
A10: 4 | B10: Unit4 | C10: =IF(B10=No2c_OutrankingScore!B10, SUM(INDEX(OutrankScore,A10,0)),"") -> -45 | D10: 3 | E10: 1 | F10: 1 | G10: 5 | H10: 2 | I10: 1 | J10: 0
A11: 5 | B11: Unit5 | C11: =IF(B11=No2c_OutrankingScore!B11, SUM(INDEX(OutrankScore,A11,0)),"") -> -40 | D11: 5 | E11: 1 | F11: 1 | G11: 5 | H11: 2 | I11: 2 | J11: 0
A12: 6 | B12: Unit6 | C12: =IF(B12=No2c_OutrankingScore!B12, SUM(INDEX(OutrankScore,A12,0)),"") -> -30 | D12: 10 | E12: 1 | F12: 1 | G12: 5 | H12: 2 | I12: 2 | J12: 1
A13: 7 | B13: Unit7 | C13: =IF(B13=No2c_OutrankingScore!B13, SUM(INDEX(OutrankScore,A13,0)),"") -> -30 | D13: 10 | E13: 1 | F13: 1 | G13: 5 | H13: 2 | I13: 2 | J13: 1
A14: 8 | B14: Unit8 | C14: =IF(B14=No2c_OutrankingScore!B14, SUM(INDEX(OutrankScore,A14,0)),"") -> -34 | D14: 8 | E14: 1 | F14: 2 | G14: 5 | H14: 1 | I14: 3 | J14: 0
A15: 9 | B15: Unit9 | C15: =IF(B15=No2c_OutrankingScore!B15, SUM(INDEX(OutrankScore,A15,0)),"") -> -25 | D15: 14 | E15: 1 | F15: 2 | G15: 5 | H15: 2 | I15: 2 | J15: 1
A16: 10 | B16: Unit10 | C16: =IF(B16=No2c_OutrankingScore!B16, SUM(INDEX(OutrankScore,A16,0)),"") -> -39 | D16: 6 | E16: 1 | F16: 3 | G16: 5 | H16: 1 | I16: 2 | J16: 0
A17: 11 | B17: Unit11 | C17: =IF(B17=No2c_OutrankingScore!B17, SUM(INDEX(OutrankScore,A17,0)),"") -> -20 | D17: 15 | E17: 1 | F17: 3 | G17: 5 | H17: 2 | I17: 2 | J17: 1
A18: 12 | B18: Unit12 | C18: =IF(B18=No2c_OutrankingScore!B18, SUM(INDEX(OutrankScore,A18,0)),"") -> -16 | D18: 18 | E18: 1 | F18: 4 | G18: 5 | H18: 2 | I18: 2 | J18: 1
A19: 13 | B19: Unit13 | C19: =IF(B19=No2c_OutrankingScore!B19, SUM(INDEX(OutrankScore,A19,0)),"") -> -12 | D19: 19.5 | E19: 1 | F19: 5 | G19: 5 | H19: 2 | I19: 2 | J19: 1
A20: 14 | B20: Unit14 | C20: =IF(B20=No2c_OutrankingScore!B20, SUM(INDEX(OutrankScore,A20,0)),"") -> -4 | D20: 24 | E20: 1 | F20: 5 | G20: 10 | H20: 2 | I20: 2 | J20: 1
A21: 15 | B21: Unit15 | C21: =IF(B21=No2c_OutrankingScore!B21, SUM(INDEX(OutrankScore,A21,0)),"") -> -38 | D21: 7 | E21: 2 | F21: 1 | G21: 10 | H21: 1 | I21: 1 | J21: 0
A22: 16 | B22: Unit16 | C22: =IF(B22=No2c_OutrankingScore!B22, SUM(INDEX(OutrankScore,A22,0)),"") -> -30 | D22: 10 | E22: 2 | F22: 3 | G22: 10 | H22: 1 | I22: 1 | J22: 0
A23: 17 | B23: Unit17 | C23: =IF(B23=No2c_OutrankingScore!B23, SUM(INDEX(OutrankScore,A23,0)),"") -> 0 | D23: 25.5 | E23: 2 | F23: 3 | G23: 10 | H23: 2 | I23: 4 | J23: 1
A24: 18 | B24: Unit18 | C24: =IF(B24=No2c_OutrankingScore!B24, SUM(INDEX(OutrankScore,A24,0)),"") -> -27 | D24: 12.5 | E24: 3 | F24: 1 | G24: 15 | H24: 1 | I24: 2 | J24: 0
A25: 19 | B25: Unit19 | C25: =IF(B25=No2c_OutrankingScore!B25, SUM(INDEX(OutrankScore,A25,0)),"") -> -17 | D25: 16.5 | E25: 3 | F25: 2 | G25: 10 | H25: 1 | I25: 3 | J25: 0
A26: 20 | B26: Unit20 | C26: =IF(B26=No2c_OutrankingScore!B26, SUM(INDEX(OutrankScore,A26,0)),"") -> -12 | D26: 19.5 | E26: 3 | F26: 2 | G26: 10 | H26: 4 | I26: 2 | J26: 0
A27: 21 | B27: Unit21 | C27: =IF(B27=No2c_OutrankingScore!B27, SUM(INDEX(OutrankScore,A27,0)),"") -> -27 | D27: 12.5 | E27: 3 | F27: 3 | G27: 10 | H27: 1 | I27: 1 | J27: 0
A28: 22 | B28: Unit22 | C28: =IF(B28=No2c_OutrankingScore!B28, SUM(INDEX(OutrankScore,A28,0)),"") -> -6 | D28: 22.5 | E28: 3 | F28: 3 | G28: 10 | H28: 2 | I28: 3 | J28: 0
A29: 23 | B29: Unit23 | C29: =IF(B29=No2c_OutrankingScore!B29, SUM(INDEX(OutrankScore,A29,0)),"") -> -6 | D29: 22.5 | E29: 3 | F29: 3 | G29: 10 | H29: 2 | I29: 3 | J29: 0
A30: 24 | B30: Unit24 | C30: =IF(B30=No2c_OutrankingScore!B30, SUM(INDEX(OutrankScore,A30,0)),"") -> 0 | D30: 25.5 | E30: 3 | F30: 3 | G30: 10 | H30: 2 | I30: 5 | J30: 0
A31: 25 | B31: Unit25 | C31: =IF(B31=No2c_OutrankingScore!B31, SUM(INDEX(OutrankScore,A31,0)),"") -> 2 | D31: 28 | E31: 3 | F31: 3 | G31: 15 | H31: 3 | I31: 2 | J31: 0
A32: 26 | B32: Unit26 | C32: =IF(B32=No2c_OutrankingScore!B32, SUM(INDEX(OutrankScore,A32,0)),"") -> -17 | D32: 16.5 | E32: 3 | F32: 4 | G32: 10 | H32: 1 | I32: 2 | J32: 0
A33: 27 | B33: Unit27 | C33: =IF(B33=No2c_OutrankingScore!B33, SUM(INDEX(OutrankScore,A33,0)),"") -> -7 | D33: 21 | E33: 3 | F33: 4 | G33: 10 | H33: 1 | I33: 3 | J33: 0
A34: 28 | B34: Unit28 | C34: =IF(B34=No2c_OutrankingScore!B34, SUM(INDEX(OutrankScore,A34,0)),"") -> 9 | D34: 29 | E34: 3 | F34: 5 | G34: 10 | H34: 3 | I34: 4 | J34: 1
A35: 29 | B35: Unit29 | C35: =IF(B35=No2c_OutrankingScore!B35, SUM(INDEX(OutrankScore,A35,0)),"") -> 10 | D35: 30 | E35: 4 | F35: 3 | G35: 15 | H35: 4 | I35: 3 | J35: 1
A36: 30 | B36: Unit30 | C36: =IF(B36=No2c_OutrankingScore!B36, SUM(INDEX(OutrankScore,A36,0)),"") -> 1 | D36: 27 | E36: 4 | F36: 3 | G36: 20 | H36: 2 | I36: 2 | J36: 0
A37: 31 | B37: Unit31 | C37: =IF(B37=No2c_OutrankingScore!B37, SUM(INDEX(OutrankScore,A37,0)),"") -> 11 | D37: 31.5 | E37: 4 | F37: 4 | G37: 15 | H37: 3 | I37: 5 | J37: 0
A38: 32 | B38: Unit32 | C38: =IF(B38=No2c_OutrankingScore!B38, SUM(INDEX(OutrankScore,A38,0)),"") -> 11 | D38: 31.5 | E38: 4 | F38: 4 | G38: 20 | H38: 3 | I38: 4 | J38: 0
A39: 33 | B39: Unit33 | C39: =IF(B39=No2c_OutrankingScore!B39, SUM(INDEX(OutrankScore,A39,0)),"") -> 25 | D39: =_xlfn.RANK.AVG($C39,CopelScore,1) -> 38 | E39: 4 | F39: 5 | G39: 20 | H39: 5 | I39: 5 | J39: 1
A40: 34 | B40: Unit34 | C40: =IF(B40=No2c_OutrankingScore!B40, SUM(INDEX(OutrankScore,A40,0)),"") -> 16 | D40: 34 | E40: 5 | F40: 2 | G40: 20 | H40: 2 | I40: 5 | J40: 1
A41: 35 | B41: Unit35 | C41: =IF(B41=No2c_OutrankingScore!B41, SUM(INDEX(OutrankScore,A41,0)),"") -> 20 | D41: 35 | E41: 5 | F41: 2 | G41: 25 | H41: 2 | I41: 5 | J41: 1
A42: 36 | B42: Unit36 | C42: =IF(B42=No2c_OutrankingScore!B42, SUM(INDEX(OutrankScore,A42,0)),"") -> 23 | D42: 36 | E42: 5 | F42: 2 | G42: 30 | H42: 2 | I42: 5 | J42: 1
A43: 37 | B43: Unit37 | C43: =IF(B43=No2c_OutrankingScore!B43, SUM(INDEX(OutrankScore,A43,0)),"") -> 25 | D43: 38 | E43: 5 | F43: 2 | G43: 34 | H43: 2 | I43: 5 | J43: 1
A44: 38 | B44: Unit38 | C44: =IF(B44=No2c_OutrankingScore!B44, SUM(INDEX(OutrankScore,A44,0)),"") -> 27 | D44: 40 | E44: 5 | F44: 4 | G44: 25 | H44: 3 | I44: 5 | J44: 1
A45: 39 | B45: Unit39 | C45: =IF(B45=No2c_OutrankingScore!B45, SUM(INDEX(OutrankScore,A45,0)),"") -> 33 | D45: 41 | E45: 5 | F45: 4 | G45: 25 | H45: 5 | I45: 5 | J45: 1
A46: 40 | B46: Unit40 | C46: =IF(B46=No2c_OutrankingScore!B46, SUM(INDEX(OutrankScore,A46,0)),"") -> 40 | D46: 45 | E46: 5 | F46: 4 | G46: 30 | H46: 5 | I46: 5 | J46: 1
A47: 41 | B47: Unit41 | C47: =IF(B47=No2c_OutrankingScore!B47, SUM(INDEX(OutrankScore,A47,0)),"") -> 34 | D47: 42 | E47: 5 | F47: 5 | G47: 15 | H47: 5 | I47: 5 | J47: 1
A48: 42 | B48: Unit42 | C48: =IF(B48=No2c_OutrankingScore!B48, SUM(INDEX(OutrankScore,A48,0)),"") -> 37 | D48: 43 | E48: 5 | F48: 5 | G48: 20 | H48: 5 | I48: 5 | J48: 1
A49: 43 | B49: Unit43 | C49: =IF(B49=No2c_OutrankingScore!B49, SUM(INDEX(OutrankScore,A49,0)),"") -> 15 | D49: 33 | E49: 5 | F49: 5 | G49: 25 | H49: 2 | I49: 4 | J49: 0
A50: 44 | B50: Unit44 | C50: =IF(B50=No2c_OutrankingScore!B50, SUM(INDEX(OutrankScore,A50,0)),"") -> 25 | D50: 38 | E50: 5 | F50: 5 | G50: 25 | H50: 3 | I50: 3 | J50: 1
A51: 45 | B51: Unit45 | C51: =IF(B51=No2c_OutrankingScore!B51, SUM(INDEX(OutrankScore,A51,0)),"") -> 42 | D51: 48 | E51: 5 | F51: 5 | G51: 25 | H51: 5 | I51: 5 | J51: 1
A52: 46 | B52: Unit46 | C52: =IF(B52=No2c_OutrankingScore!B52, SUM(INDEX(OutrankScore,A52,0)),"") -> 42 | D52: 48 | E52: 5 | F52: 5 | G52: 25 | H52: 5 | I52: 5 | J52: 1
A53: 47 | B53: Unit47 | C53: =IF(B53=No2c_OutrankingScore!B53, SUM(INDEX(OutrankScore,A53,0)),"") -> 42 | D53: 48 | E53: 5 | F53: 5 | G53: 25 | H53: 5 | I53: 5 | J53: 1
A54: 48 | B54: Unit48 | C54: =IF(B54=No2c_OutrankingScore!B54, SUM(INDEX(OutrankScore,A54,0)),"") -> 40 | D54: 45 | E54: 5 | F54: 5 | G54: 30 | H54: 3 | I54: 5 | J54: 1
A55: 49 | B55: Unit49 | C55: =IF(B55=No2c_OutrankingScore!B55, SUM(INDEX(OutrankScore,A55,0)),"") -> 40 | D55: 45 | E55: 5 | F55: 5 | G55: 30 | H55: 3 | I55: 5 | J55: 1
A56: 50 | B56: Unit50 | C56: =IF(B56=No2c_OutrankingScore!B56, SUM(INDEX(OutrankScore,A56,0)),"") -> 49 | D56: 50 | E56: 5 | F56: 5 | G56: 30 | H56: 5 | I56: 5 | J56: 1

Sheet No2b_OutrankingMatrix
C4: ID
C5: 1 | D5: 2 | E5: 3 | F5: 4 | G5: 5 | H5: 6 | I5: 7 | J5: 8 | K5: 9 | L5: 10 | M5: 11 | N5: 12 | O5: 13 | P5: 14 | Q5: 15 | R5: 16 | S5: 17 | T5: 18 | U5: 19 | V5: 20 | W5: 21 | X5: 22 | Y5: 23 | Z5: 24 | AA5: 25 | AB5: 26 | AC5: 27 | AD5: 28 | AE5: 29 | AF5: 30 | AG5: 31 | AH5: 32 | AI5: 33 | AJ5: 34 | AK5: 35 | AL5: 36 | AM5: 37 | AN5: 38 | AO5: 39 | AP5: 40 | AQ5: 41 | AR5: 42 | AS5: 43 | AT5: 44 | AU5: 45 | AV5: 46 | AW5: 47 | AX5: 48 | AY5: 49 | AZ5: 50
A6: ID | B6: NameOfUnit | C6: Unit1 | D6: Unit2 | E6: Unit3 | F6: Unit4 | G6: Unit5 | H6: Unit6 | I6: Unit7 | J6: Unit8 | K6: Unit9 | L6: Unit10 | M6: Unit11 | N6: Unit12 | O6: Unit13 | P6: Unit14 | Q6: Unit15 | R6: Unit16 | S6: Unit17 | T6: Unit18 | U6: Unit19 | V6: Unit20 | W6: Unit21 | X6: Unit22 | Y6: Unit23 | Z6: Unit24 | AA6: Unit25 | AB6: Unit26 | AC6: Unit27 | AD6: Unit28 | AE6: Unit29 | AF6: Unit30 | AG6: Unit31 | AH6: Unit32 | AI6: Unit33 | AJ6: Unit34 | AK6: Unit35 | AL6: Unit36 | AM6: Unit37 | AN6: Unit38 | AO6: Unit39 | AP6: Unit40 | AQ6: Unit41 | AR6: Unit42 | AS6: Unit43 | AT6: Unit44 | AU6: Unit45 | AV6: Unit46 | AW6: Unit47 | AX6: Unit48 | AY6: Unit49 | AZ6: Unit50
A7: 1 | B7: Unit1 | C7: =SUM(IF(INDEX(IndicData,ROW(C7)-6,0) > INDEX(IndicData,COLUMN(C7)-2,0), WeightsS)) -> 0 | D7: =SUM(IF(INDEX(IndicData,ROW(D7)-6,0) > INDEX(IndicData,COLUMN(D7)-2,0), WeightsS)) -> 0 | E7: =SUM(IF(INDEX(IndicData,ROW(E7)-6,0) > INDEX(IndicData,COLUMN(E7)-2,0), WeightsS)) -> 0 | F7: =SUM(IF(INDEX(IndicData,ROW(F7)-6,0) > INDEX(IndicData,COLUMN(F7)-2,0), WeightsS)) -> 0 | G7: =SUM(IF(INDEX(IndicData,ROW(G7)-6,0) > INDEX(IndicData,COLUMN(G7)-2,0), WeightsS)) -> 0 | H7: =SUM(IF(INDEX(IndicData,ROW(H7)-6,0) > INDEX(IndicData,COLUMN(H7)-2,0), WeightsS)) -> 0 | I7: =SUM(IF(INDEX(IndicData,ROW(I7)-6,0) > INDEX(IndicData,COLUMN(I7)-2,0), WeightsS)) -> 0 | J7: =SUM(IF(INDEX(IndicData,ROW(J7)-6,0) > INDEX(IndicData,COLUMN(J7)-2,0), WeightsS)) -> 0 | K7: =SUM(IF(INDEX(IndicData,ROW(K7)-6,0) > INDEX(IndicData,COLUMN(K7)-2,0), WeightsS)) -> 0 | L7: =SUM(IF(INDEX(IndicData,ROW(L7)-6,0) > INDEX(IndicData,COLUMN(L7)-2,0), WeightsS)) -> 0 | M7: =SUM(IF(INDEX(IndicData,ROW(M7)-6,0) > INDEX(IndicData,COLUMN(M7)-2,0), WeightsS)) -> 0 | N7: =SUM(IF(INDEX(IndicData,ROW(N7)-6,0) > INDEX(IndicData,COLUMN(N7)-2,0), WeightsS)) -> 0 | O7: =SUM(IF(INDEX(IndicData,ROW(O7)-6,0) > INDEX(IndicData,COLUMN(O7)-2,0), WeightsS)) -> 0 | P7: =SUM(IF(INDEX(IndicData,ROW(P7)-6,0) > INDEX(IndicData,COLUMN(P7)-2,0), WeightsS)) -> 0 | Q7: =SUM(IF(INDEX(IndicData,ROW(Q7)-6,0) > INDEX(IndicData,COLUMN(Q7)-2,0), WeightsS)) -> 0 | R7: =SUM(IF(INDEX(IndicData,ROW(R7)-6,0) > INDEX(IndicData,COLUMN(R7)-2,0), WeightsS)) -> 0 | S7: =SUM(IF(INDEX(IndicData,ROW(S7)-6,0) > INDEX(IndicData,COLUMN(S7)-2,0), WeightsS)) -> 0 | T7: =SUM(IF(INDEX(IndicData,ROW(T7)-6,0) > INDEX(IndicData,COLUMN(T7)-2,0), WeightsS)) -> 0 | U7: =SUM(IF(INDEX(IndicData,ROW(U7)-6,0) > INDEX(IndicData,COLUMN(U7)-2,0), WeightsS)) -> 0 | V7: =SUM(IF(INDEX(IndicData,ROW(V7)-6,0) > INDEX(IndicData,COLUMN(V7)-2,0), WeightsS)) -> 0 | W7: =SUM(IF(INDEX(IndicData,ROW(W7)-6,0) > INDEX(IndicData,COLUMN(W7)-2,0), WeightsS)) -> 0 | X7: =SUM(IF(INDEX(IndicData,ROW(X7)-6,0) > INDEX(IndicData,COLUMN(X7)-2,0), WeightsS)) -> 0 | Y7: =SUM(IF(INDEX(IndicData,ROW(Y7)-6,0) > INDEX(IndicData,COLUMN(Y7)-2,0), WeightsS)) -> 0 | Z7: =SUM(IF(INDEX(IndicData,ROW(Z7)-6,0) > INDEX(IndicData,COLUMN(Z7)-2,0), WeightsS)) -> 0 | AA7: =SUM(IF(INDEX(IndicData,ROW(AA7)-6,0) > INDEX(IndicData,COLUMN(AA7)-2,0), WeightsS)) -> 0 | AB7: =SUM(IF(INDEX(IndicData,ROW(AB7)-6,0) > INDEX(IndicData,COLUMN(AB7)-2,0), WeightsS)) -> 0 | AC7: =SUM(IF(INDEX(IndicData,ROW(AC7)-6,0) > INDEX(IndicData,COLUMN(AC7)-2,0), WeightsS)) -> 0 | AD7: =SUM(IF(INDEX(IndicData,ROW(AD7)-6,0) > INDEX(IndicData,COLUMN(AD7)-2,0), WeightsS)) -> 0 | AE7: =SUM(IF(INDEX(IndicData,ROW(AE7)-6,0) > INDEX(IndicData,COLUMN(AE7)-2,0), WeightsS)) -> 0 | AF7: =SUM(IF(INDEX(IndicData,ROW(AF7)-6,0) > INDEX(IndicData,COLUMN(AF7)-2,0), WeightsS)) -> 0 | AG7: =SUM(IF(INDEX(IndicData,ROW(AG7)-6,0) > INDEX(IndicData,COLUMN(AG7)-2,0), WeightsS)) -> 0 | AH7: =SUM(IF(INDEX(IndicData,ROW(AH7)-6,0) > INDEX(IndicData,COLUMN(AH7)-2,0), WeightsS)) -> 0 | AI7: =SUM(IF(INDEX(IndicData,ROW(AI7)-6,0) > INDEX(IndicData,COLUMN(AI7)-2,0), WeightsS)) -> 0 | AJ7: =SUM(IF(INDEX(IndicData,ROW(AJ7)-6,0) > INDEX(IndicData,COLUMN(AJ7)-2,0), WeightsS)) -> 0 | AK7: =SUM(IF(INDEX(IndicData,ROW(AK7)-6,0) > INDEX(IndicData,COLUMN(AK7)-2,0), WeightsS)) -> 0 | AL7: =SUM(IF(INDEX(IndicData,ROW(AL7)-6,0) > INDEX(IndicData,COLUMN(AL7)-2,0), WeightsS)) -> 0 | AM7: =SUM(IF(INDEX(IndicData,ROW(AM7)-6,0) > INDEX(IndicData,COLUMN(AM7)-2,0), WeightsS)) -> 0 | AN7: =SUM(IF(INDEX(IndicData,ROW(AN7)-6,0) > INDEX(IndicData,COLUMN(AN7)-2,0), WeightsS)) -> 0 | AO7: =SUM(IF(INDEX(IndicData,ROW(AO7)-6,0) > INDEX(IndicData,COLUMN(AO7)-2,0), WeightsS)) -> 0 | AP7: =SUM(IF(INDEX(IndicData,ROW(AP7)-6,0) > INDEX(IndicData,COLUMN(AP7)-2,0), WeightsS)) -> 0 | AQ7: =SUM(IF(INDEX(IndicData,ROW(AQ7)-6,0) > INDEX(IndicData,COLUMN(AQ7)-2,0), WeightsS)) -> 0 | AR7: =SUM(IF(INDEX(IndicData,ROW(AR7)-6,0) > INDEX(IndicData,COLUMN(AR7)-2,0), WeightsS)) -> 0 | AS7: =SUM(IF(INDEX(IndicData,ROW(AS7)-6,0) > INDEX(IndicData,COLUMN(AS7)-2,0), WeightsS)) -> 0 | AT7: =SUM(IF(INDEX(IndicData,ROW(AT7)-6,0) > INDEX(IndicData,COLUMN(AT7)-2,0), WeightsS)) -> 0 | AU7: =SUM(IF(INDEX(IndicData,ROW(AU7)-6,0) > INDEX(IndicData,COLUMN(AU7)-2,0), WeightsS)) -> 0 | AV7: =SUM(IF(INDEX(IndicData,ROW(AV7)-6,0) > INDEX(IndicData,COLUMN(AV7)-2,0), WeightsS)) -> 0 | AW7: =SUM(IF(INDEX(IndicData,ROW(AW7)-6,0) > INDEX(IndicData,COLUMN(AW7)-2,0), WeightsS)) -> 0 | AX7: =SUM(IF(INDEX(IndicData,ROW(AX7)-6,0) > INDEX(IndicData,COLUMN(AX7)-2,0), WeightsS)) -> 0 | AY7: =SUM(IF(INDEX(IndicData,ROW(AY7)-6,0) > INDEX(IndicData,COLUMN(AY7)-2,0), WeightsS)) -> 0 | AZ7: =SUM(IF(INDEX(IndicData,ROW(AZ7)-6,0) > INDEX(IndicData,COLUMN(AZ7)-2,0), WeightsS)) -> 0
A8: 2 | B8: Unit2 | C8: =SUM(IF(INDEX(IndicData,ROW(C8)-6,0) > INDEX(IndicData,COLUMN(C8)-2,0), WeightsS)) -> 0.1666666667 | D8: =SUM(IF(INDEX(IndicData,ROW(D8)-6,0) > INDEX(IndicData,COLUMN(D8)-2,0), WeightsS)) -> 0 | E8: =SUM(IF(INDEX(IndicData,ROW(E8)-6,0) > INDEX(IndicData,COLUMN(E8)-2,0), WeightsS)) -> 0 | F8: =SUM(IF(INDEX(IndicData,ROW(F8)-6,0) > INDEX(IndicData,COLUMN(F8)-2,0), WeightsS)) -> 0.1666666667 | G8: =SUM(IF(INDEX(IndicData,ROW(G8)-6,0) > INDEX(IndicData,COLUMN(G8)-2,0), WeightsS)) -> 0 | H8: =SUM(IF(INDEX(IndicData,ROW(H8)-6,0) > INDEX(IndicData,COLUMN(H8)-2,0), WeightsS)) -> 0 | I8: =SUM(IF(INDEX(IndicData,ROW(I8)-6,0) > INDEX(IndicData,COLUMN(I8)-2,0), WeightsS)) -> 0 | J8: =SUM(IF(INDEX(IndicData,ROW(J8)-6,0) > INDEX(IndicData,COLUMN(J8)-2,0), WeightsS)) -> 0 | K8: =SUM(IF(INDEX(IndicData,ROW(K8)-6,0) > INDEX(IndicData,COLUMN(K8)-2,0), WeightsS)) -> 0 | L8: =SUM(IF(INDEX(IndicData,ROW(L8)-6,0) > INDEX(IndicData,COLUMN(L8)-2,0), WeightsS)) -> 0 | M8: =SUM(IF(INDEX(IndicData,ROW(M8)-6,0) > INDEX(IndicData,COLUMN(M8)-2,0), WeightsS)) -> 0 | N8: =SUM(IF(INDEX(IndicData,ROW(N8)-6,0) > INDEX(IndicData,COLUMN(N8)-2,0), WeightsS)) -> 0 | O8: =SUM(IF(INDEX(IndicData,ROW(O8)-6,0) > INDEX(IndicData,COLUMN(O8)-2,0), WeightsS)) -> 0 | P8: =SUM(IF(INDEX(IndicData,ROW(P8)-6,0) > INDEX(IndicData,COLUMN(P8)-2,0), WeightsS)) -> 0 | Q8: =SUM(IF(INDEX(IndicData,ROW(Q8)-6,0) > INDEX(IndicData,COLUMN(Q8)-2,0), WeightsS)) -> 0.1666666667 | R8: =SUM(IF(INDEX(IndicData,ROW(R8)-6,0) > INDEX(IndicData,COLUMN(R8)-2,0), WeightsS)) -> 0.1666666667 | S8: =SUM(IF(INDEX(IndicData,ROW(S8)-6,0) > INDEX(IndicData,COLUMN(S8)-2,0), WeightsS)) -> 0 | T8: =SUM(IF(INDEX(IndicData,ROW(T8)-6,0) > INDEX(IndicData,COLUMN(T8)-2,0), WeightsS)) -> 0 | U8: =SUM(IF(INDEX(IndicData,ROW(U8)-6,0) > INDEX(IndicData,COLUMN(U8)-2,0), WeightsS)) -> 0 | V8: =SUM(IF(INDEX(IndicData,ROW(V8)-6,0) > INDEX(IndicData,COLUMN(V8)-2,0), WeightsS)) -> 0 | W8: =SUM(IF(INDEX(IndicData,ROW(W8)-6,0) > INDEX(IndicData,COLUMN(W8)-2,0), WeightsS)) -> 0.1666666667 | X8: =SUM(IF(INDEX(IndicData,ROW(X8)-6,0) > INDEX(IndicData,COLUMN(X8)-2,0), WeightsS)) -> 0 | Y8: =SUM(IF(INDEX(IndicData,ROW(Y8)-6,0) > INDEX(IndicData,COLUMN(Y8)-2,0), WeightsS)) -> 0 | Z8: =SUM(IF(INDEX(IndicData,ROW(Z8)-6,0) > INDEX(IndicData,COLUMN(Z8)-2,0), WeightsS)) -> 0 | AA8: =SUM(IF(INDEX(IndicData,ROW(AA8)-6,0) > INDEX(IndicData,COLUMN(AA8)-2,0), WeightsS)) -> 0 | AB8: =SUM(IF(INDEX(IndicData,ROW(AB8)-6,0) > INDEX(IndicData,COLUMN(AB8)-2,0), WeightsS)) -> 0 | AC8: =SUM(IF(INDEX(IndicData,ROW(AC8)-6,0) > INDEX(IndicData,COLUMN(AC8)-2,0), WeightsS)) -> 0 | AD8: =SUM(IF(INDEX(IndicData,ROW(AD8)-6,0) > INDEX(IndicData,COLUMN(AD8)-2,0), WeightsS)) -> 0 | AE8: =SUM(IF(INDEX(IndicData,ROW(AE8)-6,0) > INDEX(IndicData,COLUMN(AE8)-2,0), WeightsS)) -> 0 | AF8: =SUM(IF(INDEX(IndicData,ROW(AF8)-6,0) > INDEX(IndicData,COLUMN(AF8)-2,0), WeightsS)) -> 0 | AG8: =SUM(IF(INDEX(IndicData,ROW(AG8)-6,0) > INDEX(IndicData,COLUMN(AG8)-2,0), WeightsS)) -> 0 | AH8: =SUM(IF(INDEX(IndicData,ROW(AH8)-6,0) > INDEX(IndicData,COLUMN(AH8)-2,0), WeightsS)) -> 0 | AI8: =SUM(IF(INDEX(IndicData,ROW(AI8)-6,0) > INDEX(IndicData,COLUMN(AI8)-2,0), WeightsS)) -> 0 | AJ8: =SUM(IF(INDEX(IndicData,ROW(AJ8)-6,0) > INDEX(IndicData,COLUMN(AJ8)-2,0), WeightsS)) -> 0 | AK8: =SUM(IF(INDEX(IndicData,ROW(AK8)-6,0) > INDEX(IndicData,COLUMN(AK8)-2,0), WeightsS)) -> 0 | AL8: =SUM(IF(INDEX(IndicData,ROW(AL8)-6,0) > INDEX(IndicData,COLUMN(AL8)-2,0), WeightsS)) -> 0 | AM8: =SUM(IF(INDEX(IndicData,ROW(AM8)-6,0) > INDEX(IndicData,COLUMN(AM8)-2,0), WeightsS)) -> 0 | AN8: =SUM(IF(INDEX(IndicData,ROW(AN8)-6,0) > INDEX(IndicData,COLUMN(AN8)-2,0), WeightsS)) -> 0 | AO8: =SUM(IF(INDEX(IndicData,ROW(AO8)-6,0) > INDEX(IndicData,COLUMN(AO8)-2,0), WeightsS)) -> 0 | AP8: =SUM(IF(INDEX(IndicData,ROW(AP8)-6,0) > INDEX(IndicData,COLUMN(AP8)-2,0), WeightsS)) -> 0 | AQ8: =SUM(IF(INDEX(IndicData,ROW(AQ8)-6,0) > INDEX(IndicData,COLUMN(AQ8)-2,0), WeightsS)) -> 0 | AR8: =SUM(IF(INDEX(IndicData,ROW(AR8)-6,0) > INDEX(IndicData,COLUMN(AR8)-2,0), WeightsS)) -> 0 | AS8: =SUM(IF(INDEX(IndicData,ROW(AS8)-6,0) > INDEX(IndicData,COLUMN(AS8)-2,0), WeightsS)) -> 0 | AT8: =SUM(IF(INDEX(IndicData,ROW(AT8)-6,0) > INDEX(IndicData,COLUMN(AT8)-2,0), WeightsS)) -> 0 | AU8: =SUM(IF(INDEX(IndicData,ROW(AU8)-6,0) > INDEX(IndicData,COLUMN(AU8)-2,0), WeightsS)) -> 0 | AV8: =SUM(IF(INDEX(IndicData,ROW(AV8)-6,0) > INDEX(IndicData,COLUMN(AV8)-2,0), WeightsS)) -> 0 | AW8: =SUM(IF(INDEX(IndicData,ROW(AW8)-6,0) > INDEX(IndicData,COLUMN(AW8)-2,0), WeightsS)) -> 0 | AX8: =SUM(IF(INDEX(IndicData,ROW(AX8)-6,0) > INDEX(IndicData,COLUMN(AX8)-2,0), WeightsS)) -> 0 | AY8: =SUM(IF(INDEX(IndicData,ROW(AY8)-6,0) > INDEX(IndicData,COLUMN(AY8)-2,0), WeightsS)) -> 0 | AZ8: =SUM(IF(INDEX(IndicData,ROW(AZ8)-6,0) > INDEX(IndicData,COLUMN(AZ8)-2,0), WeightsS)) -> 0
A9: 3 | B9: Unit3 | C9: =SUM(IF(INDEX(IndicData,ROW(C9)-6,0) > INDEX(IndicData,COLUMN(C9)-2,0), WeightsS)) -> 0.1666666667 | D9: =SUM(IF(INDEX(IndicData,ROW(D9)-6,0) > INDEX(IndicData,COLUMN(D9)-2,0), WeightsS)) -> 0.1666666667 | E9: =SUM(IF(INDEX(IndicData,ROW(E9)-6,0) > INDEX(IndicData,COLUMN(E9)-2,0), WeightsS)) -> 0 | F9: =SUM(IF(INDEX(IndicData,ROW(F9)-6,0) > INDEX(IndicData,COLUMN(F9)-2,0), WeightsS)) -> 0.1666666667 | G9: =SUM(IF(INDEX(IndicData,ROW(G9)-6,0) > INDEX(IndicData,COLUMN(G9)-2,0), WeightsS)) -> 0.1666666667 | H9: =SUM(IF(INDEX(IndicData,ROW(H9)-6,0) > INDEX(IndicData,COLUMN(H9)-2,0), WeightsS)) -> 0.1666666667 | I9: =SUM(IF(INDEX(IndicData,ROW(I9)-6,0) > INDEX(IndicData,COLUMN(I9)-2,0), WeightsS)) -> 0.1666666667 | J9: =SUM(IF(INDEX(IndicData,ROW(J9)-6,0) > INDEX(IndicData,COLUMN(J9)-2,0), WeightsS)) -> 0 | K9: =SUM(IF(INDEX(IndicData,ROW(K9)-6,0) > INDEX(IndicData,COLUMN(K9)-2,0), WeightsS)) -> 0.1666666667 | L9: =SUM(IF(INDEX(IndicData,ROW(L9)-6,0) > INDEX(IndicData,COLUMN(L9)-2,0), WeightsS)) -> 0.1666666667 | M9: =SUM(IF(INDEX(IndicData,ROW(M9)-6,0) > INDEX(IndicData,COLUMN(M9)-2,0), WeightsS)) -> 0.1666666667 | N9: =SUM(IF(INDEX(IndicData,ROW(N9)-6,0) > INDEX(IndicData,COLUMN(N9)-2,0), WeightsS)) -> 0.1666666667 | O9: =SUM(IF(INDEX(IndicData,ROW(O9)-6,0) > INDEX(IndicData,COLUMN(O9)-2,0), WeightsS)) -> 0.1666666667 | P9: =SUM(IF(INDEX(IndicData,ROW(P9)-6,0) > INDEX(IndicData,COLUMN(P9)-2,0), WeightsS)) -> 0.1666666667 | Q9: =SUM(IF(INDEX(IndicData,ROW(Q9)-6,0) > INDEX(IndicData,COLUMN(Q9)-2,0), WeightsS)) -> 0.1666666667 | R9: =SUM(IF(INDEX(IndicData,ROW(R9)-6,0) > INDEX(IndicData,COLUMN(R9)-2,0), WeightsS)) -> 0.1666666667 | S9: =SUM(IF(INDEX(IndicData,ROW(S9)-6,0) > INDEX(IndicData,COLUMN(S9)-2,0), WeightsS)) -> 0 | T9: =SUM(IF(INDEX(IndicData,ROW(T9)-6,0) > INDEX(IndicData,COLUMN(T9)-2,0), WeightsS)) -> 0.1666666667 | U9: =SUM(IF(INDEX(IndicData,ROW(U9)-6,0) > INDEX(IndicData,COLUMN(U9)-2,0), WeightsS)) -> 0 | V9: =SUM(IF(INDEX(IndicData,ROW(V9)-6,0) > INDEX(IndicData,COLUMN(V9)-2,0), WeightsS)) -> 0.1666666667 | W9: =SUM(IF(INDEX(IndicData,ROW(W9)-6,0) > INDEX(IndicData,COLUMN(W9)-2,0), WeightsS)) -> 0.1666666667 | X9: =SUM(IF(INDEX(IndicData,ROW(X9)-6,0) > INDEX(IndicData,COLUMN(X9)-2,0), WeightsS)) -> 0 | Y9: =SUM(IF(INDEX(IndicData,ROW(Y9)-6,0) > INDEX(IndicData,COLUMN(Y9)-2,0), WeightsS)) -> 0 | Z9: =SUM(IF(INDEX(IndicData,ROW(Z9)-6,0) > INDEX(IndicData,COLUMN(Z9)-2,0), WeightsS)) -> 0 | AA9: =SUM(IF(INDEX(IndicData,ROW(AA9)-6,0) > INDEX(IndicData,COLUMN(AA9)-2,0), WeightsS)) -> 0.1666666667 | AB9: =SUM(IF(INDEX(IndicData,ROW(AB9)-6,0) > INDEX(IndicData,COLUMN(AB9)-2,0), WeightsS)) -> 0.1666666667 | AC9: =SUM(IF(INDEX(IndicData,ROW(AC9)-6,0) > INDEX(IndicData,COLUMN(AC9)-2,0), WeightsS)) -> 0 | AD9: =SUM(IF(INDEX(IndicData,ROW(AD9)-6,0) > INDEX(IndicData,COLUMN(AD9)-2,0), WeightsS)) -> 0 | AE9: =SUM(IF(INDEX(IndicData,ROW(AE9)-6,0) > INDEX(IndicData,COLUMN(AE9)-2,0), WeightsS)) -> 0 | AF9: =SUM(IF(INDEX(IndicData,ROW(AF9)-6,0) > INDEX(IndicData,COLUMN(AF9)-2,0), WeightsS)) -> 0.1666666667 | AG9: =SUM(IF(INDEX(IndicData,ROW(AG9)-6,0) > INDEX(IndicData,COLUMN(AG9)-2,0), WeightsS)) -> 0 | AH9: =SUM(IF(INDEX(IndicData,ROW(AH9)-6,0) > INDEX(IndicData,COLUMN(AH9)-2,0), WeightsS)) -> 0 | AI9: =SUM(IF(INDEX(IndicData,ROW(AI9)-6,0) > INDEX(IndicData,COLUMN(AI9)-2,0), WeightsS)) -> 0 | AJ9: =SUM(IF(INDEX(IndicData,ROW(AJ9)-6,0) > INDEX(IndicData,COLUMN(AJ9)-2,0), WeightsS)) -> 0 | AK9: =SUM(IF(INDEX(IndicData,ROW(AK9)-6,0) > INDEX(IndicData,COLUMN(AK9)-2,0), WeightsS)) -> 0 | AL9: =SUM(IF(INDEX(IndicData,ROW(AL9)-6,0) > INDEX(IndicData,COLUMN(AL9)-2,0), WeightsS)) -> 0 | AM9: =SUM(IF(INDEX(IndicData,ROW(AM9)-6,0) > INDEX(IndicData,COLUMN(AM9)-2,0), WeightsS)) -> 0 | AN9: =SUM(IF(INDEX(IndicData,ROW(AN9)-6,0) > INDEX(IndicData,COLUMN(AN9)-2,0), WeightsS)) -> 0 | AO9: =SUM(IF(INDEX(IndicData,ROW(AO9)-6,0) > INDEX(IndicData,COLUMN(AO9)-2,0), WeightsS)) -> 0 | AP9: =SUM(IF(INDEX(IndicData,ROW(AP9)-6,0) > INDEX(IndicData,COLUMN(AP9)-2,0), WeightsS)) -> 0 | AQ9: =SUM(IF(INDEX(IndicData,ROW(AQ9)-6,0) > INDEX(IndicData,COLUMN(AQ9)-2,0), WeightsS)) -> 0 | AR9: =SUM(IF(INDEX(IndicData,ROW(AR9)-6,0) > INDEX(IndicData,COLUMN(AR9)-2,0), WeightsS)) -> 0 | AS9: =SUM(IF(INDEX(IndicData,ROW(AS9)-6,0) > INDEX(IndicData,COLUMN(AS9)-2,0), WeightsS)) -> 0 | AT9: =SUM(IF(INDEX(IndicData,ROW(AT9)-6,0) > INDEX(IndicData,COLUMN(AT9)-2,0), WeightsS)) -> 0 | AU9: =SUM(IF(INDEX(IndicData,ROW(AU9)-6,0) > INDEX(IndicData,COLUMN(AU9)-2,0), WeightsS)) -> 0 | AV9: =SUM(IF(INDEX(IndicData,ROW(AV9)-6,0) > INDEX(IndicData,COLUMN(AV9)-2,0), WeightsS)) -> 0 | AW9: =SUM(IF(INDEX(IndicData,ROW(AW9)-6,0) > INDEX(IndicData,COLUMN(AW9)-2,0), WeightsS)) -> 0 | AX9: =SUM(IF(INDEX(IndicData,ROW(AX9)-6,0) > INDEX(IndicData,COLUMN(AX9)-2,0), WeightsS)) -> 0 | AY9: =SUM(IF(INDEX(IndicData,ROW(AY9)-6,0) > INDEX(IndicData,COLUMN(AY9)-2,0), WeightsS)) -> 0 | AZ9: =SUM(IF(INDEX(IndicData,ROW(AZ9)-6,0) > INDEX(IndicData,COLUMN(AZ9)-2,0), WeightsS)) -> 0
A10: 4 | B10: Unit4 | C10: =SUM(IF(INDEX(IndicData,ROW(C10)-6,0) > INDEX(IndicData,COLUMN(C10)-2,0), WeightsS)) -> 0.1666666667 | D10: =SUM(IF(INDEX(IndicData,ROW(D10)-6,0) > INDEX(IndicData,COLUMN(D10)-2,0), WeightsS)) -> 0.1666666667 | E10: =SUM(IF(INDEX(IndicData,ROW(E10)-6,0) > INDEX(IndicData,COLUMN(E10)-2,0), WeightsS)) -> 0.1666666667 | F10: =SUM(IF(INDEX(IndicData,ROW(F10)-6,0) > INDEX(IndicData,COLUMN(F10)-2,0), WeightsS)) -> 0 | G10: =SUM(IF(INDEX(IndicData,ROW(G10)-6,0) > INDEX(IndicData,COLUMN(G10)-2,0), WeightsS)) -> 0 | H10: =SUM(IF(INDEX(IndicData,ROW(H10)-6,0) > INDEX(IndicData,COLUMN(H10)-2,0), WeightsS)) -> 0 | I10: =SUM(IF(INDEX(IndicData,ROW(I10)-6,0) > INDEX(IndicData,COLUMN(I10)-2,0), WeightsS)) -> 0 | J10: =SUM(IF(INDEX(IndicData,ROW(J10)-6,0) > INDEX(IndicData,COLUMN(J10)-2,0), WeightsS)) -> 0.1666666667 | K10: =SUM(IF(INDEX(IndicData,ROW(K10)-6,0) > INDEX(IndicData,COLUMN(K10)-2,0), WeightsS)) -> 0 | L10: =SUM(IF(INDEX(IndicData,ROW(L10)-6,0) > INDEX(IndicData,COLUMN(L10)-2,0), WeightsS)) -> 0.1666666667 | M10: =SUM(IF(INDEX(IndicData,ROW(M10)-6,0) > INDEX(IndicData,COLUMN(M10)-2,0), WeightsS)) -> 0 | N10: =SUM(IF(INDEX(IndicData,ROW(N10)-6,0) > INDEX(IndicData,COLUMN(N10)-2,0), WeightsS)) -> 0 | O10: =SUM(IF(INDEX(IndicData,ROW(O10)-6,0) > INDEX(IndicData,COLUMN(O10)-2,0), WeightsS)) -> 0 | P10: =SUM(IF(INDEX(IndicData,ROW(P10)-6,0) > INDEX(IndicData,COLUMN(P10)-2,0), WeightsS)) -> 0 | Q10: =SUM(IF(INDEX(IndicData,ROW(Q10)-6,0) > INDEX(IndicData,COLUMN(Q10)-2,0), WeightsS)) -> 0.1666666667 | R10: =SUM(IF(INDEX(IndicData,ROW(R10)-6,0) > INDEX(IndicData,COLUMN(R10)-2,0), WeightsS)) -> 0.1666666667 | S10: =SUM(IF(INDEX(IndicData,ROW(S10)-6,0) > INDEX(IndicData,COLUMN(S10)-2,0), WeightsS)) -> 0 | T10: =SUM(IF(INDEX(IndicData,ROW(T10)-6,0) > INDEX(IndicData,COLUMN(T10)-2,0), WeightsS)) -> 0.1666666667 | U10: =SUM(IF(INDEX(IndicData,ROW(U10)-6,0) > INDEX(IndicData,COLUMN(U10)-2,0), WeightsS)) -> 0.1666666667 | V10: =SUM(IF(INDEX(IndicData,ROW(V10)-6,0) > INDEX(IndicData,COLUMN(V10)-2,0), WeightsS)) -> 0 | W10: =SUM(IF(INDEX(IndicData,ROW(W10)-6,0) > INDEX(IndicData,COLUMN(W10)-2,0), WeightsS)) -> 0.1666666667 | X10: =SUM(IF(INDEX(IndicData,ROW(X10)-6,0) > INDEX(IndicData,COLUMN(X10)-2,0), WeightsS)) -> 0 | Y10: =SUM(IF(INDEX(IndicData,ROW(Y10)-6,0) > INDEX(IndicData,COLUMN(Y10)-2,0), WeightsS)) -> 0 | Z10: =SUM(IF(INDEX(IndicData,ROW(Z10)-6,0) > INDEX(IndicData,COLUMN(Z10)-2,0), WeightsS)) -> 0 | AA10: =SUM(IF(INDEX(IndicData,ROW(AA10)-6,0) > INDEX(IndicData,COLUMN(AA10)-2,0), WeightsS)) -> 0 | AB10: =SUM(IF(INDEX(IndicData,ROW(AB10)-6,0) > INDEX(IndicData,COLUMN(AB10)-2,0), WeightsS)) -> 0.1666666667 | AC10: =SUM(IF(INDEX(IndicData,ROW(AC10)-6,0) > INDEX(IndicData,COLUMN(AC10)-2,0), WeightsS)) -> 0.1666666667 | AD10: =SUM(IF(INDEX(IndicData,ROW(AD10)-6,0) > INDEX(IndicData,COLUMN(AD10)-2,0), WeightsS)) -> 0 | AE10: =SUM(IF(INDEX(IndicData,ROW(AE10)-6,0) > INDEX(IndicData,COLUMN(AE10)-2,0), WeightsS)) -> 0 | AF10: =SUM(IF(INDEX(IndicData,ROW(AF10)-6,0) > INDEX(IndicData,COLUMN(AF10)-2,0), WeightsS)) -> 0 | AG10: =SUM(IF(INDEX(IndicData,ROW(AG10)-6,0) > INDEX(IndicData,COLUMN(AG10)-2,0), WeightsS)) -> 0 | AH10: =SUM(IF(INDEX(IndicData,ROW(AH10)-6,0) > INDEX(IndicData,COLUMN(AH10)-2,0), WeightsS)) -> 0 | AI10: =SUM(IF(INDEX(IndicData,ROW(AI10)-6,0) > INDEX(IndicData,COLUMN(AI10)-2,0), WeightsS)) -> 0 | AJ10: =SUM(IF(INDEX(IndicData,ROW(AJ10)-6,0) > INDEX(IndicData,COLUMN(AJ10)-2,0), WeightsS)) -> 0 | AK10: =SUM(IF(INDEX(IndicData,ROW(AK10)-6,0) > INDEX(IndicData,COLUMN(AK10)-2,0), WeightsS)) -> 0 | AL10: =SUM(IF(INDEX(IndicData,ROW(AL10)-6,0) > INDEX(IndicData,COLUMN(AL10)-2,0), WeightsS)) -> 0 | AM10: =SUM(IF(INDEX(IndicData,ROW(AM10)-6,0) > INDEX(IndicData,COLUMN(AM10)-2,0), WeightsS)) -> 0 | AN10: =SUM(IF(INDEX(IndicData,ROW(AN10)-6,0) > INDEX(IndicData,COLUMN(AN10)-2,0), WeightsS)) -> 0 | AO10: =SUM(IF(INDEX(IndicData,ROW(AO10)-6,0) > INDEX(IndicData,COLUMN(AO10)-2,0), WeightsS)) -> 0 | AP10: =SUM(IF(INDEX(IndicData,ROW(AP10)-6,0) > INDEX(IndicData,COLUMN(AP10)-2,0), WeightsS)) -> 0 | AQ10: =SUM(IF(INDEX(IndicData,ROW(AQ10)-6,0) > INDEX(IndicData,COLUMN(AQ10)-2,0), WeightsS)) -> 0 | AR10: =SUM(IF(INDEX(IndicData,ROW(AR10)-6,0) > INDEX(IndicData,COLUMN(AR10)-2,0), WeightsS)) -> 0 | AS10: =SUM(IF(INDEX(IndicData,ROW(AS10)-6,0) > INDEX(IndicData,COLUMN(AS10)-2,0), WeightsS)) -> 0 | AT10: =SUM(IF(INDEX(IndicData,ROW(AT10)-6,0) > INDEX(IndicData,COLUMN(AT10)-2,0), WeightsS)) -> 0 | AU10: =SUM(IF(INDEX(IndicData,ROW(AU10)-6,0) > INDEX(IndicData,COLUMN(AU10)-2,0), WeightsS)) -> 0 | AV10: =SUM(IF(INDEX(IndicData,ROW(AV10)-6,0) > INDEX(IndicData,COLUMN(AV10)-2,0), WeightsS)) -> 0 | AW10: =SUM(IF(INDEX(IndicData,ROW(AW10)-6,0) > INDEX(IndicData,COLUMN(AW10)-2,0), WeightsS)) -> 0 | AX10: =SUM(IF(INDEX(IndicData,ROW(AX10)-6,0) > INDEX(IndicData,COLUMN(AX10)-2,0), WeightsS)) -> 0 | AY10: =SUM(IF(INDEX(IndicData,ROW(AY10)-6,0) > INDEX(IndicData,COLUMN(AY10)-2,0), WeightsS)) -> 0 | AZ10: =SUM(IF(INDEX(IndicData,ROW(AZ10)-6,0) > INDEX(IndicData,COLUMN(AZ10)-2,0), WeightsS)) -> 0
A11: 5 | B11: Unit5 | C11: =SUM(IF(INDEX(IndicData,ROW(C11)-6,0) > INDEX(IndicData,COLUMN(C11)-2,0), WeightsS)) -> 0.3333333333 | D11: =SUM(IF(INDEX(IndicData,ROW(D11)-6,0) > INDEX(IndicData,COLUMN(D11)-2,0), WeightsS)) -> 0.1666666667 | E11: =SUM(IF(INDEX(IndicData,ROW(E11)-6,0) > INDEX(IndicData,COLUMN(E11)-2,0), WeightsS)) -> 0.1666666667 | F11: =SUM(IF(INDEX(IndicData,ROW(F11)-6,0) > INDEX(IndicData,COLUMN(F11)-2,0), WeightsS)) -> 0.1666666667 | G11: =SUM(IF(INDEX(IndicData,ROW(G11)-6,0) > INDEX(IndicData,COLUMN(G11)-2,0), WeightsS)) -> 0 | H11: =SUM(IF(INDEX(IndicData,ROW(H11)-6,0) > INDEX(IndicData,COLUMN(H11)-2,0), WeightsS)) -> 0 | I11: =SUM(IF(INDEX(IndicData,ROW(I11)-6,0) > INDEX(IndicData,COLUMN(I11)-2,0), WeightsS)) -> 0 | J11: =SUM(IF(INDEX(IndicData,ROW(J11)-6,0) > INDEX(IndicData,COLUMN(J11)-2,0), WeightsS)) -> 0.1666666667 | K11: =SUM(IF(INDEX(IndicData,ROW(K11)-6,0) > INDEX(IndicData,COLUMN(K11)-2,0), WeightsS)) -> 0 | L11: =SUM(IF(INDEX(IndicData,ROW(L11)-6,0) > INDEX(IndicData,COLUMN(L11)-2,0), WeightsS)) -> 0.1666666667 | M11: =SUM(IF(INDEX(IndicData,ROW(M11)-6,0) > INDEX(IndicData,COLUMN(M11)-2,0), WeightsS)) -> 0 | N11: =SUM(IF(INDEX(IndicData,ROW(N11)-6,0) > INDEX(IndicData,COLUMN(N11)-2,0), WeightsS)) -> 0 | O11: =SUM(IF(INDEX(IndicData,ROW(O11)-6,0) > INDEX(IndicData,COLUMN(O11)-2,0), WeightsS)) -> 0 | P11: =SUM(IF(INDEX(IndicData,ROW(P11)-6,0) > INDEX(IndicData,COLUMN(P11)-2,0), WeightsS)) -> 0 | Q11: =SUM(IF(INDEX(IndicData,ROW(Q11)-6,0) > INDEX(IndicData,COLUMN(Q11)-2,0), WeightsS)) -> 0.3333333333 | R11: =SUM(IF(INDEX(IndicData,ROW(R11)-6,0) > INDEX(IndicData,COLUMN(R11)-2,0), WeightsS)) -> 0.3333333333 | S11: =SUM(IF(INDEX(IndicData,ROW(S11)-6,0) > INDEX(IndicData,COLUMN(S11)-2,0), WeightsS)) -> 0 | T11: =SUM(IF(INDEX(IndicData,ROW(T11)-6,0) > INDEX(IndicData,COLUMN(T11)-2,0), WeightsS)) -> 0.1666666667 | U11: =SUM(IF(INDEX(IndicData,ROW(U11)-6,0) > INDEX(IndicData,COLUMN(U11)-2,0), WeightsS)) -> 0.1666666667 | V11: =SUM(IF(INDEX(IndicData,ROW(V11)-6,0) > INDEX(IndicData,COLUMN(V11)-2,0), WeightsS)) -> 0 | W11: =SUM(IF(INDEX(IndicData,ROW(W11)-6,0) > INDEX(IndicData,COLUMN(W11)-2,0), WeightsS)) -> 0.3333333333 | X11: =SUM(IF(INDEX(IndicData,ROW(X11)-6,0) > INDEX(IndicData,COLUMN(X11)-2,0), WeightsS)) -> 0 | Y11: =SUM(IF(INDEX(IndicData,ROW(Y11)-6,0) > INDEX(IndicData,COLUMN(Y11)-2,0), WeightsS)) -> 0 | Z11: =SUM(IF(INDEX(IndicData,ROW(Z11)-6,0) > INDEX(IndicData,COLUMN(Z11)-2,0), WeightsS)) -> 0 | AA11: =SUM(IF(INDEX(IndicData,ROW(AA11)-6,0) > INDEX(IndicData,COLUMN(AA11)-2,0), WeightsS)) -> 0 | AB11: =SUM(IF(INDEX(IndicData,ROW(AB11)-6,0) > INDEX(IndicData,COLUMN(AB11)-2,0), WeightsS)) -> 0.1666666667 | AC11: =SUM(IF(INDEX(IndicData,ROW(AC11)-6,0) > INDEX(IndicData,COLUMN(AC11)-2,0), WeightsS)) -> 0.1666666667 | AD11: =SUM(IF(INDEX(IndicData,ROW(AD11)-6,0) > INDEX(IndicData,COLUMN(AD11)-2,0), WeightsS)) -> 0 | AE11: =SUM(IF(INDEX(IndicData,ROW(AE11)-6,0) > INDEX(IndicData,COLUMN(AE11)-2,0), WeightsS)) -> 0 | AF11: =SUM(IF(INDEX(IndicData,ROW(AF11)-6,0) > INDEX(IndicData,COLUMN(AF11)-2,0), WeightsS)) -> 0 | AG11: =SUM(IF(INDEX(IndicData,ROW(AG11)-6,0) > INDEX(IndicData,COLUMN(AG11)-2,0), WeightsS)) -> 0 | AH11: =SUM(IF(INDEX(IndicData,ROW(AH11)-6,0) > INDEX(IndicData,COLUMN(AH11)-2,0), WeightsS)) -> 0 | AI11: =SUM(IF(INDEX(IndicData,ROW(AI11)-6,0) > INDEX(IndicData,COLUMN(AI11)-2,0), WeightsS)) -> 0 | AJ11: =SUM(IF(INDEX(IndicData,ROW(AJ11)-6,0) > INDEX(IndicData,COLUMN(AJ11)-2,0), WeightsS)) -> 0 | AK11: =SUM(IF(INDEX(IndicData,ROW(AK11)-6,0) > INDEX(IndicData,COLUMN(AK11)-2,0), WeightsS)) -> 0 | AL11: =SUM(IF(INDEX(IndicData,ROW(AL11)-6,0) > INDEX(IndicData,COLUMN(AL11)-2,0), WeightsS)) -> 0 | AM11: =SUM(IF(INDEX(IndicData,ROW(AM11)-6,0) > INDEX(IndicData,COLUMN(AM11)-2,0), WeightsS)) -> 0 | AN11: =SUM(IF(INDEX(IndicData,ROW(AN11)-6,0) > INDEX(IndicData,COLUMN(AN11)-2,0), WeightsS)) -> 0 | AO11: =SUM(IF(INDEX(IndicData,ROW(AO11)-6,0) > INDEX(IndicData,COLUMN(AO11)-2,0), WeightsS)) -> 0 | AP11: =SUM(IF(INDEX(IndicData,ROW(AP11)-6,0) > INDEX(IndicData,COLUMN(AP11)-2,0), WeightsS)) -> 0 | AQ11: =SUM(IF(INDEX(IndicData,ROW(AQ11)-6,0) > INDEX(IndicData,COLUMN(AQ11)-2,0), WeightsS)) -> 0 | AR11: =SUM(IF(INDEX(IndicData,ROW(AR11)-6,0) > INDEX(IndicData,COLUMN(AR11)-2,0), WeightsS)) -> 0 | AS11: =SUM(IF(INDEX(IndicData,ROW(AS11)-6,0) > INDEX(IndicData,COLUMN(AS11)-2,0), WeightsS)) -> 0 | AT11: =SUM(IF(INDEX(IndicData,ROW(AT11)-6,0) > INDEX(IndicData,COLUMN(AT11)-2,0), WeightsS)) -> 0 | AU11: =SUM(IF(INDEX(IndicData,ROW(AU11)-6,0) > INDEX(IndicData,COLUMN(AU11)-2,0), WeightsS)) -> 0 | AV11: =SUM(IF(INDEX(IndicData,ROW(AV11)-6,0) > INDEX(IndicData,COLUMN(AV11)-2,0), WeightsS)) -> 0 | AW11: =SUM(IF(INDEX(IndicData,ROW(AW11)-6,0) > INDEX(IndicData,COLUMN(AW11)-2,0), WeightsS)) -> 0 | AX11: =SUM(IF(INDEX(IndicData,ROW(AX11)-6,0) > INDEX(IndicData,COLUMN(AX11)-2,0), WeightsS)) -> 0 | AY11: =SUM(IF(INDEX(IndicData,ROW(AY11)-6,0) > INDEX(IndicData,COLUMN(AY11)-2,0), WeightsS)) -> 0 | AZ11: =SUM(IF(INDEX(IndicData,ROW(AZ11)-6,0) > INDEX(IndicData,COLUMN(AZ11)-2,0), WeightsS)) -> 0
A12: 6 | B12: Unit6 | C12: =SUM(IF(INDEX(IndicData,ROW(C12)-6,0) > INDEX(IndicData,COLUMN(C12)-2,0), WeightsS)) -> 0.5 | D12: =SUM(IF(INDEX(IndicData,ROW(D12)-6,0) > INDEX(IndicData,COLUMN(D12)-2,0), WeightsS)) -> 0.3333333333 | E12: =SUM(IF(INDEX(IndicData,ROW(E12)-6,0) > INDEX(IndicData,COLUMN(E12)-2,0), WeightsS)) -> 0.3333333333 | F12: =SUM(IF(INDEX(IndicData,ROW(F12)-6,0) > INDEX(IndicData,COLUMN(F12)-2,0), WeightsS)) -> 0.3333333333 | G12: =SUM(IF(INDEX(IndicData,ROW(G12)-6,0) > INDEX(IndicData,COLUMN(G12)-2,0), WeightsS)) -> 0.1666666667 | H12: =SUM(IF(INDEX(IndicData,ROW(H12)-6,0) > INDEX(IndicData,COLUMN(H12)-2,0), WeightsS)) -> 0 | I12: =SUM(IF(INDEX(IndicData,ROW(I12)-6,0) > INDEX(IndicData,COLUMN(I12)-2,0), WeightsS)) -> 0 | J12: =SUM(IF(INDEX(IndicData,ROW(J12)-6,0) > INDEX(IndicData,COLUMN(J12)-2,0), WeightsS)) -> 0.3333333333 | K12: =SUM(IF(INDEX(IndicData,ROW(K12)-6,0) > INDEX(IndicData,COLUMN(K12)-2,0), WeightsS)) -> 0 | L12: =SUM(IF(INDEX(IndicData,ROW(L12)-6,0) > INDEX(IndicData,COLUMN(L12)-2,0), WeightsS)) -> 0.3333333333 | M12: =SUM(IF(INDEX(IndicData,ROW(M12)-6,0) > INDEX(IndicData,COLUMN(M12)-2,0), WeightsS)) -> 0 | N12: =SUM(IF(INDEX(IndicData,ROW(N12)-6,0) > INDEX(IndicData,COLUMN(N12)-2,0), WeightsS)) -> 0 | O12: =SUM(IF(INDEX(IndicData,ROW(O12)-6,0) > INDEX(IndicData,COLUMN(O12)-2,0), WeightsS)) -> 0 | P12: =SUM(IF(INDEX(IndicData,ROW(P12)-6,0) > INDEX(IndicData,COLUMN(P12)-2,0), WeightsS)) -> 0 | Q12: =SUM(IF(INDEX(IndicData,ROW(Q12)-6,0) > INDEX(IndicData,COLUMN(Q12)-2,0), WeightsS)) -> 0.5 | R12: =SUM(IF(INDEX(IndicData,ROW(R12)-6,0) > INDEX(IndicData,COLUMN(R12)-2,0), WeightsS)) -> 0.5 | S12: =SUM(IF(INDEX(IndicData,ROW(S12)-6,0) > INDEX(IndicData,COLUMN(S12)-2,0), WeightsS)) -> 0 | T12: =SUM(IF(INDEX(IndicData,ROW(T12)-6,0) > INDEX(IndicData,COLUMN(T12)-2,0), WeightsS)) -> 0.3333333333 | U12: =SUM(IF(INDEX(IndicData,ROW(U12)-6,0) > INDEX(IndicData,COLUMN(U12)-2,0), WeightsS)) -> 0.3333333333 | V12: =SUM(IF(INDEX(IndicData,ROW(V12)-6,0) > INDEX(IndicData,COLUMN(V12)-2,0), WeightsS)) -> 0.1666666667 | W12: =SUM(IF(INDEX(IndicData,ROW(W12)-6,0) > INDEX(IndicData,COLUMN(W12)-2,0), WeightsS)) -> 0.5 | X12: =SUM(IF(INDEX(IndicData,ROW(X12)-6,0) > INDEX(IndicData,COLUMN(X12)-2,0), WeightsS)) -> 0.1666666667 | Y12: =SUM(IF(INDEX(IndicData,ROW(Y12)-6,0) > INDEX(IndicData,COLUMN(Y12)-2,0), WeightsS)) -> 0.1666666667 | Z12: =SUM(IF(INDEX(IndicData,ROW(Z12)-6,0) > INDEX(IndicData,COLUMN(Z12)-2,0), WeightsS)) -> 0.1666666667 | AA12: =SUM(IF(INDEX(IndicData,ROW(AA12)-6,0) > INDEX(IndicData,COLUMN(AA12)-2,0), WeightsS)) -> 0.1666666667 | AB12: =SUM(IF(INDEX(IndicData,ROW(AB12)-6,0) > INDEX(IndicData,COLUMN(AB12)-2,0), WeightsS)) -> 0.3333333333 | AC12: =SUM(IF(INDEX(IndicData,ROW(AC12)-6,0) > INDEX(IndicData,COLUMN(AC12)-2,0), WeightsS)) -> 0.3333333333 | AD12: =SUM(IF(INDEX(IndicData,ROW(AD12)-6,0) > INDEX(IndicData,COLUMN(AD12)-2,0), WeightsS)) -> 0 | AE12: =SUM(IF(INDEX(IndicData,ROW(AE12)-6,0) > INDEX(IndicData,COLUMN(AE12)-2,0), WeightsS)) -> 0 | AF12: =SUM(IF(INDEX(IndicData,ROW(AF12)-6,0) > INDEX(IndicData,COLUMN(AF12)-2,0), WeightsS)) -> 0.1666666667 | AG12: =SUM(IF(INDEX(IndicData,ROW(AG12)-6,0) > INDEX(IndicData,COLUMN(AG12)-2,0), WeightsS)) -> 0.1666666667 | AH12: =SUM(IF(INDEX(IndicData,ROW(AH12)-6,0) > INDEX(IndicData,COLUMN(AH12)-2,0), WeightsS)) -> 0.1666666667 | AI12: =SUM(IF(INDEX(IndicData,ROW(AI12)-6,0) > INDEX(IndicData,COLUMN(AI12)-2,0), WeightsS)) -> 0 | AJ12: =SUM(IF(INDEX(IndicData,ROW(AJ12)-6,0) > INDEX(IndicData,COLUMN(AJ12)-2,0), WeightsS)) -> 0 | AK12: =SUM(IF(INDEX(IndicData,ROW(AK12)-6,0) > INDEX(IndicData,COLUMN(AK12)-2,0), WeightsS)) -> 0 | AL12: =SUM(IF(INDEX(IndicData,ROW(AL12)-6,0) > INDEX(IndicData,COLUMN(AL12)-2,0), WeightsS)) -> 0 | AM12: =SUM(IF(INDEX(IndicData,ROW(AM12)-6,0) > INDEX(IndicData,COLUMN(AM12)-2,0), WeightsS)) -> 0 | AN12: =SUM(IF(INDEX(IndicData,ROW(AN12)-6,0) > INDEX(IndicData,COLUMN(AN12)-2,0), WeightsS)) -> 0 | AO12: =SUM(IF(INDEX(IndicData,ROW(AO12)-6,0) > INDEX(IndicData,COLUMN(AO12)-2,0), WeightsS)) -> 0 | AP12: =SUM(IF(INDEX(IndicData,ROW(AP12)-6,0) > INDEX(IndicData,COLUMN(AP12)-2,0), WeightsS)) -> 0 | AQ12: =SUM(IF(INDEX(IndicData,ROW(AQ12)-6,0) > INDEX(IndicData,COLUMN(AQ12)-2,0), WeightsS)) -> 0 | AR12: =SUM(IF(INDEX(IndicData,ROW(AR12)-6,0) > INDEX(IndicData,COLUMN(AR12)-2,0), WeightsS)) -> 0 | AS12: =SUM(IF(INDEX(IndicData,ROW(AS12)-6,0) > INDEX(IndicData,COLUMN(AS12)-2,0), WeightsS)) -> 0.1666666667 | AT12: =SUM(IF(INDEX(IndicData,ROW(AT12)-6,0) > INDEX(IndicData,COLUMN(AT12)-2,0), WeightsS)) -> 0 | AU12: =SUM(IF(INDEX(IndicData,ROW(AU12)-6,0) > INDEX(IndicData,COLUMN(AU12)-2,0), WeightsS)) -> 0 | AV12: =SUM(IF(INDEX(IndicData,ROW(AV12)-6,0) > INDEX(IndicData,COLUMN(AV12)-2,0), WeightsS)) -> 0 | AW12: =SUM(IF(INDEX(IndicData,ROW(AW12)-6,0) > INDEX(IndicData,COLUMN(AW12)-2,0), WeightsS)) -> 0 | AX12: =SUM(IF(INDEX(IndicData,ROW(AX12)-6,0) > INDEX(IndicData,COLUMN(AX12)-2,0), WeightsS)) -> 0 | AY12: =SUM(IF(INDEX(IndicData,ROW(AY12)-6,0) > INDEX(IndicData,COLUMN(AY12)-2,0), WeightsS)) -> 0 | AZ12: =SUM(IF(INDEX(IndicData,ROW(AZ12)-6,0) > INDEX(IndicData,COLUMN(AZ12)-2,0), WeightsS)) -> 0
A13: 7 | B13: Unit7 | C13: =SUM(IF(INDEX(IndicData,ROW(C13)-6,0) > INDEX(IndicData,COLUMN(C13)-2,0), WeightsS)) -> 0.5 | D13: =SUM(IF(INDEX(IndicData,ROW(D13)-6,0) > INDEX(IndicData,COLUMN(D13)-2,0), WeightsS)) -> 0.3333333333 | E13: =SUM(IF(INDEX(IndicData,ROW(E13)-6,0) > INDEX(IndicData,COLUMN(E13)-2,0), WeightsS)) -> 0.3333333333 | F13: =SUM(IF(INDEX(IndicData,ROW(F13)-6,0) > INDEX(IndicData,COLUMN(F13)-2,0), WeightsS)) -> 0.3333333333 | G13: =SUM(IF(INDEX(IndicData,ROW(G13)-6,0) > INDEX(IndicData,COLUMN(G13)-2,0), WeightsS)) -> 0.1666666667 | H13: =SUM(IF(INDEX(IndicData,ROW(H13)-6,0) > INDEX(IndicData,COLUMN(H13)-2,0), WeightsS)) -> 0 | I13: =SUM(IF(INDEX(IndicData,ROW(I13)-6,0) > INDEX(IndicData,COLUMN(I13)-2,0), WeightsS)) -> 0 | J13: =SUM(IF(INDEX(IndicData,ROW(J13)-6,0) > INDEX(IndicData,COLUMN(J13)-2,0), WeightsS)) -> 0.3333333333 | K13: =SUM(IF(INDEX(IndicData,ROW(K13)-6,0) > INDEX(IndicData,COLUMN(K13)-2,0), WeightsS)) -> 0 | L13: =SUM(IF(INDEX(IndicData,ROW(L13)-6,0) > INDEX(IndicData,COLUMN(L13)-2,0), WeightsS)) -> 0.3333333333 | M13: =SUM(IF(INDEX(IndicData,ROW(M13)-6,0) > INDEX(IndicData,COLUMN(M13)-2,0), WeightsS)) -> 0 | N13: =SUM(IF(INDEX(IndicData,ROW(N13)-6,0) > INDEX(IndicData,COLUMN(N13)-2,0), WeightsS)) -> 0 | O13: =SUM(IF(INDEX(IndicData,ROW(O13)-6,0) > INDEX(IndicData,COLUMN(O13)-2,0), WeightsS)) -> 0 | P13: =SUM(IF(INDEX(IndicData,ROW(P13)-6,0) > INDEX(IndicData,COLUMN(P13)-2,0), WeightsS)) -> 0 | Q13: =SUM(IF(INDEX(IndicData,ROW(Q13)-6,0) > INDEX(IndicData,COLUMN(Q13)-2,0), WeightsS)) -> 0.5 | R13: =SUM(IF(INDEX(IndicData,ROW(R13)-6,0) > INDEX(IndicData,COLUMN(R13)-2,0), WeightsS)) -> 0.5 | S13: =SUM(IF(INDEX(IndicData,ROW(S13)-6,0) > INDEX(IndicData,COLUMN(S13)-2,0), WeightsS)) -> 0 | T13: =SUM(IF(INDEX(IndicData,ROW(T13)-6,0) > INDEX(IndicData,COLUMN(T13)-2,0), WeightsS)) -> 0.3333333333 | U13: =SUM(IF(INDEX(IndicData,ROW(U13)-6,0) > INDEX(IndicData,COLUMN(U13)-2,0), WeightsS)) -> 0.3333333333 | V13: =SUM(IF(INDEX(IndicData,ROW(V13)-6,0) > INDEX(IndicData,COLUMN(V13)-2,0), WeightsS)) -> 0.1666666667 | W13: =SUM(IF(INDEX(IndicData,ROW(W13)-6,0) > INDEX(IndicData,COLUMN(W13)-2,0), WeightsS)) -> 0.5 | X13: =SUM(IF(INDEX(IndicData,ROW(X13)-6,0) > INDEX(IndicData,COLUMN(X13)-2,0), WeightsS)) -> 0.1666666667 | Y13: =SUM(IF(INDEX(IndicData,ROW(Y13)-6,0) > INDEX(IndicData,COLUMN(Y13)-2,0), WeightsS)) -> 0.1666666667 | Z13: =SUM(IF(INDEX(IndicData,ROW(Z13)-6,0) > INDEX(IndicData,COLUMN(Z13)-2,0), WeightsS)) -> 0.1666666667 | AA13: =SUM(IF(INDEX(IndicData,ROW(AA13)-6,0) > INDEX(IndicData,COLUMN(AA13)-2,0), WeightsS)) -> 0.1666666667 | AB13: =SUM(IF(INDEX(IndicData,ROW(AB13)-6,0) > INDEX(IndicData,COLUMN(AB13)-2,0), WeightsS)) -> 0.3333333333 | AC13: =SUM(IF(INDEX(IndicData,ROW(AC13)-6,0) > INDEX(IndicData,COLUMN(AC13)-2,0), WeightsS)) -> 0.3333333333 | AD13: =SUM(IF(INDEX(IndicData,ROW(AD13)-6,0) > INDEX(IndicData,COLUMN(AD13)-2,0), WeightsS)) -> 0 | AE13: =SUM(IF(INDEX(IndicData,ROW(AE13)-6,0) > INDEX(IndicData,COLUMN(AE13)-2,0), WeightsS)) -> 0 | AF13: =SUM(IF(INDEX(IndicData,ROW(AF13)-6,0) > INDEX(IndicData,COLUMN(AF13)-2,0), WeightsS)) -> 0.1666666667 | AG13: =SUM(IF(INDEX(IndicData,ROW(AG13)-6,0) > INDEX(IndicData,COLUMN(AG13)-2,0), WeightsS)) -> 0.1666666667 | AH13: =SUM(IF(INDEX(IndicData,ROW(AH13)-6,0) > INDEX(IndicData,COLUMN(AH13)-2,0), WeightsS)) -> 0.1666666667 | AI13: =SUM(IF(INDEX(IndicData,ROW(AI13)-6,0) > INDEX(IndicData,COLUMN(AI13)-2,0), WeightsS)) -> 0 | AJ13: =SUM(IF(INDEX(IndicData,ROW(AJ13)-6,0) > INDEX(IndicData,COLUMN(AJ13)-2,0), WeightsS)) -> 0 | AK13: =SUM(IF(INDEX(IndicData,ROW(AK13)-6,0) > INDEX(IndicData,COLUMN(AK13)-2,0), WeightsS)) -> 0 | AL13: =SUM(IF(INDEX(IndicData,ROW(AL13)-6,0) > INDEX(IndicData,COLUMN(AL13)-2,0), WeightsS)) -> 0 | AM13: =SUM(IF(INDEX(IndicData,ROW(AM13)-6,0) > INDEX(IndicData,COLUMN(AM13)-2,0), WeightsS)) -> 0 | AN13: =SUM(IF(INDEX(IndicData,ROW(AN13)-6,0) > INDEX(IndicData,COLUMN(AN13)-2,0), WeightsS)) -> 0 | AO13: =SUM(IF(INDEX(IndicData,ROW(AO13)-6,0) > INDEX(IndicData,COLUMN(AO13)-2,0), WeightsS)) -> 0 | AP13: =SUM(IF(INDEX(IndicData,ROW(AP13)-6,0) > INDEX(IndicData,COLUMN(AP13)-2,0), WeightsS)) -> 0 | AQ13: =SUM(IF(INDEX(IndicData,ROW(AQ13)-6,0) > INDEX(IndicData,COLUMN(AQ13)-2,0), WeightsS)) -> 0 | AR13: =SUM(IF(INDEX(IndicData,ROW(AR13)-6,0) > INDEX(IndicData,COLUMN(AR13)-2,0), WeightsS)) -> 0 | AS13: =SUM(IF(INDEX(IndicData,ROW(AS13)-6,0) > INDEX(IndicData,COLUMN(AS13)-2,0), WeightsS)) -> 0.1666666667 | AT13: =SUM(IF(INDEX(IndicData,ROW(AT13)-6,0) > INDEX(IndicData,COLUMN(AT13)-2,0), WeightsS)) -> 0 | AU13: =SUM(IF(INDEX(IndicData,ROW(AU13)-6,0) > INDEX(IndicData,COLUMN(AU13)-2,0), WeightsS)) -> 0 | AV13: =SUM(IF(INDEX(IndicData,ROW(AV13)-6,0) > INDEX(IndicData,COLUMN(AV13)-2,0), WeightsS)) -> 0 | AW13: =SUM(IF(INDEX(IndicData,ROW(AW13)-6,0) > INDEX(IndicData,COLUMN(AW13)-2,0), WeightsS)) -> 0 | AX13: =SUM(IF(INDEX(IndicData,ROW(AX13)-6,0) > INDEX(IndicData,COLUMN(AX13)-2,0), WeightsS)) -> 0 | AY13: =SUM(IF(INDEX(IndicData,ROW(AY13)-6,0) > INDEX(IndicData,COLUMN(AY13)-2,0), WeightsS)) -> 0 | AZ13: =SUM(IF(INDEX(IndicData,ROW(AZ13)-6,0) > INDEX(IndicData,COLUMN(AZ13)-2,0), WeightsS)) -> 0
A14: 8 | B14: Unit8 | C14: =SUM(IF(INDEX(IndicData,ROW(C14)-6,0) > INDEX(IndicData,COLUMN(C14)-2,0), WeightsS)) -> 0.3333333333 | D14: =SUM(IF(INDEX(IndicData,ROW(D14)-6,0) > INDEX(IndicData,COLUMN(D14)-2,0), WeightsS)) -> 0.3333333333 | E14: =SUM(IF(INDEX(IndicData,ROW(E14)-6,0) > INDEX(IndicData,COLUMN(E14)-2,0), WeightsS)) -> 0.1666666667 | F14: =SUM(IF(INDEX(IndicData,ROW(F14)-6,0) > INDEX(IndicData,COLUMN(F14)-2,0), WeightsS)) -> 0.3333333333 | G14: =SUM(IF(INDEX(IndicData,ROW(G14)-6,0) > INDEX(IndicData,COLUMN(G14)-2,0), WeightsS)) -> 0.3333333333 | H14: =SUM(IF(INDEX(IndicData,ROW(H14)-6,0) > INDEX(IndicData,COLUMN(H14)-2,0), WeightsS)) -> 0.3333333333 | I14: =SUM(IF(INDEX(IndicData,ROW(I14)-6,0) > INDEX(IndicData,COLUMN(I14)-2,0), WeightsS)) -> 0.3333333333 | J14: =SUM(IF(INDEX(IndicData,ROW(J14)-6,0) > INDEX(IndicData,COLUMN(J14)-2,0), WeightsS)) -> 0 | K14: =SUM(IF(INDEX(IndicData,ROW(K14)-6,0) > INDEX(IndicData,COLUMN(K14)-2,0), WeightsS)) -> 0.1666666667 | L14: =SUM(IF(INDEX(IndicData,ROW(L14)-6,0) > INDEX(IndicData,COLUMN(L14)-2,0), WeightsS)) -> 0.1666666667 | M14: =SUM(IF(INDEX(IndicData,ROW(M14)-6,0) > INDEX(IndicData,COLUMN(M14)-2,0), WeightsS)) -> 0.1666666667 | N14: =SUM(IF(INDEX(IndicData,ROW(N14)-6,0) > INDEX(IndicData,COLUMN(N14)-2,0), WeightsS)) -> 0.1666666667 | O14: =SUM(IF(INDEX(IndicData,ROW(O14)-6,0) > INDEX(IndicData,COLUMN(O14)-2,0), WeightsS)) -> 0.1666666667 | P14: =SUM(IF(INDEX(IndicData,ROW(P14)-6,0) > INDEX(IndicData,COLUMN(P14)-2,0), WeightsS)) -> 0.1666666667 | Q14: =SUM(IF(INDEX(IndicData,ROW(Q14)-6,0) > INDEX(IndicData,COLUMN(Q14)-2,0), WeightsS)) -> 0.3333333333 | R14: =SUM(IF(INDEX(IndicData,ROW(R14)-6,0) > INDEX(IndicData,COLUMN(R14)-2,0), WeightsS)) -> 0.1666666667 | S14: =SUM(IF(INDEX(IndicData,ROW(S14)-6,0) > INDEX(IndicData,COLUMN(S14)-2,0), WeightsS)) -> 0 | T14: =SUM(IF(INDEX(IndicData,ROW(T14)-6,0) > INDEX(IndicData,COLUMN(T14)-2,0), WeightsS)) -> 0.3333333333 | U14: =SUM(IF(INDEX(IndicData,ROW(U14)-6,0) > INDEX(IndicData,COLUMN(U14)-2,0), WeightsS)) -> 0 | V14: =SUM(IF(INDEX(IndicData,ROW(V14)-6,0) > INDEX(IndicData,COLUMN(V14)-2,0), WeightsS)) -> 0.1666666667 | W14: =SUM(IF(INDEX(IndicData,ROW(W14)-6,0) > INDEX(IndicData,COLUMN(W14)-2,0), WeightsS)) -> 0.1666666667 | X14: =SUM(IF(INDEX(IndicData,ROW(X14)-6,0) > INDEX(IndicData,COLUMN(X14)-2,0), WeightsS)) -> 0 | Y14: =SUM(IF(INDEX(IndicData,ROW(Y14)-6,0) > INDEX(IndicData,COLUMN(Y14)-2,0), WeightsS)) -> 0 | Z14: =SUM(IF(INDEX(IndicData,ROW(Z14)-6,0) > INDEX(IndicData,COLUMN(Z14)-2,0), WeightsS)) -> 0 | AA14: =SUM(IF(INDEX(IndicData,ROW(AA14)-6,0) > INDEX(IndicData,COLUMN(AA14)-2,0), WeightsS)) -> 0.1666666667 | AB14: =SUM(IF(INDEX(IndicData,ROW(AB14)-6,0) > INDEX(IndicData,COLUMN(AB14)-2,0), WeightsS)) -> 0.1666666667 | AC14: =SUM(IF(INDEX(IndicData,ROW(AC14)-6,0) > INDEX(IndicData,COLUMN(AC14)-2,0), WeightsS)) -> 0 | AD14: =SUM(IF(INDEX(IndicData,ROW(AD14)-6,0) > INDEX(IndicData,COLUMN(AD14)-2,0), WeightsS)) -> 0 | AE14: =SUM(IF(INDEX(IndicData,ROW(AE14)-6,0) > INDEX(IndicData,COLUMN(AE14)-2,0), WeightsS)) -> 0 | AF14: =SUM(IF(INDEX(IndicData,ROW(AF14)-6,0) > INDEX(IndicData,COLUMN(AF14)-2,0), WeightsS)) -> 0.1666666667 | AG14: =SUM(IF(INDEX(IndicData,ROW(AG14)-6,0) > INDEX(IndicData,COLUMN(AG14)-2,0), WeightsS)) -> 0 | AH14: =SUM(IF(INDEX(IndicData,ROW(AH14)-6,0) > INDEX(IndicData,COLUMN(AH14)-2,0), WeightsS)) -> 0 | AI14: =SUM(IF(INDEX(IndicData,ROW(AI14)-6,0) > INDEX(IndicData,COLUMN(AI14)-2,0), WeightsS)) -> 0 | AJ14: =SUM(IF(INDEX(IndicData,ROW(AJ14)-6,0) > INDEX(IndicData,COLUMN(AJ14)-2,0), WeightsS)) -> 0 | AK14: =SUM(IF(INDEX(IndicData,ROW(AK14)-6,0) > INDEX(IndicData,COLUMN(AK14)-2,0), WeightsS)) -> 0 | AL14: =SUM(IF(INDEX(IndicData,ROW(AL14)-6,0) > INDEX(IndicData,COLUMN(AL14)-2,0), WeightsS)) -> 0 | AM14: =SUM(IF(INDEX(IndicData,ROW(AM14)-6,0) > INDEX(IndicData,COLUMN(AM14)-2,0), WeightsS)) -> 0 | AN14: =SUM(IF(INDEX(IndicData,ROW(AN14)-6,0) > INDEX(IndicData,COLUMN(AN14)-2,0), WeightsS)) -> 0 | AO14: =SUM(IF(INDEX(IndicData,ROW(AO14)-6,0) > INDEX(IndicData,COLUMN(AO14)-2,0), WeightsS)) -> 0 | AP14: =SUM(IF(INDEX(IndicData,ROW(AP14)-6,0) > INDEX(IndicData,COLUMN(AP14)-2,0), WeightsS)) -> 0 | AQ14: =SUM(IF(INDEX(IndicData,ROW(AQ14)-6,0) > INDEX(IndicData,COLUMN(AQ14)-2,0), WeightsS)) -> 0 | AR14: =SUM(IF(INDEX(IndicData,ROW(AR14)-6,0) > INDEX(IndicData,COLUMN(AR14)-2,0), WeightsS)) -> 0 | AS14: =SUM(IF(INDEX(IndicData,ROW(AS14)-6,0) > INDEX(IndicData,COLUMN(AS14)-2,0), WeightsS)) -> 0 | AT14: =SUM(IF(INDEX(IndicData,ROW(AT14)-6,0) > INDEX(IndicData,COLUMN(AT14)-2,0), WeightsS)) -> 0 | AU14: =SUM(IF(INDEX(IndicData,ROW(AU14)-6,0) > INDEX(IndicData,COLUMN(AU14)-2,0), WeightsS)) -> 0 | AV14: =SUM(IF(INDEX(IndicData,ROW(AV14)-6,0) > INDEX(IndicData,COLUMN(AV14)-2,0), WeightsS)) -> 0 | AW14: =SUM(IF(INDEX(IndicData,ROW(AW14)-6,0) > INDEX(IndicData,COLUMN(AW14)-2,0), WeightsS)) -> 0 | AX14: =SUM(IF(INDEX(IndicData,ROW(AX14)-6,0) > INDEX(IndicData,COLUMN(AX14)-2,0), WeightsS)) -> 0 | AY14: =SUM(IF(INDEX(IndicData,ROW(AY14)-6,0) > INDEX(IndicData,COLUMN(AY14)-2,0), WeightsS)) -> 0 | AZ14: =SUM(IF(INDEX(IndicData,ROW(AZ14)-6,0) > INDEX(IndicData,COLUMN(AZ14)-2,0), WeightsS)) -> 0
A15: 9 | B15: Unit9 | C15: =SUM(IF(INDEX(IndicData,ROW(C15)-6,0) > INDEX(IndicData,COLUMN(C15)-2,0), WeightsS)) -> 0.6666666667 | D15: =SUM(IF(INDEX(IndicData,ROW(D15)-6,0) > INDEX(IndicData,COLUMN(D15)-2,0), WeightsS)) -> 0.5 | E15: =SUM(IF(INDEX(IndicData,ROW(E15)-6,0) > INDEX(IndicData,COLUMN(E15)-2,0), WeightsS)) -> 0.5 | F15: =SUM(IF(INDEX(IndicData,ROW(F15)-6,0) > INDEX(IndicData,COLUMN(F15)-2,0), WeightsS)) -> 0.5 | G15: =SUM(IF(INDEX(IndicData,ROW(G15)-6,0) > INDEX(IndicData,COLUMN(G15)-2,0), WeightsS)) -> 0.3333333333 | H15: =SUM(IF(INDEX(IndicData,ROW(H15)-6,0) > INDEX(IndicData,COLUMN(H15)-2,0), WeightsS)) -> 0.1666666667 | I15: =SUM(IF(INDEX(IndicData,ROW(I15)-6,0) > INDEX(IndicData,COLUMN(I15)-2,0), WeightsS)) -> 0.1666666667 | J15: =SUM(IF(INDEX(IndicData,ROW(J15)-6,0) > INDEX(IndicData,COLUMN(J15)-2,0), WeightsS)) -> 0.3333333333 | K15: =SUM(IF(INDEX(IndicData,ROW(K15)-6,0) > INDEX(IndicData,COLUMN(K15)-2,0), WeightsS)) -> 0 | L15: =SUM(IF(INDEX(IndicData,ROW(L15)-6,0) > INDEX(IndicData,COLUMN(L15)-2,0), WeightsS)) -> 0.3333333333 | M15: =SUM(IF(INDEX(IndicData,ROW(M15)-6,0) > INDEX(IndicData,COLUMN(M15)-2,0), WeightsS)) -> 0 | N15: =SUM(IF(INDEX(IndicData,ROW(N15)-6,0) > INDEX(IndicData,COLUMN(N15)-2,0), WeightsS)) -> 0 | O15: =SUM(IF(INDEX(IndicData,ROW(O15)-6,0) > INDEX(IndicData,COLUMN(O15)-2,0), WeightsS)) -> 0 | P15: =SUM(IF(INDEX(IndicData,ROW(P15)-6,0) > INDEX(IndicData,COLUMN(P15)-2,0), WeightsS)) -> 0 | Q15: =SUM(IF(INDEX(IndicData,ROW(Q15)-6,0) > INDEX(IndicData,COLUMN(Q15)-2,0), WeightsS)) -> 0.6666666667 | R15: =SUM(IF(INDEX(IndicData,ROW(R15)-6,0) > INDEX(IndicData,COLUMN(R15)-2,0), WeightsS)) -> 0.5 | S15: =SUM(IF(INDEX(IndicData,ROW(S15)-6,0) > INDEX(IndicData,COLUMN(S15)-2,0), WeightsS)) -> 0 | T15: =SUM(IF(INDEX(IndicData,ROW(T15)-6,0) > INDEX(IndicData,COLUMN(T15)-2,0), WeightsS)) -> 0.5 | U15: =SUM(IF(INDEX(IndicData,ROW(U15)-6,0) > INDEX(IndicData,COLUMN(U15)-2,0), WeightsS)) -> 0.3333333333 | V15: =SUM(IF(INDEX(IndicData,ROW(V15)-6,0) > INDEX(IndicData,COLUMN(V15)-2,0), WeightsS)) -> 0.1666666667 | W15: =SUM(IF(INDEX(IndicData,ROW(W15)-6,0) > INDEX(IndicData,COLUMN(W15)-2,0), WeightsS)) -> 0.5 | X15: =SUM(IF(INDEX(IndicData,ROW(X15)-6,0) > INDEX(IndicData,COLUMN(X15)-2,0), WeightsS)) -> 0.1666666667 | Y15: =SUM(IF(INDEX(IndicData,ROW(Y15)-6,0) > INDEX(IndicData,COLUMN(Y15)-2,0), WeightsS)) -> 0.1666666667 | Z15: =SUM(IF(INDEX(IndicData,ROW(Z15)-6,0) > INDEX(IndicData,COLUMN(Z15)-2,0), WeightsS)) -> 0.1666666667 | AA15: =SUM(IF(INDEX(IndicData,ROW(AA15)-6,0) > INDEX(IndicData,COLUMN(AA15)-2,0), WeightsS)) -> 0.1666666667 | AB15: =SUM(IF(INDEX(IndicData,ROW(AB15)-6,0) > INDEX(IndicData,COLUMN(AB15)-2,0), WeightsS)) -> 0.3333333333 | AC15: =SUM(IF(INDEX(IndicData,ROW(AC15)-6,0) > INDEX(IndicData,COLUMN(AC15)-2,0), WeightsS)) -> 0.3333333333 | AD15: =SUM(IF(INDEX(IndicData,ROW(AD15)-6,0) > INDEX(IndicData,COLUMN(AD15)-2,0), WeightsS)) -> 0 | AE15: =SUM(IF(INDEX(IndicData,ROW(AE15)-6,0) > INDEX(IndicData,COLUMN(AE15)-2,0), WeightsS)) -> 0 | AF15: =SUM(IF(INDEX(IndicData,ROW(AF15)-6,0) > INDEX(IndicData,COLUMN(AF15)-2,0), WeightsS)) -> 0.1666666667 | AG15: =SUM(IF(INDEX(IndicData,ROW(AG15)-6,0) > INDEX(IndicData,COLUMN(AG15)-2,0), WeightsS)) -> 0.1666666667 | AH15: =SUM(IF(INDEX(IndicData,ROW(AH15)-6,0) > INDEX(IndicData,COLUMN(AH15)-2,0), WeightsS)) -> 0.1666666667 | AI15: =SUM(IF(INDEX(IndicData,ROW(AI15)-6,0) > INDEX(IndicData,COLUMN(AI15)-2,0), WeightsS)) -> 0 | AJ15: =SUM(IF(INDEX(IndicData,ROW(AJ15)-6,0) > INDEX(IndicData,COLUMN(AJ15)-2,0), WeightsS)) -> 0 | AK15: =SUM(IF(INDEX(IndicData,ROW(AK15)-6,0) > INDEX(IndicData,COLUMN(AK15)-2,0), WeightsS)) -> 0 | AL15: =SUM(IF(INDEX(IndicData,ROW(AL15)-6,0) > INDEX(IndicData,COLUMN(AL15)-2,0), WeightsS)) -> 0 | AM15: =SUM(IF(INDEX(IndicData,ROW(AM15)-6,0) > INDEX(IndicData,COLUMN(AM15)-2,0), WeightsS)) -> 0 | AN15: =SUM(IF(INDEX(IndicData,ROW(AN15)-6,0) > INDEX(IndicData,COLUMN(AN15)-2,0), WeightsS)) -> 0 | AO15: =SUM(IF(INDEX(IndicData,ROW(AO15)-6,0) > INDEX(IndicData,COLUMN(AO15)-2,0), WeightsS)) -> 0 | AP15: =SUM(IF(INDEX(IndicData,ROW(AP15)-6,0) > INDEX(IndicData,COLUMN(AP15)-2,0), WeightsS)) -> 0 | AQ15: =SUM(IF(INDEX(IndicData,ROW(AQ15)-6,0) > INDEX(IndicData,COLUMN(AQ15)-2,0), WeightsS)) -> 0 | AR15: =SUM(IF(INDEX(IndicData,ROW(AR15)-6,0) > INDEX(IndicData,COLUMN(AR15)-2,0), WeightsS)) -> 0 | AS15: =SUM(IF(INDEX(IndicData,ROW(AS15)-6,0) > INDEX(IndicData,COLUMN(AS15)-2,0), WeightsS)) -> 0.1666666667 | AT15: =SUM(IF(INDEX(IndicData,ROW(AT15)-6,0) > INDEX(IndicData,COLUMN(AT15)-2,0), WeightsS)) -> 0 | AU15: =SUM(IF(INDEX(IndicData,ROW(AU15)-6,0) > INDEX(IndicData,COLUMN(AU15)-2,0), WeightsS)) -> 0 | AV15: =SUM(IF(INDEX(IndicData,ROW(AV15)-6,0) > INDEX(IndicData,COLUMN(AV15)-2,0), WeightsS)) -> 0 | AW15: =SUM(IF(INDEX(IndicData,ROW(AW15)-6,0) > INDEX(IndicData,COLUMN(AW15)-2,0), WeightsS)) -> 0 | AX15: =SUM(IF(INDEX(IndicData,ROW(AX15)-6,0) > INDEX(IndicData,COLUMN(AX15)-2,0), WeightsS)) -> 0 | AY15: =SUM(IF(INDEX(IndicData,ROW(AY15)-6,0) > INDEX(IndicData,COLUMN(AY15)-2,0), WeightsS)) -> 0 | AZ15: =SUM(IF(INDEX(IndicData,ROW(AZ15)-6,0) > INDEX(IndicData,COLUMN(AZ15)-2,0), WeightsS)) -> 0
A16: 10 | B16: Unit10 | C16: =SUM(IF(INDEX(IndicData,ROW(C16)-6,0) > INDEX(IndicData,COLUMN(C16)-2,0), WeightsS)) -> 0.3333333333 | D16: =SUM(IF(INDEX(IndicData,ROW(D16)-6,0) > INDEX(IndicData,COLUMN(D16)-2,0), WeightsS)) -> 0.1666666667 | E16: =SUM(IF(INDEX(IndicData,ROW(E16)-6,0) > INDEX(IndicData,COLUMN(E16)-2,0), WeightsS)) -> 0.1666666667 | F16: =SUM(IF(INDEX(IndicData,ROW(F16)-6,0) > INDEX(IndicData,COLUMN(F16)-2,0), WeightsS)) -> 0.3333333333 | G16: =SUM(IF(INDEX(IndicData,ROW(G16)-6,0) > INDEX(IndicData,COLUMN(G16)-2,0), WeightsS)) -> 0.1666666667 | H16: =SUM(IF(INDEX(IndicData,ROW(H16)-6,0) > INDEX(IndicData,COLUMN(H16)-2,0), WeightsS)) -> 0.1666666667 | I16: =SUM(IF(INDEX(IndicData,ROW(I16)-6,0) > INDEX(IndicData,COLUMN(I16)-2,0), WeightsS)) -> 0.1666666667 | J16: =SUM(IF(INDEX(IndicData,ROW(J16)-6,0) > INDEX(IndicData,COLUMN(J16)-2,0), WeightsS)) -> 0.1666666667 | K16: =SUM(IF(INDEX(IndicData,ROW(K16)-6,0) > INDEX(IndicData,COLUMN(K16)-2,0), WeightsS)) -> 0.1666666667 | L16: =SUM(IF(INDEX(IndicData,ROW(L16)-6,0) > INDEX(IndicData,COLUMN(L16)-2,0), WeightsS)) -> 0 | M16: =SUM(IF(INDEX(IndicData,ROW(M16)-6,0) > INDEX(IndicData,COLUMN(M16)-2,0), WeightsS)) -> 0 | N16: =SUM(IF(INDEX(IndicData,ROW(N16)-6,0) > INDEX(IndicData,COLUMN(N16)-2,0), WeightsS)) -> 0 | O16: =SUM(IF(INDEX(IndicData,ROW(O16)-6,0) > INDEX(IndicData,COLUMN(O16)-2,0), WeightsS)) -> 0 | P16: =SUM(IF(INDEX(IndicData,ROW(P16)-6,0) > INDEX(IndicData,COLUMN(P16)-2,0), WeightsS)) -> 0 | Q16: =SUM(IF(INDEX(IndicData,ROW(Q16)-6,0) > INDEX(IndicData,COLUMN(Q16)-2,0), WeightsS)) -> 0.3333333333 | R16: =SUM(IF(INDEX(IndicData,ROW(R16)-6,0) > INDEX(IndicData,COLUMN(R16)-2,0), WeightsS)) -> 0.1666666667 | S16: =SUM(IF(INDEX(IndicData,ROW(S16)-6,0) > INDEX(IndicData,COLUMN(S16)-2,0), WeightsS)) -> 0 | T16: =SUM(IF(INDEX(IndicData,ROW(T16)-6,0) > INDEX(IndicData,COLUMN(T16)-2,0), WeightsS)) -> 0.1666666667 | U16: =SUM(IF(INDEX(IndicData,ROW(U16)-6,0) > INDEX(IndicData,COLUMN(U16)-2,0), WeightsS)) -> 0.1666666667 | V16: =SUM(IF(INDEX(IndicData,ROW(V16)-6,0) > INDEX(IndicData,COLUMN(V16)-2,0), WeightsS)) -> 0.1666666667 | W16: =SUM(IF(INDEX(IndicData,ROW(W16)-6,0) > INDEX(IndicData,COLUMN(W16)-2,0), WeightsS)) -> 0.1666666667 | X16: =SUM(IF(INDEX(IndicData,ROW(X16)-6,0) > INDEX(IndicData,COLUMN(X16)-2,0), WeightsS)) -> 0 | Y16: =SUM(IF(INDEX(IndicData,ROW(Y16)-6,0) > INDEX(IndicData,COLUMN(Y16)-2,0), WeightsS)) -> 0 | Z16: =SUM(IF(INDEX(IndicData,ROW(Z16)-6,0) > INDEX(IndicData,COLUMN(Z16)-2,0), WeightsS)) -> 0 | AA16: =SUM(IF(INDEX(IndicData,ROW(AA16)-6,0) > INDEX(IndicData,COLUMN(AA16)-2,0), WeightsS)) -> 0 | AB16: =SUM(IF(INDEX(IndicData,ROW(AB16)-6,0) > INDEX(IndicData,COLUMN(AB16)-2,0), WeightsS)) -> 0 | AC16: =SUM(IF(INDEX(IndicData,ROW(AC16)-6,0) > INDEX(IndicData,COLUMN(AC16)-2,0), WeightsS)) -> 0 | AD16: =SUM(IF(INDEX(IndicData,ROW(AD16)-6,0) > INDEX(IndicData,COLUMN(AD16)-2,0), WeightsS)) -> 0 | AE16: =SUM(IF(INDEX(IndicData,ROW(AE16)-6,0) > INDEX(IndicData,COLUMN(AE16)-2,0), WeightsS)) -> 0 | AF16: =SUM(IF(INDEX(IndicData,ROW(AF16)-6,0) > INDEX(IndicData,COLUMN(AF16)-2,0), WeightsS)) -> 0 | AG16: =SUM(IF(INDEX(IndicData,ROW(AG16)-6,0) > INDEX(IndicData,COLUMN(AG16)-2,0), WeightsS)) -> 0 | AH16: =SUM(IF(INDEX(IndicData,ROW(AH16)-6,0) > INDEX(IndicData,COLUMN(AH16)-2,0), WeightsS)) -> 0 | AI16: =SUM(IF(INDEX(IndicData,ROW(AI16)-6,0) > INDEX(IndicData,COLUMN(AI16)-2,0), WeightsS)) -> 0 | AJ16: =SUM(IF(INDEX(IndicData,ROW(AJ16)-6,0) > INDEX(IndicData,COLUMN(AJ16)-2,0), WeightsS)) -> 0.1666666667 | AK16: =SUM(IF(INDEX(IndicData,ROW(AK16)-6,0) > INDEX(IndicData,COLUMN(AK16)-2,0), WeightsS)) -> 0.1666666667 | AL16: =SUM(IF(INDEX(IndicData,ROW(AL16)-6,0) > INDEX(IndicData,COLUMN(AL16)-2,0), WeightsS)) -> 0.1666666667 | AM16: =SUM(IF(INDEX(IndicData,ROW(AM16)-6,0) > INDEX(IndicData,COLUMN(AM16)-2,0), WeightsS)) -> 0.1666666667 | AN16: =SUM(IF(INDEX(IndicData,ROW(AN16)-6,0) > INDEX(IndicData,COLUMN(AN16)-2,0), WeightsS)) -> 0 | AO16: =SUM(IF(INDEX(IndicData,ROW(AO16)-6,0) > INDEX(IndicData,COLUMN(AO16)-2,0), WeightsS)) -> 0 | AP16: =SUM(IF(INDEX(IndicData,ROW(AP16)-6,0) > INDEX(IndicData,COLUMN(AP16)-2,0), WeightsS)) -> 0 | AQ16: =SUM(IF(INDEX(IndicData,ROW(AQ16)-6,0) > INDEX(IndicData,COLUMN(AQ16)-2,0), WeightsS)) -> 0 | AR16: =SUM(IF(INDEX(IndicData,ROW(AR16)-6,0) > INDEX(IndicData,COLUMN(AR16)-2,0), WeightsS)) -> 0 | AS16: =SUM(IF(INDEX(IndicData,ROW(AS16)-6,0) > INDEX(IndicData,COLUMN(AS16)-2,0), WeightsS)) -> 0 | AT16: =SUM(IF(INDEX(IndicData,ROW(AT16)-6,0) > INDEX(IndicData,COLUMN(AT16)-2,0), WeightsS)) -> 0 | AU16: =SUM(IF(INDEX(IndicData,ROW(AU16)-6,0) > INDEX(IndicData,COLUMN(AU16)-2,0), WeightsS)) -> 0 | AV16: =SUM(IF(INDEX(IndicData,ROW(AV16)-6,0) > INDEX(IndicData,COLUMN(AV16)-2,0), WeightsS)) -> 0 | AW16: =SUM(IF(INDEX(IndicData,ROW(AW16)-6,0) > INDEX(IndicData,COLUMN(AW16)-2,0), WeightsS)) -> 0 | AX16: =SUM(IF(INDEX(IndicData,ROW(AX16)-6,0) > INDEX(IndicData,COLUMN(AX16)-2,0), WeightsS)) -> 0 | AY16: =SUM(IF(INDEX(IndicData,ROW(AY16)-6,0) > INDEX(IndicData,COLUMN(AY16)-2,0), WeightsS)) -> 0 | AZ16: =SUM(IF(INDEX(IndicData,ROW(AZ16)-6,0) > INDEX(IndicData,COLUMN(AZ16)-2,0), WeightsS)) -> 0
A17: 11 | B17: Unit11 | C17: =SUM(IF(INDEX(IndicData,ROW(C17)-6,0) > INDEX(IndicData,COLUMN(C17)-2,0), WeightsS)) -> 0.6666666667 | D17: =SUM(IF(INDEX(IndicData,ROW(D17)-6,0) > INDEX(IndicData,COLUMN(D17)-2,0), WeightsS)) -> 0.5 | E17: =SUM(IF(INDEX(IndicData,ROW(E17)-6,0) > INDEX(IndicData,COLUMN(E17)-2,0), WeightsS)) -> 0.5 | F17: =SUM(IF(INDEX(IndicData,ROW(F17)-6,0) > INDEX(IndicData,COLUMN(F17)-2,0), WeightsS)) -> 0.5 | G17: =SUM(IF(INDEX(IndicData,ROW(G17)-6,0) > INDEX(IndicData,COLUMN(G17)-2,0), WeightsS)) -> 0.3333333333 | H17: =SUM(IF(INDEX(IndicData,ROW(H17)-6,0) > INDEX(IndicData,COLUMN(H17)-2,0), WeightsS)) -> 0.1666666667 | I17: =SUM(IF(INDEX(IndicData,ROW(I17)-6,0) > INDEX(IndicData,COLUMN(I17)-2,0), WeightsS)) -> 0.1666666667 | J17: =SUM(IF(INDEX(IndicData,ROW(J17)-6,0) > INDEX(IndicData,COLUMN(J17)-2,0), WeightsS)) -> 0.5 | K17: =SUM(IF(INDEX(IndicData,ROW(K17)-6,0) > INDEX(IndicData,COLUMN(K17)-2,0), WeightsS)) -> 0.1666666667 | L17: =SUM(IF(INDEX(IndicData,ROW(L17)-6,0) > INDEX(IndicData,COLUMN(L17)-2,0), WeightsS)) -> 0.3333333333 | M17: =SUM(IF(INDEX(IndicData,ROW(M17)-6,0) > INDEX(IndicData,COLUMN(M17)-2,0), WeightsS)) -> 0 | N17: =SUM(IF(INDEX(IndicData,ROW(N17)-6,0) > INDEX(IndicData,COLUMN(N17)-2,0), WeightsS)) -> 0 | O17: =SUM(IF(INDEX(IndicData,ROW(O17)-6,0) > INDEX(IndicData,COLUMN(O17)-2,0), WeightsS)) -> 0 | P17: =SUM(IF(INDEX(IndicData,ROW(P17)-6,0) > INDEX(IndicData,COLUMN(P17)-2,0), WeightsS)) -> 0 | Q17: =SUM(IF(INDEX(IndicData,ROW(Q17)-6,0) > INDEX(IndicData,COLUMN(Q17)-2,0), WeightsS)) -> 0.6666666667 | R17: =SUM(IF(INDEX(IndicData,ROW(R17)-6,0) > INDEX(IndicData,COLUMN(R17)-2,0), WeightsS)) -> 0.5 | S17: =SUM(IF(INDEX(IndicData,ROW(S17)-6,0) > INDEX(IndicData,COLUMN(S17)-2,0), WeightsS)) -> 0 | T17: =SUM(IF(INDEX(IndicData,ROW(T17)-6,0) > INDEX(IndicData,COLUMN(T17)-2,0), WeightsS)) -> 0.5 | U17: =SUM(IF(INDEX(IndicData,ROW(U17)-6,0) > INDEX(IndicData,COLUMN(U17)-2,0), WeightsS)) -> 0.5 | V17: =SUM(IF(INDEX(IndicData,ROW(V17)-6,0) > INDEX(IndicData,COLUMN(V17)-2,0), WeightsS)) -> 0.3333333333 | W17: =SUM(IF(INDEX(IndicData,ROW(W17)-6,0) > INDEX(IndicData,COLUMN(W17)-2,0), WeightsS)) -> 0.5 | X17: =SUM(IF(INDEX(IndicData,ROW(X17)-6,0) > INDEX(IndicData,COLUMN(X17)-2,0), WeightsS)) -> 0.1666666667 | Y17: =SUM(IF(INDEX(IndicData,ROW(Y17)-6,0) > INDEX(IndicData,COLUMN(Y17)-2,0), WeightsS)) -> 0.1666666667 | Z17: =SUM(IF(INDEX(IndicData,ROW(Z17)-6,0) > INDEX(IndicData,COLUMN(Z17)-2,0), WeightsS)) -> 0.1666666667 | AA17: =SUM(IF(INDEX(IndicData,ROW(AA17)-6,0) > INDEX(IndicData,COLUMN(AA17)-2,0), WeightsS)) -> 0.1666666667 | AB17: =SUM(IF(INDEX(IndicData,ROW(AB17)-6,0) > INDEX(IndicData,COLUMN(AB17)-2,0), WeightsS)) -> 0.3333333333 | AC17: =SUM(IF(INDEX(IndicData,ROW(AC17)-6,0) > INDEX(IndicData,COLUMN(AC17)-2,0), WeightsS)) -> 0.3333333333 | AD17: =SUM(IF(INDEX(IndicData,ROW(AD17)-6,0) > INDEX(IndicData,COLUMN(AD17)-2,0), WeightsS)) -> 0 | AE17: =SUM(IF(INDEX(IndicData,ROW(AE17)-6,0) > INDEX(IndicData,COLUMN(AE17)-2,0), WeightsS)) -> 0 | AF17: =SUM(IF(INDEX(IndicData,ROW(AF17)-6,0) > INDEX(IndicData,COLUMN(AF17)-2,0), WeightsS)) -> 0.1666666667 | AG17: =SUM(IF(INDEX(IndicData,ROW(AG17)-6,0) > INDEX(IndicData,COLUMN(AG17)-2,0), WeightsS)) -> 0.1666666667 | AH17: =SUM(IF(INDEX(IndicData,ROW(AH17)-6,0) > INDEX(IndicData,COLUMN(AH17)-2,0), WeightsS)) -> 0.1666666667 | AI17: =SUM(IF(INDEX(IndicData,ROW(AI17)-6,0) > INDEX(IndicData,COLUMN(AI17)-2,0), WeightsS)) -> 0 | AJ17: =SUM(IF(INDEX(IndicData,ROW(AJ17)-6,0) > INDEX(IndicData,COLUMN(AJ17)-2,0), WeightsS)) -> 0.1666666667 | AK17: =SUM(IF(INDEX(IndicData,ROW(AK17)-6,0) > INDEX(IndicData,COLUMN(AK17)-2,0), WeightsS)) -> 0.1666666667 | AL17: =SUM(IF(INDEX(IndicData,ROW(AL17)-6,0) > INDEX(IndicData,COLUMN(AL17)-2,0), WeightsS)) -> 0.1666666667 | AM17: =SUM(IF(INDEX(IndicData,ROW(AM17)-6,0) > INDEX(IndicData,COLUMN(AM17)-2,0), WeightsS)) -> 0.1666666667 | AN17: =SUM(IF(INDEX(IndicData,ROW(AN17)-6,0) > INDEX(IndicData,COLUMN(AN17)-2,0), WeightsS)) -> 0 | AO17: =SUM(IF(INDEX(IndicData,ROW(AO17)-6,0) > INDEX(IndicData,COLUMN(AO17)-2,0), WeightsS)) -> 0 | AP17: =SUM(IF(INDEX(IndicData,ROW(AP17)-6,0) > INDEX(IndicData,COLUMN(AP17)-2,0), WeightsS)) -> 0 | AQ17: =SUM(IF(INDEX(IndicData,ROW(AQ17)-6,0) > INDEX(IndicData,COLUMN(AQ17)-2,0), WeightsS)) -> 0 | AR17: =SUM(IF(INDEX(IndicData,ROW(AR17)-6,0) > INDEX(IndicData,COLUMN(AR17)-2,0), WeightsS)) -> 0 | AS17: =SUM(IF(INDEX(IndicData,ROW(AS17)-6,0) > INDEX(IndicData,COLUMN(AS17)-2,0), WeightsS)) -> 0.1666666667 | AT17: =SUM(IF(INDEX(IndicData,ROW(AT17)-6,0) > INDEX(IndicData,COLUMN(AT17)-2,0), WeightsS)) -> 0 | AU17: =SUM(IF(INDEX(IndicData,ROW(AU17)-6,0) > INDEX(IndicData,COLUMN(AU17)-2,0), WeightsS)) -> 0 | AV17: =SUM(IF(INDEX(IndicData,ROW(AV17)-6,0) > INDEX(IndicData,COLUMN(AV17)-2,0), WeightsS)) -> 0 | AW17: =SUM(IF(INDEX(IndicData,ROW(AW17)-6,0) > INDEX(IndicData,COLUMN(AW17)-2,0), WeightsS)) -> 0 | AX17: =SUM(IF(INDEX(IndicData,ROW(AX17)-6,0) > INDEX(IndicData,COLUMN(AX17)-2,0), WeightsS)) -> 0 | AY17: =SUM(IF(INDEX(IndicData,ROW(AY17)-6,0) > INDEX(IndicData,COLUMN(AY17)-2,0), WeightsS)) -> 0 | AZ17: =SUM(IF(INDEX(IndicData,ROW(AZ17)-6,0) > INDEX(IndicData,COLUMN(AZ17)-2,0), WeightsS)) -> 0
A18: 12 | B18: Unit12 | C18: =SUM(IF(INDEX(IndicData,ROW(C18)-6,0) > INDEX(IndicData,COLUMN(C18)-2,0), WeightsS)) -> 0.6666666667 | D18: =SUM(IF(INDEX(IndicData,ROW(D18)-6,0) > INDEX(IndicData,COLUMN(D18)-2,0), WeightsS)) -> 0.5 | E18: =SUM(IF(INDEX(IndicData,ROW(E18)-6,0) > INDEX(IndicData,COLUMN(E18)-2,0), WeightsS)) -> 0.5 | F18: =SUM(IF(INDEX(IndicData,ROW(F18)-6,0) > INDEX(IndicData,COLUMN(F18)-2,0), WeightsS)) -> 0.5 | G18: =SUM(IF(INDEX(IndicData,ROW(G18)-6,0) > INDEX(IndicData,COLUMN(G18)-2,0), WeightsS)) -> 0.3333333333 | H18: =SUM(IF(INDEX(IndicData,ROW(H18)-6,0) > INDEX(IndicData,COLUMN(H18)-2,0), WeightsS)) -> 0.1666666667 | I18: =SUM(IF(INDEX(IndicData,ROW(I18)-6,0) > INDEX(IndicData,COLUMN(I18)-2,0), WeightsS)) -> 0.1666666667 | J18: =SUM(IF(INDEX(IndicData,ROW(J18)-6,0) > INDEX(IndicData,COLUMN(J18)-2,0), WeightsS)) -> 0.5 | K18: =SUM(IF(INDEX(IndicData,ROW(K18)-6,0) > INDEX(IndicData,COLUMN(K18)-2,0), WeightsS)) -> 0.1666666667 | L18: =SUM(IF(INDEX(IndicData,ROW(L18)-6,0) > INDEX(IndicData,COLUMN(L18)-2,0), WeightsS)) -> 0.5 | M18: =SUM(IF(INDEX(IndicData,ROW(M18)-6,0) > INDEX(IndicData,COLUMN(M18)-2,0), WeightsS)) -> 0.1666666667 | N18: =SUM(IF(INDEX(IndicData,ROW(N18)-6,0) > INDEX(IndicData,COLUMN(N18)-2,0), WeightsS)) -> 0 | O18: =SUM(IF(INDEX(IndicData,ROW(O18)-6,0) > INDEX(IndicData,COLUMN(O18)-2,0), WeightsS)) -> 0 | P18: =SUM(IF(INDEX(IndicData,ROW(P18)-6,0) > INDEX(IndicData,COLUMN(P18)-2,0), WeightsS)) -> 0 | Q18: =SUM(IF(INDEX(IndicData,ROW(Q18)-6,0) > INDEX(IndicData,COLUMN(Q18)-2,0), WeightsS)) -> 0.6666666667 | R18: =SUM(IF(INDEX(IndicData,ROW(R18)-6,0) > INDEX(IndicData,COLUMN(R18)-2,0), WeightsS)) -> 0.6666666667 | S18: =SUM(IF(INDEX(IndicData,ROW(S18)-6,0) > INDEX(IndicData,COLUMN(S18)-2,0), WeightsS)) -> 0.1666666667 | T18: =SUM(IF(INDEX(IndicData,ROW(T18)-6,0) > INDEX(IndicData,COLUMN(T18)-2,0), WeightsS)) -> 0.5 | U18: =SUM(IF(INDEX(IndicData,ROW(U18)-6,0) > INDEX(IndicData,COLUMN(U18)-2,0), WeightsS)) -> 0.5 | V18: =SUM(IF(INDEX(IndicData,ROW(V18)-6,0) > INDEX(IndicData,COLUMN(V18)-2,0), WeightsS)) -> 0.3333333333 | W18: =SUM(IF(INDEX(IndicData,ROW(W18)-6,0) > INDEX(IndicData,COLUMN(W18)-2,0), WeightsS)) -> 0.6666666667 | X18: =SUM(IF(INDEX(IndicData,ROW(X18)-6,0) > INDEX(IndicData,COLUMN(X18)-2,0), WeightsS)) -> 0.3333333333 | Y18: =SUM(IF(INDEX(IndicData,ROW(Y18)-6,0) > INDEX(IndicData,COLUMN(Y18)-2,0), WeightsS)) -> 0.3333333333 | Z18: =SUM(IF(INDEX(IndicData,ROW(Z18)-6,0) > INDEX(IndicData,COLUMN(Z18)-2,0), WeightsS)) -> 0.3333333333 | AA18: =SUM(IF(INDEX(IndicData,ROW(AA18)-6,0) > INDEX(IndicData,COLUMN(AA18)-2,0), WeightsS)) -> 0.3333333333 | AB18: =SUM(IF(INDEX(IndicData,ROW(AB18)-6,0) > INDEX(IndicData,COLUMN(AB18)-2,0), WeightsS)) -> 0.3333333333 | AC18: =SUM(IF(INDEX(IndicData,ROW(AC18)-6,0) > INDEX(IndicData,COLUMN(AC18)-2,0), WeightsS)) -> 0.3333333333 | AD18: =SUM(IF(INDEX(IndicData,ROW(AD18)-6,0) > INDEX(IndicData,COLUMN(AD18)-2,0), WeightsS)) -> 0 | AE18: =SUM(IF(INDEX(IndicData,ROW(AE18)-6,0) > INDEX(IndicData,COLUMN(AE18)-2,0), WeightsS)) -> 0.1666666667 | AF18: =SUM(IF(INDEX(IndicData,ROW(AF18)-6,0) > INDEX(IndicData,COLUMN(AF18)-2,0), WeightsS)) -> 0.3333333333 | AG18: =SUM(IF(INDEX(IndicData,ROW(AG18)-6,0) > INDEX(IndicData,COLUMN(AG18)-2,0), WeightsS)) -> 0.1666666667 | AH18: =SUM(IF(INDEX(IndicData,ROW(AH18)-6,0) > INDEX(IndicData,COLUMN(AH18)-2,0), WeightsS)) -> 0.1666666667 | AI18: =SUM(IF(INDEX(IndicData,ROW(AI18)-6,0) > INDEX(IndicData,COLUMN(AI18)-2,0), WeightsS)) -> 0 | AJ18: =SUM(IF(INDEX(IndicData,ROW(AJ18)-6,0) > INDEX(IndicData,COLUMN(AJ18)-2,0), WeightsS)) -> 0.1666666667 | AK18: =SUM(IF(INDEX(IndicData,ROW(AK18)-6,0) > INDEX(IndicData,COLUMN(AK18)-2,0), WeightsS)) -> 0.1666666667 | AL18: =SUM(IF(INDEX(IndicData,ROW(AL18)-6,0) > INDEX(IndicData,COLUMN(AL18)-2,0), WeightsS)) -> 0.1666666667 | AM18: =SUM(IF(INDEX(IndicData,ROW(AM18)-6,0) > INDEX(IndicData,COLUMN(AM18)-2,0), WeightsS)) -> 0.1666666667 | AN18: =SUM(IF(INDEX(IndicData,ROW(AN18)-6,0) > INDEX(IndicData,COLUMN(AN18)-2,0), WeightsS)) -> 0 | AO18: =SUM(IF(INDEX(IndicData,ROW(AO18)-6,0) > INDEX(IndicData,COLUMN(AO18)-2,0), WeightsS)) -> 0 | AP18: =SUM(IF(INDEX(IndicData,ROW(AP18)-6,0) > INDEX(IndicData,COLUMN(AP18)-2,0), WeightsS)) -> 0 | AQ18: =SUM(IF(INDEX(IndicData,ROW(AQ18)-6,0) > INDEX(IndicData,COLUMN(AQ18)-2,0), WeightsS)) -> 0 | AR18: =SUM(IF(INDEX(IndicData,ROW(AR18)-6,0) > INDEX(IndicData,COLUMN(AR18)-2,0), WeightsS)) -> 0 | AS18: =SUM(IF(INDEX(IndicData,ROW(AS18)-6,0) > INDEX(IndicData,COLUMN(AS18)-2,0), WeightsS)) -> 0.1666666667 | AT18: =SUM(IF(INDEX(IndicData,ROW(AT18)-6,0) > INDEX(IndicData,COLUMN(AT18)-2,0), WeightsS)) -> 0 | AU18: =SUM(IF(INDEX(IndicData,ROW(AU18)-6,0) > INDEX(IndicData,COLUMN(AU18)-2,0), WeightsS)) -> 0 | AV18: =SUM(IF(INDEX(IndicData,ROW(AV18)-6,0) > INDEX(IndicData,COLUMN(AV18)-2,0), WeightsS)) -> 0 | AW18: =SUM(IF(INDEX(IndicData,ROW(AW18)-6,0) > INDEX(IndicData,COLUMN(AW18)-2,0), WeightsS)) -> 0 | AX18: =SUM(IF(INDEX(IndicData,ROW(AX18)-6,0) > INDEX(IndicData,COLUMN(AX18)-2,0), WeightsS)) -> 0 | AY18: =SUM(IF(INDEX(IndicData,ROW(AY18)-6,0) > INDEX(IndicData,COLUMN(AY18)-2,0), WeightsS)) -> 0 | AZ18: =SUM(IF(INDEX(IndicData,ROW(AZ18)-6,0) > INDEX(IndicData,COLUMN(AZ18)-2,0), WeightsS)) -> 0
A19: 13 | B19: Unit13 | C19: =SUM(IF(INDEX(IndicData,ROW(C19)-6,0) > INDEX(IndicData,COLUMN(C19)-2,0), WeightsS)) -> 0.6666666667 | D19: =SUM(IF(INDEX(IndicData,ROW(D19)-6,0) > INDEX(IndicData,COLUMN(D19)-2,0), WeightsS)) -> 0.5 | E19: =SUM(IF(INDEX(IndicData,ROW(E19)-6,0) > INDEX(IndicData,COLUMN(E19)-2,0), WeightsS)) -> 0.5 | F19: =SUM(IF(INDEX(IndicData,ROW(F19)-6,0) > INDEX(IndicData,COLUMN(F19)-2,0), WeightsS)) -> 0.5 | G19: =SUM(IF(INDEX(IndicData,ROW(G19)-6,0) > INDEX(IndicData,COLUMN(G19)-2,0), WeightsS)) -> 0.3333333333 | H19: =SUM(IF(INDEX(IndicData,ROW(H19)-6,0) > INDEX(IndicData,COLUMN(H19)-2,0), WeightsS)) -> 0.1666666667 | I19: =SUM(IF(INDEX(IndicData,ROW(I19)-6,0) > INDEX(IndicData,COLUMN(I19)-2,0), WeightsS)) -> 0.1666666667 | J19: =SUM(IF(INDEX(IndicData,ROW(J19)-6,0) > INDEX(IndicData,COLUMN(J19)-2,0), WeightsS)) -> 0.5 | K19: =SUM(IF(INDEX(IndicData,ROW(K19)-6,0) > INDEX(IndicData,COLUMN(K19)-2,0), WeightsS)) -> 0.1666666667 | L19: =SUM(IF(INDEX(IndicData,ROW(L19)-6,0) > INDEX(IndicData,COLUMN(L19)-2,0), WeightsS)) -> 0.5 | M19: =SUM(IF(INDEX(IndicData,ROW(M19)-6,0) > INDEX(IndicData,COLUMN(M19)-2,0), WeightsS)) -> 0.1666666667 | N19: =SUM(IF(INDEX(IndicData,ROW(N19)-6,0) > INDEX(IndicData,COLUMN(N19)-2,0), WeightsS)) -> 0.1666666667 | O19: =SUM(IF(INDEX(IndicData,ROW(O19)-6,0) > INDEX(IndicData,COLUMN(O19)-2,0), WeightsS)) -> 0 | P19: =SUM(IF(INDEX(IndicData,ROW(P19)-6,0) > INDEX(IndicData,COLUMN(P19)-2,0), WeightsS)) -> 0 | Q19: =SUM(IF(INDEX(IndicData,ROW(Q19)-6,0) > INDEX(IndicData,COLUMN(Q19)-2,0), WeightsS)) -> 0.6666666667 | R19: =SUM(IF(INDEX(IndicData,ROW(R19)-6,0) > INDEX(IndicData,COLUMN(R19)-2,0), WeightsS)) -> 0.6666666667 | S19: =SUM(IF(INDEX(IndicData,ROW(S19)-6,0) > INDEX(IndicData,COLUMN(S19)-2,0), WeightsS)) -> 0.1666666667 | T19: =SUM(IF(INDEX(IndicData,ROW(T19)-6,0) > INDEX(IndicData,COLUMN(T19)-2,0), WeightsS)) -> 0.5 | U19: =SUM(IF(INDEX(IndicData,ROW(U19)-6,0) > INDEX(IndicData,COLUMN(U19)-2,0), WeightsS)) -> 0.5 | V19: =SUM(IF(INDEX(IndicData,ROW(V19)-6,0) > INDEX(IndicData,COLUMN(V19)-2,0), WeightsS)) -> 0.3333333333 | W19: =SUM(IF(INDEX(IndicData,ROW(W19)-6,0) > INDEX(IndicData,COLUMN(W19)-2,0), WeightsS)) -> 0.6666666667 | X19: =SUM(IF(INDEX(IndicData,ROW(X19)-6,0) > INDEX(IndicData,COLUMN(X19)-2,0), WeightsS)) -> 0.3333333333 | Y19: =SUM(IF(INDEX(IndicData,ROW(Y19)-6,0) > INDEX(IndicData,COLUMN(Y19)-2,0), WeightsS)) -> 0.3333333333 | Z19: =SUM(IF(INDEX(IndicData,ROW(Z19)-6,0) > INDEX(IndicData,COLUMN(Z19)-2,0), WeightsS)) -> 0.3333333333 | AA19: =SUM(IF(INDEX(IndicData,ROW(AA19)-6,0) > INDEX(IndicData,COLUMN(AA19)-2,0), WeightsS)) -> 0.3333333333 | AB19: =SUM(IF(INDEX(IndicData,ROW(AB19)-6,0) > INDEX(IndicData,COLUMN(AB19)-2,0), WeightsS)) -> 0.5 | AC19: =SUM(IF(INDEX(IndicData,ROW(AC19)-6,0) > INDEX(IndicData,COLUMN(AC19)-2,0), WeightsS)) -> 0.5 | AD19: =SUM(IF(INDEX(IndicData,ROW(AD19)-6,0) > INDEX(IndicData,COLUMN(AD19)-2,0), WeightsS)) -> 0 | AE19: =SUM(IF(INDEX(IndicData,ROW(AE19)-6,0) > INDEX(IndicData,COLUMN(AE19)-2,0), WeightsS)) -> 0.1666666667 | AF19: =SUM(IF(INDEX(IndicData,ROW(AF19)-6,0) > INDEX(IndicData,COLUMN(AF19)-2,0), WeightsS)) -> 0.3333333333 | AG19: =SUM(IF(INDEX(IndicData,ROW(AG19)-6,0) > INDEX(IndicData,COLUMN(AG19)-2,0), WeightsS)) -> 0.3333333333 | AH19: =SUM(IF(INDEX(IndicData,ROW(AH19)-6,0) > INDEX(IndicData,COLUMN(AH19)-2,0), WeightsS)) -> 0.3333333333 | AI19: =SUM(IF(INDEX(IndicData,ROW(AI19)-6,0) > INDEX(IndicData,COLUMN(AI19)-2,0), WeightsS)) -> 0 | AJ19: =SUM(IF(INDEX(IndicData,ROW(AJ19)-6,0) > INDEX(IndicData,COLUMN(AJ19)-2,0), WeightsS)) -> 0.1666666667 | AK19: =SUM(IF(INDEX(IndicData,ROW(AK19)-6,0) > INDEX(IndicData,COLUMN(AK19)-2,0), WeightsS)) -> 0.1666666667 | AL19: =SUM(IF(INDEX(IndicData,ROW(AL19)-6,0) > INDEX(IndicData,COLUMN(AL19)-2,0), WeightsS)) -> 0.1666666667 | AM19: =SUM(IF(INDEX(IndicData,ROW(AM19)-6,0) > INDEX(IndicData,COLUMN(AM19)-2,0), WeightsS)) -> 0.1666666667 | AN19: =SUM(IF(INDEX(IndicData,ROW(AN19)-6,0) > INDEX(IndicData,COLUMN(AN19)-2,0), WeightsS)) -> 0.1666666667 | AO19: =SUM(IF(INDEX(IndicData,ROW(AO19)-6,0) > INDEX(IndicData,COLUMN(AO19)-2,0), WeightsS)) -> 0.1666666667 | AP19: =SUM(IF(INDEX(IndicData,ROW(AP19)-6,0) > INDEX(IndicData,COLUMN(AP19)-2,0), WeightsS)) -> 0.1666666667 | AQ19: =SUM(IF(INDEX(IndicData,ROW(AQ19)-6,0) > INDEX(IndicData,COLUMN(AQ19)-2,0), WeightsS)) -> 0 | AR19: =SUM(IF(INDEX(IndicData,ROW(AR19)-6,0) > INDEX(IndicData,COLUMN(AR19)-2,0), WeightsS)) -> 0 | AS19: =SUM(IF(INDEX(IndicData,ROW(AS19)-6,0) > INDEX(IndicData,COLUMN(AS19)-2,0), WeightsS)) -> 0.1666666667 | AT19: =SUM(IF(INDEX(IndicData,ROW(AT19)-6,0) > INDEX(IndicData,COLUMN(AT19)-2,0), WeightsS)) -> 0 | AU19: =SUM(IF(INDEX(IndicData,ROW(AU19)-6,0) > INDEX(IndicData,COLUMN(AU19)-2,0), WeightsS)) -> 0 | AV19: =SUM(IF(INDEX(IndicData,ROW(AV19)-6,0) > INDEX(IndicData,COLUMN(AV19)-2,0), WeightsS)) -> 0 | AW19: =SUM(IF(INDEX(IndicData,ROW(AW19)-6,0) > INDEX(IndicData,COLUMN(AW19)-2,0), WeightsS)) -> 0 | AX19: =SUM(IF(INDEX(IndicData,ROW(AX19)-6,0) > INDEX(IndicData,COLUMN(AX19)-2,0), WeightsS)) -> 0 | AY19: =SUM(IF(INDEX(IndicData,ROW(AY19)-6,0) > INDEX(IndicData,COLUMN(AY19)-2,0), WeightsS)) -> 0 | AZ19: =SUM(IF(INDEX(IndicData,ROW(AZ19)-6,0) > INDEX(IndicData,COLUMN(AZ19)-2,0), WeightsS)) -> 0
A20: 14 | B20: Unit14 | C20: =SUM(IF(INDEX(IndicData,ROW(C20)-6,0) > INDEX(IndicData,COLUMN(C20)-2,0), WeightsS)) -> 0.8333333333 | D20: =SUM(IF(INDEX(IndicData,ROW(D20)-6,0) > INDEX(IndicData,COLUMN(D20)-2,0), WeightsS)) -> 0.6666666667 | E20: =SUM(IF(INDEX(IndicData,ROW(E20)-6,0) > INDEX(IndicData,COLUMN(E20)-2,0), WeightsS)) -> 0.6666666667 | F20: =SUM(IF(INDEX(IndicData,ROW(F20)-6,0) > INDEX(IndicData,COLUMN(F20)-2,0), WeightsS)) -> 0.6666666667 | G20: =SUM(IF(INDEX(IndicData,ROW(G20)-6,0) > INDEX(IndicData,COLUMN(G20)-2,0), WeightsS)) -> 0.5 | H20: =SUM(IF(INDEX(IndicData,ROW(H20)-6,0) > INDEX(IndicData,COLUMN(H20)-2,0), WeightsS)) -> 0.3333333333 | I20: =SUM(IF(INDEX(IndicData,ROW(I20)-6,0) > INDEX(IndicData,COLUMN(I20)-2,0), WeightsS)) -> 0.3333333333 | J20: =SUM(IF(INDEX(IndicData,ROW(J20)-6,0) > INDEX(IndicData,COLUMN(J20)-2,0), WeightsS)) -> 0.6666666667 | K20: =SUM(IF(INDEX(IndicData,ROW(K20)-6,0) > INDEX(IndicData,COLUMN(K20)-2,0), WeightsS)) -> 0.3333333333 | L20: =SUM(IF(INDEX(IndicData,ROW(L20)-6,0) > INDEX(IndicData,COLUMN(L20)-2,0), WeightsS)) -> 0.6666666667 | M20: =SUM(IF(INDEX(IndicData,ROW(M20)-6,0) > INDEX(IndicData,COLUMN(M20)-2,0), WeightsS)) -> 0.3333333333 | N20: =SUM(IF(INDEX(IndicData,ROW(N20)-6,0) > INDEX(IndicData,COLUMN(N20)-2,0), WeightsS)) -> 0.3333333333 | O20: =SUM(IF(INDEX(IndicData,ROW(O20)-6,0) > INDEX(IndicData,COLUMN(O20)-2,0), WeightsS)) -> 0.1666666667 | P20: =SUM(IF(INDEX(IndicData,ROW(P20)-6,0) > INDEX(IndicData,COLUMN(P20)-2,0), WeightsS)) -> 0 | Q20: =SUM(IF(INDEX(IndicData,ROW(Q20)-6,0) > INDEX(IndicData,COLUMN(Q20)-2,0), WeightsS)) -> 0.6666666667 | R20: =SUM(IF(INDEX(IndicData,ROW(R20)-6,0) > INDEX(IndicData,COLUMN(R20)-2,0), WeightsS)) -> 0.6666666667 | S20: =SUM(IF(INDEX(IndicData,ROW(S20)-6,0) > INDEX(IndicData,COLUMN(S20)-2,0), WeightsS)) -> 0.1666666667 | T20: =SUM(IF(INDEX(IndicData,ROW(T20)-6,0) > INDEX(IndicData,COLUMN(T20)-2,0), WeightsS)) -> 0.5 | U20: =SUM(IF(INDEX(IndicData,ROW(U20)-6,0) > INDEX(IndicData,COLUMN(U20)-2,0), WeightsS)) -> 0.5 | V20: =SUM(IF(INDEX(IndicData,ROW(V20)-6,0) > INDEX(IndicData,COLUMN(V20)-2,0), WeightsS)) -> 0.3333333333 | W20: =SUM(IF(INDEX(IndicData,ROW(W20)-6,0) > INDEX(IndicData,COLUMN(W20)-2,0), WeightsS)) -> 0.6666666667 | X20: =SUM(IF(INDEX(IndicData,ROW(X20)-6,0) > INDEX(IndicData,COLUMN(X20)-2,0), WeightsS)) -> 0.3333333333 | Y20: =SUM(IF(INDEX(IndicData,ROW(Y20)-6,0) > INDEX(IndicData,COLUMN(Y20)-2,0), WeightsS)) -> 0.3333333333 | Z20: =SUM(IF(INDEX(IndicData,ROW(Z20)-6,0) > INDEX(IndicData,COLUMN(Z20)-2,0), WeightsS)) -> 0.3333333333 | AA20: =SUM(IF(INDEX(IndicData,ROW(AA20)-6,0) > INDEX(IndicData,COLUMN(AA20)-2,0), WeightsS)) -> 0.3333333333 | AB20: =SUM(IF(INDEX(IndicData,ROW(AB20)-6,0) > INDEX(IndicData,COLUMN(AB20)-2,0), WeightsS)) -> 0.5 | AC20: =SUM(IF(INDEX(IndicData,ROW(AC20)-6,0) > INDEX(IndicData,COLUMN(AC20)-2,0), WeightsS)) -> 0.5 | AD20: =SUM(IF(INDEX(IndicData,ROW(AD20)-6,0) > INDEX(IndicData,COLUMN(AD20)-2,0), WeightsS)) -> 0 | AE20: =SUM(IF(INDEX(IndicData,ROW(AE20)-6,0) > INDEX(IndicData,COLUMN(AE20)-2,0), WeightsS)) -> 0.1666666667 | AF20: =SUM(IF(INDEX(IndicData,ROW(AF20)-6,0) > INDEX(IndicData,COLUMN(AF20)-2,0), WeightsS)) -> 0.3333333333 | AG20: =SUM(IF(INDEX(IndicData,ROW(AG20)-6,0) > INDEX(IndicData,COLUMN(AG20)-2,0), WeightsS)) -> 0.3333333333 | AH20: =SUM(IF(INDEX(IndicData,ROW(AH20)-6,0) > INDEX(IndicData,COLUMN(AH20)-2,0), WeightsS)) -> 0.3333333333 | AI20: =SUM(IF(INDEX(IndicData,ROW(AI20)-6,0) > INDEX(IndicData,COLUMN(AI20)-2,0), WeightsS)) -> 0 | AJ20: =SUM(IF(INDEX(IndicData,ROW(AJ20)-6,0) > INDEX(IndicData,COLUMN(AJ20)-2,0), WeightsS)) -> 0.1666666667 | AK20: =SUM(IF(INDEX(IndicData,ROW(AK20)-6,0) > INDEX(IndicData,COLUMN(AK20)-2,0), WeightsS)) -> 0.1666666667 | AL20: =SUM(IF(INDEX(IndicData,ROW(AL20)-6,0) > INDEX(IndicData,COLUMN(AL20)-2,0), WeightsS)) -> 0.1666666667 | AM20: =SUM(IF(INDEX(IndicData,ROW(AM20)-6,0) > INDEX(IndicData,COLUMN(AM20)-2,0), WeightsS)) -> 0.1666666667 | AN20: =SUM(IF(INDEX(IndicData,ROW(AN20)-6,0) > INDEX(IndicData,COLUMN(AN20)-2,0), WeightsS)) -> 0.1666666667 | AO20: =SUM(IF(INDEX(IndicData,ROW(AO20)-6,0) > INDEX(IndicData,COLUMN(AO20)-2,0), WeightsS)) -> 0.1666666667 | AP20: =SUM(IF(INDEX(IndicData,ROW(AP20)-6,0) > INDEX(IndicData,COLUMN(AP20)-2,0), WeightsS)) -> 0.1666666667 | AQ20: =SUM(IF(INDEX(IndicData,ROW(AQ20)-6,0) > INDEX(IndicData,COLUMN(AQ20)-2,0), WeightsS)) -> 0 | AR20: =SUM(IF(INDEX(IndicData,ROW(AR20)-6,0) > INDEX(IndicData,COLUMN(AR20)-2,0), WeightsS)) -> 0 | AS20: =SUM(IF(INDEX(IndicData,ROW(AS20)-6,0) > INDEX(IndicData,COLUMN(AS20)-2,0), WeightsS)) -> 0.1666666667 | AT20: =SUM(IF(INDEX(IndicData,ROW(AT20)-6,0) > INDEX(IndicData,COLUMN(AT20)-2,0), WeightsS)) -> 0 | AU20: =SUM(IF(INDEX(IndicData,ROW(AU20)-6,0) > INDEX(IndicData,COLUMN(AU20)-2,0), WeightsS)) -> 0 | AV20: =SUM(IF(INDEX(IndicData,ROW(AV20)-6,0) > INDEX(IndicData,COLUMN(AV20)-2,0), WeightsS)) -> 0 | AW20: =SUM(IF(INDEX(IndicData,ROW(AW20)-6,0) > INDEX(IndicData,COLUMN(AW20)-2,0), WeightsS)) -> 0 | AX20: =SUM(IF(INDEX(IndicData,ROW(AX20)-6,0) > INDEX(IndicData,COLUMN(AX20)-2,0), WeightsS)) -> 0 | AY20: =SUM(IF(INDEX(IndicData,ROW(AY20)-6,0) > INDEX(IndicData,COLUMN(AY20)-2,0), WeightsS)) -> 0 | AZ20: =SUM(IF(INDEX(IndicData,ROW(AZ20)-6,0) > INDEX(IndicData,COLUMN(AZ20)-2,0), WeightsS)) -> 0
A21: 15 | B21: Unit15 | C21: =SUM(IF(INDEX(IndicData,ROW(C21)-6,0) > INDEX(IndicData,COLUMN(C21)-2,0), WeightsS)) -> 0.3333333333 | D21: =SUM(IF(INDEX(IndicData,ROW(D21)-6,0) > INDEX(IndicData,COLUMN(D21)-2,0), WeightsS)) -> 0.3333333333 | E21: =SUM(IF(INDEX(IndicData,ROW(E21)-6,0) > INDEX(IndicData,COLUMN(E21)-2,0), WeightsS)) -> 0.3333333333 | F21: =SUM(IF(INDEX(IndicData,ROW(F21)-6,0) > INDEX(IndicData,COLUMN(F21)-2,0), WeightsS)) -> 0.3333333333 | G21: =SUM(IF(INDEX(IndicData,ROW(G21)-6,0) > INDEX(IndicData,COLUMN(G21)-2,0), WeightsS)) -> 0.3333333333 | H21: =SUM(IF(INDEX(IndicData,ROW(H21)-6,0) > INDEX(IndicData,COLUMN(H21)-2,0), WeightsS)) -> 0.3333333333 | I21: =SUM(IF(INDEX(IndicData,ROW(I21)-6,0) > INDEX(IndicData,COLUMN(I21)-2,0), WeightsS)) -> 0.3333333333 | J21: =SUM(IF(INDEX(IndicData,ROW(J21)-6,0) > INDEX(IndicData,COLUMN(J21)-2,0), WeightsS)) -> 0.3333333333 | K21: =SUM(IF(INDEX(IndicData,ROW(K21)-6,0) > INDEX(IndicData,COLUMN(K21)-2,0), WeightsS)) -> 0.3333333333 | L21: =SUM(IF(INDEX(IndicData,ROW(L21)-6,0) > INDEX(IndicData,COLUMN(L21)-2,0), WeightsS)) -> 0.3333333333 | M21: =SUM(IF(INDEX(IndicData,ROW(M21)-6,0) > INDEX(IndicData,COLUMN(M21)-2,0), WeightsS)) -> 0.3333333333 | N21: =SUM(IF(INDEX(IndicData,ROW(N21)-6,0) > INDEX(IndicData,COLUMN(N21)-2,0), WeightsS)) -> 0.3333333333 | O21: =SUM(IF(INDEX(IndicData,ROW(O21)-6,0) > INDEX(IndicData,COLUMN(O21)-2,0), WeightsS)) -> 0.3333333333 | P21: =SUM(IF(INDEX(IndicData,ROW(P21)-6,0) > INDEX(IndicData,COLUMN(P21)-2,0), WeightsS)) -> 0.1666666667 | Q21: =SUM(IF(INDEX(IndicData,ROW(Q21)-6,0) > INDEX(IndicData,COLUMN(Q21)-2,0), WeightsS)) -> 0 | R21: =SUM(IF(INDEX(IndicData,ROW(R21)-6,0) > INDEX(IndicData,COLUMN(R21)-2,0), WeightsS)) -> 0 | S21: =SUM(IF(INDEX(IndicData,ROW(S21)-6,0) > INDEX(IndicData,COLUMN(S21)-2,0), WeightsS)) -> 0 | T21: =SUM(IF(INDEX(IndicData,ROW(T21)-6,0) > INDEX(IndicData,COLUMN(T21)-2,0), WeightsS)) -> 0 | U21: =SUM(IF(INDEX(IndicData,ROW(U21)-6,0) > INDEX(IndicData,COLUMN(U21)-2,0), WeightsS)) -> 0 | V21: =SUM(IF(INDEX(IndicData,ROW(V21)-6,0) > INDEX(IndicData,COLUMN(V21)-2,0), WeightsS)) -> 0 | W21: =SUM(IF(INDEX(IndicData,ROW(W21)-6,0) > INDEX(IndicData,COLUMN(W21)-2,0), WeightsS)) -> 0 | X21: =SUM(IF(INDEX(IndicData,ROW(X21)-6,0) > INDEX(IndicData,COLUMN(X21)-2,0), WeightsS)) -> 0 | Y21: =SUM(IF(INDEX(IndicData,ROW(Y21)-6,0) > INDEX(IndicData,COLUMN(Y21)-2,0), WeightsS)) -> 0 | Z21: =SUM(IF(INDEX(IndicData,ROW(Z21)-6,0) > INDEX(IndicData,COLUMN(Z21)-2,0), WeightsS)) -> 0 | AA21: =SUM(IF(INDEX(IndicData,ROW(AA21)-6,0) > INDEX(IndicData,COLUMN(AA21)-2,0), WeightsS)) -> 0 | AB21: =SUM(IF(INDEX(IndicData,ROW(AB21)-6,0) > INDEX(IndicData,COLUMN(AB21)-2,0), WeightsS)) -> 0 | AC21: =SUM(IF(INDEX(IndicData,ROW(AC21)-6,0) > INDEX(IndicData,COLUMN(AC21)-2,0), WeightsS)) -> 0 | AD21: =SUM(IF(INDEX(IndicData,ROW(AD21)-6,0) > INDEX(IndicData,COLUMN(AD21)-2,0), WeightsS)) -> 0 | AE21: =SUM(IF(INDEX(IndicData,ROW(AE21)-6,0) > INDEX(IndicData,COLUMN(AE21)-2,0), WeightsS)) -> 0 | AF21: =SUM(IF(INDEX(IndicData,ROW(AF21)-6,0) > INDEX(IndicData,COLUMN(AF21)-2,0), WeightsS)) -> 0 | AG21: =SUM(IF(INDEX(IndicData,ROW(AG21)-6,0) > INDEX(IndicData,COLUMN(AG21)-2,0), WeightsS)) -> 0 | AH21: =SUM(IF(INDEX(IndicData,ROW(AH21)-6,0) > INDEX(IndicData,COLUMN(AH21)-2,0), WeightsS)) -> 0 | AI21: =SUM(IF(INDEX(IndicData,ROW(AI21)-6,0) > INDEX(IndicData,COLUMN(AI21)-2,0), WeightsS)) -> 0 | AJ21: =SUM(IF(INDEX(IndicData,ROW(AJ21)-6,0) > INDEX(IndicData,COLUMN(AJ21)-2,0), WeightsS)) -> 0 | AK21: =SUM(IF(INDEX(IndicData,ROW(AK21)-6,0) > INDEX(IndicData,COLUMN(AK21)-2,0), WeightsS)) -> 0 | AL21: =SUM(IF(INDEX(IndicData,ROW(AL21)-6,0) > INDEX(IndicData,COLUMN(AL21)-2,0), WeightsS)) -> 0 | AM21: =SUM(IF(INDEX(IndicData,ROW(AM21)-6,0) > INDEX(IndicData,COLUMN(AM21)-2,0), WeightsS)) -> 0 | AN21: =SUM(IF(INDEX(IndicData,ROW(AN21)-6,0) > INDEX(IndicData,COLUMN(AN21)-2,0), WeightsS)) -> 0 | AO21: =SUM(IF(INDEX(IndicData,ROW(AO21)-6,0) > INDEX(IndicData,COLUMN(AO21)-2,0), WeightsS)) -> 0 | AP21: =SUM(IF(INDEX(IndicData,ROW(AP21)-6,0) > INDEX(IndicData,COLUMN(AP21)-2,0), WeightsS)) -> 0 | AQ21: =SUM(IF(INDEX(IndicData,ROW(AQ21)-6,0) > INDEX(IndicData,COLUMN(AQ21)-2,0), WeightsS)) -> 0 | AR21: =SUM(IF(INDEX(IndicData,ROW(AR21)-6,0) > INDEX(IndicData,COLUMN(AR21)-2,0), WeightsS)) -> 0 | AS21: =SUM(IF(INDEX(IndicData,ROW(AS21)-6,0) > INDEX(IndicData,COLUMN(AS21)-2,0), WeightsS)) -> 0 | AT21: =SUM(IF(INDEX(IndicData,ROW(AT21)-6,0) > INDEX(IndicData,COLUMN(AT21)-2,0), WeightsS)) -> 0 | AU21: =SUM(IF(INDEX(IndicData,ROW(AU21)-6,0) > INDEX(IndicData,COLUMN(AU21)-2,0), WeightsS)) -> 0 | AV21: =SUM(IF(INDEX(IndicData,ROW(AV21)-6,0) > INDEX(IndicData,COLUMN(AV21)-2,0), WeightsS)) -> 0 | AW21: =SUM(IF(INDEX(IndicData,ROW(AW21)-6,0) > INDEX(IndicData,COLUMN(AW21)-2,0), WeightsS)) -> 0 | AX21: =SUM(IF(INDEX(IndicData,ROW(AX21)-6,0) > INDEX(IndicData,COLUMN(AX21)-2,0), WeightsS)) -> 0 | AY21: =SUM(IF(INDEX(IndicData,ROW(AY21)-6,0) > INDEX(IndicData,COLUMN(AY21)-2,0), WeightsS)) -> 0 | AZ21: =SUM(IF(INDEX(IndicData,ROW(AZ21)-6,0) > INDEX(IndicData,COLUMN(AZ21)-2,0), WeightsS)) -> 0
A22: 16 | B22: Unit16 | C22: =SUM(IF(INDEX(IndicData,ROW(C22)-6,0) > INDEX(IndicData,COLUMN(C22)-2,0), WeightsS)) -> 0.5 | D22: =SUM(IF(INDEX(IndicData,ROW(D22)-6,0) > INDEX(IndicData,COLUMN(D22)-2,0), WeightsS)) -> 0.5 | E22: =SUM(IF(INDEX(IndicData,ROW(E22)-6,0) > INDEX(IndicData,COLUMN(E22)-2,0), WeightsS)) -> 0.5 | F22: =SUM(IF(INDEX(IndicData,ROW(F22)-6,0) > INDEX(IndicData,COLUMN(F22)-2,0), WeightsS)) -> 0.5 | G22: =SUM(IF(INDEX(IndicData,ROW(G22)-6,0) > INDEX(IndicData,COLUMN(G22)-2,0), WeightsS)) -> 0.5 | H22: =SUM(IF(INDEX(IndicData,ROW(H22)-6,0) > INDEX(IndicData,COLUMN(H22)-2,0), WeightsS)) -> 0.5 | I22: =SUM(IF(INDEX(IndicData,ROW(I22)-6,0) > INDEX(IndicData,COLUMN(I22)-2,0), WeightsS)) -> 0.5 | J22: =SUM(IF(INDEX(IndicData,ROW(J22)-6,0) > INDEX(IndicData,COLUMN(J22)-2,0), WeightsS)) -> 0.5 | K22: =SUM(IF(INDEX(IndicData,ROW(K22)-6,0) > INDEX(IndicData,COLUMN(K22)-2,0), WeightsS)) -> 0.5 | L22: =SUM(IF(INDEX(IndicData,ROW(L22)-6,0) > INDEX(IndicData,COLUMN(L22)-2,0), WeightsS)) -> 0.3333333333 | M22: =SUM(IF(INDEX(IndicData,ROW(M22)-6,0) > INDEX(IndicData,COLUMN(M22)-2,0), WeightsS)) -> 0.3333333333 | N22: =SUM(IF(INDEX(IndicData,ROW(N22)-6,0) > INDEX(IndicData,COLUMN(N22)-2,0), WeightsS)) -> 0.3333333333 | O22: =SUM(IF(INDEX(IndicData,ROW(O22)-6,0) > INDEX(IndicData,COLUMN(O22)-2,0), WeightsS)) -> 0.3333333333 | P22: =SUM(IF(INDEX(IndicData,ROW(P22)-6,0) > INDEX(IndicData,COLUMN(P22)-2,0), WeightsS)) -> 0.1666666667 | Q22: =SUM(IF(INDEX(IndicData,ROW(Q22)-6,0) > INDEX(IndicData,COLUMN(Q22)-2,0), WeightsS)) -> 0.1666666667 | R22: =SUM(IF(INDEX(IndicData,ROW(R22)-6,0) > INDEX(IndicData,COLUMN(R22)-2,0), WeightsS)) -> 0 | S22: =SUM(IF(INDEX(IndicData,ROW(S22)-6,0) > INDEX(IndicData,COLUMN(S22)-2,0), WeightsS)) -> 0 | T22: =SUM(IF(INDEX(IndicData,ROW(T22)-6,0) > INDEX(IndicData,COLUMN(T22)-2,0), WeightsS)) -> 0.1666666667 | U22: =SUM(IF(INDEX(IndicData,ROW(U22)-6,0) > INDEX(IndicData,COLUMN(U22)-2,0), WeightsS)) -> 0.1666666667 | V22: =SUM(IF(INDEX(IndicData,ROW(V22)-6,0) > INDEX(IndicData,COLUMN(V22)-2,0), WeightsS)) -> 0.1666666667 | W22: =SUM(IF(INDEX(IndicData,ROW(W22)-6,0) > INDEX(IndicData,COLUMN(W22)-2,0), WeightsS)) -> 0 | X22: =SUM(IF(INDEX(IndicData,ROW(X22)-6,0) > INDEX(IndicData,COLUMN(X22)-2,0), WeightsS)) -> 0 | Y22: =SUM(IF(INDEX(IndicData,ROW(Y22)-6,0) > INDEX(IndicData,COLUMN(Y22)-2,0), WeightsS)) -> 0 | Z22: =SUM(IF(INDEX(IndicData,ROW(Z22)-6,0) > INDEX(IndicData,COLUMN(Z22)-2,0), WeightsS)) -> 0 | AA22: =SUM(IF(INDEX(IndicData,ROW(AA22)-6,0) > INDEX(IndicData,COLUMN(AA22)-2,0), WeightsS)) -> 0 | AB22: =SUM(IF(INDEX(IndicData,ROW(AB22)-6,0) > INDEX(IndicData,COLUMN(AB22)-2,0), WeightsS)) -> 0 | AC22: =SUM(IF(INDEX(IndicData,ROW(AC22)-6,0) > INDEX(IndicData,COLUMN(AC22)-2,0), WeightsS)) -> 0 | AD22: =SUM(IF(INDEX(IndicData,ROW(AD22)-6,0) > INDEX(IndicData,COLUMN(AD22)-2,0), WeightsS)) -> 0 | AE22: =SUM(IF(INDEX(IndicData,ROW(AE22)-6,0) > INDEX(IndicData,COLUMN(AE22)-2,0), WeightsS)) -> 0 | AF22: =SUM(IF(INDEX(IndicData,ROW(AF22)-6,0) > INDEX(IndicData,COLUMN(AF22)-2,0), WeightsS)) -> 0 | AG22: =SUM(IF(INDEX(IndicData,ROW(AG22)-6,0) > INDEX(IndicData,COLUMN(AG22)-2,0), WeightsS)) -> 0 | AH22: =SUM(IF(INDEX(IndicData,ROW(AH22)-6,0) > INDEX(IndicData,COLUMN(AH22)-2,0), WeightsS)) -> 0 | AI22: =SUM(IF(INDEX(IndicData,ROW(AI22)-6,0) > INDEX(IndicData,COLUMN(AI22)-2,0), WeightsS)) -> 0 | AJ22: =SUM(IF(INDEX(IndicData,ROW(AJ22)-6,0) > INDEX(IndicData,COLUMN(AJ22)-2,0), WeightsS)) -> 0.1666666667 | AK22: =SUM(IF(INDEX(IndicData,ROW(AK22)-6,0) > INDEX(IndicData,COLUMN(AK22)-2,0), WeightsS)) -> 0.1666666667 | AL22: =SUM(IF(INDEX(IndicData,ROW(AL22)-6,0) > INDEX(IndicData,COLUMN(AL22)-2,0), WeightsS)) -> 0.1666666667 | AM22: =SUM(IF(INDEX(IndicData,ROW(AM22)-6,0) > INDEX(IndicData,COLUMN(AM22)-2,0), WeightsS)) -> 0.1666666667 | AN22: =SUM(IF(INDEX(IndicData,ROW(AN22)-6,0) > INDEX(IndicData,COLUMN(AN22)-2,0), WeightsS)) -> 0 | AO22: =SUM(IF(INDEX(IndicData,ROW(AO22)-6,0) > INDEX(IndicData,COLUMN(AO22)-2,0), WeightsS)) -> 0 | AP22: =SUM(IF(INDEX(IndicData,ROW(AP22)-6,0) > INDEX(IndicData,COLUMN(AP22)-2,0), WeightsS)) -> 0 | AQ22: =SUM(IF(INDEX(IndicData,ROW(AQ22)-6,0) > INDEX(IndicData,COLUMN(AQ22)-2,0), WeightsS)) -> 0 | AR22: =SUM(IF(INDEX(IndicData,ROW(AR22)-6,0) > INDEX(IndicData,COLUMN(AR22)-2,0), WeightsS)) -> 0 | AS22: =SUM(IF(INDEX(IndicData,ROW(AS22)-6,0) > INDEX(IndicData,COLUMN(AS22)-2,0), WeightsS)) -> 0 | AT22: =SUM(IF(INDEX(IndicData,ROW(AT22)-6,0) > INDEX(IndicData,COLUMN(AT22)-2,0), WeightsS)) -> 0 | AU22: =SUM(IF(INDEX(IndicData,ROW(AU22)-6,0) > INDEX(IndicData,COLUMN(AU22)-2,0), WeightsS)) -> 0 | AV22: =SUM(IF(INDEX(IndicData,ROW(AV22)-6,0) > INDEX(IndicData,COLUMN(AV22)-2,0), WeightsS)) -> 0 | AW22: =SUM(IF(INDEX(IndicData,ROW(AW22)-6,0) > INDEX(IndicData,COLUMN(AW22)-2,0), WeightsS)) -> 0 | AX22: =SUM(IF(INDEX(IndicData,ROW(AX22)-6,0) > INDEX(IndicData,COLUMN(AX22)-2,0), WeightsS)) -> 0 | AY22: =SUM(IF(INDEX(IndicData,ROW(AY22)-6,0) > INDEX(IndicData,COLUMN(AY22)-2,0), WeightsS)) -> 0 | AZ22: =SUM(IF(INDEX(IndicData,ROW(AZ22)-6,0) > INDEX(IndicData,COLUMN(AZ22)-2,0), WeightsS)) -> 0
A23: 17 | B23: Unit17 | C23: =SUM(IF(INDEX(IndicData,ROW(C23)-6,0) > INDEX(IndicData,COLUMN(C23)-2,0), WeightsS)) -> 1 | D23: =SUM(IF(INDEX(IndicData,ROW(D23)-6,0) > INDEX(IndicData,COLUMN(D23)-2,0), WeightsS)) -> 1 | E23: =SUM(IF(INDEX(IndicData,ROW(E23)-6,0) > INDEX(IndicData,COLUMN(E23)-2,0), WeightsS)) -> 1 | F23: =SUM(IF(INDEX(IndicData,ROW(F23)-6,0) > INDEX(IndicData,COLUMN(F23)-2,0), WeightsS)) -> 0.8333333333 | G23: =SUM(IF(INDEX(IndicData,ROW(G23)-6,0) > INDEX(IndicData,COLUMN(G23)-2,0), WeightsS)) -> 0.8333333333 | H23: =SUM(IF(INDEX(IndicData,ROW(H23)-6,0) > INDEX(IndicData,COLUMN(H23)-2,0), WeightsS)) -> 0.6666666667 | I23: =SUM(IF(INDEX(IndicData,ROW(I23)-6,0) > INDEX(IndicData,COLUMN(I23)-2,0), WeightsS)) -> 0.6666666667 | J23: =SUM(IF(INDEX(IndicData,ROW(J23)-6,0) > INDEX(IndicData,COLUMN(J23)-2,0), WeightsS)) -> 1 | K23: =SUM(IF(INDEX(IndicData,ROW(K23)-6,0) > INDEX(IndicData,COLUMN(K23)-2,0), WeightsS)) -> 0.6666666667 | L23: =SUM(IF(INDEX(IndicData,ROW(L23)-6,0) > INDEX(IndicData,COLUMN(L23)-2,0), WeightsS)) -> 0.8333333333 | M23: =SUM(IF(INDEX(IndicData,ROW(M23)-6,0) > INDEX(IndicData,COLUMN(M23)-2,0), WeightsS)) -> 0.5 | N23: =SUM(IF(INDEX(IndicData,ROW(N23)-6,0) > INDEX(IndicData,COLUMN(N23)-2,0), WeightsS)) -> 0.5 | O23: =SUM(IF(INDEX(IndicData,ROW(O23)-6,0) > INDEX(IndicData,COLUMN(O23)-2,0), WeightsS)) -> 0.5 | P23: =SUM(IF(INDEX(IndicData,ROW(P23)-6,0) > INDEX(IndicData,COLUMN(P23)-2,0), WeightsS)) -> 0.3333333333 | Q23: =SUM(IF(INDEX(IndicData,ROW(Q23)-6,0) > INDEX(IndicData,COLUMN(Q23)-2,0), WeightsS)) -> 0.6666666667 | R23: =SUM(IF(INDEX(IndicData,ROW(R23)-6,0) > INDEX(IndicData,COLUMN(R23)-2,0), WeightsS)) -> 0.5 | S23: =SUM(IF(INDEX(IndicData,ROW(S23)-6,0) > INDEX(IndicData,COLUMN(S23)-2,0), WeightsS)) -> 0 | T23: =SUM(IF(INDEX(IndicData,ROW(T23)-6,0) > INDEX(IndicData,COLUMN(T23)-2,0), WeightsS)) -> 0.6666666667 | U23: =SUM(IF(INDEX(IndicData,ROW(U23)-6,0) > INDEX(IndicData,COLUMN(U23)-2,0), WeightsS)) -> 0.6666666667 | V23: =SUM(IF(INDEX(IndicData,ROW(V23)-6,0) > INDEX(IndicData,COLUMN(V23)-2,0), WeightsS)) -> 0.5 | W23: =SUM(IF(INDEX(IndicData,ROW(W23)-6,0) > INDEX(IndicData,COLUMN(W23)-2,0), WeightsS)) -> 0.5 | X23: =SUM(IF(INDEX(IndicData,ROW(X23)-6,0) > INDEX(IndicData,COLUMN(X23)-2,0), WeightsS)) -> 0.3333333333 | Y23: =SUM(IF(INDEX(IndicData,ROW(Y23)-6,0) > INDEX(IndicData,COLUMN(Y23)-2,0), WeightsS)) -> 0.3333333333 | Z23: =SUM(IF(INDEX(IndicData,ROW(Z23)-6,0) > INDEX(IndicData,COLUMN(Z23)-2,0), WeightsS)) -> 0.1666666667 | AA23: =SUM(IF(INDEX(IndicData,ROW(AA23)-6,0) > INDEX(IndicData,COLUMN(AA23)-2,0), WeightsS)) -> 0.3333333333 | AB23: =SUM(IF(INDEX(IndicData,ROW(AB23)-6,0) > INDEX(IndicData,COLUMN(AB23)-2,0), WeightsS)) -> 0.5 | AC23: =SUM(IF(INDEX(IndicData,ROW(AC23)-6,0) > INDEX(IndicData,COLUMN(AC23)-2,0), WeightsS)) -> 0.5 | AD23: =SUM(IF(INDEX(IndicData,ROW(AD23)-6,0) > INDEX(IndicData,COLUMN(AD23)-2,0), WeightsS)) -> 0 | AE23: =SUM(IF(INDEX(IndicData,ROW(AE23)-6,0) > INDEX(IndicData,COLUMN(AE23)-2,0), WeightsS)) -> 0.1666666667 | AF23: =SUM(IF(INDEX(IndicData,ROW(AF23)-6,0) > INDEX(IndicData,COLUMN(AF23)-2,0), WeightsS)) -> 0.3333333333 | AG23: =SUM(IF(INDEX(IndicData,ROW(AG23)-6,0) > INDEX(IndicData,COLUMN(AG23)-2,0), WeightsS)) -> 0.1666666667 | AH23: =SUM(IF(INDEX(IndicData,ROW(AH23)-6,0) > INDEX(IndicData,COLUMN(AH23)-2,0), WeightsS)) -> 0.1666666667 | AI23: =SUM(IF(INDEX(IndicData,ROW(AI23)-6,0) > INDEX(IndicData,COLUMN(AI23)-2,0), WeightsS)) -> 0 | AJ23: =SUM(IF(INDEX(IndicData,ROW(AJ23)-6,0) > INDEX(IndicData,COLUMN(AJ23)-2,0), WeightsS)) -> 0.1666666667 | AK23: =SUM(IF(INDEX(IndicData,ROW(AK23)-6,0) > INDEX(IndicData,COLUMN(AK23)-2,0), WeightsS)) -> 0.1666666667 | AL23: =SUM(IF(INDEX(IndicData,ROW(AL23)-6,0) > INDEX(IndicData,COLUMN(AL23)-2,0), WeightsS)) -> 0.1666666667 | AM23: =SUM(IF(INDEX(IndicData,ROW(AM23)-6,0) > INDEX(IndicData,COLUMN(AM23)-2,0), WeightsS)) -> 0.1666666667 | AN23: =SUM(IF(INDEX(IndicData,ROW(AN23)-6,0) > INDEX(IndicData,COLUMN(AN23)-2,0), WeightsS)) -> 0 | AO23: =SUM(IF(INDEX(IndicData,ROW(AO23)-6,0) > INDEX(IndicData,COLUMN(AO23)-2,0), WeightsS)) -> 0 | AP23: =SUM(IF(INDEX(IndicData,ROW(AP23)-6,0) > INDEX(IndicData,COLUMN(AP23)-2,0), WeightsS)) -> 0 | AQ23: =SUM(IF(INDEX(IndicData,ROW(AQ23)-6,0) > INDEX(IndicData,COLUMN(AQ23)-2,0), WeightsS)) -> 0 | AR23: =SUM(IF(INDEX(IndicData,ROW(AR23)-6,0) > INDEX(IndicData,COLUMN(AR23)-2,0), WeightsS)) -> 0 | AS23: =SUM(IF(INDEX(IndicData,ROW(AS23)-6,0) > INDEX(IndicData,COLUMN(AS23)-2,0), WeightsS)) -> 0.1666666667 | AT23: =SUM(IF(INDEX(IndicData,ROW(AT23)-6,0) > INDEX(IndicData,COLUMN(AT23)-2,0), WeightsS)) -> 0.1666666667 | AU23: =SUM(IF(INDEX(IndicData,ROW(AU23)-6,0) > INDEX(IndicData,COLUMN(AU23)-2,0), WeightsS)) -> 0 | AV23: =SUM(IF(INDEX(IndicData,ROW(AV23)-6,0) > INDEX(IndicData,COLUMN(AV23)-2,0), WeightsS)) -> 0 | AW23: =SUM(IF(INDEX(IndicData,ROW(AW23)-6,0) > INDEX(IndicData,COLUMN(AW23)-2,0), WeightsS)) -> 0 | AX23: =SUM(IF(INDEX(IndicData,ROW(AX23)-6,0) > INDEX(IndicData,COLUMN(AX23)-2,0), WeightsS)) -> 0 | AY23: =SUM(IF(INDEX(IndicData,ROW(AY23)-6,0) > INDEX(IndicData,COLUMN(AY23)-2,0), WeightsS)) -> 0 | AZ23: =SUM(IF(INDEX(IndicData,ROW(AZ23)-6,0) > INDEX(IndicData,COLUMN(AZ23)-2,0), WeightsS)) -> 0
A24: 18 | B24: Unit18 | C24: =SUM(IF(INDEX(IndicData,ROW(C24)-6,0) > INDEX(IndicData,COLUMN(C24)-2,0), WeightsS)) -> 0.5 | D24: =SUM(IF(INDEX(IndicData,ROW(D24)-6,0) > INDEX(IndicData,COLUMN(D24)-2,0), WeightsS)) -> 0.3333333333 | E24: =SUM(IF(INDEX(IndicData,ROW(E24)-6,0) > INDEX(IndicData,COLUMN(E24)-2,0), WeightsS)) -> 0.3333333333 | F24: =SUM(IF(INDEX(IndicData,ROW(F24)-6,0) > INDEX(IndicData,COLUMN(F24)-2,0), WeightsS)) -> 0.5 | G24: =SUM(IF(INDEX(IndicData,ROW(G24)-6,0) > INDEX(IndicData,COLUMN(G24)-2,0), WeightsS)) -> 0.3333333333 | H24: =SUM(IF(INDEX(IndicData,ROW(H24)-6,0) > INDEX(IndicData,COLUMN(H24)-2,0), WeightsS)) -> 0.3333333333 | I24: =SUM(IF(INDEX(IndicData,ROW(I24)-6,0) > INDEX(IndicData,COLUMN(I24)-2,0), WeightsS)) -> 0.3333333333 | J24: =SUM(IF(INDEX(IndicData,ROW(J24)-6,0) > INDEX(IndicData,COLUMN(J24)-2,0), WeightsS)) -> 0.3333333333 | K24: =SUM(IF(INDEX(IndicData,ROW(K24)-6,0) > INDEX(IndicData,COLUMN(K24)-2,0), WeightsS)) -> 0.3333333333 | L24: =SUM(IF(INDEX(IndicData,ROW(L24)-6,0) > INDEX(IndicData,COLUMN(L24)-2,0), WeightsS)) -> 0.3333333333 | M24: =SUM(IF(INDEX(IndicData,ROW(M24)-6,0) > INDEX(IndicData,COLUMN(M24)-2,0), WeightsS)) -> 0.3333333333 | N24: =SUM(IF(INDEX(IndicData,ROW(N24)-6,0) > INDEX(IndicData,COLUMN(N24)-2,0), WeightsS)) -> 0.3333333333 | O24: =SUM(IF(INDEX(IndicData,ROW(O24)-6,0) > INDEX(IndicData,COLUMN(O24)-2,0), WeightsS)) -> 0.3333333333 | P24: =SUM(IF(INDEX(IndicData,ROW(P24)-6,0) > INDEX(IndicData,COLUMN(P24)-2,0), WeightsS)) -> 0.3333333333 | Q24: =SUM(IF(INDEX(IndicData,ROW(Q24)-6,0) > INDEX(IndicData,COLUMN(Q24)-2,0), WeightsS)) -> 0.5 | R24: =SUM(IF(INDEX(IndicData,ROW(R24)-6,0) > INDEX(IndicData,COLUMN(R24)-2,0), WeightsS)) -> 0.5 | S24: =SUM(IF(INDEX(IndicData,ROW(S24)-6,0) > INDEX(IndicData,COLUMN(S24)-2,0), WeightsS)) -> 0.3333333333 | T24: =SUM(IF(INDEX(IndicData,ROW(T24)-6,0) > INDEX(IndicData,COLUMN(T24)-2,0), WeightsS)) -> 0 | U24: =SUM(IF(INDEX(IndicData,ROW(U24)-6,0) > INDEX(IndicData,COLUMN(U24)-2,0), WeightsS)) -> 0.1666666667 | V24: =SUM(IF(INDEX(IndicData,ROW(V24)-6,0) > INDEX(IndicData,COLUMN(V24)-2,0), WeightsS)) -> 0.1666666667 | W24: =SUM(IF(INDEX(IndicData,ROW(W24)-6,0) > INDEX(IndicData,COLUMN(W24)-2,0), WeightsS)) -> 0.3333333333 | X24: =SUM(IF(INDEX(IndicData,ROW(X24)-6,0) > INDEX(IndicData,COLUMN(X24)-2,0), WeightsS)) -> 0.1666666667 | Y24: =SUM(IF(INDEX(IndicData,ROW(Y24)-6,0) > INDEX(IndicData,COLUMN(Y24)-2,0), WeightsS)) -> 0.1666666667 | Z24: =SUM(IF(INDEX(IndicData,ROW(Z24)-6,0) > INDEX(IndicData,COLUMN(Z24)-2,0), WeightsS)) -> 0.1666666667 | AA24: =SUM(IF(INDEX(IndicData,ROW(AA24)-6,0) > INDEX(IndicData,COLUMN(AA24)-2,0), WeightsS)) -> 0 | AB24: =SUM(IF(INDEX(IndicData,ROW(AB24)-6,0) > INDEX(IndicData,COLUMN(AB24)-2,0), WeightsS)) -> 0.1666666667 | AC24: =SUM(IF(INDEX(IndicData,ROW(AC24)-6,0) > INDEX(IndicData,COLUMN(AC24)-2,0), WeightsS)) -> 0.1666666667 | AD24: =SUM(IF(INDEX(IndicData,ROW(AD24)-6,0) > INDEX(IndicData,COLUMN(AD24)-2,0), WeightsS)) -> 0.1666666667 | AE24: =SUM(IF(INDEX(IndicData,ROW(AE24)-6,0) > INDEX(IndicData,COLUMN(AE24)-2,0), WeightsS)) -> 0 | AF24: =SUM(IF(INDEX(IndicData,ROW(AF24)-6,0) > INDEX(IndicData,COLUMN(AF24)-2,0), WeightsS)) -> 0 | AG24: =SUM(IF(INDEX(IndicData,ROW(AG24)-6,0) > INDEX(IndicData,COLUMN(AG24)-2,0), WeightsS)) -> 0 | AH24: =SUM(IF(INDEX(IndicData,ROW(AH24)-6,0) > INDEX(IndicData,COLUMN(AH24)-2,0), WeightsS)) -> 0 | AI24: =SUM(IF(INDEX(IndicData,ROW(AI24)-6,0) > INDEX(IndicData,COLUMN(AI24)-2,0), WeightsS)) -> 0 | AJ24: =SUM(IF(INDEX(IndicData,ROW(AJ24)-6,0) > INDEX(IndicData,COLUMN(AJ24)-2,0), WeightsS)) -> 0 | AK24: =SUM(IF(INDEX(IndicData,ROW(AK24)-6,0) > INDEX(IndicData,COLUMN(AK24)-2,0), WeightsS)) -> 0 | AL24: =SUM(IF(INDEX(IndicData,ROW(AL24)-6,0) > INDEX(IndicData,COLUMN(AL24)-2,0), WeightsS)) -> 0 | AM24: =SUM(IF(INDEX(IndicData,ROW(AM24)-6,0) > INDEX(IndicData,COLUMN(AM24)-2,0), WeightsS)) -> 0 | AN24: =SUM(IF(INDEX(IndicData,ROW(AN24)-6,0) > INDEX(IndicData,COLUMN(AN24)-2,0), WeightsS)) -> 0 | AO24: =SUM(IF(INDEX(IndicData,ROW(AO24)-6,0) > INDEX(IndicData,COLUMN(AO24)-2,0), WeightsS)) -> 0 | AP24: =SUM(IF(INDEX(IndicData,ROW(AP24)-6,0) > INDEX(IndicData,COLUMN(AP24)-2,0), WeightsS)) -> 0 | AQ24: =SUM(IF(INDEX(IndicData,ROW(AQ24)-6,0) > INDEX(IndicData,COLUMN(AQ24)-2,0), WeightsS)) -> 0 | AR24: =SUM(IF(INDEX(IndicData,ROW(AR24)-6,0) > INDEX(IndicData,COLUMN(AR24)-2,0), WeightsS)) -> 0 | AS24: =SUM(IF(INDEX(IndicData,ROW(AS24)-6,0) > INDEX(IndicData,COLUMN(AS24)-2,0), WeightsS)) -> 0 | AT24: =SUM(IF(INDEX(IndicData,ROW(AT24)-6,0) > INDEX(IndicData,COLUMN(AT24)-2,0), WeightsS)) -> 0 | AU24: =SUM(IF(INDEX(IndicData,ROW(AU24)-6,0) > INDEX(IndicData,COLUMN(AU24)-2,0), WeightsS)) -> 0 | AV24: =SUM(IF(INDEX(IndicData,ROW(AV24)-6,0) > INDEX(IndicData,COLUMN(AV24)-2,0), WeightsS)) -> 0 | AW24: =SUM(IF(INDEX(IndicData,ROW(AW24)-6,0) > INDEX(IndicData,COLUMN(AW24)-2,0), WeightsS)) -> 0 | AX24: =SUM(IF(INDEX(IndicData,ROW(AX24)-6,0) > INDEX(IndicData,COLUMN(AX24)-2,0), WeightsS)) -> 0 | AY24: =SUM(IF(INDEX(IndicData,ROW(AY24)-6,0) > INDEX(IndicData,COLUMN(AY24)-2,0), WeightsS)) -> 0 | AZ24: =SUM(IF(INDEX(IndicData,ROW(AZ24)-6,0) > INDEX(IndicData,COLUMN(AZ24)-2,0), WeightsS)) -> 0
A25: 19 | B25: Unit19 | C25: =SUM(IF(INDEX(IndicData,ROW(C25)-6,0) > INDEX(IndicData,COLUMN(C25)-2,0), WeightsS)) -> 0.6666666667 | D25: =SUM(IF(INDEX(IndicData,ROW(D25)-6,0) > INDEX(IndicData,COLUMN(D25)-2,0), WeightsS)) -> 0.6666666667 | E25: =SUM(IF(INDEX(IndicData,ROW(E25)-6,0) > INDEX(IndicData,COLUMN(E25)-2,0), WeightsS)) -> 0.5 | F25: =SUM(IF(INDEX(IndicData,ROW(F25)-6,0) > INDEX(IndicData,COLUMN(F25)-2,0), WeightsS)) -> 0.6666666667 | G25: =SUM(IF(INDEX(IndicData,ROW(G25)-6,0) > INDEX(IndicData,COLUMN(G25)-2,0), WeightsS)) -> 0.6666666667 | H25: =SUM(IF(INDEX(IndicData,ROW(H25)-6,0) > INDEX(IndicData,COLUMN(H25)-2,0), WeightsS)) -> 0.6666666667 | I25: =SUM(IF(INDEX(IndicData,ROW(I25)-6,0) > INDEX(IndicData,COLUMN(I25)-2,0), WeightsS)) -> 0.6666666667 | J25: =SUM(IF(INDEX(IndicData,ROW(J25)-6,0) > INDEX(IndicData,COLUMN(J25)-2,0), WeightsS)) -> 0.3333333333 | K25: =SUM(IF(INDEX(IndicData,ROW(K25)-6,0) > INDEX(IndicData,COLUMN(K25)-2,0), WeightsS)) -> 0.5 | L25: =SUM(IF(INDEX(IndicData,ROW(L25)-6,0) > INDEX(IndicData,COLUMN(L25)-2,0), WeightsS)) -> 0.5 | M25: =SUM(IF(INDEX(IndicData,ROW(M25)-6,0) > INDEX(IndicData,COLUMN(M25)-2,0), WeightsS)) -> 0.5 | N25: =SUM(IF(INDEX(IndicData,ROW(N25)-6,0) > INDEX(IndicData,COLUMN(N25)-2,0), WeightsS)) -> 0.5 | O25: =SUM(IF(INDEX(IndicData,ROW(O25)-6,0) > INDEX(IndicData,COLUMN(O25)-2,0), WeightsS)) -> 0.5 | P25: =SUM(IF(INDEX(IndicData,ROW(P25)-6,0) > INDEX(IndicData,COLUMN(P25)-2,0), WeightsS)) -> 0.3333333333 | Q25: =SUM(IF(INDEX(IndicData,ROW(Q25)-6,0) > INDEX(IndicData,COLUMN(Q25)-2,0), WeightsS)) -> 0.5 | R25: =SUM(IF(INDEX(IndicData,ROW(R25)-6,0) > INDEX(IndicData,COLUMN(R25)-2,0), WeightsS)) -> 0.3333333333 | S25: =SUM(IF(INDEX(IndicData,ROW(S25)-6,0) > INDEX(IndicData,COLUMN(S25)-2,0), WeightsS)) -> 0.1666666667 | T25: =SUM(IF(INDEX(IndicData,ROW(T25)-6,0) > INDEX(IndicData,COLUMN(T25)-2,0), WeightsS)) -> 0.3333333333 | U25: =SUM(IF(INDEX(IndicData,ROW(U25)-6,0) > INDEX(IndicData,COLUMN(U25)-2,0), WeightsS)) -> 0 | V25: =SUM(IF(INDEX(IndicData,ROW(V25)-6,0) > INDEX(IndicData,COLUMN(V25)-2,0), WeightsS)) -> 0.1666666667 | W25: =SUM(IF(INDEX(IndicData,ROW(W25)-6,0) > INDEX(IndicData,COLUMN(W25)-2,0), WeightsS)) -> 0.1666666667 | X25: =SUM(IF(INDEX(IndicData,ROW(X25)-6,0) > INDEX(IndicData,COLUMN(X25)-2,0), WeightsS)) -> 0 | Y25: =SUM(IF(INDEX(IndicData,ROW(Y25)-6,0) > INDEX(IndicData,COLUMN(Y25)-2,0), WeightsS)) -> 0 | Z25: =SUM(IF(INDEX(IndicData,ROW(Z25)-6,0) > INDEX(IndicData,COLUMN(Z25)-2,0), WeightsS)) -> 0 | AA25: =SUM(IF(INDEX(IndicData,ROW(AA25)-6,0) > INDEX(IndicData,COLUMN(AA25)-2,0), WeightsS)) -> 0.1666666667 | AB25: =SUM(IF(INDEX(IndicData,ROW(AB25)-6,0) > INDEX(IndicData,COLUMN(AB25)-2,0), WeightsS)) -> 0.1666666667 | AC25: =SUM(IF(INDEX(IndicData,ROW(AC25)-6,0) > INDEX(IndicData,COLUMN(AC25)-2,0), WeightsS)) -> 0 | AD25: =SUM(IF(INDEX(IndicData,ROW(AD25)-6,0) > INDEX(IndicData,COLUMN(AD25)-2,0), WeightsS)) -> 0 | AE25: =SUM(IF(INDEX(IndicData,ROW(AE25)-6,0) > INDEX(IndicData,COLUMN(AE25)-2,0), WeightsS)) -> 0 | AF25: =SUM(IF(INDEX(IndicData,ROW(AF25)-6,0) > INDEX(IndicData,COLUMN(AF25)-2,0), WeightsS)) -> 0.1666666667 | AG25: =SUM(IF(INDEX(IndicData,ROW(AG25)-6,0) > INDEX(IndicData,COLUMN(AG25)-2,0), WeightsS)) -> 0 | AH25: =SUM(IF(INDEX(IndicData,ROW(AH25)-6,0) > INDEX(IndicData,COLUMN(AH25)-2,0), WeightsS)) -> 0 | AI25: =SUM(IF(INDEX(IndicData,ROW(AI25)-6,0) > INDEX(IndicData,COLUMN(AI25)-2,0), WeightsS)) -> 0 | AJ25: =SUM(IF(INDEX(IndicData,ROW(AJ25)-6,0) > INDEX(IndicData,COLUMN(AJ25)-2,0), WeightsS)) -> 0 | AK25: =SUM(IF(INDEX(IndicData,ROW(AK25)-6,0) > INDEX(IndicData,COLUMN(AK25)-2,0), WeightsS)) -> 0 | AL25: =SUM(IF(INDEX(IndicData,ROW(AL25)-6,0) > INDEX(IndicData,COLUMN(AL25)-2,0), WeightsS)) -> 0 | AM25: =SUM(IF(INDEX(IndicData,ROW(AM25)-6,0) > INDEX(IndicData,COLUMN(AM25)-2,0), WeightsS)) -> 0 | AN25: =SUM(IF(INDEX(IndicData,ROW(AN25)-6,0) > INDEX(IndicData,COLUMN(AN25)-2,0), WeightsS)) -> 0 | AO25: =SUM(IF(INDEX(IndicData,ROW(AO25)-6,0) > INDEX(IndicData,COLUMN(AO25)-2,0), WeightsS)) -> 0 | AP25: =SUM(IF(INDEX(IndicData,ROW(AP25)-6,0) > INDEX(IndicData,COLUMN(AP25)-2,0), WeightsS)) -> 0 | AQ25: =SUM(IF(INDEX(IndicData,ROW(AQ25)-6,0) > INDEX(IndicData,COLUMN(AQ25)-2,0), WeightsS)) -> 0 | AR25: =SUM(IF(INDEX(IndicData,ROW(AR25)-6,0) > INDEX(IndicData,COLUMN(AR25)-2,0), WeightsS)) -> 0 | AS25: =SUM(IF(INDEX(IndicData,ROW(AS25)-6,0) > INDEX(IndicData,COLUMN(AS25)-2,0), WeightsS)) -> 0 | AT25: =SUM(IF(INDEX(IndicData,ROW(AT25)-6,0) > INDEX(IndicData,COLUMN(AT25)-2,0), WeightsS)) -> 0 | AU25: =SUM(IF(INDEX(IndicData,ROW(AU25)-6,0) > INDEX(IndicData,COLUMN(AU25)-2,0), WeightsS)) -> 0 | AV25: =SUM(IF(INDEX(IndicData,ROW(AV25)-6,0) > INDEX(IndicData,COLUMN(AV25)-2,0), WeightsS)) -> 0 | AW25: =SUM(IF(INDEX(IndicData,ROW(AW25)-6,0) > INDEX(IndicData,COLUMN(AW25)-2,0), WeightsS)) -> 0 | AX25: =SUM(IF(INDEX(IndicData,ROW(AX25)-6,0) > INDEX(IndicData,COLUMN(AX25)-2,0), WeightsS)) -> 0 | AY25: =SUM(IF(INDEX(IndicData,ROW(AY25)-6,0) > INDEX(IndicData,COLUMN(AY25)-2,0), WeightsS)) -> 0 | AZ25: =SUM(IF(INDEX(IndicData,ROW(AZ25)-6,0) > INDEX(IndicData,COLUMN(AZ25)-2,0), WeightsS)) -> 0
A26: 20 | B26: Unit20 | C26: =SUM(IF(INDEX(IndicData,ROW(C26)-6,0) > INDEX(IndicData,COLUMN(C26)-2,0), WeightsS)) -> 0.8333333333 | D26: =SUM(IF(INDEX(IndicData,ROW(D26)-6,0) > INDEX(IndicData,COLUMN(D26)-2,0), WeightsS)) -> 0.6666666667 | E26: =SUM(IF(INDEX(IndicData,ROW(E26)-6,0) > INDEX(IndicData,COLUMN(E26)-2,0), WeightsS)) -> 0.6666666667 | F26: =SUM(IF(INDEX(IndicData,ROW(F26)-6,0) > INDEX(IndicData,COLUMN(F26)-2,0), WeightsS)) -> 0.8333333333 | G26: =SUM(IF(INDEX(IndicData,ROW(G26)-6,0) > INDEX(IndicData,COLUMN(G26)-2,0), WeightsS)) -> 0.6666666667 | H26: =SUM(IF(INDEX(IndicData,ROW(H26)-6,0) > INDEX(IndicData,COLUMN(H26)-2,0), WeightsS)) -> 0.6666666667 | I26: =SUM(IF(INDEX(IndicData,ROW(I26)-6,0) > INDEX(IndicData,COLUMN(I26)-2,0), WeightsS)) -> 0.6666666667 | J26: =SUM(IF(INDEX(IndicData,ROW(J26)-6,0) > INDEX(IndicData,COLUMN(J26)-2,0), WeightsS)) -> 0.5 | K26: =SUM(IF(INDEX(IndicData,ROW(K26)-6,0) > INDEX(IndicData,COLUMN(K26)-2,0), WeightsS)) -> 0.5 | L26: =SUM(IF(INDEX(IndicData,ROW(L26)-6,0) > INDEX(IndicData,COLUMN(L26)-2,0), WeightsS)) -> 0.5 | M26: =SUM(IF(INDEX(IndicData,ROW(M26)-6,0) > INDEX(IndicData,COLUMN(M26)-2,0), WeightsS)) -> 0.5 | N26: =SUM(IF(INDEX(IndicData,ROW(N26)-6,0) > INDEX(IndicData,COLUMN(N26)-2,0), WeightsS)) -> 0.5 | O26: =SUM(IF(INDEX(IndicData,ROW(O26)-6,0) > INDEX(IndicData,COLUMN(O26)-2,0), WeightsS)) -> 0.5 | P26: =SUM(IF(INDEX(IndicData,ROW(P26)-6,0) > INDEX(IndicData,COLUMN(P26)-2,0), WeightsS)) -> 0.3333333333 | Q26: =SUM(IF(INDEX(IndicData,ROW(Q26)-6,0) > INDEX(IndicData,COLUMN(Q26)-2,0), WeightsS)) -> 0.6666666667 | R26: =SUM(IF(INDEX(IndicData,ROW(R26)-6,0) > INDEX(IndicData,COLUMN(R26)-2,0), WeightsS)) -> 0.5 | S26: =SUM(IF(INDEX(IndicData,ROW(S26)-6,0) > INDEX(IndicData,COLUMN(S26)-2,0), WeightsS)) -> 0.3333333333 | T26: =SUM(IF(INDEX(IndicData,ROW(T26)-6,0) > INDEX(IndicData,COLUMN(T26)-2,0), WeightsS)) -> 0.3333333333 | U26: =SUM(IF(INDEX(IndicData,ROW(U26)-6,0) > INDEX(IndicData,COLUMN(U26)-2,0), WeightsS)) -> 0.1666666667 | V26: =SUM(IF(INDEX(IndicData,ROW(V26)-6,0) > INDEX(IndicData,COLUMN(V26)-2,0), WeightsS)) -> 0 | W26: =SUM(IF(INDEX(IndicData,ROW(W26)-6,0) > INDEX(IndicData,COLUMN(W26)-2,0), WeightsS)) -> 0.3333333333 | X26: =SUM(IF(INDEX(IndicData,ROW(X26)-6,0) > INDEX(IndicData,COLUMN(X26)-2,0), WeightsS)) -> 0.1666666667 | Y26: =SUM(IF(INDEX(IndicData,ROW(Y26)-6,0) > INDEX(IndicData,COLUMN(Y26)-2,0), WeightsS)) -> 0.1666666667 | Z26: =SUM(IF(INDEX(IndicData,ROW(Z26)-6,0) > INDEX(IndicData,COLUMN(Z26)-2,0), WeightsS)) -> 0.1666666667 | AA26: =SUM(IF(INDEX(IndicData,ROW(AA26)-6,0) > INDEX(IndicData,COLUMN(AA26)-2,0), WeightsS)) -> 0.1666666667 | AB26: =SUM(IF(INDEX(IndicData,ROW(AB26)-6,0) > INDEX(IndicData,COLUMN(AB26)-2,0), WeightsS)) -> 0.1666666667 | AC26: =SUM(IF(INDEX(IndicData,ROW(AC26)-6,0) > INDEX(IndicData,COLUMN(AC26)-2,0), WeightsS)) -> 0.1666666667 | AD26: =SUM(IF(INDEX(IndicData,ROW(AD26)-6,0) > INDEX(IndicData,COLUMN(AD26)-2,0), WeightsS)) -> 0.1666666667 | AE26: =SUM(IF(INDEX(IndicData,ROW(AE26)-6,0) > INDEX(IndicData,COLUMN(AE26)-2,0), WeightsS)) -> 0 | AF26: =SUM(IF(INDEX(IndicData,ROW(AF26)-6,0) > INDEX(IndicData,COLUMN(AF26)-2,0), WeightsS)) -> 0.1666666667 | AG26: =SUM(IF(INDEX(IndicData,ROW(AG26)-6,0) > INDEX(IndicData,COLUMN(AG26)-2,0), WeightsS)) -> 0.1666666667 | AH26: =SUM(IF(INDEX(IndicData,ROW(AH26)-6,0) > INDEX(IndicData,COLUMN(AH26)-2,0), WeightsS)) -> 0.1666666667 | AI26: =SUM(IF(INDEX(IndicData,ROW(AI26)-6,0) > INDEX(IndicData,COLUMN(AI26)-2,0), WeightsS)) -> 0 | AJ26: =SUM(IF(INDEX(IndicData,ROW(AJ26)-6,0) > INDEX(IndicData,COLUMN(AJ26)-2,0), WeightsS)) -> 0.1666666667 | AK26: =SUM(IF(INDEX(IndicData,ROW(AK26)-6,0) > INDEX(IndicData,COLUMN(AK26)-2,0), WeightsS)) -> 0.1666666667 | AL26: =SUM(IF(INDEX(IndicData,ROW(AL26)-6,0) > INDEX(IndicData,COLUMN(AL26)-2,0), WeightsS)) -> 0.1666666667 | AM26: =SUM(IF(INDEX(IndicData,ROW(AM26)-6,0) > INDEX(IndicData,COLUMN(AM26)-2,0), WeightsS)) -> 0.1666666667 | AN26: =SUM(IF(INDEX(IndicData,ROW(AN26)-6,0) > INDEX(IndicData,COLUMN(AN26)-2,0), WeightsS)) -> 0.1666666667 | AO26: =SUM(IF(INDEX(IndicData,ROW(AO26)-6,0) > INDEX(IndicData,COLUMN(AO26)-2,0), WeightsS)) -> 0 | AP26: =SUM(IF(INDEX(IndicData,ROW(AP26)-6,0) > INDEX(IndicData,COLUMN(AP26)-2,0), WeightsS)) -> 0 | AQ26: =SUM(IF(INDEX(IndicData,ROW(AQ26)-6,0) > INDEX(IndicData,COLUMN(AQ26)-2,0), WeightsS)) -> 0 | AR26: =SUM(IF(INDEX(IndicData,ROW(AR26)-6,0) > INDEX(IndicData,COLUMN(AR26)-2,0), WeightsS)) -> 0 | AS26: =SUM(IF(INDEX(IndicData,ROW(AS26)-6,0) > INDEX(IndicData,COLUMN(AS26)-2,0), WeightsS)) -> 0.1666666667 | AT26: =SUM(IF(INDEX(IndicData,ROW(AT26)-6,0) > INDEX(IndicData,COLUMN(AT26)-2,0), WeightsS)) -> 0.1666666667 | AU26: =SUM(IF(INDEX(IndicData,ROW(AU26)-6,0) > INDEX(IndicData,COLUMN(AU26)-2,0), WeightsS)) -> 0 | AV26: =SUM(IF(INDEX(IndicData,ROW(AV26)-6,0) > INDEX(IndicData,COLUMN(AV26)-2,0), WeightsS)) -> 0 | AW26: =SUM(IF(INDEX(IndicData,ROW(AW26)-6,0) > INDEX(IndicData,COLUMN(AW26)-2,0), WeightsS)) -> 0 | AX26: =SUM(IF(INDEX(IndicData,ROW(AX26)-6,0) > INDEX(IndicData,COLUMN(AX26)-2,0), WeightsS)) -> 0.1666666667 | AY26: =SUM(IF(INDEX(IndicData,ROW(AY26)-6,0) > INDEX(IndicData,COLUMN(AY26)-2,0), WeightsS)) -> 0.1666666667 | AZ26: =SUM(IF(INDEX(IndicData,ROW(AZ26)-6,0) > INDEX(IndicData,COLUMN(AZ26)-2,0), WeightsS)) -> 0
A27: 21 | B27: Unit21 | C27: =SUM(IF(INDEX(IndicData,ROW(C27)-6,0) > INDEX(IndicData,COLUMN(C27)-2,0), WeightsS)) -> 0.5 | D27: =SUM(IF(INDEX(IndicData,ROW(D27)-6,0) > INDEX(IndicData,COLUMN(D27)-2,0), WeightsS)) -> 0.5 | E27: =SUM(IF(INDEX(IndicData,ROW(E27)-6,0) > INDEX(IndicData,COLUMN(E27)-2,0), WeightsS)) -> 0.5 | F27: =SUM(IF(INDEX(IndicData,ROW(F27)-6,0) > INDEX(IndicData,COLUMN(F27)-2,0), WeightsS)) -> 0.5 | G27: =SUM(IF(INDEX(IndicData,ROW(G27)-6,0) > INDEX(IndicData,COLUMN(G27)-2,0), WeightsS)) -> 0.5 | H27: =SUM(IF(INDEX(IndicData,ROW(H27)-6,0) > INDEX(IndicData,COLUMN(H27)-2,0), WeightsS)) -> 0.5 | I27: =SUM(IF(INDEX(IndicData,ROW(I27)-6,0) > INDEX(IndicData,COLUMN(I27)-2,0), WeightsS)) -> 0.5 | J27: =SUM(IF(INDEX(IndicData,ROW(J27)-6,0) > INDEX(IndicData,COLUMN(J27)-2,0), WeightsS)) -> 0.5 | K27: =SUM(IF(INDEX(IndicData,ROW(K27)-6,0) > INDEX(IndicData,COLUMN(K27)-2,0), WeightsS)) -> 0.5 | L27: =SUM(IF(INDEX(IndicData,ROW(L27)-6,0) > INDEX(IndicData,COLUMN(L27)-2,0), WeightsS)) -> 0.3333333333 | M27: =SUM(IF(INDEX(IndicData,ROW(M27)-6,0) > INDEX(IndicData,COLUMN(M27)-2,0), WeightsS)) -> 0.3333333333 | N27: =SUM(IF(INDEX(IndicData,ROW(N27)-6,0) > INDEX(IndicData,COLUMN(N27)-2,0), WeightsS)) -> 0.3333333333 | O27: =SUM(IF(INDEX(IndicData,ROW(O27)-6,0) > INDEX(IndicData,COLUMN(O27)-2,0), WeightsS)) -> 0.3333333333 | P27: =SUM(IF(INDEX(IndicData,ROW(P27)-6,0) > INDEX(IndicData,COLUMN(P27)-2,0), WeightsS)) -> 0.1666666667 | Q27: =SUM(IF(INDEX(IndicData,ROW(Q27)-6,0) > INDEX(IndicData,COLUMN(Q27)-2,0), WeightsS)) -> 0.3333333333 | R27: =SUM(IF(INDEX(IndicData,ROW(R27)-6,0) > INDEX(IndicData,COLUMN(R27)-2,0), WeightsS)) -> 0.1666666667 | S27: =SUM(IF(INDEX(IndicData,ROW(S27)-6,0) > INDEX(IndicData,COLUMN(S27)-2,0), WeightsS)) -> 0.1666666667 | T27: =SUM(IF(INDEX(IndicData,ROW(T27)-6,0) > INDEX(IndicData,COLUMN(T27)-2,0), WeightsS)) -> 0.1666666667 | U27: =SUM(IF(INDEX(IndicData,ROW(U27)-6,0) > INDEX(IndicData,COLUMN(U27)-2,0), WeightsS)) -> 0.1666666667 | V27: =SUM(IF(INDEX(IndicData,ROW(V27)-6,0) > INDEX(IndicData,COLUMN(V27)-2,0), WeightsS)) -> 0.1666666667 | W27: =SUM(IF(INDEX(IndicData,ROW(W27)-6,0) > INDEX(IndicData,COLUMN(W27)-2,0), WeightsS)) -> 0 | X27: =SUM(IF(INDEX(IndicData,ROW(X27)-6,0) > INDEX(IndicData,COLUMN(X27)-2,0), WeightsS)) -> 0 | Y27: =SUM(IF(INDEX(IndicData,ROW(Y27)-6,0) > INDEX(IndicData,COLUMN(Y27)-2,0), WeightsS)) -> 0 | Z27: =SUM(IF(INDEX(IndicData,ROW(Z27)-6,0) > INDEX(IndicData,COLUMN(Z27)-2,0), WeightsS)) -> 0 | AA27: =SUM(IF(INDEX(IndicData,ROW(AA27)-6,0) > INDEX(IndicData,COLUMN(AA27)-2,0), WeightsS)) -> 0 | AB27: =SUM(IF(INDEX(IndicData,ROW(AB27)-6,0) > INDEX(IndicData,COLUMN(AB27)-2,0), WeightsS)) -> 0 | AC27: =SUM(IF(INDEX(IndicData,ROW(AC27)-6,0) > INDEX(IndicData,COLUMN(AC27)-2,0), WeightsS)) -> 0 | AD27: =SUM(IF(INDEX(IndicData,ROW(AD27)-6,0) > INDEX(IndicData,COLUMN(AD27)-2,0), WeightsS)) -> 0 | AE27: =SUM(IF(INDEX(IndicData,ROW(AE27)-6,0) > INDEX(IndicData,COLUMN(AE27)-2,0), WeightsS)) -> 0 | AF27: =SUM(IF(INDEX(IndicData,ROW(AF27)-6,0) > INDEX(IndicData,COLUMN(AF27)-2,0), WeightsS)) -> 0 | AG27: =SUM(IF(INDEX(IndicData,ROW(AG27)-6,0) > INDEX(IndicData,COLUMN(AG27)-2,0), WeightsS)) -> 0 | AH27: =SUM(IF(INDEX(IndicData,ROW(AH27)-6,0) > INDEX(IndicData,COLUMN(AH27)-2,0), WeightsS)) -> 0 | AI27: =SUM(IF(INDEX(IndicData,ROW(AI27)-6,0) > INDEX(IndicData,COLUMN(AI27)-2,0), WeightsS)) -> 0 | AJ27: =SUM(IF(INDEX(IndicData,ROW(AJ27)-6,0) > INDEX(IndicData,COLUMN(AJ27)-2,0), WeightsS)) -> 0.1666666667 | AK27: =SUM(IF(INDEX(IndicData,ROW(AK27)-6,0) > INDEX(IndicData,COLUMN(AK27)-2,0), WeightsS)) -> 0.1666666667 | AL27: =SUM(IF(INDEX(IndicData,ROW(AL27)-6,0) > INDEX(IndicData,COLUMN(AL27)-2,0), WeightsS)) -> 0.1666666667 | AM27: =SUM(IF(INDEX(IndicData,ROW(AM27)-6,0) > INDEX(IndicData,COLUMN(AM27)-2,0), WeightsS)) -> 0.1666666667 | AN27: =SUM(IF(INDEX(IndicData,ROW(AN27)-6,0) > INDEX(IndicData,COLUMN(AN27)-2,0), WeightsS)) -> 0 | AO27: =SUM(IF(INDEX(IndicData,ROW(AO27)-6,0) > INDEX(IndicData,COLUMN(AO27)-2,0), WeightsS)) -> 0 | AP27: =SUM(IF(INDEX(IndicData,ROW(AP27)-6,0) > INDEX(IndicData,COLUMN(AP27)-2,0), WeightsS)) -> 0 | AQ27: =SUM(IF(INDEX(IndicData,ROW(AQ27)-6,0) > INDEX(IndicData,COLUMN(AQ27)-2,0), WeightsS)) -> 0 | AR27: =SUM(IF(INDEX(IndicData,ROW(AR27)-6,0) > INDEX(IndicData,COLUMN(AR27)-2,0), WeightsS)) -> 0 | AS27: =SUM(IF(INDEX(IndicData,ROW(AS27)-6,0) > INDEX(IndicData,COLUMN(AS27)-2,0), WeightsS)) -> 0 | AT27: =SUM(IF(INDEX(IndicData,ROW(AT27)-6,0) > INDEX(IndicData,COLUMN(AT27)-2,0), WeightsS)) -> 0 | AU27: =SUM(IF(INDEX(IndicData,ROW(AU27)-6,0) > INDEX(IndicData,COLUMN(AU27)-2,0), WeightsS)) -> 0 | AV27: =SUM(IF(INDEX(IndicData,ROW(AV27)-6,0) > INDEX(IndicData,COLUMN(AV27)-2,0), WeightsS)) -> 0 | AW27: =SUM(IF(INDEX(IndicData,ROW(AW27)-6,0) > INDEX(IndicData,COLUMN(AW27)-2,0), WeightsS)) -> 0 | AX27: =SUM(IF(INDEX(IndicData,ROW(AX27)-6,0) > INDEX(IndicData,COLUMN(AX27)-2,0), WeightsS)) -> 0 | AY27: =SUM(IF(INDEX(IndicData,ROW(AY27)-6,0) > INDEX(IndicData,COLUMN(AY27)-2,0), WeightsS)) -> 0 | AZ27: =SUM(IF(INDEX(IndicData,ROW(AZ27)-6,0) > INDEX(IndicData,COLUMN(AZ27)-2,0), WeightsS)) -> 0
A28: 22 | B28: Unit22 | C28: =SUM(IF(INDEX(IndicData,ROW(C28)-6,0) > INDEX(IndicData,COLUMN(C28)-2,0), WeightsS)) -> 0.8333333333 | D28: =SUM(IF(INDEX(IndicData,ROW(D28)-6,0) > INDEX(IndicData,COLUMN(D28)-2,0), WeightsS)) -> 0.8333333333 | E28: =SUM(IF(INDEX(IndicData,ROW(E28)-6,0) > INDEX(IndicData,COLUMN(E28)-2,0), WeightsS)) -> 0.6666666667 | F28: =SUM(IF(INDEX(IndicData,ROW(F28)-6,0) > INDEX(IndicData,COLUMN(F28)-2,0), WeightsS)) -> 0.6666666667 | G28: =SUM(IF(INDEX(IndicData,ROW(G28)-6,0) > INDEX(IndicData,COLUMN(G28)-2,0), WeightsS)) -> 0.6666666667 | H28: =SUM(IF(INDEX(IndicData,ROW(H28)-6,0) > INDEX(IndicData,COLUMN(H28)-2,0), WeightsS)) -> 0.6666666667 | I28: =SUM(IF(INDEX(IndicData,ROW(I28)-6,0) > INDEX(IndicData,COLUMN(I28)-2,0), WeightsS)) -> 0.6666666667 | J28: =SUM(IF(INDEX(IndicData,ROW(J28)-6,0) > INDEX(IndicData,COLUMN(J28)-2,0), WeightsS)) -> 0.6666666667 | K28: =SUM(IF(INDEX(IndicData,ROW(K28)-6,0) > INDEX(IndicData,COLUMN(K28)-2,0), WeightsS)) -> 0.6666666667 | L28: =SUM(IF(INDEX(IndicData,ROW(L28)-6,0) > INDEX(IndicData,COLUMN(L28)-2,0), WeightsS)) -> 0.6666666667 | M28: =SUM(IF(INDEX(IndicData,ROW(M28)-6,0) > INDEX(IndicData,COLUMN(M28)-2,0), WeightsS)) -> 0.5 | N28: =SUM(IF(INDEX(IndicData,ROW(N28)-6,0) > INDEX(IndicData,COLUMN(N28)-2,0), WeightsS)) -> 0.5 | O28: =SUM(IF(INDEX(IndicData,ROW(O28)-6,0) > INDEX(IndicData,COLUMN(O28)-2,0), WeightsS)) -> 0.5 | P28: =SUM(IF(INDEX(IndicData,ROW(P28)-6,0) > INDEX(IndicData,COLUMN(P28)-2,0), WeightsS)) -> 0.3333333333 | Q28: =SUM(IF(INDEX(IndicData,ROW(Q28)-6,0) > INDEX(IndicData,COLUMN(Q28)-2,0), WeightsS)) -> 0.6666666667 | R28: =SUM(IF(INDEX(IndicData,ROW(R28)-6,0) > INDEX(IndicData,COLUMN(R28)-2,0), WeightsS)) -> 0.5 | S28: =SUM(IF(INDEX(IndicData,ROW(S28)-6,0) > INDEX(IndicData,COLUMN(S28)-2,0), WeightsS)) -> 0.1666666667 | T28: =SUM(IF(INDEX(IndicData,ROW(T28)-6,0) > INDEX(IndicData,COLUMN(T28)-2,0), WeightsS)) -> 0.5 | U28: =SUM(IF(INDEX(IndicData,ROW(U28)-6,0) > INDEX(IndicData,COLUMN(U28)-2,0), WeightsS)) -> 0.3333333333 | V28: =SUM(IF(INDEX(IndicData,ROW(V28)-6,0) > INDEX(IndicData,COLUMN(V28)-2,0), WeightsS)) -> 0.3333333333 | W28: =SUM(IF(INDEX(IndicData,ROW(W28)-6,0) > INDEX(IndicData,COLUMN(W28)-2,0), WeightsS)) -> 0.3333333333 | X28: =SUM(IF(INDEX(IndicData,ROW(X28)-6,0) > INDEX(IndicData,COLUMN(X28)-2,0), WeightsS)) -> 0 | Y28: =SUM(IF(INDEX(IndicData,ROW(Y28)-6,0) > INDEX(IndicData,COLUMN(Y28)-2,0), WeightsS)) -> 0 | Z28: =SUM(IF(INDEX(IndicData,ROW(Z28)-6,0) > INDEX(IndicData,COLUMN(Z28)-2,0), WeightsS)) -> 0 | AA28: =SUM(IF(INDEX(IndicData,ROW(AA28)-6,0) > INDEX(IndicData,COLUMN(AA28)-2,0), WeightsS)) -> 0.1666666667 | AB28: =SUM(IF(INDEX(IndicData,ROW(AB28)-6,0) > INDEX(IndicData,COLUMN(AB28)-2,0), WeightsS)) -> 0.3333333333 | AC28: =SUM(IF(INDEX(IndicData,ROW(AC28)-6,0) > INDEX(IndicData,COLUMN(AC28)-2,0), WeightsS)) -> 0.1666666667 | AD28: =SUM(IF(INDEX(IndicData,ROW(AD28)-6,0) > INDEX(IndicData,COLUMN(AD28)-2,0), WeightsS)) -> 0 | AE28: =SUM(IF(INDEX(IndicData,ROW(AE28)-6,0) > INDEX(IndicData,COLUMN(AE28)-2,0), WeightsS)) -> 0 | AF28: =SUM(IF(INDEX(IndicData,ROW(AF28)-6,0) > INDEX(IndicData,COLUMN(AF28)-2,0), WeightsS)) -> 0.1666666667 | AG28: =SUM(IF(INDEX(IndicData,ROW(AG28)-6,0) > INDEX(IndicData,COLUMN(AG28)-2,0), WeightsS)) -> 0 | AH28: =SUM(IF(INDEX(IndicData,ROW(AH28)-6,0) > INDEX(IndicData,COLUMN(AH28)-2,0), WeightsS)) -> 0 | AI28: =SUM(IF(INDEX(IndicData,ROW(AI28)-6,0) > INDEX(IndicData,COLUMN(AI28)-2,0), WeightsS)) -> 0 | AJ28: =SUM(IF(INDEX(IndicData,ROW(AJ28)-6,0) > INDEX(IndicData,COLUMN(AJ28)-2,0), WeightsS)) -> 0.1666666667 | AK28: =SUM(IF(INDEX(IndicData,ROW(AK28)-6,0) > INDEX(IndicData,COLUMN(AK28)-2,0), WeightsS)) -> 0.1666666667 | AL28: =SUM(IF(INDEX(IndicData,ROW(AL28)-6,0) > INDEX(IndicData,COLUMN(AL28)-2,0), WeightsS)) -> 0.1666666667 | AM28: =SUM(IF(INDEX(IndicData,ROW(AM28)-6,0) > INDEX(IndicData,COLUMN(AM28)-2,0), WeightsS)) -> 0.1666666667 | AN28: =SUM(IF(INDEX(IndicData,ROW(AN28)-6,0) > INDEX(IndicData,COLUMN(AN28)-2,0), WeightsS)) -> 0 | AO28: =SUM(IF(INDEX(IndicData,ROW(AO28)-6,0) > INDEX(IndicData,COLUMN(AO28)-2,0), WeightsS)) -> 0 | AP28: =SUM(IF(INDEX(IndicData,ROW(AP28)-6,0) > INDEX(IndicData,COLUMN(AP28)-2,0), WeightsS)) -> 0 | AQ28: =SUM(IF(INDEX(IndicData,ROW(AQ28)-6,0) > INDEX(IndicData,COLUMN(AQ28)-2,0), WeightsS)) -> 0 | AR28: =SUM(IF(INDEX(IndicData,ROW(AR28)-6,0) > INDEX(IndicData,COLUMN(AR28)-2,0), WeightsS)) -> 0 | AS28: =SUM(IF(INDEX(IndicData,ROW(AS28)-6,0) > INDEX(IndicData,COLUMN(AS28)-2,0), WeightsS)) -> 0 | AT28: =SUM(IF(INDEX(IndicData,ROW(AT28)-6,0) > INDEX(IndicData,COLUMN(AT28)-2,0), WeightsS)) -> 0 | AU28: =SUM(IF(INDEX(IndicData,ROW(AU28)-6,0) > INDEX(IndicData,COLUMN(AU28)-2,0), WeightsS)) -> 0 | AV28: =SUM(IF(INDEX(IndicData,ROW(AV28)-6,0) > INDEX(IndicData,COLUMN(AV28)-2,0), WeightsS)) -> 0 | AW28: =SUM(IF(INDEX(IndicData,ROW(AW28)-6,0) > INDEX(IndicData,COLUMN(AW28)-2,0), WeightsS)) -> 0 | AX28: =SUM(IF(INDEX(IndicData,ROW(AX28)-6,0) > INDEX(IndicData,COLUMN(AX28)-2,0), WeightsS)) -> 0 | AY28: =SUM(IF(INDEX(IndicData,ROW(AY28)-6,0) > INDEX(IndicData,COLUMN(AY28)-2,0), WeightsS)) -> 0 | AZ28: =SUM(IF(INDEX(IndicData,ROW(AZ28)-6,0) > INDEX(IndicData,COLUMN(AZ28)-2,0), WeightsS)) -> 0
A29: 23 | B29: Unit23 | C29: =SUM(IF(INDEX(IndicData,ROW(C29)-6,0) > INDEX(IndicData,COLUMN(C29)-2,0), WeightsS)) -> 0.8333333333 | D29: =SUM(IF(INDEX(IndicData,ROW(D29)-6,0) > INDEX(IndicData,COLUMN(D29)-2,0), WeightsS)) -> 0.8333333333 | E29: =SUM(IF(INDEX(IndicData,ROW(E29)-6,0) > INDEX(IndicData,COLUMN(E29)-2,0), WeightsS)) -> 0.6666666667 | F29: =SUM(IF(INDEX(IndicData,ROW(F29)-6,0) > INDEX(IndicData,COLUMN(F29)-2,0), WeightsS)) -> 0.6666666667 | G29: =SUM(IF(INDEX(IndicData,ROW(G29)-6,0) > INDEX(IndicData,COLUMN(G29)-2,0), WeightsS)) -> 0.6666666667 | H29: =SUM(IF(INDEX(IndicData,ROW(H29)-6,0) > INDEX(IndicData,COLUMN(H29)-2,0), WeightsS)) -> 0.6666666667 | I29: =SUM(IF(INDEX(IndicData,ROW(I29)-6,0) > INDEX(IndicData,COLUMN(I29)-2,0), WeightsS)) -> 0.6666666667 | J29: =SUM(IF(INDEX(IndicData,ROW(J29)-6,0) > INDEX(IndicData,COLUMN(J29)-2,0), WeightsS)) -> 0.6666666667 | K29: =SUM(IF(INDEX(IndicData,ROW(K29)-6,0) > INDEX(IndicData,COLUMN(K29)-2,0), WeightsS)) -> 0.6666666667 | L29: =SUM(IF(INDEX(IndicData,ROW(L29)-6,0) > INDEX(IndicData,COLUMN(L29)-2,0), WeightsS)) -> 0.6666666667 | M29: =SUM(IF(INDEX(IndicData,ROW(M29)-6,0) > INDEX(IndicData,COLUMN(M29)-2,0), WeightsS)) -> 0.5 | N29: =SUM(IF(INDEX(IndicData,ROW(N29)-6,0) > INDEX(IndicData,COLUMN(N29)-2,0), WeightsS)) -> 0.5 | O29: =SUM(IF(INDEX(IndicData,ROW(O29)-6,0) > INDEX(IndicData,COLUMN(O29)-2,0), WeightsS)) -> 0.5 | P29: =SUM(IF(INDEX(IndicData,ROW(P29)-6,0) > INDEX(IndicData,COLUMN(P29)-2,0), WeightsS)) -> 0.3333333333 | Q29: =SUM(IF(INDEX(IndicData,ROW(Q29)-6,0) > INDEX(IndicData,COLUMN(Q29)-2,0), WeightsS)) -> 0.6666666667 | R29: =SUM(IF(INDEX(IndicData,ROW(R29)-6,0) > INDEX(IndicData,COLUMN(R29)-2,0), WeightsS)) -> 0.5 | S29: =SUM(IF(INDEX(IndicData,ROW(S29)-6,0) > INDEX(IndicData,COLUMN(S29)-2,0), WeightsS)) -> 0.1666666667 | T29: =SUM(IF(INDEX(IndicData,ROW(T29)-6,0) > INDEX(IndicData,COLUMN(T29)-2,0), WeightsS)) -> 0.5 | U29: =SUM(IF(INDEX(IndicData,ROW(U29)-6,0) > INDEX(IndicData,COLUMN(U29)-2,0), WeightsS)) -> 0.3333333333 | V29: =SUM(IF(INDEX(IndicData,ROW(V29)-6,0) > INDEX(IndicData,COLUMN(V29)-2,0), WeightsS)) -> 0.3333333333 | W29: =SUM(IF(INDEX(IndicData,ROW(W29)-6,0) > INDEX(IndicData,COLUMN(W29)-2,0), WeightsS)) -> 0.3333333333 | X29: =SUM(IF(INDEX(IndicData,ROW(X29)-6,0) > INDEX(IndicData,COLUMN(X29)-2,0), WeightsS)) -> 0 | Y29: =SUM(IF(INDEX(IndicData,ROW(Y29)-6,0) > INDEX(IndicData,COLUMN(Y29)-2,0), WeightsS)) -> 0 | Z29: =SUM(IF(INDEX(IndicData,ROW(Z29)-6,0) > INDEX(IndicData,COLUMN(Z29)-2,0), WeightsS)) -> 0 | AA29: =SUM(IF(INDEX(IndicData,ROW(AA29)-6,0) > INDEX(IndicData,COLUMN(AA29)-2,0), WeightsS)) -> 0.1666666667 | AB29: =SUM(IF(INDEX(IndicData,ROW(AB29)-6,0) > INDEX(IndicData,COLUMN(AB29)-2,0), WeightsS)) -> 0.3333333333 | AC29: =SUM(IF(INDEX(IndicData,ROW(AC29)-6,0) > INDEX(IndicData,COLUMN(AC29)-2,0), WeightsS)) -> 0.1666666667 | AD29: =SUM(IF(INDEX(IndicData,ROW(AD29)-6,0) > INDEX(IndicData,COLUMN(AD29)-2,0), WeightsS)) -> 0 | AE29: =SUM(IF(INDEX(IndicData,ROW(AE29)-6,0) > INDEX(IndicData,COLUMN(AE29)-2,0), WeightsS)) -> 0 | AF29: =SUM(IF(INDEX(IndicData,ROW(AF29)-6,0) > INDEX(IndicData,COLUMN(AF29)-2,0), WeightsS)) -> 0.1666666667 | AG29: =SUM(IF(INDEX(IndicData,ROW(AG29)-6,0) > INDEX(IndicData,COLUMN(AG29)-2,0), WeightsS)) -> 0 | AH29: =SUM(IF(INDEX(IndicData,ROW(AH29)-6,0) > INDEX(IndicData,COLUMN(AH29)-2,0), WeightsS)) -> 0 | AI29: =SUM(IF(INDEX(IndicData,ROW(AI29)-6,0) > INDEX(IndicData,COLUMN(AI29)-2,0), WeightsS)) -> 0 | AJ29: =SUM(IF(INDEX(IndicData,ROW(AJ29)-6,0) > INDEX(IndicData,COLUMN(AJ29)-2,0), WeightsS)) -> 0.1666666667 | AK29: =SUM(IF(INDEX(IndicData,ROW(AK29)-6,0) > INDEX(IndicData,COLUMN(AK29)-2,0), WeightsS)) -> 0.1666666667 | AL29: =SUM(IF(INDEX(IndicData,ROW(AL29)-6,0) > INDEX(IndicData,COLUMN(AL29)-2,0), WeightsS)) -> 0.1666666667 | AM29: =SUM(IF(INDEX(IndicData,ROW(AM29)-6,0) > INDEX(IndicData,COLUMN(AM29)-2,0), WeightsS)) -> 0.1666666667 | AN29: =SUM(IF(INDEX(IndicData,ROW(AN29)-6,0) > INDEX(IndicData,COLUMN(AN29)-2,0), WeightsS)) -> 0 | AO29: =SUM(IF(INDEX(IndicData,ROW(AO29)-6,0) > INDEX(IndicData,COLUMN(AO29)-2,0), WeightsS)) -> 0 | AP29: =SUM(IF(INDEX(IndicData,ROW(AP29)-6,0) > INDEX(IndicData,COLUMN(AP29)-2,0), WeightsS)) -> 0 | AQ29: =SUM(IF(INDEX(IndicData,ROW(AQ29)-6,0) > INDEX(IndicData,COLUMN(AQ29)-2,0), WeightsS)) -> 0 | AR29: =SUM(IF(INDEX(IndicData,ROW(AR29)-6,0) > INDEX(IndicData,COLUMN(AR29)-2,0), WeightsS)) -> 0 | AS29: =SUM(IF(INDEX(IndicData,ROW(AS29)-6,0) > INDEX(IndicData,COLUMN(AS29)-2,0), WeightsS)) -> 0 | AT29: =SUM(IF(INDEX(IndicData,ROW(AT29)-6,0) > INDEX(IndicData,COLUMN(AT29)-2,0), WeightsS)) -> 0 | AU29: =SUM(IF(INDEX(IndicData,ROW(AU29)-6,0) > INDEX(IndicData,COLUMN(AU29)-2,0), WeightsS)) -> 0 | AV29: =SUM(IF(INDEX(IndicData,ROW(AV29)-6,0) > INDEX(IndicData,COLUMN(AV29)-2,0), WeightsS)) -> 0 | AW29: =SUM(IF(INDEX(IndicData,ROW(AW29)-6,0) > INDEX(IndicData,COLUMN(AW29)-2,0), WeightsS)) -> 0 | AX29: =SUM(IF(INDEX(IndicData,ROW(AX29)-6,0) > INDEX(IndicData,COLUMN(AX29)-2,0), WeightsS)) -> 0 | AY29: =SUM(IF(INDEX(IndicData,ROW(AY29)-6,0) > INDEX(IndicData,COLUMN(AY29)-2,0), WeightsS)) -> 0 | AZ29: =SUM(IF(INDEX(IndicData,ROW(AZ29)-6,0) > INDEX(IndicData,COLUMN(AZ29)-2,0), WeightsS)) -> 0
A30: 24 | B30: Unit24 | C30: =SUM(IF(INDEX(IndicData,ROW(C30)-6,0) > INDEX(IndicData,COLUMN(C30)-2,0), WeightsS)) -> 0.8333333333 | D30: =SUM(IF(INDEX(IndicData,ROW(D30)-6,0) > INDEX(IndicData,COLUMN(D30)-2,0), WeightsS)) -> 0.8333333333 | E30: =SUM(IF(INDEX(IndicData,ROW(E30)-6,0) > INDEX(IndicData,COLUMN(E30)-2,0), WeightsS)) -> 0.8333333333 | F30: =SUM(IF(INDEX(IndicData,ROW(F30)-6,0) > INDEX(IndicData,COLUMN(F30)-2,0), WeightsS)) -> 0.6666666667 | G30: =SUM(IF(INDEX(IndicData,ROW(G30)-6,0) > INDEX(IndicData,COLUMN(G30)-2,0), WeightsS)) -> 0.6666666667 | H30: =SUM(IF(INDEX(IndicData,ROW(H30)-6,0) > INDEX(IndicData,COLUMN(H30)-2,0), WeightsS)) -> 0.6666666667 | I30: =SUM(IF(INDEX(IndicData,ROW(I30)-6,0) > INDEX(IndicData,COLUMN(I30)-2,0), WeightsS)) -> 0.6666666667 | J30: =SUM(IF(INDEX(IndicData,ROW(J30)-6,0) > INDEX(IndicData,COLUMN(J30)-2,0), WeightsS)) -> 0.8333333333 | K30: =SUM(IF(INDEX(IndicData,ROW(K30)-6,0) > INDEX(IndicData,COLUMN(K30)-2,0), WeightsS)) -> 0.6666666667 | L30: =SUM(IF(INDEX(IndicData,ROW(L30)-6,0) > INDEX(IndicData,COLUMN(L30)-2,0), WeightsS)) -> 0.6666666667 | M30: =SUM(IF(INDEX(IndicData,ROW(M30)-6,0) > INDEX(IndicData,COLUMN(M30)-2,0), WeightsS)) -> 0.5 | N30: =SUM(IF(INDEX(IndicData,ROW(N30)-6,0) > INDEX(IndicData,COLUMN(N30)-2,0), WeightsS)) -> 0.5 | O30: =SUM(IF(INDEX(IndicData,ROW(O30)-6,0) > INDEX(IndicData,COLUMN(O30)-2,0), WeightsS)) -> 0.5 | P30: =SUM(IF(INDEX(IndicData,ROW(P30)-6,0) > INDEX(IndicData,COLUMN(P30)-2,0), WeightsS)) -> 0.3333333333 | Q30: =SUM(IF(INDEX(IndicData,ROW(Q30)-6,0) > INDEX(IndicData,COLUMN(Q30)-2,0), WeightsS)) -> 0.6666666667 | R30: =SUM(IF(INDEX(IndicData,ROW(R30)-6,0) > INDEX(IndicData,COLUMN(R30)-2,0), WeightsS)) -> 0.5 | S30: =SUM(IF(INDEX(IndicData,ROW(S30)-6,0) > INDEX(IndicData,COLUMN(S30)-2,0), WeightsS)) -> 0.3333333333 | T30: =SUM(IF(INDEX(IndicData,ROW(T30)-6,0) > INDEX(IndicData,COLUMN(T30)-2,0), WeightsS)) -> 0.5 | U30: =SUM(IF(INDEX(IndicData,ROW(U30)-6,0) > INDEX(IndicData,COLUMN(U30)-2,0), WeightsS)) -> 0.5 | V30: =SUM(IF(INDEX(IndicData,ROW(V30)-6,0) > INDEX(IndicData,COLUMN(V30)-2,0), WeightsS)) -> 0.3333333333 | W30: =SUM(IF(INDEX(IndicData,ROW(W30)-6,0) > INDEX(IndicData,COLUMN(W30)-2,0), WeightsS)) -> 0.3333333333 | X30: =SUM(IF(INDEX(IndicData,ROW(X30)-6,0) > INDEX(IndicData,COLUMN(X30)-2,0), WeightsS)) -> 0.1666666667 | Y30: =SUM(IF(INDEX(IndicData,ROW(Y30)-6,0) > INDEX(IndicData,COLUMN(Y30)-2,0), WeightsS)) -> 0.1666666667 | Z30: =SUM(IF(INDEX(IndicData,ROW(Z30)-6,0) > INDEX(IndicData,COLUMN(Z30)-2,0), WeightsS)) -> 0 | AA30: =SUM(IF(INDEX(IndicData,ROW(AA30)-6,0) > INDEX(IndicData,COLUMN(AA30)-2,0), WeightsS)) -> 0.1666666667 | AB30: =SUM(IF(INDEX(IndicData,ROW(AB30)-6,0) > INDEX(IndicData,COLUMN(AB30)-2,0), WeightsS)) -> 0.3333333333 | AC30: =SUM(IF(INDEX(IndicData,ROW(AC30)-6,0) > INDEX(IndicData,COLUMN(AC30)-2,0), WeightsS)) -> 0.3333333333 | AD30: =SUM(IF(INDEX(IndicData,ROW(AD30)-6,0) > INDEX(IndicData,COLUMN(AD30)-2,0), WeightsS)) -> 0.1666666667 | AE30: =SUM(IF(INDEX(IndicData,ROW(AE30)-6,0) > INDEX(IndicData,COLUMN(AE30)-2,0), WeightsS)) -> 0.1666666667 | AF30: =SUM(IF(INDEX(IndicData,ROW(AF30)-6,0) > INDEX(IndicData,COLUMN(AF30)-2,0), WeightsS)) -> 0.1666666667 | AG30: =SUM(IF(INDEX(IndicData,ROW(AG30)-6,0) > INDEX(IndicData,COLUMN(AG30)-2,0), WeightsS)) -> 0 | AH30: =SUM(IF(INDEX(IndicData,ROW(AH30)-6,0) > INDEX(IndicData,COLUMN(AH30)-2,0), WeightsS)) -> 0.1666666667 | AI30: =SUM(IF(INDEX(IndicData,ROW(AI30)-6,0) > INDEX(IndicData,COLUMN(AI30)-2,0), WeightsS)) -> 0 | AJ30: =SUM(IF(INDEX(IndicData,ROW(AJ30)-6,0) > INDEX(IndicData,COLUMN(AJ30)-2,0), WeightsS)) -> 0.1666666667 | AK30: =SUM(IF(INDEX(IndicData,ROW(AK30)-6,0) > INDEX(IndicData,COLUMN(AK30)-2,0), WeightsS)) -> 0.1666666667 | AL30: =SUM(IF(INDEX(IndicData,ROW(AL30)-6,0) > INDEX(IndicData,COLUMN(AL30)-2,0), WeightsS)) -> 0.1666666667 | AM30: =SUM(IF(INDEX(IndicData,ROW(AM30)-6,0) > INDEX(IndicData,COLUMN(AM30)-2,0), WeightsS)) -> 0.1666666667 | AN30: =SUM(IF(INDEX(IndicData,ROW(AN30)-6,0) > INDEX(IndicData,COLUMN(AN30)-2,0), WeightsS)) -> 0 | AO30: =SUM(IF(INDEX(IndicData,ROW(AO30)-6,0) > INDEX(IndicData,COLUMN(AO30)-2,0), WeightsS)) -> 0 | AP30: =SUM(IF(INDEX(IndicData,ROW(AP30)-6,0) > INDEX(IndicData,COLUMN(AP30)-2,0), WeightsS)) -> 0 | AQ30: =SUM(IF(INDEX(IndicData,ROW(AQ30)-6,0) > INDEX(IndicData,COLUMN(AQ30)-2,0), WeightsS)) -> 0 | AR30: =SUM(IF(INDEX(IndicData,ROW(AR30)-6,0) > INDEX(IndicData,COLUMN(AR30)-2,0), WeightsS)) -> 0 | AS30: =SUM(IF(INDEX(IndicData,ROW(AS30)-6,0) > INDEX(IndicData,COLUMN(AS30)-2,0), WeightsS)) -> 0.1666666667 | AT30: =SUM(IF(INDEX(IndicData,ROW(AT30)-6,0) > INDEX(IndicData,COLUMN(AT30)-2,0), WeightsS)) -> 0.1666666667 | AU30: =SUM(IF(INDEX(IndicData,ROW(AU30)-6,0) > INDEX(IndicData,COLUMN(AU30)-2,0), WeightsS)) -> 0 | AV30: =SUM(IF(INDEX(IndicData,ROW(AV30)-6,0) > INDEX(IndicData,COLUMN(AV30)-2,0), WeightsS)) -> 0 | AW30: =SUM(IF(INDEX(IndicData,ROW(AW30)-6,0) > INDEX(IndicData,COLUMN(AW30)-2,0), WeightsS)) -> 0 | AX30: =SUM(IF(INDEX(IndicData,ROW(AX30)-6,0) > INDEX(IndicData,COLUMN(AX30)-2,0), WeightsS)) -> 0 | AY30: =SUM(IF(INDEX(IndicData,ROW(AY30)-6,0) > INDEX(IndicData,COLUMN(AY30)-2,0), WeightsS)) -> 0 | AZ30: =SUM(IF(INDEX(IndicData,ROW(AZ30)-6,0) > INDEX(IndicData,COLUMN(AZ30)-2,0), WeightsS)) -> 0
A31: 25 | B31: Unit25 | C31: =SUM(IF(INDEX(IndicData,ROW(C31)-6,0) > INDEX(IndicData,COLUMN(C31)-2,0), WeightsS)) -> 0.8333333333 | D31: =SUM(IF(INDEX(IndicData,ROW(D31)-6,0) > INDEX(IndicData,COLUMN(D31)-2,0), WeightsS)) -> 0.6666666667 | E31: =SUM(IF(INDEX(IndicData,ROW(E31)-6,0) > INDEX(IndicData,COLUMN(E31)-2,0), WeightsS)) -> 0.6666666667 | F31: =SUM(IF(INDEX(IndicData,ROW(F31)-6,0) > INDEX(IndicData,COLUMN(F31)-2,0), WeightsS)) -> 0.8333333333 | G31: =SUM(IF(INDEX(IndicData,ROW(G31)-6,0) > INDEX(IndicData,COLUMN(G31)-2,0), WeightsS)) -> 0.6666666667 | H31: =SUM(IF(INDEX(IndicData,ROW(H31)-6,0) > INDEX(IndicData,COLUMN(H31)-2,0), WeightsS)) -> 0.6666666667 | I31: =SUM(IF(INDEX(IndicData,ROW(I31)-6,0) > INDEX(IndicData,COLUMN(I31)-2,0), WeightsS)) -> 0.6666666667 | J31: =SUM(IF(INDEX(IndicData,ROW(J31)-6,0) > INDEX(IndicData,COLUMN(J31)-2,0), WeightsS)) -> 0.6666666667 | K31: =SUM(IF(INDEX(IndicData,ROW(K31)-6,0) > INDEX(IndicData,COLUMN(K31)-2,0), WeightsS)) -> 0.6666666667 | L31: =SUM(IF(INDEX(IndicData,ROW(L31)-6,0) > INDEX(IndicData,COLUMN(L31)-2,0), WeightsS)) -> 0.5 | M31: =SUM(IF(INDEX(IndicData,ROW(M31)-6,0) > INDEX(IndicData,COLUMN(M31)-2,0), WeightsS)) -> 0.5 | N31: =SUM(IF(INDEX(IndicData,ROW(N31)-6,0) > INDEX(IndicData,COLUMN(N31)-2,0), WeightsS)) -> 0.5 | O31: =SUM(IF(INDEX(IndicData,ROW(O31)-6,0) > INDEX(IndicData,COLUMN(O31)-2,0), WeightsS)) -> 0.5 | P31: =SUM(IF(INDEX(IndicData,ROW(P31)-6,0) > INDEX(IndicData,COLUMN(P31)-2,0), WeightsS)) -> 0.5 | Q31: =SUM(IF(INDEX(IndicData,ROW(Q31)-6,0) > INDEX(IndicData,COLUMN(Q31)-2,0), WeightsS)) -> 0.8333333333 | R31: =SUM(IF(INDEX(IndicData,ROW(R31)-6,0) > INDEX(IndicData,COLUMN(R31)-2,0), WeightsS)) -> 0.6666666667 | S31: =SUM(IF(INDEX(IndicData,ROW(S31)-6,0) > INDEX(IndicData,COLUMN(S31)-2,0), WeightsS)) -> 0.5 | T31: =SUM(IF(INDEX(IndicData,ROW(T31)-6,0) > INDEX(IndicData,COLUMN(T31)-2,0), WeightsS)) -> 0.3333333333 | U31: =SUM(IF(INDEX(IndicData,ROW(U31)-6,0) > INDEX(IndicData,COLUMN(U31)-2,0), WeightsS)) -> 0.5 | V31: =SUM(IF(INDEX(IndicData,ROW(V31)-6,0) > INDEX(IndicData,COLUMN(V31)-2,0), WeightsS)) -> 0.3333333333 | W31: =SUM(IF(INDEX(IndicData,ROW(W31)-6,0) > INDEX(IndicData,COLUMN(W31)-2,0), WeightsS)) -> 0.5 | X31: =SUM(IF(INDEX(IndicData,ROW(X31)-6,0) > INDEX(IndicData,COLUMN(X31)-2,0), WeightsS)) -> 0.3333333333 | Y31: =SUM(IF(INDEX(IndicData,ROW(Y31)-6,0) > INDEX(IndicData,COLUMN(Y31)-2,0), WeightsS)) -> 0.3333333333 | Z31: =SUM(IF(INDEX(IndicData,ROW(Z31)-6,0) > INDEX(IndicData,COLUMN(Z31)-2,0), WeightsS)) -> 0.3333333333 | AA31: =SUM(IF(INDEX(IndicData,ROW(AA31)-6,0) > INDEX(IndicData,COLUMN(AA31)-2,0), WeightsS)) -> 0 | AB31: =SUM(IF(INDEX(IndicData,ROW(AB31)-6,0) > INDEX(IndicData,COLUMN(AB31)-2,0), WeightsS)) -> 0.3333333333 | AC31: =SUM(IF(INDEX(IndicData,ROW(AC31)-6,0) > INDEX(IndicData,COLUMN(AC31)-2,0), WeightsS)) -> 0.3333333333 | AD31: =SUM(IF(INDEX(IndicData,ROW(AD31)-6,0) > INDEX(IndicData,COLUMN(AD31)-2,0), WeightsS)) -> 0.1666666667 | AE31: =SUM(IF(INDEX(IndicData,ROW(AE31)-6,0) > INDEX(IndicData,COLUMN(AE31)-2,0), WeightsS)) -> 0 | AF31: =SUM(IF(INDEX(IndicData,ROW(AF31)-6,0) > INDEX(IndicData,COLUMN(AF31)-2,0), WeightsS)) -> 0.1666666667 | AG31: =SUM(IF(INDEX(IndicData,ROW(AG31)-6,0) > INDEX(IndicData,COLUMN(AG31)-2,0), WeightsS)) -> 0 | AH31: =SUM(IF(INDEX(IndicData,ROW(AH31)-6,0) > INDEX(IndicData,COLUMN(AH31)-2,0), WeightsS)) -> 0 | AI31: =SUM(IF(INDEX(IndicData,ROW(AI31)-6,0) > INDEX(IndicData,COLUMN(AI31)-2,0), WeightsS)) -> 0 | AJ31: =SUM(IF(INDEX(IndicData,ROW(AJ31)-6,0) > INDEX(IndicData,COLUMN(AJ31)-2,0), WeightsS)) -> 0.3333333333 | AK31: =SUM(IF(INDEX(IndicData,ROW(AK31)-6,0) > INDEX(IndicData,COLUMN(AK31)-2,0), WeightsS)) -> 0.3333333333 | AL31: =SUM(IF(INDEX(IndicData,ROW(AL31)-6,0) > INDEX(IndicData,COLUMN(AL31)-2,0), WeightsS)) -> 0.3333333333 | AM31: =SUM(IF(INDEX(IndicData,ROW(AM31)-6,0) > INDEX(IndicData,COLUMN(AM31)-2,0), WeightsS)) -> 0.3333333333 | AN31: =SUM(IF(INDEX(IndicData,ROW(AN31)-6,0) > INDEX(IndicData,COLUMN(AN31)-2,0), WeightsS)) -> 0 | AO31: =SUM(IF(INDEX(IndicData,ROW(AO31)-6,0) > INDEX(IndicData,COLUMN(AO31)-2,0), WeightsS)) -> 0 | AP31: =SUM(IF(INDEX(IndicData,ROW(AP31)-6,0) > INDEX(IndicData,COLUMN(AP31)-2,0), WeightsS)) -> 0 | AQ31: =SUM(IF(INDEX(IndicData,ROW(AQ31)-6,0) > INDEX(IndicData,COLUMN(AQ31)-2,0), WeightsS)) -> 0 | AR31: =SUM(IF(INDEX(IndicData,ROW(AR31)-6,0) > INDEX(IndicData,COLUMN(AR31)-2,0), WeightsS)) -> 0 | AS31: =SUM(IF(INDEX(IndicData,ROW(AS31)-6,0) > INDEX(IndicData,COLUMN(AS31)-2,0), WeightsS)) -> 0.1666666667 | AT31: =SUM(IF(INDEX(IndicData,ROW(AT31)-6,0) > INDEX(IndicData,COLUMN(AT31)-2,0), WeightsS)) -> 0 | AU31: =SUM(IF(INDEX(IndicData,ROW(AU31)-6,0) > INDEX(IndicData,COLUMN(AU31)-2,0), WeightsS)) -> 0 | AV31: =SUM(IF(INDEX(IndicData,ROW(AV31)-6,0) > INDEX(IndicData,COLUMN(AV31)-2,0), WeightsS)) -> 0 | AW31: =SUM(IF(INDEX(IndicData,ROW(AW31)-6,0) > INDEX(IndicData,COLUMN(AW31)-2,0), WeightsS)) -> 0 | AX31: =SUM(IF(INDEX(IndicData,ROW(AX31)-6,0) > INDEX(IndicData,COLUMN(AX31)-2,0), WeightsS)) -> 0 | AY31: =SUM(IF(INDEX(IndicData,ROW(AY31)-6,0) > INDEX(IndicData,COLUMN(AY31)-2,0), WeightsS)) -> 0 | AZ31: =SUM(IF(INDEX(IndicData,ROW(AZ31)-6,0) > INDEX(IndicData,COLUMN(AZ31)-2,0), WeightsS)) -> 0
A32: 26 | B32: Unit26 | C32: =SUM(IF(INDEX(IndicData,ROW(C32)-6,0) > INDEX(IndicData,COLUMN(C32)-2,0), WeightsS)) -> 0.6666666667 | D32: =SUM(IF(INDEX(IndicData,ROW(D32)-6,0) > INDEX(IndicData,COLUMN(D32)-2,0), WeightsS)) -> 0.5 | E32: =SUM(IF(INDEX(IndicData,ROW(E32)-6,0) > INDEX(IndicData,COLUMN(E32)-2,0), WeightsS)) -> 0.5 | F32: =SUM(IF(INDEX(IndicData,ROW(F32)-6,0) > INDEX(IndicData,COLUMN(F32)-2,0), WeightsS)) -> 0.6666666667 | G32: =SUM(IF(INDEX(IndicData,ROW(G32)-6,0) > INDEX(IndicData,COLUMN(G32)-2,0), WeightsS)) -> 0.5 | H32: =SUM(IF(INDEX(IndicData,ROW(H32)-6,0) > INDEX(IndicData,COLUMN(H32)-2,0), WeightsS)) -> 0.5 | I32: =SUM(IF(INDEX(IndicData,ROW(I32)-6,0) > INDEX(IndicData,COLUMN(I32)-2,0), WeightsS)) -> 0.5 | J32: =SUM(IF(INDEX(IndicData,ROW(J32)-6,0) > INDEX(IndicData,COLUMN(J32)-2,0), WeightsS)) -> 0.5 | K32: =SUM(IF(INDEX(IndicData,ROW(K32)-6,0) > INDEX(IndicData,COLUMN(K32)-2,0), WeightsS)) -> 0.5 | L32: =SUM(IF(INDEX(IndicData,ROW(L32)-6,0) > INDEX(IndicData,COLUMN(L32)-2,0), WeightsS)) -> 0.5 | M32: =SUM(IF(INDEX(IndicData,ROW(M32)-6,0) > INDEX(IndicData,COLUMN(M32)-2,0), WeightsS)) -> 0.5 | N32: =SUM(IF(INDEX(IndicData,ROW(N32)-6,0) > INDEX(IndicData,COLUMN(N32)-2,0), WeightsS)) -> 0.3333333333 | O32: =SUM(IF(INDEX(IndicData,ROW(O32)-6,0) > INDEX(IndicData,COLUMN(O32)-2,0), WeightsS)) -> 0.3333333333 | P32: =SUM(IF(INDEX(IndicData,ROW(P32)-6,0) > INDEX(IndicData,COLUMN(P32)-2,0), WeightsS)) -> 0.1666666667 | Q32: =SUM(IF(INDEX(IndicData,ROW(Q32)-6,0) > INDEX(IndicData,COLUMN(Q32)-2,0), WeightsS)) -> 0.5 | R32: =SUM(IF(INDEX(IndicData,ROW(R32)-6,0) > INDEX(IndicData,COLUMN(R32)-2,0), WeightsS)) -> 0.5 | S32: =SUM(IF(INDEX(IndicData,ROW(S32)-6,0) > INDEX(IndicData,COLUMN(S32)-2,0), WeightsS)) -> 0.3333333333 | T32: =SUM(IF(INDEX(IndicData,ROW(T32)-6,0) > INDEX(IndicData,COLUMN(T32)-2,0), WeightsS)) -> 0.1666666667 | U32: =SUM(IF(INDEX(IndicData,ROW(U32)-6,0) > INDEX(IndicData,COLUMN(U32)-2,0), WeightsS)) -> 0.1666666667 | V32: =SUM(IF(INDEX(IndicData,ROW(V32)-6,0) > INDEX(IndicData,COLUMN(V32)-2,0), WeightsS)) -> 0.1666666667 | W32: =SUM(IF(INDEX(IndicData,ROW(W32)-6,0) > INDEX(IndicData,COLUMN(W32)-2,0), WeightsS)) -> 0.3333333333 | X32: =SUM(IF(INDEX(IndicData,ROW(X32)-6,0) > INDEX(IndicData,COLUMN(X32)-2,0), WeightsS)) -> 0.1666666667 | Y32: =SUM(IF(INDEX(IndicData,ROW(Y32)-6,0) > INDEX(IndicData,COLUMN(Y32)-2,0), WeightsS)) -> 0.1666666667 | Z32: =SUM(IF(INDEX(IndicData,ROW(Z32)-6,0) > INDEX(IndicData,COLUMN(Z32)-2,0), WeightsS)) -> 0.1666666667 | AA32: =SUM(IF(INDEX(IndicData,ROW(AA32)-6,0) > INDEX(IndicData,COLUMN(AA32)-2,0), WeightsS)) -> 0.1666666667 | AB32: =SUM(IF(INDEX(IndicData,ROW(AB32)-6,0) > INDEX(IndicData,COLUMN(AB32)-2,0), WeightsS)) -> 0 | AC32: =SUM(IF(INDEX(IndicData,ROW(AC32)-6,0) > INDEX(IndicData,COLUMN(AC32)-2,0), WeightsS)) -> 0 | AD32: =SUM(IF(INDEX(IndicData,ROW(AD32)-6,0) > INDEX(IndicData,COLUMN(AD32)-2,0), WeightsS)) -> 0 | AE32: =SUM(IF(INDEX(IndicData,ROW(AE32)-6,0) > INDEX(IndicData,COLUMN(AE32)-2,0), WeightsS)) -> 0.1666666667 | AF32: =SUM(IF(INDEX(IndicData,ROW(AF32)-6,0) > INDEX(IndicData,COLUMN(AF32)-2,0), WeightsS)) -> 0.1666666667 | AG32: =SUM(IF(INDEX(IndicData,ROW(AG32)-6,0) > INDEX(IndicData,COLUMN(AG32)-2,0), WeightsS)) -> 0 | AH32: =SUM(IF(INDEX(IndicData,ROW(AH32)-6,0) > INDEX(IndicData,COLUMN(AH32)-2,0), WeightsS)) -> 0 | AI32: =SUM(IF(INDEX(IndicData,ROW(AI32)-6,0) > INDEX(IndicData,COLUMN(AI32)-2,0), WeightsS)) -> 0 | AJ32: =SUM(IF(INDEX(IndicData,ROW(AJ32)-6,0) > INDEX(IndicData,COLUMN(AJ32)-2,0), WeightsS)) -> 0.1666666667 | AK32: =SUM(IF(INDEX(IndicData,ROW(AK32)-6,0) > INDEX(IndicData,COLUMN(AK32)-2,0), WeightsS)) -> 0.1666666667 | AL32: =SUM(IF(INDEX(IndicData,ROW(AL32)-6,0) > INDEX(IndicData,COLUMN(AL32)-2,0), WeightsS)) -> 0.1666666667 | AM32: =SUM(IF(INDEX(IndicData,ROW(AM32)-6,0) > INDEX(IndicData,COLUMN(AM32)-2,0), WeightsS)) -> 0.1666666667 | AN32: =SUM(IF(INDEX(IndicData,ROW(AN32)-6,0) > INDEX(IndicData,COLUMN(AN32)-2,0), WeightsS)) -> 0 | AO32: =SUM(IF(INDEX(IndicData,ROW(AO32)-6,0) > INDEX(IndicData,COLUMN(AO32)-2,0), WeightsS)) -> 0 | AP32: =SUM(IF(INDEX(IndicData,ROW(AP32)-6,0) > INDEX(IndicData,COLUMN(AP32)-2,0), WeightsS)) -> 0 | AQ32: =SUM(IF(INDEX(IndicData,ROW(AQ32)-6,0) > INDEX(IndicData,COLUMN(AQ32)-2,0), WeightsS)) -> 0 | AR32: =SUM(IF(INDEX(IndicData,ROW(AR32)-6,0) > INDEX(IndicData,COLUMN(AR32)-2,0), WeightsS)) -> 0 | AS32: =SUM(IF(INDEX(IndicData,ROW(AS32)-6,0) > INDEX(IndicData,COLUMN(AS32)-2,0), WeightsS)) -> 0 | AT32: =SUM(IF(INDEX(IndicData,ROW(AT32)-6,0) > INDEX(IndicData,COLUMN(AT32)-2,0), WeightsS)) -> 0 | AU32: =SUM(IF(INDEX(IndicData,ROW(AU32)-6,0) > INDEX(IndicData,COLUMN(AU32)-2,0), WeightsS)) -> 0 | AV32: =SUM(IF(INDEX(IndicData,ROW(AV32)-6,0) > INDEX(IndicData,COLUMN(AV32)-2,0), WeightsS)) -> 0 | AW32: =SUM(IF(INDEX(IndicData,ROW(AW32)-6,0) > INDEX(IndicData,COLUMN(AW32)-2,0), WeightsS)) -> 0 | AX32: =SUM(IF(INDEX(IndicData,ROW(AX32)-6,0) > INDEX(IndicData,COLUMN(AX32)-2,0), WeightsS)) -> 0 | AY32: =SUM(IF(INDEX(IndicData,ROW(AY32)-6,0) > INDEX(IndicData,COLUMN(AY32)-2,0), WeightsS)) -> 0 | AZ32: =SUM(IF(INDEX(IndicData,ROW(AZ32)-6,0) > INDEX(IndicData,COLUMN(AZ32)-2,0), WeightsS)) -> 0
A33: 27 | B33: Unit27 | C33: =SUM(IF(INDEX(IndicData,ROW(C33)-6,0) > INDEX(IndicData,COLUMN(C33)-2,0), WeightsS)) -> 0.6666666667 | D33: =SUM(IF(INDEX(IndicData,ROW(D33)-6,0) > INDEX(IndicData,COLUMN(D33)-2,0), WeightsS)) -> 0.6666666667 | E33: =SUM(IF(INDEX(IndicData,ROW(E33)-6,0) > INDEX(IndicData,COLUMN(E33)-2,0), WeightsS)) -> 0.5 | F33: =SUM(IF(INDEX(IndicData,ROW(F33)-6,0) > INDEX(IndicData,COLUMN(F33)-2,0), WeightsS)) -> 0.6666666667 | G33: =SUM(IF(INDEX(IndicData,ROW(G33)-6,0) > INDEX(IndicData,COLUMN(G33)-2,0), WeightsS)) -> 0.6666666667 | H33: =SUM(IF(INDEX(IndicData,ROW(H33)-6,0) > INDEX(IndicData,COLUMN(H33)-2,0), WeightsS)) -> 0.6666666667 | I33: =SUM(IF(INDEX(IndicData,ROW(I33)-6,0) > INDEX(IndicData,COLUMN(I33)-2,0), WeightsS)) -> 0.6666666667 | J33: =SUM(IF(INDEX(IndicData,ROW(J33)-6,0) > INDEX(IndicData,COLUMN(J33)-2,0), WeightsS)) -> 0.5 | K33: =SUM(IF(INDEX(IndicData,ROW(K33)-6,0) > INDEX(IndicData,COLUMN(K33)-2,0), WeightsS)) -> 0.6666666667 | L33: =SUM(IF(INDEX(IndicData,ROW(L33)-6,0) > INDEX(IndicData,COLUMN(L33)-2,0), WeightsS)) -> 0.6666666667 | M33: =SUM(IF(INDEX(IndicData,ROW(M33)-6,0) > INDEX(IndicData,COLUMN(M33)-2,0), WeightsS)) -> 0.6666666667 | N33: =SUM(IF(INDEX(IndicData,ROW(N33)-6,0) > INDEX(IndicData,COLUMN(N33)-2,0), WeightsS)) -> 0.5 | O33: =SUM(IF(INDEX(IndicData,ROW(O33)-6,0) > INDEX(IndicData,COLUMN(O33)-2,0), WeightsS)) -> 0.5 | P33: =SUM(IF(INDEX(IndicData,ROW(P33)-6,0) > INDEX(IndicData,COLUMN(P33)-2,0), WeightsS)) -> 0.3333333333 | Q33: =SUM(IF(INDEX(IndicData,ROW(Q33)-6,0) > INDEX(IndicData,COLUMN(Q33)-2,0), WeightsS)) -> 0.5 | R33: =SUM(IF(INDEX(IndicData,ROW(R33)-6,0) > INDEX(IndicData,COLUMN(R33)-2,0), WeightsS)) -> 0.5 | S33: =SUM(IF(INDEX(IndicData,ROW(S33)-6,0) > INDEX(IndicData,COLUMN(S33)-2,0), WeightsS)) -> 0.3333333333 | T33: =SUM(IF(INDEX(IndicData,ROW(T33)-6,0) > INDEX(IndicData,COLUMN(T33)-2,0), WeightsS)) -> 0.3333333333 | U33: =SUM(IF(INDEX(IndicData,ROW(U33)-6,0) > INDEX(IndicData,COLUMN(U33)-2,0), WeightsS)) -> 0.1666666667 | V33: =SUM(IF(INDEX(IndicData,ROW(V33)-6,0) > INDEX(IndicData,COLUMN(V33)-2,0), WeightsS)) -> 0.3333333333 | W33: =SUM(IF(INDEX(IndicData,ROW(W33)-6,0) > INDEX(IndicData,COLUMN(W33)-2,0), WeightsS)) -> 0.3333333333 | X33: =SUM(IF(INDEX(IndicData,ROW(X33)-6,0) > INDEX(IndicData,COLUMN(X33)-2,0), WeightsS)) -> 0.1666666667 | Y33: =SUM(IF(INDEX(IndicData,ROW(Y33)-6,0) > INDEX(IndicData,COLUMN(Y33)-2,0), WeightsS)) -> 0.1666666667 | Z33: =SUM(IF(INDEX(IndicData,ROW(Z33)-6,0) > INDEX(IndicData,COLUMN(Z33)-2,0), WeightsS)) -> 0.1666666667 | AA33: =SUM(IF(INDEX(IndicData,ROW(AA33)-6,0) > INDEX(IndicData,COLUMN(AA33)-2,0), WeightsS)) -> 0.3333333333 | AB33: =SUM(IF(INDEX(IndicData,ROW(AB33)-6,0) > INDEX(IndicData,COLUMN(AB33)-2,0), WeightsS)) -> 0.1666666667 | AC33: =SUM(IF(INDEX(IndicData,ROW(AC33)-6,0) > INDEX(IndicData,COLUMN(AC33)-2,0), WeightsS)) -> 0 | AD33: =SUM(IF(INDEX(IndicData,ROW(AD33)-6,0) > INDEX(IndicData,COLUMN(AD33)-2,0), WeightsS)) -> 0 | AE33: =SUM(IF(INDEX(IndicData,ROW(AE33)-6,0) > INDEX(IndicData,COLUMN(AE33)-2,0), WeightsS)) -> 0.1666666667 | AF33: =SUM(IF(INDEX(IndicData,ROW(AF33)-6,0) > INDEX(IndicData,COLUMN(AF33)-2,0), WeightsS)) -> 0.3333333333 | AG33: =SUM(IF(INDEX(IndicData,ROW(AG33)-6,0) > INDEX(IndicData,COLUMN(AG33)-2,0), WeightsS)) -> 0 | AH33: =SUM(IF(INDEX(IndicData,ROW(AH33)-6,0) > INDEX(IndicData,COLUMN(AH33)-2,0), WeightsS)) -> 0 | AI33: =SUM(IF(INDEX(IndicData,ROW(AI33)-6,0) > INDEX(IndicData,COLUMN(AI33)-2,0), WeightsS)) -> 0 | AJ33: =SUM(IF(INDEX(IndicData,ROW(AJ33)-6,0) > INDEX(IndicData,COLUMN(AJ33)-2,0), WeightsS)) -> 0.1666666667 | AK33: =SUM(IF(INDEX(IndicData,ROW(AK33)-6,0) > INDEX(IndicData,COLUMN(AK33)-2,0), WeightsS)) -> 0.1666666667 | AL33: =SUM(IF(INDEX(IndicData,ROW(AL33)-6,0) > INDEX(IndicData,COLUMN(AL33)-2,0), WeightsS)) -> 0.1666666667 | AM33: =SUM(IF(INDEX(IndicData,ROW(AM33)-6,0) > INDEX(IndicData,COLUMN(AM33)-2,0), WeightsS)) -> 0.1666666667 | AN33: =SUM(IF(INDEX(IndicData,ROW(AN33)-6,0) > INDEX(IndicData,COLUMN(AN33)-2,0), WeightsS)) -> 0 | AO33: =SUM(IF(INDEX(IndicData,ROW(AO33)-6,0) > INDEX(IndicData,COLUMN(AO33)-2,0), WeightsS)) -> 0 | AP33: =SUM(IF(INDEX(IndicData,ROW(AP33)-6,0) > INDEX(IndicData,COLUMN(AP33)-2,0), WeightsS)) -> 0 | AQ33: =SUM(IF(INDEX(IndicData,ROW(AQ33)-6,0) > INDEX(IndicData,COLUMN(AQ33)-2,0), WeightsS)) -> 0 | AR33: =SUM(IF(INDEX(IndicData,ROW(AR33)-6,0) > INDEX(IndicData,COLUMN(AR33)-2,0), WeightsS)) -> 0 | AS33: =SUM(IF(INDEX(IndicData,ROW(AS33)-6,0) > INDEX(IndicData,COLUMN(AS33)-2,0), WeightsS)) -> 0 | AT33: =SUM(IF(INDEX(IndicData,ROW(AT33)-6,0) > INDEX(IndicData,COLUMN(AT33)-2,0), WeightsS)) -> 0 | AU33: =SUM(IF(INDEX(IndicData,ROW(AU33)-6,0) > INDEX(IndicData,COLUMN(AU33)-2,0), WeightsS)) -> 0 | AV33: =SUM(IF(INDEX(IndicData,ROW(AV33)-6,0) > INDEX(IndicData,COLUMN(AV33)-2,0), WeightsS)) -> 0 | AW33: =SUM(IF(INDEX(IndicData,ROW(AW33)-6,0) > INDEX(IndicData,COLUMN(AW33)-2,0), WeightsS)) -> 0 | AX33: =SUM(IF(INDEX(IndicData,ROW(AX33)-6,0) > INDEX(IndicData,COLUMN(AX33)-2,0), WeightsS)) -> 0 | AY33: =SUM(IF(INDEX(IndicData,ROW(AY33)-6,0) > INDEX(IndicData,COLUMN(AY33)-2,0), WeightsS)) -> 0 | AZ33: =SUM(IF(INDEX(IndicData,ROW(AZ33)-6,0) > INDEX(IndicData,COLUMN(AZ33)-2,0), WeightsS)) -> 0
A34: 28 | B34: Unit28 | C34: =SUM(IF(INDEX(IndicData,ROW(C34)-6,0) > INDEX(IndicData,COLUMN(C34)-2,0), WeightsS)) -> 1 | D34: =SUM(IF(INDEX(IndicData,ROW(D34)-6,0) > INDEX(IndicData,COLUMN(D34)-2,0), WeightsS)) -> 1 | E34: =SUM(IF(INDEX(IndicData,ROW(E34)-6,0) > INDEX(IndicData,COLUMN(E34)-2,0), WeightsS)) -> 1 | F34: =SUM(IF(INDEX(IndicData,ROW(F34)-6,0) > INDEX(IndicData,COLUMN(F34)-2,0), WeightsS)) -> 1 | G34: =SUM(IF(INDEX(IndicData,ROW(G34)-6,0) > INDEX(IndicData,COLUMN(G34)-2,0), WeightsS)) -> 1 | H34: =SUM(IF(INDEX(IndicData,ROW(H34)-6,0) > INDEX(IndicData,COLUMN(H34)-2,0), WeightsS)) -> 0.8333333333 | I34: =SUM(IF(INDEX(IndicData,ROW(I34)-6,0) > INDEX(IndicData,COLUMN(I34)-2,0), WeightsS)) -> 0.8333333333 | J34: =SUM(IF(INDEX(IndicData,ROW(J34)-6,0) > INDEX(IndicData,COLUMN(J34)-2,0), WeightsS)) -> 1 | K34: =SUM(IF(INDEX(IndicData,ROW(K34)-6,0) > INDEX(IndicData,COLUMN(K34)-2,0), WeightsS)) -> 0.8333333333 | L34: =SUM(IF(INDEX(IndicData,ROW(L34)-6,0) > INDEX(IndicData,COLUMN(L34)-2,0), WeightsS)) -> 1 | M34: =SUM(IF(INDEX(IndicData,ROW(M34)-6,0) > INDEX(IndicData,COLUMN(M34)-2,0), WeightsS)) -> 0.8333333333 | N34: =SUM(IF(INDEX(IndicData,ROW(N34)-6,0) > INDEX(IndicData,COLUMN(N34)-2,0), WeightsS)) -> 0.8333333333 | O34: =SUM(IF(INDEX(IndicData,ROW(O34)-6,0) > INDEX(IndicData,COLUMN(O34)-2,0), WeightsS)) -> 0.6666666667 | P34: =SUM(IF(INDEX(IndicData,ROW(P34)-6,0) > INDEX(IndicData,COLUMN(P34)-2,0), WeightsS)) -> 0.5 | Q34: =SUM(IF(INDEX(IndicData,ROW(Q34)-6,0) > INDEX(IndicData,COLUMN(Q34)-2,0), WeightsS)) -> 0.8333333333 | R34: =SUM(IF(INDEX(IndicData,ROW(R34)-6,0) > INDEX(IndicData,COLUMN(R34)-2,0), WeightsS)) -> 0.8333333333 | S34: =SUM(IF(INDEX(IndicData,ROW(S34)-6,0) > INDEX(IndicData,COLUMN(S34)-2,0), WeightsS)) -> 0.5 | T34: =SUM(IF(INDEX(IndicData,ROW(T34)-6,0) > INDEX(IndicData,COLUMN(T34)-2,0), WeightsS)) -> 0.6666666667 | U34: =SUM(IF(INDEX(IndicData,ROW(U34)-6,0) > INDEX(IndicData,COLUMN(U34)-2,0), WeightsS)) -> 0.6666666667 | V34: =SUM(IF(INDEX(IndicData,ROW(V34)-6,0) > INDEX(IndicData,COLUMN(V34)-2,0), WeightsS)) -> 0.5 | W34: =SUM(IF(INDEX(IndicData,ROW(W34)-6,0) > INDEX(IndicData,COLUMN(W34)-2,0), WeightsS)) -> 0.6666666667 | X34: =SUM(IF(INDEX(IndicData,ROW(X34)-6,0) > INDEX(IndicData,COLUMN(X34)-2,0), WeightsS)) -> 0.6666666667 | Y34: =SUM(IF(INDEX(IndicData,ROW(Y34)-6,0) > INDEX(IndicData,COLUMN(Y34)-2,0), WeightsS)) -> 0.6666666667 | Z34: =SUM(IF(INDEX(IndicData,ROW(Z34)-6,0) > INDEX(IndicData,COLUMN(Z34)-2,0), WeightsS)) -> 0.5 | AA34: =SUM(IF(INDEX(IndicData,ROW(AA34)-6,0) > INDEX(IndicData,COLUMN(AA34)-2,0), WeightsS)) -> 0.5 | AB34: =SUM(IF(INDEX(IndicData,ROW(AB34)-6,0) > INDEX(IndicData,COLUMN(AB34)-2,0), WeightsS)) -> 0.6666666667 | AC34: =SUM(IF(INDEX(IndicData,ROW(AC34)-6,0) > INDEX(IndicData,COLUMN(AC34)-2,0), WeightsS)) -> 0.6666666667 | AD34: =SUM(IF(INDEX(IndicData,ROW(AD34)-6,0) > INDEX(IndicData,COLUMN(AD34)-2,0), WeightsS)) -> 0 | AE34: =SUM(IF(INDEX(IndicData,ROW(AE34)-6,0) > INDEX(IndicData,COLUMN(AE34)-2,0), WeightsS)) -> 0.3333333333 | AF34: =SUM(IF(INDEX(IndicData,ROW(AF34)-6,0) > INDEX(IndicData,COLUMN(AF34)-2,0), WeightsS)) -> 0.6666666667 | AG34: =SUM(IF(INDEX(IndicData,ROW(AG34)-6,0) > INDEX(IndicData,COLUMN(AG34)-2,0), WeightsS)) -> 0.3333333333 | AH34: =SUM(IF(INDEX(IndicData,ROW(AH34)-6,0) > INDEX(IndicData,COLUMN(AH34)-2,0), WeightsS)) -> 0.3333333333 | AI34: =SUM(IF(INDEX(IndicData,ROW(AI34)-6,0) > INDEX(IndicData,COLUMN(AI34)-2,0), WeightsS)) -> 0 | AJ34: =SUM(IF(INDEX(IndicData,ROW(AJ34)-6,0) > INDEX(IndicData,COLUMN(AJ34)-2,0), WeightsS)) -> 0.3333333333 | AK34: =SUM(IF(INDEX(IndicData,ROW(AK34)-6,0) > INDEX(IndicData,COLUMN(AK34)-2,0), WeightsS)) -> 0.3333333333 | AL34: =SUM(IF(INDEX(IndicData,ROW(AL34)-6,0) > INDEX(IndicData,COLUMN(AL34)-2,0), WeightsS)) -> 0.3333333333 | AM34: =SUM(IF(INDEX(IndicData,ROW(AM34)-6,0) > INDEX(IndicData,COLUMN(AM34)-2,0), WeightsS)) -> 0.3333333333 | AN34: =SUM(IF(INDEX(IndicData,ROW(AN34)-6,0) > INDEX(IndicData,COLUMN(AN34)-2,0), WeightsS)) -> 0.1666666667 | AO34: =SUM(IF(INDEX(IndicData,ROW(AO34)-6,0) > INDEX(IndicData,COLUMN(AO34)-2,0), WeightsS)) -> 0.1666666667 | AP34: =SUM(IF(INDEX(IndicData,ROW(AP34)-6,0) > INDEX(IndicData,COLUMN(AP34)-2,0), WeightsS)) -> 0.1666666667 | AQ34: =SUM(IF(INDEX(IndicData,ROW(AQ34)-6,0) > INDEX(IndicData,COLUMN(AQ34)-2,0), WeightsS)) -> 0 | AR34: =SUM(IF(INDEX(IndicData,ROW(AR34)-6,0) > INDEX(IndicData,COLUMN(AR34)-2,0), WeightsS)) -> 0 | AS34: =SUM(IF(INDEX(IndicData,ROW(AS34)-6,0) > INDEX(IndicData,COLUMN(AS34)-2,0), WeightsS)) -> 0.3333333333 | AT34: =SUM(IF(INDEX(IndicData,ROW(AT34)-6,0) > INDEX(IndicData,COLUMN(AT34)-2,0), WeightsS)) -> 0.1666666667 | AU34: =SUM(IF(INDEX(IndicData,ROW(AU34)-6,0) > INDEX(IndicData,COLUMN(AU34)-2,0), WeightsS)) -> 0 | AV34: =SUM(IF(INDEX(IndicData,ROW(AV34)-6,0) > INDEX(IndicData,COLUMN(AV34)-2,0), WeightsS)) -> 0 | AW34: =SUM(IF(INDEX(IndicData,ROW(AW34)-6,0) > INDEX(IndicData,COLUMN(AW34)-2,0), WeightsS)) -> 0 | AX34: =SUM(IF(INDEX(IndicData,ROW(AX34)-6,0) > INDEX(IndicData,COLUMN(AX34)-2,0), WeightsS)) -> 0 | AY34: =SUM(IF(INDEX(IndicData,ROW(AY34)-6,0) > INDEX(IndicData,COLUMN(AY34)-2,0), WeightsS)) -> 0 | AZ34: =SUM(IF(INDEX(IndicData,ROW(AZ34)-6,0) > INDEX(IndicData,COLUMN(AZ34)-2,0), WeightsS)) -> 0
A35: 29 | B35: Unit29 | C35: =SUM(IF(INDEX(IndicData,ROW(C35)-6,0) > INDEX(IndicData,COLUMN(C35)-2,0), WeightsS)) -> 1 | D35: =SUM(IF(INDEX(IndicData,ROW(D35)-6,0) > INDEX(IndicData,COLUMN(D35)-2,0), WeightsS)) -> 1 | E35: =SUM(IF(INDEX(IndicData,ROW(E35)-6,0) > INDEX(IndicData,COLUMN(E35)-2,0), WeightsS)) -> 0.8333333333 | F35: =SUM(IF(INDEX(IndicData,ROW(F35)-6,0) > INDEX(IndicData,COLUMN(F35)-2,0), WeightsS)) -> 1 | G35: =SUM(IF(INDEX(IndicData,ROW(G35)-6,0) > INDEX(IndicData,COLUMN(G35)-2,0), WeightsS)) -> 1 | H35: =SUM(IF(INDEX(IndicData,ROW(H35)-6,0) > INDEX(IndicData,COLUMN(H35)-2,0), WeightsS)) -> 0.8333333333 | I35: =SUM(IF(INDEX(IndicData,ROW(I35)-6,0) > INDEX(IndicData,COLUMN(I35)-2,0), WeightsS)) -> 0.8333333333 | J35: =SUM(IF(INDEX(IndicData,ROW(J35)-6,0) > INDEX(IndicData,COLUMN(J35)-2,0), WeightsS)) -> 0.8333333333 | K35: =SUM(IF(INDEX(IndicData,ROW(K35)-6,0) > INDEX(IndicData,COLUMN(K35)-2,0), WeightsS)) -> 0.8333333333 | L35: =SUM(IF(INDEX(IndicData,ROW(L35)-6,0) > INDEX(IndicData,COLUMN(L35)-2,0), WeightsS)) -> 0.8333333333 | M35: =SUM(IF(INDEX(IndicData,ROW(M35)-6,0) > INDEX(IndicData,COLUMN(M35)-2,0), WeightsS)) -> 0.6666666667 | N35: =SUM(IF(INDEX(IndicData,ROW(N35)-6,0) > INDEX(IndicData,COLUMN(N35)-2,0), WeightsS)) -> 0.6666666667 | O35: =SUM(IF(INDEX(IndicData,ROW(O35)-6,0) > INDEX(IndicData,COLUMN(O35)-2,0), WeightsS)) -> 0.6666666667 | P35: =SUM(IF(INDEX(IndicData,ROW(P35)-6,0) > INDEX(IndicData,COLUMN(P35)-2,0), WeightsS)) -> 0.6666666667 | Q35: =SUM(IF(INDEX(IndicData,ROW(Q35)-6,0) > INDEX(IndicData,COLUMN(Q35)-2,0), WeightsS)) -> 1 | R35: =SUM(IF(INDEX(IndicData,ROW(R35)-6,0) > INDEX(IndicData,COLUMN(R35)-2,0), WeightsS)) -> 0.8333333333 | S35: =SUM(IF(INDEX(IndicData,ROW(S35)-6,0) > INDEX(IndicData,COLUMN(S35)-2,0), WeightsS)) -> 0.5 | T35: =SUM(IF(INDEX(IndicData,ROW(T35)-6,0) > INDEX(IndicData,COLUMN(T35)-2,0), WeightsS)) -> 0.8333333333 | U35: =SUM(IF(INDEX(IndicData,ROW(U35)-6,0) > INDEX(IndicData,COLUMN(U35)-2,0), WeightsS)) -> 0.8333333333 | V35: =SUM(IF(INDEX(IndicData,ROW(V35)-6,0) > INDEX(IndicData,COLUMN(V35)-2,0), WeightsS)) -> 0.8333333333 | W35: =SUM(IF(INDEX(IndicData,ROW(W35)-6,0) > INDEX(IndicData,COLUMN(W35)-2,0), WeightsS)) -> 0.8333333333 | X35: =SUM(IF(INDEX(IndicData,ROW(X35)-6,0) > INDEX(IndicData,COLUMN(X35)-2,0), WeightsS)) -> 0.6666666667 | Y35: =SUM(IF(INDEX(IndicData,ROW(Y35)-6,0) > INDEX(IndicData,COLUMN(Y35)-2,0), WeightsS)) -> 0.6666666667 | Z35: =SUM(IF(INDEX(IndicData,ROW(Z35)-6,0) > INDEX(IndicData,COLUMN(Z35)-2,0), WeightsS)) -> 0.6666666667 | AA35: =SUM(IF(INDEX(IndicData,ROW(AA35)-6,0) > INDEX(IndicData,COLUMN(AA35)-2,0), WeightsS)) -> 0.6666666667 | AB35: =SUM(IF(INDEX(IndicData,ROW(AB35)-6,0) > INDEX(IndicData,COLUMN(AB35)-2,0), WeightsS)) -> 0.8333333333 | AC35: =SUM(IF(INDEX(IndicData,ROW(AC35)-6,0) > INDEX(IndicData,COLUMN(AC35)-2,0), WeightsS)) -> 0.6666666667 | AD35: =SUM(IF(INDEX(IndicData,ROW(AD35)-6,0) > INDEX(IndicData,COLUMN(AD35)-2,0), WeightsS)) -> 0.5 | AE35: =SUM(IF(INDEX(IndicData,ROW(AE35)-6,0) > INDEX(IndicData,COLUMN(AE35)-2,0), WeightsS)) -> 0 | AF35: =SUM(IF(INDEX(IndicData,ROW(AF35)-6,0) > INDEX(IndicData,COLUMN(AF35)-2,0), WeightsS)) -> 0.5 | AG35: =SUM(IF(INDEX(IndicData,ROW(AG35)-6,0) > INDEX(IndicData,COLUMN(AG35)-2,0), WeightsS)) -> 0.3333333333 | AH35: =SUM(IF(INDEX(IndicData,ROW(AH35)-6,0) > INDEX(IndicData,COLUMN(AH35)-2,0), WeightsS)) -> 0.3333333333 | AI35: =SUM(IF(INDEX(IndicData,ROW(AI35)-6,0) > INDEX(IndicData,COLUMN(AI35)-2,0), WeightsS)) -> 0 | AJ35: =SUM(IF(INDEX(IndicData,ROW(AJ35)-6,0) > INDEX(IndicData,COLUMN(AJ35)-2,0), WeightsS)) -> 0.3333333333 | AK35: =SUM(IF(INDEX(IndicData,ROW(AK35)-6,0) > INDEX(IndicData,COLUMN(AK35)-2,0), WeightsS)) -> 0.3333333333 | AL35: =SUM(IF(INDEX(IndicData,ROW(AL35)-6,0) > INDEX(IndicData,COLUMN(AL35)-2,0), WeightsS)) -> 0.3333333333 | AM35: =SUM(IF(INDEX(IndicData,ROW(AM35)-6,0) > INDEX(IndicData,COLUMN(AM35)-2,0), WeightsS)) -> 0.3333333333 | AN35: =SUM(IF(INDEX(IndicData,ROW(AN35)-6,0) > INDEX(IndicData,COLUMN(AN35)-2,0), WeightsS)) -> 0.1666666667 | AO35: =SUM(IF(INDEX(IndicData,ROW(AO35)-6,0) > INDEX(IndicData,COLUMN(AO35)-2,0), WeightsS)) -> 0 | AP35: =SUM(IF(INDEX(IndicData,ROW(AP35)-6,0) > INDEX(IndicData,COLUMN(AP35)-2,0), WeightsS)) -> 0 | AQ35: =SUM(IF(INDEX(IndicData,ROW(AQ35)-6,0) > INDEX(IndicData,COLUMN(AQ35)-2,0), WeightsS)) -> 0 | AR35: =SUM(IF(INDEX(IndicData,ROW(AR35)-6,0) > INDEX(IndicData,COLUMN(AR35)-2,0), WeightsS)) -> 0 | AS35: =SUM(IF(INDEX(IndicData,ROW(AS35)-6,0) > INDEX(IndicData,COLUMN(AS35)-2,0), WeightsS)) -> 0.3333333333 | AT35: =SUM(IF(INDEX(IndicData,ROW(AT35)-6,0) > INDEX(IndicData,COLUMN(AT35)-2,0), WeightsS)) -> 0.1666666667 | AU35: =SUM(IF(INDEX(IndicData,ROW(AU35)-6,0) > INDEX(IndicData,COLUMN(AU35)-2,0), WeightsS)) -> 0 | AV35: =SUM(IF(INDEX(IndicData,ROW(AV35)-6,0) > INDEX(IndicData,COLUMN(AV35)-2,0), WeightsS)) -> 0 | AW35: =SUM(IF(INDEX(IndicData,ROW(AW35)-6,0) > INDEX(IndicData,COLUMN(AW35)-2,0), WeightsS)) -> 0 | AX35: =SUM(IF(INDEX(IndicData,ROW(AX35)-6,0) > INDEX(IndicData,COLUMN(AX35)-2,0), WeightsS)) -> 0.1666666667 | AY35: =SUM(IF(INDEX(IndicData,ROW(AY35)-6,0) > INDEX(IndicData,COLUMN(AY35)-2,0), WeightsS)) -> 0.1666666667 | AZ35: =SUM(IF(INDEX(IndicData,ROW(AZ35)-6,0) > INDEX(IndicData,COLUMN(AZ35)-2,0), WeightsS)) -> 0
A36: 30 | B36: Unit30 | C36: =SUM(IF(INDEX(IndicData,ROW(C36)-6,0) > INDEX(IndicData,COLUMN(C36)-2,0), WeightsS)) -> 0.8333333333 | D36: =SUM(IF(INDEX(IndicData,ROW(D36)-6,0) > INDEX(IndicData,COLUMN(D36)-2,0), WeightsS)) -> 0.6666666667 | E36: =SUM(IF(INDEX(IndicData,ROW(E36)-6,0) > INDEX(IndicData,COLUMN(E36)-2,0), WeightsS)) -> 0.6666666667 | F36: =SUM(IF(INDEX(IndicData,ROW(F36)-6,0) > INDEX(IndicData,COLUMN(F36)-2,0), WeightsS)) -> 0.6666666667 | G36: =SUM(IF(INDEX(IndicData,ROW(G36)-6,0) > INDEX(IndicData,COLUMN(G36)-2,0), WeightsS)) -> 0.5 | H36: =SUM(IF(INDEX(IndicData,ROW(H36)-6,0) > INDEX(IndicData,COLUMN(H36)-2,0), WeightsS)) -> 0.5 | I36: =SUM(IF(INDEX(IndicData,ROW(I36)-6,0) > INDEX(IndicData,COLUMN(I36)-2,0), WeightsS)) -> 0.5 | J36: =SUM(IF(INDEX(IndicData,ROW(J36)-6,0) > INDEX(IndicData,COLUMN(J36)-2,0), WeightsS)) -> 0.6666666667 | K36: =SUM(IF(INDEX(IndicData,ROW(K36)-6,0) > INDEX(IndicData,COLUMN(K36)-2,0), WeightsS)) -> 0.5 | L36: =SUM(IF(INDEX(IndicData,ROW(L36)-6,0) > INDEX(IndicData,COLUMN(L36)-2,0), WeightsS)) -> 0.5 | M36: =SUM(IF(INDEX(IndicData,ROW(M36)-6,0) > INDEX(IndicData,COLUMN(M36)-2,0), WeightsS)) -> 0.3333333333 | N36: =SUM(IF(INDEX(IndicData,ROW(N36)-6,0) > INDEX(IndicData,COLUMN(N36)-2,0), WeightsS)) -> 0.3333333333 | O36: =SUM(IF(INDEX(IndicData,ROW(O36)-6,0) > INDEX(IndicData,COLUMN(O36)-2,0), WeightsS)) -> 0.3333333333 | P36: =SUM(IF(INDEX(IndicData,ROW(P36)-6,0) > INDEX(IndicData,COLUMN(P36)-2,0), WeightsS)) -> 0.3333333333 | Q36: =SUM(IF(INDEX(IndicData,ROW(Q36)-6,0) > INDEX(IndicData,COLUMN(Q36)-2,0), WeightsS)) -> 0.8333333333 | R36: =SUM(IF(INDEX(IndicData,ROW(R36)-6,0) > INDEX(IndicData,COLUMN(R36)-2,0), WeightsS)) -> 0.6666666667 | S36: =SUM(IF(INDEX(IndicData,ROW(S36)-6,0) > INDEX(IndicData,COLUMN(S36)-2,0), WeightsS)) -> 0.3333333333 | T36: =SUM(IF(INDEX(IndicData,ROW(T36)-6,0) > INDEX(IndicData,COLUMN(T36)-2,0), WeightsS)) -> 0.6666666667 | U36: =SUM(IF(INDEX(IndicData,ROW(U36)-6,0) > INDEX(IndicData,COLUMN(U36)-2,0), WeightsS)) -> 0.6666666667 | V36: =SUM(IF(INDEX(IndicData,ROW(V36)-6,0) > INDEX(IndicData,COLUMN(V36)-2,0), WeightsS)) -> 0.5 | W36: =SUM(IF(INDEX(IndicData,ROW(W36)-6,0) > INDEX(IndicData,COLUMN(W36)-2,0), WeightsS)) -> 0.6666666667 | X36: =SUM(IF(INDEX(IndicData,ROW(X36)-6,0) > INDEX(IndicData,COLUMN(X36)-2,0), WeightsS)) -> 0.3333333333 | Y36: =SUM(IF(INDEX(IndicData,ROW(Y36)-6,0) > INDEX(IndicData,COLUMN(Y36)-2,0), WeightsS)) -> 0.3333333333 | Z36: =SUM(IF(INDEX(IndicData,ROW(Z36)-6,0) > INDEX(IndicData,COLUMN(Z36)-2,0), WeightsS)) -> 0.3333333333 | AA36: =SUM(IF(INDEX(IndicData,ROW(AA36)-6,0) > INDEX(IndicData,COLUMN(AA36)-2,0), WeightsS)) -> 0.3333333333 | AB36: =SUM(IF(INDEX(IndicData,ROW(AB36)-6,0) > INDEX(IndicData,COLUMN(AB36)-2,0), WeightsS)) -> 0.5 | AC36: =SUM(IF(INDEX(IndicData,ROW(AC36)-6,0) > INDEX(IndicData,COLUMN(AC36)-2,0), WeightsS)) -> 0.5 | AD36: =SUM(IF(INDEX(IndicData,ROW(AD36)-6,0) > INDEX(IndicData,COLUMN(AD36)-2,0), WeightsS)) -> 0.3333333333 | AE36: =SUM(IF(INDEX(IndicData,ROW(AE36)-6,0) > INDEX(IndicData,COLUMN(AE36)-2,0), WeightsS)) -> 0.1666666667 | AF36: =SUM(IF(INDEX(IndicData,ROW(AF36)-6,0) > INDEX(IndicData,COLUMN(AF36)-2,0), WeightsS)) -> 0 | AG36: =SUM(IF(INDEX(IndicData,ROW(AG36)-6,0) > INDEX(IndicData,COLUMN(AG36)-2,0), WeightsS)) -> 0.1666666667 | AH36: =SUM(IF(INDEX(IndicData,ROW(AH36)-6,0) > INDEX(IndicData,COLUMN(AH36)-2,0), WeightsS)) -> 0 | AI36: =SUM(IF(INDEX(IndicData,ROW(AI36)-6,0) > INDEX(IndicData,COLUMN(AI36)-2,0), WeightsS)) -> 0 | AJ36: =SUM(IF(INDEX(IndicData,ROW(AJ36)-6,0) > INDEX(IndicData,COLUMN(AJ36)-2,0), WeightsS)) -> 0.1666666667 | AK36: =SUM(IF(INDEX(IndicData,ROW(AK36)-6,0) > INDEX(IndicData,COLUMN(AK36)-2,0), WeightsS)) -> 0.1666666667 | AL36: =SUM(IF(INDEX(IndicData,ROW(AL36)-6,0) > INDEX(IndicData,COLUMN(AL36)-2,0), WeightsS)) -> 0.1666666667 | AM36: =SUM(IF(INDEX(IndicData,ROW(AM36)-6,0) > INDEX(IndicData,COLUMN(AM36)-2,0), WeightsS)) -> 0.1666666667 | AN36: =SUM(IF(INDEX(IndicData,ROW(AN36)-6,0) > INDEX(IndicData,COLUMN(AN36)-2,0), WeightsS)) -> 0 | AO36: =SUM(IF(INDEX(IndicData,ROW(AO36)-6,0) > INDEX(IndicData,COLUMN(AO36)-2,0), WeightsS)) -> 0 | AP36: =SUM(IF(INDEX(IndicData,ROW(AP36)-6,0) > INDEX(IndicData,COLUMN(AP36)-2,0), WeightsS)) -> 0 | AQ36: =SUM(IF(INDEX(IndicData,ROW(AQ36)-6,0) > INDEX(IndicData,COLUMN(AQ36)-2,0), WeightsS)) -> 0.1666666667 | AR36: =SUM(IF(INDEX(IndicData,ROW(AR36)-6,0) > INDEX(IndicData,COLUMN(AR36)-2,0), WeightsS)) -> 0 | AS36: =SUM(IF(INDEX(IndicData,ROW(AS36)-6,0) > INDEX(IndicData,COLUMN(AS36)-2,0), WeightsS)) -> 0 | AT36: =SUM(IF(INDEX(IndicData,ROW(AT36)-6,0) > INDEX(IndicData,COLUMN(AT36)-2,0), WeightsS)) -> 0 | AU36: =SUM(IF(INDEX(IndicData,ROW(AU36)-6,0) > INDEX(IndicData,COLUMN(AU36)-2,0), WeightsS)) -> 0 | AV36: =SUM(IF(INDEX(IndicData,ROW(AV36)-6,0) > INDEX(IndicData,COLUMN(AV36)-2,0), WeightsS)) -> 0 | AW36: =SUM(IF(INDEX(IndicData,ROW(AW36)-6,0) > INDEX(IndicData,COLUMN(AW36)-2,0), WeightsS)) -> 0 | AX36: =SUM(IF(INDEX(IndicData,ROW(AX36)-6,0) > INDEX(IndicData,COLUMN(AX36)-2,0), WeightsS)) -> 0 | AY36: =SUM(IF(INDEX(IndicData,ROW(AY36)-6,0) > INDEX(IndicData,COLUMN(AY36)-2,0), WeightsS)) -> 0 | AZ36: =SUM(IF(INDEX(IndicData,ROW(AZ36)-6,0) > INDEX(IndicData,COLUMN(AZ36)-2,0), WeightsS)) -> 0
A37: 31 | B37: Unit31 | C37: =SUM(IF(INDEX(IndicData,ROW(C37)-6,0) > INDEX(IndicData,COLUMN(C37)-2,0), WeightsS)) -> 0.8333333333 | D37: =SUM(IF(INDEX(IndicData,ROW(D37)-6,0) > INDEX(IndicData,COLUMN(D37)-2,0), WeightsS)) -> 0.8333333333 | E37: =SUM(IF(INDEX(IndicData,ROW(E37)-6,0) > INDEX(IndicData,COLUMN(E37)-2,0), WeightsS)) -> 0.8333333333 | F37: =SUM(IF(INDEX(IndicData,ROW(F37)-6,0) > INDEX(IndicData,COLUMN(F37)-2,0), WeightsS)) -> 0.8333333333 | G37: =SUM(IF(INDEX(IndicData,ROW(G37)-6,0) > INDEX(IndicData,COLUMN(G37)-2,0), WeightsS)) -> 0.8333333333 | H37: =SUM(IF(INDEX(IndicData,ROW(H37)-6,0) > INDEX(IndicData,COLUMN(H37)-2,0), WeightsS)) -> 0.8333333333 | I37: =SUM(IF(INDEX(IndicData,ROW(I37)-6,0) > INDEX(IndicData,COLUMN(I37)-2,0), WeightsS)) -> 0.8333333333 | J37: =SUM(IF(INDEX(IndicData,ROW(J37)-6,0) > INDEX(IndicData,COLUMN(J37)-2,0), WeightsS)) -> 0.8333333333 | K37: =SUM(IF(INDEX(IndicData,ROW(K37)-6,0) > INDEX(IndicData,COLUMN(K37)-2,0), WeightsS)) -> 0.8333333333 | L37: =SUM(IF(INDEX(IndicData,ROW(L37)-6,0) > INDEX(IndicData,COLUMN(L37)-2,0), WeightsS)) -> 0.8333333333 | M37: =SUM(IF(INDEX(IndicData,ROW(M37)-6,0) > INDEX(IndicData,COLUMN(M37)-2,0), WeightsS)) -> 0.8333333333 | N37: =SUM(IF(INDEX(IndicData,ROW(N37)-6,0) > INDEX(IndicData,COLUMN(N37)-2,0), WeightsS)) -> 0.6666666667 | O37: =SUM(IF(INDEX(IndicData,ROW(O37)-6,0) > INDEX(IndicData,COLUMN(O37)-2,0), WeightsS)) -> 0.6666666667 | P37: =SUM(IF(INDEX(IndicData,ROW(P37)-6,0) > INDEX(IndicData,COLUMN(P37)-2,0), WeightsS)) -> 0.6666666667 | Q37: =SUM(IF(INDEX(IndicData,ROW(Q37)-6,0) > INDEX(IndicData,COLUMN(Q37)-2,0), WeightsS)) -> 0.8333333333 | R37: =SUM(IF(INDEX(IndicData,ROW(R37)-6,0) > INDEX(IndicData,COLUMN(R37)-2,0), WeightsS)) -> 0.8333333333 | S37: =SUM(IF(INDEX(IndicData,ROW(S37)-6,0) > INDEX(IndicData,COLUMN(S37)-2,0), WeightsS)) -> 0.8333333333 | T37: =SUM(IF(INDEX(IndicData,ROW(T37)-6,0) > INDEX(IndicData,COLUMN(T37)-2,0), WeightsS)) -> 0.6666666667 | U37: =SUM(IF(INDEX(IndicData,ROW(U37)-6,0) > INDEX(IndicData,COLUMN(U37)-2,0), WeightsS)) -> 0.8333333333 | V37: =SUM(IF(INDEX(IndicData,ROW(V37)-6,0) > INDEX(IndicData,COLUMN(V37)-2,0), WeightsS)) -> 0.6666666667 | W37: =SUM(IF(INDEX(IndicData,ROW(W37)-6,0) > INDEX(IndicData,COLUMN(W37)-2,0), WeightsS)) -> 0.8333333333 | X37: =SUM(IF(INDEX(IndicData,ROW(X37)-6,0) > INDEX(IndicData,COLUMN(X37)-2,0), WeightsS)) -> 0.8333333333 | Y37: =SUM(IF(INDEX(IndicData,ROW(Y37)-6,0) > INDEX(IndicData,COLUMN(Y37)-2,0), WeightsS)) -> 0.8333333333 | Z37: =SUM(IF(INDEX(IndicData,ROW(Z37)-6,0) > INDEX(IndicData,COLUMN(Z37)-2,0), WeightsS)) -> 0.6666666667 | AA37: =SUM(IF(INDEX(IndicData,ROW(AA37)-6,0) > INDEX(IndicData,COLUMN(AA37)-2,0), WeightsS)) -> 0.5 | AB37: =SUM(IF(INDEX(IndicData,ROW(AB37)-6,0) > INDEX(IndicData,COLUMN(AB37)-2,0), WeightsS)) -> 0.6666666667 | AC37: =SUM(IF(INDEX(IndicData,ROW(AC37)-6,0) > INDEX(IndicData,COLUMN(AC37)-2,0), WeightsS)) -> 0.6666666667 | AD37: =SUM(IF(INDEX(IndicData,ROW(AD37)-6,0) > INDEX(IndicData,COLUMN(AD37)-2,0), WeightsS)) -> 0.5 | AE37: =SUM(IF(INDEX(IndicData,ROW(AE37)-6,0) > INDEX(IndicData,COLUMN(AE37)-2,0), WeightsS)) -> 0.3333333333 | AF37: =SUM(IF(INDEX(IndicData,ROW(AF37)-6,0) > INDEX(IndicData,COLUMN(AF37)-2,0), WeightsS)) -> 0.5 | AG37: =SUM(IF(INDEX(IndicData,ROW(AG37)-6,0) > INDEX(IndicData,COLUMN(AG37)-2,0), WeightsS)) -> 0 | AH37: =SUM(IF(INDEX(IndicData,ROW(AH37)-6,0) > INDEX(IndicData,COLUMN(AH37)-2,0), WeightsS)) -> 0.1666666667 | AI37: =SUM(IF(INDEX(IndicData,ROW(AI37)-6,0) > INDEX(IndicData,COLUMN(AI37)-2,0), WeightsS)) -> 0 | AJ37: =SUM(IF(INDEX(IndicData,ROW(AJ37)-6,0) > INDEX(IndicData,COLUMN(AJ37)-2,0), WeightsS)) -> 0.3333333333 | AK37: =SUM(IF(INDEX(IndicData,ROW(AK37)-6,0) > INDEX(IndicData,COLUMN(AK37)-2,0), WeightsS)) -> 0.3333333333 | AL37: =SUM(IF(INDEX(IndicData,ROW(AL37)-6,0) > INDEX(IndicData,COLUMN(AL37)-2,0), WeightsS)) -> 0.3333333333 | AM37: =SUM(IF(INDEX(IndicData,ROW(AM37)-6,0) > INDEX(IndicData,COLUMN(AM37)-2,0), WeightsS)) -> 0.3333333333 | AN37: =SUM(IF(INDEX(IndicData,ROW(AN37)-6,0) > INDEX(IndicData,COLUMN(AN37)-2,0), WeightsS)) -> 0 | AO37: =SUM(IF(INDEX(IndicData,ROW(AO37)-6,0) > INDEX(IndicData,COLUMN(AO37)-2,0), WeightsS)) -> 0 | AP37: =SUM(IF(INDEX(IndicData,ROW(AP37)-6,0) > INDEX(IndicData,COLUMN(AP37)-2,0), WeightsS)) -> 0 | AQ37: =SUM(IF(INDEX(IndicData,ROW(AQ37)-6,0) > INDEX(IndicData,COLUMN(AQ37)-2,0), WeightsS)) -> 0 | AR37: =SUM(IF(INDEX(IndicData,ROW(AR37)-6,0) > INDEX(IndicData,COLUMN(AR37)-2,0), WeightsS)) -> 0 | AS37: =SUM(IF(INDEX(IndicData,ROW(AS37)-6,0) > INDEX(IndicData,COLUMN(AS37)-2,0), WeightsS)) -> 0.3333333333 | AT37: =SUM(IF(INDEX(IndicData,ROW(AT37)-6,0) > INDEX(IndicData,COLUMN(AT37)-2,0), WeightsS)) -> 0.1666666667 | AU37: =SUM(IF(INDEX(IndicData,ROW(AU37)-6,0) > INDEX(IndicData,COLUMN(AU37)-2,0), WeightsS)) -> 0 | AV37: =SUM(IF(INDEX(IndicData,ROW(AV37)-6,0) > INDEX(IndicData,COLUMN(AV37)-2,0), WeightsS)) -> 0 | AW37: =SUM(IF(INDEX(IndicData,ROW(AW37)-6,0) > INDEX(IndicData,COLUMN(AW37)-2,0), WeightsS)) -> 0 | AX37: =SUM(IF(INDEX(IndicData,ROW(AX37)-6,0) > INDEX(IndicData,COLUMN(AX37)-2,0), WeightsS)) -> 0 | AY37: =SUM(IF(INDEX(IndicData,ROW(AY37)-6,0) > INDEX(IndicData,COLUMN(AY37)-2,0), WeightsS)) -> 0 | AZ37: =SUM(IF(INDEX(IndicData,ROW(AZ37)-6,0) > INDEX(IndicData,COLUMN(AZ37)-2,0), WeightsS)) -> 0
A38: 32 | B38: Unit32 | C38: =SUM(IF(INDEX(IndicData,ROW(C38)-6,0) > INDEX(IndicData,COLUMN(C38)-2,0), WeightsS)) -> 0.8333333333 | D38: =SUM(IF(INDEX(IndicData,ROW(D38)-6,0) > INDEX(IndicData,COLUMN(D38)-2,0), WeightsS)) -> 0.8333333333 | E38: =SUM(IF(INDEX(IndicData,ROW(E38)-6,0) > INDEX(IndicData,COLUMN(E38)-2,0), WeightsS)) -> 0.8333333333 | F38: =SUM(IF(INDEX(IndicData,ROW(F38)-6,0) > INDEX(IndicData,COLUMN(F38)-2,0), WeightsS)) -> 0.8333333333 | G38: =SUM(IF(INDEX(IndicData,ROW(G38)-6,0) > INDEX(IndicData,COLUMN(G38)-2,0), WeightsS)) -> 0.8333333333 | H38: =SUM(IF(INDEX(IndicData,ROW(H38)-6,0) > INDEX(IndicData,COLUMN(H38)-2,0), WeightsS)) -> 0.8333333333 | I38: =SUM(IF(INDEX(IndicData,ROW(I38)-6,0) > INDEX(IndicData,COLUMN(I38)-2,0), WeightsS)) -> 0.8333333333 | J38: =SUM(IF(INDEX(IndicData,ROW(J38)-6,0) > INDEX(IndicData,COLUMN(J38)-2,0), WeightsS)) -> 0.8333333333 | K38: =SUM(IF(INDEX(IndicData,ROW(K38)-6,0) > INDEX(IndicData,COLUMN(K38)-2,0), WeightsS)) -> 0.8333333333 | L38: =SUM(IF(INDEX(IndicData,ROW(L38)-6,0) > INDEX(IndicData,COLUMN(L38)-2,0), WeightsS)) -> 0.8333333333 | M38: =SUM(IF(INDEX(IndicData,ROW(M38)-6,0) > INDEX(IndicData,COLUMN(M38)-2,0), WeightsS)) -> 0.8333333333 | N38: =SUM(IF(INDEX(IndicData,ROW(N38)-6,0) > INDEX(IndicData,COLUMN(N38)-2,0), WeightsS)) -> 0.6666666667 | O38: =SUM(IF(INDEX(IndicData,ROW(O38)-6,0) > INDEX(IndicData,COLUMN(O38)-2,0), WeightsS)) -> 0.6666666667 | P38: =SUM(IF(INDEX(IndicData,ROW(P38)-6,0) > INDEX(IndicData,COLUMN(P38)-2,0), WeightsS)) -> 0.6666666667 | Q38: =SUM(IF(INDEX(IndicData,ROW(Q38)-6,0) > INDEX(IndicData,COLUMN(Q38)-2,0), WeightsS)) -> 0.8333333333 | R38: =SUM(IF(INDEX(IndicData,ROW(R38)-6,0) > INDEX(IndicData,COLUMN(R38)-2,0), WeightsS)) -> 0.8333333333 | S38: =SUM(IF(INDEX(IndicData,ROW(S38)-6,0) > INDEX(IndicData,COLUMN(S38)-2,0), WeightsS)) -> 0.6666666667 | T38: =SUM(IF(INDEX(IndicData,ROW(T38)-6,0) > INDEX(IndicData,COLUMN(T38)-2,0), WeightsS)) -> 0.8333333333 | U38: =SUM(IF(INDEX(IndicData,ROW(U38)-6,0) > INDEX(IndicData,COLUMN(U38)-2,0), WeightsS)) -> 0.8333333333 | V38: =SUM(IF(INDEX(IndicData,ROW(V38)-6,0) > INDEX(IndicData,COLUMN(V38)-2,0), WeightsS)) -> 0.6666666667 | W38: =SUM(IF(INDEX(IndicData,ROW(W38)-6,0) > INDEX(IndicData,COLUMN(W38)-2,0), WeightsS)) -> 0.8333333333 | X38: =SUM(IF(INDEX(IndicData,ROW(X38)-6,0) > INDEX(IndicData,COLUMN(X38)-2,0), WeightsS)) -> 0.8333333333 | Y38: =SUM(IF(INDEX(IndicData,ROW(Y38)-6,0) > INDEX(IndicData,COLUMN(Y38)-2,0), WeightsS)) -> 0.8333333333 | Z38: =SUM(IF(INDEX(IndicData,ROW(Z38)-6,0) > INDEX(IndicData,COLUMN(Z38)-2,0), WeightsS)) -> 0.6666666667 | AA38: =SUM(IF(INDEX(IndicData,ROW(AA38)-6,0) > INDEX(IndicData,COLUMN(AA38)-2,0), WeightsS)) -> 0.6666666667 | AB38: =SUM(IF(INDEX(IndicData,ROW(AB38)-6,0) > INDEX(IndicData,COLUMN(AB38)-2,0), WeightsS)) -> 0.6666666667 | AC38: =SUM(IF(INDEX(IndicData,ROW(AC38)-6,0) > INDEX(IndicData,COLUMN(AC38)-2,0), WeightsS)) -> 0.6666666667 | AD38: =SUM(IF(INDEX(IndicData,ROW(AD38)-6,0) > INDEX(IndicData,COLUMN(AD38)-2,0), WeightsS)) -> 0.3333333333 | AE38: =SUM(IF(INDEX(IndicData,ROW(AE38)-6,0) > INDEX(IndicData,COLUMN(AE38)-2,0), WeightsS)) -> 0.5 | AF38: =SUM(IF(INDEX(IndicData,ROW(AF38)-6,0) > INDEX(IndicData,COLUMN(AF38)-2,0), WeightsS)) -> 0.5 | AG38: =SUM(IF(INDEX(IndicData,ROW(AG38)-6,0) > INDEX(IndicData,COLUMN(AG38)-2,0), WeightsS)) -> 0.1666666667 | AH38: =SUM(IF(INDEX(IndicData,ROW(AH38)-6,0) > INDEX(IndicData,COLUMN(AH38)-2,0), WeightsS)) -> 0 | AI38: =SUM(IF(INDEX(IndicData,ROW(AI38)-6,0) > INDEX(IndicData,COLUMN(AI38)-2,0), WeightsS)) -> 0 | AJ38: =SUM(IF(INDEX(IndicData,ROW(AJ38)-6,0) > INDEX(IndicData,COLUMN(AJ38)-2,0), WeightsS)) -> 0.3333333333 | AK38: =SUM(IF(INDEX(IndicData,ROW(AK38)-6,0) > INDEX(IndicData,COLUMN(AK38)-2,0), WeightsS)) -> 0.3333333333 | AL38: =SUM(IF(INDEX(IndicData,ROW(AL38)-6,0) > INDEX(IndicData,COLUMN(AL38)-2,0), WeightsS)) -> 0.3333333333 | AM38: =SUM(IF(INDEX(IndicData,ROW(AM38)-6,0) > INDEX(IndicData,COLUMN(AM38)-2,0), WeightsS)) -> 0.3333333333 | AN38: =SUM(IF(INDEX(IndicData,ROW(AN38)-6,0) > INDEX(IndicData,COLUMN(AN38)-2,0), WeightsS)) -> 0 | AO38: =SUM(IF(INDEX(IndicData,ROW(AO38)-6,0) > INDEX(IndicData,COLUMN(AO38)-2,0), WeightsS)) -> 0 | AP38: =SUM(IF(INDEX(IndicData,ROW(AP38)-6,0) > INDEX(IndicData,COLUMN(AP38)-2,0), WeightsS)) -> 0 | AQ38: =SUM(IF(INDEX(IndicData,ROW(AQ38)-6,0) > INDEX(IndicData,COLUMN(AQ38)-2,0), WeightsS)) -> 0.1666666667 | AR38: =SUM(IF(INDEX(IndicData,ROW(AR38)-6,0) > INDEX(IndicData,COLUMN(AR38)-2,0), WeightsS)) -> 0 | AS38: =SUM(IF(INDEX(IndicData,ROW(AS38)-6,0) > INDEX(IndicData,COLUMN(AS38)-2,0), WeightsS)) -> 0.1666666667 | AT38: =SUM(IF(INDEX(IndicData,ROW(AT38)-6,0) > INDEX(IndicData,COLUMN(AT38)-2,0), WeightsS)) -> 0.1666666667 | AU38: =SUM(IF(INDEX(IndicData,ROW(AU38)-6,0) > INDEX(IndicData,COLUMN(AU38)-2,0), WeightsS)) -> 0 | AV38: =SUM(IF(INDEX(IndicData,ROW(AV38)-6,0) > INDEX(IndicData,COLUMN(AV38)-2,0), WeightsS)) -> 0 | AW38: =SUM(IF(INDEX(IndicData,ROW(AW38)-6,0) > INDEX(IndicData,COLUMN(AW38)-2,0), WeightsS)) -> 0 | AX38: =SUM(IF(INDEX(IndicData,ROW(AX38)-6,0) > INDEX(IndicData,COLUMN(AX38)-2,0), WeightsS)) -> 0 | AY38: =SUM(IF(INDEX(IndicData,ROW(AY38)-6,0) > INDEX(IndicData,COLUMN(AY38)-2,0), WeightsS)) -> 0 | AZ38: =SUM(IF(INDEX(IndicData,ROW(AZ38)-6,0) > INDEX(IndicData,COLUMN(AZ38)-2,0), WeightsS)) -> 0
A39: 33 | B39: Unit33 | C39: =SUM(IF(INDEX(IndicData,ROW(C39)-6,0) > INDEX(IndicData,COLUMN(C39)-2,0), WeightsS)) -> 1 | D39: =SUM(IF(INDEX(IndicData,ROW(D39)-6,0) > INDEX(IndicData,COLUMN(D39)-2,0), WeightsS)) -> 1 | E39: =SUM(IF(INDEX(IndicData,ROW(E39)-6,0) > INDEX(IndicData,COLUMN(E39)-2,0), WeightsS)) -> 1 | F39: =SUM(IF(INDEX(IndicData,ROW(F39)-6,0) > INDEX(IndicData,COLUMN(F39)-2,0), WeightsS)) -> 1 | G39: =SUM(IF(INDEX(IndicData,ROW(G39)-6,0) > INDEX(IndicData,COLUMN(G39)-2,0), WeightsS)) -> 1 | H39: =SUM(IF(INDEX(IndicData,ROW(H39)-6,0) > INDEX(IndicData,COLUMN(H39)-2,0), WeightsS)) -> 0.8333333333 | I39: =SUM(IF(INDEX(IndicData,ROW(I39)-6,0) > INDEX(IndicData,COLUMN(I39)-2,0), WeightsS)) -> 0.8333333333 | J39: =SUM(IF(INDEX(IndicData,ROW(J39)-6,0) > INDEX(IndicData,COLUMN(J39)-2,0), WeightsS)) -> 1 | K39: =SUM(IF(INDEX(IndicData,ROW(K39)-6,0) > INDEX(IndicData,COLUMN(K39)-2,0), WeightsS)) -> 0.8333333333 | L39: =SUM(IF(INDEX(IndicData,ROW(L39)-6,0) > INDEX(IndicData,COLUMN(L39)-2,0), WeightsS)) -> 1 | M39: =SUM(IF(INDEX(IndicData,ROW(M39)-6,0) > INDEX(IndicData,COLUMN(M39)-2,0), WeightsS)) -> 0.8333333333 | N39: =SUM(IF(INDEX(IndicData,ROW(N39)-6,0) > INDEX(IndicData,COLUMN(N39)-2,0), WeightsS)) -> 0.8333333333 | O39: =SUM(IF(INDEX(IndicData,ROW(O39)-6,0) > INDEX(IndicData,COLUMN(O39)-2,0), WeightsS)) -> 0.6666666667 | P39: =SUM(IF(INDEX(IndicData,ROW(P39)-6,0) > INDEX(IndicData,COLUMN(P39)-2,0), WeightsS)) -> 0.6666666667 | Q39: =SUM(IF(INDEX(IndicData,ROW(Q39)-6,0) > INDEX(IndicData,COLUMN(Q39)-2,0), WeightsS)) -> 1 | R39: =SUM(IF(INDEX(IndicData,ROW(R39)-6,0) > INDEX(IndicData,COLUMN(R39)-2,0), WeightsS)) -> 1 | S39: =SUM(IF(INDEX(IndicData,ROW(S39)-6,0) > INDEX(IndicData,COLUMN(S39)-2,0), WeightsS)) -> 0.8333333333 | T39: =SUM(IF(INDEX(IndicData,ROW(T39)-6,0) > INDEX(IndicData,COLUMN(T39)-2,0), WeightsS)) -> 1 | U39: =SUM(IF(INDEX(IndicData,ROW(U39)-6,0) > INDEX(IndicData,COLUMN(U39)-2,0), WeightsS)) -> 1 | V39: =SUM(IF(INDEX(IndicData,ROW(V39)-6,0) > INDEX(IndicData,COLUMN(V39)-2,0), WeightsS)) -> 1 | W39: =SUM(IF(INDEX(IndicData,ROW(W39)-6,0) > INDEX(IndicData,COLUMN(W39)-2,0), WeightsS)) -> 1 | X39: =SUM(IF(INDEX(IndicData,ROW(X39)-6,0) > INDEX(IndicData,COLUMN(X39)-2,0), WeightsS)) -> 1 | Y39: =SUM(IF(INDEX(IndicData,ROW(Y39)-6,0) > INDEX(IndicData,COLUMN(Y39)-2,0), WeightsS)) -> 1 | Z39: =SUM(IF(INDEX(IndicData,ROW(Z39)-6,0) > INDEX(IndicData,COLUMN(Z39)-2,0), WeightsS)) -> 0.8333333333 | AA39: =SUM(IF(INDEX(IndicData,ROW(AA39)-6,0) > INDEX(IndicData,COLUMN(AA39)-2,0), WeightsS)) -> 1 | AB39: =SUM(IF(INDEX(IndicData,ROW(AB39)-6,0) > INDEX(IndicData,COLUMN(AB39)-2,0), WeightsS)) -> 1 | AC39: =SUM(IF(INDEX(IndicData,ROW(AC39)-6,0) > INDEX(IndicData,COLUMN(AC39)-2,0), WeightsS)) -> 1 | AD39: =SUM(IF(INDEX(IndicData,ROW(AD39)-6,0) > INDEX(IndicData,COLUMN(AD39)-2,0), WeightsS)) -> 0.6666666667 | AE39: =SUM(IF(INDEX(IndicData,ROW(AE39)-6,0) > INDEX(IndicData,COLUMN(AE39)-2,0), WeightsS)) -> 0.6666666667 | AF39: =SUM(IF(INDEX(IndicData,ROW(AF39)-6,0) > INDEX(IndicData,COLUMN(AF39)-2,0), WeightsS)) -> 0.6666666667 | AG39: =SUM(IF(INDEX(IndicData,ROW(AG39)-6,0) > INDEX(IndicData,COLUMN(AG39)-2,0), WeightsS)) -> 0.6666666667 | AH39: =SUM(IF(INDEX(IndicData,ROW(AH39)-6,0) > INDEX(IndicData,COLUMN(AH39)-2,0), WeightsS)) -> 0.6666666667 | AI39: =SUM(IF(INDEX(IndicData,ROW(AI39)-6,0) > INDEX(IndicData,COLUMN(AI39)-2,0), WeightsS)) -> 0 | AJ39: =SUM(IF(INDEX(IndicData,ROW(AJ39)-6,0) > INDEX(IndicData,COLUMN(AJ39)-2,0), WeightsS)) -> 0.3333333333 | AK39: =SUM(IF(INDEX(IndicData,ROW(AK39)-6,0) > INDEX(IndicData,COLUMN(AK39)-2,0), WeightsS)) -> 0.3333333333 | AL39: =SUM(IF(INDEX(IndicData,ROW(AL39)-6,0) > INDEX(IndicData,COLUMN(AL39)-2,0), WeightsS)) -> 0.3333333333 | AM39: =SUM(IF(INDEX(IndicData,ROW(AM39)-6,0) > INDEX(IndicData,COLUMN(AM39)-2,0), WeightsS)) -> 0.3333333333 | AN39: =SUM(IF(INDEX(IndicData,ROW(AN39)-6,0) > INDEX(IndicData,COLUMN(AN39)-2,0), WeightsS)) -> 0.3333333333 | AO39: =SUM(IF(INDEX(IndicData,ROW(AO39)-6,0) > INDEX(IndicData,COLUMN(AO39)-2,0), WeightsS)) -> 0.1666666667 | AP39: =SUM(IF(INDEX(IndicData,ROW(AP39)-6,0) > INDEX(IndicData,COLUMN(AP39)-2,0), WeightsS)) -> 0.1666666667 | AQ39: =SUM(IF(INDEX(IndicData,ROW(AQ39)-6,0) > INDEX(IndicData,COLUMN(AQ39)-2,0), WeightsS)) -> 0.1666666667 | AR39: =SUM(IF(INDEX(IndicData,ROW(AR39)-6,0) > INDEX(IndicData,COLUMN(AR39)-2,0), WeightsS)) -> 0 | AS39: =SUM(IF(INDEX(IndicData,ROW(AS39)-6,0) > INDEX(IndicData,COLUMN(AS39)-2,0), WeightsS)) -> 0.5 | AT39: =SUM(IF(INDEX(IndicData,ROW(AT39)-6,0) > INDEX(IndicData,COLUMN(AT39)-2,0), WeightsS)) -> 0.3333333333 | AU39: =SUM(IF(INDEX(IndicData,ROW(AU39)-6,0) > INDEX(IndicData,COLUMN(AU39)-2,0), WeightsS)) -> 0 | AV39: =SUM(IF(INDEX(IndicData,ROW(AV39)-6,0) > INDEX(IndicData,COLUMN(AV39)-2,0), WeightsS)) -> 0 | AW39: =SUM(IF(INDEX(IndicData,ROW(AW39)-6,0) > INDEX(IndicData,COLUMN(AW39)-2,0), WeightsS)) -> 0 | AX39: =SUM(IF(INDEX(IndicData,ROW(AX39)-6,0) > INDEX(IndicData,COLUMN(AX39)-2,0), WeightsS)) -> 0.1666666667 | AY39: =SUM(IF(INDEX(IndicData,ROW(AY39)-6,0) > INDEX(IndicData,COLUMN(AY39)-2,0), WeightsS)) -> 0.1666666667 | AZ39: =SUM(IF(INDEX(IndicData,ROW(AZ39)-6,0) > INDEX(IndicData,COLUMN(AZ39)-2,0), WeightsS)) -> 0
A40: 34 | B40: Unit34 | C40: =SUM(IF(INDEX(IndicData,ROW(C40)-6,0) > INDEX(IndicData,COLUMN(C40)-2,0), WeightsS)) -> 1 | D40: =SUM(IF(INDEX(IndicData,ROW(D40)-6,0) > INDEX(IndicData,COLUMN(D40)-2,0), WeightsS)) -> 1 | E40: =SUM(IF(INDEX(IndicData,ROW(E40)-6,0) > INDEX(IndicData,COLUMN(E40)-2,0), WeightsS)) -> 1 | F40: =SUM(IF(INDEX(IndicData,ROW(F40)-6,0) > INDEX(IndicData,COLUMN(F40)-2,0), WeightsS)) -> 0.8333333333 | G40: =SUM(IF(INDEX(IndicData,ROW(G40)-6,0) > INDEX(IndicData,COLUMN(G40)-2,0), WeightsS)) -> 0.8333333333 | H40: =SUM(IF(INDEX(IndicData,ROW(H40)-6,0) > INDEX(IndicData,COLUMN(H40)-2,0), WeightsS)) -> 0.6666666667 | I40: =SUM(IF(INDEX(IndicData,ROW(I40)-6,0) > INDEX(IndicData,COLUMN(I40)-2,0), WeightsS)) -> 0.6666666667 | J40: =SUM(IF(INDEX(IndicData,ROW(J40)-6,0) > INDEX(IndicData,COLUMN(J40)-2,0), WeightsS)) -> 0.8333333333 | K40: =SUM(IF(INDEX(IndicData,ROW(K40)-6,0) > INDEX(IndicData,COLUMN(K40)-2,0), WeightsS)) -> 0.5 | L40: =SUM(IF(INDEX(IndicData,ROW(L40)-6,0) > INDEX(IndicData,COLUMN(L40)-2,0), WeightsS)) -> 0.8333333333 | M40: =SUM(IF(INDEX(IndicData,ROW(M40)-6,0) > INDEX(IndicData,COLUMN(M40)-2,0), WeightsS)) -> 0.5 | N40: =SUM(IF(INDEX(IndicData,ROW(N40)-6,0) > INDEX(IndicData,COLUMN(N40)-2,0), WeightsS)) -> 0.5 | O40: =SUM(IF(INDEX(IndicData,ROW(O40)-6,0) > INDEX(IndicData,COLUMN(O40)-2,0), WeightsS)) -> 0.5 | P40: =SUM(IF(INDEX(IndicData,ROW(P40)-6,0) > INDEX(IndicData,COLUMN(P40)-2,0), WeightsS)) -> 0.5 | Q40: =SUM(IF(INDEX(IndicData,ROW(Q40)-6,0) > INDEX(IndicData,COLUMN(Q40)-2,0), WeightsS)) -> 1 | R40: =SUM(IF(INDEX(IndicData,ROW(R40)-6,0) > INDEX(IndicData,COLUMN(R40)-2,0), WeightsS)) -> 0.8333333333 | S40: =SUM(IF(INDEX(IndicData,ROW(S40)-6,0) > INDEX(IndicData,COLUMN(S40)-2,0), WeightsS)) -> 0.5 | T40: =SUM(IF(INDEX(IndicData,ROW(T40)-6,0) > INDEX(IndicData,COLUMN(T40)-2,0), WeightsS)) -> 1 | U40: =SUM(IF(INDEX(IndicData,ROW(U40)-6,0) > INDEX(IndicData,COLUMN(U40)-2,0), WeightsS)) -> 0.8333333333 | V40: =SUM(IF(INDEX(IndicData,ROW(V40)-6,0) > INDEX(IndicData,COLUMN(V40)-2,0), WeightsS)) -> 0.6666666667 | W40: =SUM(IF(INDEX(IndicData,ROW(W40)-6,0) > INDEX(IndicData,COLUMN(W40)-2,0), WeightsS)) -> 0.8333333333 | X40: =SUM(IF(INDEX(IndicData,ROW(X40)-6,0) > INDEX(IndicData,COLUMN(X40)-2,0), WeightsS)) -> 0.6666666667 | Y40: =SUM(IF(INDEX(IndicData,ROW(Y40)-6,0) > INDEX(IndicData,COLUMN(Y40)-2,0), WeightsS)) -> 0.6666666667 | Z40: =SUM(IF(INDEX(IndicData,ROW(Z40)-6,0) > INDEX(IndicData,COLUMN(Z40)-2,0), WeightsS)) -> 0.5 | AA40: =SUM(IF(INDEX(IndicData,ROW(AA40)-6,0) > INDEX(IndicData,COLUMN(AA40)-2,0), WeightsS)) -> 0.6666666667 | AB40: =SUM(IF(INDEX(IndicData,ROW(AB40)-6,0) > INDEX(IndicData,COLUMN(AB40)-2,0), WeightsS)) -> 0.8333333333 | AC40: =SUM(IF(INDEX(IndicData,ROW(AC40)-6,0) > INDEX(IndicData,COLUMN(AC40)-2,0), WeightsS)) -> 0.8333333333 | AD40: =SUM(IF(INDEX(IndicData,ROW(AD40)-6,0) > INDEX(IndicData,COLUMN(AD40)-2,0), WeightsS)) -> 0.5 | AE40: =SUM(IF(INDEX(IndicData,ROW(AE40)-6,0) > INDEX(IndicData,COLUMN(AE40)-2,0), WeightsS)) -> 0.5 | AF40: =SUM(IF(INDEX(IndicData,ROW(AF40)-6,0) > INDEX(IndicData,COLUMN(AF40)-2,0), WeightsS)) -> 0.5 | AG40: =SUM(IF(INDEX(IndicData,ROW(AG40)-6,0) > INDEX(IndicData,COLUMN(AG40)-2,0), WeightsS)) -> 0.5 | AH40: =SUM(IF(INDEX(IndicData,ROW(AH40)-6,0) > INDEX(IndicData,COLUMN(AH40)-2,0), WeightsS)) -> 0.5 | AI40: =SUM(IF(INDEX(IndicData,ROW(AI40)-6,0) > INDEX(IndicData,COLUMN(AI40)-2,0), WeightsS)) -> 0.1666666667 | AJ40: =SUM(IF(INDEX(IndicData,ROW(AJ40)-6,0) > INDEX(IndicData,COLUMN(AJ40)-2,0), WeightsS)) -> 0 | AK40: =SUM(IF(INDEX(IndicData,ROW(AK40)-6,0) > INDEX(IndicData,COLUMN(AK40)-2,0), WeightsS)) -> 0 | AL40: =SUM(IF(INDEX(IndicData,ROW(AL40)-6,0) > INDEX(IndicData,COLUMN(AL40)-2,0), WeightsS)) -> 0 | AM40: =SUM(IF(INDEX(IndicData,ROW(AM40)-6,0) > INDEX(IndicData,COLUMN(AM40)-2,0), WeightsS)) -> 0 | AN40: =SUM(IF(INDEX(IndicData,ROW(AN40)-6,0) > INDEX(IndicData,COLUMN(AN40)-2,0), WeightsS)) -> 0 | AO40: =SUM(IF(INDEX(IndicData,ROW(AO40)-6,0) > INDEX(IndicData,COLUMN(AO40)-2,0), WeightsS)) -> 0 | AP40: =SUM(IF(INDEX(IndicData,ROW(AP40)-6,0) > INDEX(IndicData,COLUMN(AP40)-2,0), WeightsS)) -> 0 | AQ40: =SUM(IF(INDEX(IndicData,ROW(AQ40)-6,0) > INDEX(IndicData,COLUMN(AQ40)-2,0), WeightsS)) -> 0.1666666667 | AR40: =SUM(IF(INDEX(IndicData,ROW(AR40)-6,0) > INDEX(IndicData,COLUMN(AR40)-2,0), WeightsS)) -> 0 | AS40: =SUM(IF(INDEX(IndicData,ROW(AS40)-6,0) > INDEX(IndicData,COLUMN(AS40)-2,0), WeightsS)) -> 0.3333333333 | AT40: =SUM(IF(INDEX(IndicData,ROW(AT40)-6,0) > INDEX(IndicData,COLUMN(AT40)-2,0), WeightsS)) -> 0.1666666667 | AU40: =SUM(IF(INDEX(IndicData,ROW(AU40)-6,0) > INDEX(IndicData,COLUMN(AU40)-2,0), WeightsS)) -> 0 | AV40: =SUM(IF(INDEX(IndicData,ROW(AV40)-6,0) > INDEX(IndicData,COLUMN(AV40)-2,0), WeightsS)) -> 0 | AW40: =SUM(IF(INDEX(IndicData,ROW(AW40)-6,0) > INDEX(IndicData,COLUMN(AW40)-2,0), WeightsS)) -> 0 | AX40: =SUM(IF(INDEX(IndicData,ROW(AX40)-6,0) > INDEX(IndicData,COLUMN(AX40)-2,0), WeightsS)) -> 0 | AY40: =SUM(IF(INDEX(IndicData,ROW(AY40)-6,0) > INDEX(IndicData,COLUMN(AY40)-2,0), WeightsS)) -> 0 | AZ40: =SUM(IF(INDEX(IndicData,ROW(AZ40)-6,0) > INDEX(IndicData,COLUMN(AZ40)-2,0), WeightsS)) -> 0
A41: 35 | B41: Unit35 | C41: =SUM(IF(INDEX(IndicData,ROW(C41)-6,0) > INDEX(IndicData,COLUMN(C41)-2,0), WeightsS)) -> 1 | D41: =SUM(IF(INDEX(IndicData,ROW(D41)-6,0) > INDEX(IndicData,COLUMN(D41)-2,0), WeightsS)) -> 1 | E41: =SUM(IF(INDEX(IndicData,ROW(E41)-6,0) > INDEX(IndicData,COLUMN(E41)-2,0), WeightsS)) -> 1 | F41: =SUM(IF(INDEX(IndicData,ROW(F41)-6,0) > INDEX(IndicData,COLUMN(F41)-2,0), WeightsS)) -> 0.8333333333 | G41: =SUM(IF(INDEX(IndicData,ROW(G41)-6,0) > INDEX(IndicData,COLUMN(G41)-2,0), WeightsS)) -> 0.8333333333 | H41: =SUM(IF(INDEX(IndicData,ROW(H41)-6,0) > INDEX(IndicData,COLUMN(H41)-2,0), WeightsS)) -> 0.6666666667 | I41: =SUM(IF(INDEX(IndicData,ROW(I41)-6,0) > INDEX(IndicData,COLUMN(I41)-2,0), WeightsS)) -> 0.6666666667 | J41: =SUM(IF(INDEX(IndicData,ROW(J41)-6,0) > INDEX(IndicData,COLUMN(J41)-2,0), WeightsS)) -> 0.8333333333 | K41: =SUM(IF(INDEX(IndicData,ROW(K41)-6,0) > INDEX(IndicData,COLUMN(K41)-2,0), WeightsS)) -> 0.5 | L41: =SUM(IF(INDEX(IndicData,ROW(L41)-6,0) > INDEX(IndicData,COLUMN(L41)-2,0), WeightsS)) -> 0.8333333333 | M41: =SUM(IF(INDEX(IndicData,ROW(M41)-6,0) > INDEX(IndicData,COLUMN(M41)-2,0), WeightsS)) -> 0.5 | N41: =SUM(IF(INDEX(IndicData,ROW(N41)-6,0) > INDEX(IndicData,COLUMN(N41)-2,0), WeightsS)) -> 0.5 | O41: =SUM(IF(INDEX(IndicData,ROW(O41)-6,0) > INDEX(IndicData,COLUMN(O41)-2,0), WeightsS)) -> 0.5 | P41: =SUM(IF(INDEX(IndicData,ROW(P41)-6,0) > INDEX(IndicData,COLUMN(P41)-2,0), WeightsS)) -> 0.5 | Q41: =SUM(IF(INDEX(IndicData,ROW(Q41)-6,0) > INDEX(IndicData,COLUMN(Q41)-2,0), WeightsS)) -> 1 | R41: =SUM(IF(INDEX(IndicData,ROW(R41)-6,0) > INDEX(IndicData,COLUMN(R41)-2,0), WeightsS)) -> 0.8333333333 | S41: =SUM(IF(INDEX(IndicData,ROW(S41)-6,0) > INDEX(IndicData,COLUMN(S41)-2,0), WeightsS)) -> 0.5 | T41: =SUM(IF(INDEX(IndicData,ROW(T41)-6,0) > INDEX(IndicData,COLUMN(T41)-2,0), WeightsS)) -> 1 | U41: =SUM(IF(INDEX(IndicData,ROW(U41)-6,0) > INDEX(IndicData,COLUMN(U41)-2,0), WeightsS)) -> 0.8333333333 | V41: =SUM(IF(INDEX(IndicData,ROW(V41)-6,0) > INDEX(IndicData,COLUMN(V41)-2,0), WeightsS)) -> 0.6666666667 | W41: =SUM(IF(INDEX(IndicData,ROW(W41)-6,0) > INDEX(IndicData,COLUMN(W41)-2,0), WeightsS)) -> 0.8333333333 | X41: =SUM(IF(INDEX(IndicData,ROW(X41)-6,0) > INDEX(IndicData,COLUMN(X41)-2,0), WeightsS)) -> 0.6666666667 | Y41: =SUM(IF(INDEX(IndicData,ROW(Y41)-6,0) > INDEX(IndicData,COLUMN(Y41)-2,0), WeightsS)) -> 0.6666666667 | Z41: =SUM(IF(INDEX(IndicData,ROW(Z41)-6,0) > INDEX(IndicData,COLUMN(Z41)-2,0), WeightsS)) -> 0.5 | AA41: =SUM(IF(INDEX(IndicData,ROW(AA41)-6,0) > INDEX(IndicData,COLUMN(AA41)-2,0), WeightsS)) -> 0.6666666667 | AB41: =SUM(IF(INDEX(IndicData,ROW(AB41)-6,0) > INDEX(IndicData,COLUMN(AB41)-2,0), WeightsS)) -> 0.8333333333 | AC41: =SUM(IF(INDEX(IndicData,ROW(AC41)-6,0) > INDEX(IndicData,COLUMN(AC41)-2,0), WeightsS)) -> 0.8333333333 | AD41: =SUM(IF(INDEX(IndicData,ROW(AD41)-6,0) > INDEX(IndicData,COLUMN(AD41)-2,0), WeightsS)) -> 0.5 | AE41: =SUM(IF(INDEX(IndicData,ROW(AE41)-6,0) > INDEX(IndicData,COLUMN(AE41)-2,0), WeightsS)) -> 0.5 | AF41: =SUM(IF(INDEX(IndicData,ROW(AF41)-6,0) > INDEX(IndicData,COLUMN(AF41)-2,0), WeightsS)) -> 0.6666666667 | AG41: =SUM(IF(INDEX(IndicData,ROW(AG41)-6,0) > INDEX(IndicData,COLUMN(AG41)-2,0), WeightsS)) -> 0.5 | AH41: =SUM(IF(INDEX(IndicData,ROW(AH41)-6,0) > INDEX(IndicData,COLUMN(AH41)-2,0), WeightsS)) -> 0.6666666667 | AI41: =SUM(IF(INDEX(IndicData,ROW(AI41)-6,0) > INDEX(IndicData,COLUMN(AI41)-2,0), WeightsS)) -> 0.3333333333 | AJ41: =SUM(IF(INDEX(IndicData,ROW(AJ41)-6,0) > INDEX(IndicData,COLUMN(AJ41)-2,0), WeightsS)) -> 0.1666666667 | AK41: =SUM(IF(INDEX(IndicData,ROW(AK41)-6,0) > INDEX(IndicData,COLUMN(AK41)-2,0), WeightsS)) -> 0 | AL41: =SUM(IF(INDEX(IndicData,ROW(AL41)-6,0) > INDEX(IndicData,COLUMN(AL41)-2,0), WeightsS)) -> 0 | AM41: =SUM(IF(INDEX(IndicData,ROW(AM41)-6,0) > INDEX(IndicData,COLUMN(AM41)-2,0), WeightsS)) -> 0 | AN41: =SUM(IF(INDEX(IndicData,ROW(AN41)-6,0) > INDEX(IndicData,COLUMN(AN41)-2,0), WeightsS)) -> 0 | AO41: =SUM(IF(INDEX(IndicData,ROW(AO41)-6,0) > INDEX(IndicData,COLUMN(AO41)-2,0), WeightsS)) -> 0 | AP41: =SUM(IF(INDEX(IndicData,ROW(AP41)-6,0) > INDEX(IndicData,COLUMN(AP41)-2,0), WeightsS)) -> 0 | AQ41: =SUM(IF(INDEX(IndicData,ROW(AQ41)-6,0) > INDEX(IndicData,COLUMN(AQ41)-2,0), WeightsS)) -> 0.1666666667 | AR41: =SUM(IF(INDEX(IndicData,ROW(AR41)-6,0) > INDEX(IndicData,COLUMN(AR41)-2,0), WeightsS)) -> 0.1666666667 | AS41: =SUM(IF(INDEX(IndicData,ROW(AS41)-6,0) > INDEX(IndicData,COLUMN(AS41)-2,0), WeightsS)) -> 0.3333333333 | AT41: =SUM(IF(INDEX(IndicData,ROW(AT41)-6,0) > INDEX(IndicData,COLUMN(AT41)-2,0), WeightsS)) -> 0.1666666667 | AU41: =SUM(IF(INDEX(IndicData,ROW(AU41)-6,0) > INDEX(IndicData,COLUMN(AU41)-2,0), WeightsS)) -> 0 | AV41: =SUM(IF(INDEX(IndicData,ROW(AV41)-6,0) > INDEX(IndicData,COLUMN(AV41)-2,0), WeightsS)) -> 0 | AW41: =SUM(IF(INDEX(IndicData,ROW(AW41)-6,0) > INDEX(IndicData,COLUMN(AW41)-2,0), WeightsS)) -> 0 | AX41: =SUM(IF(INDEX(IndicData,ROW(AX41)-6,0) > INDEX(IndicData,COLUMN(AX41)-2,0), WeightsS)) -> 0 | AY41: =SUM(IF(INDEX(IndicData,ROW(AY41)-6,0) > INDEX(IndicData,COLUMN(AY41)-2,0), WeightsS)) -> 0 | AZ41: =SUM(IF(INDEX(IndicData,ROW(AZ41)-6,0) > INDEX(IndicData,COLUMN(AZ41)-2,0), WeightsS)) -> 0
A42: 36 | B42: Unit36 | C42: =SUM(IF(INDEX(IndicData,ROW(C42)-6,0) > INDEX(IndicData,COLUMN(C42)-2,0), WeightsS)) -> 1 | D42: =SUM(IF(INDEX(IndicData,ROW(D42)-6,0) > INDEX(IndicData,COLUMN(D42)-2,0), WeightsS)) -> 1 | E42: =SUM(IF(INDEX(IndicData,ROW(E42)-6,0) > INDEX(IndicData,COLUMN(E42)-2,0), WeightsS)) -> 1 | F42: =SUM(IF(INDEX(IndicData,ROW(F42)-6,0) > INDEX(IndicData,COLUMN(F42)-2,0), WeightsS)) -> 0.8333333333 | G42: =SUM(IF(INDEX(IndicData,ROW(G42)-6,0) > INDEX(IndicData,COLUMN(G42)-2,0), WeightsS)) -> 0.8333333333 | H42: =SUM(IF(INDEX(IndicData,ROW(H42)-6,0) > INDEX(IndicData,COLUMN(H42)-2,0), WeightsS)) -> 0.6666666667 | I42: =SUM(IF(INDEX(IndicData,ROW(I42)-6,0) > INDEX(IndicData,COLUMN(I42)-2,0), WeightsS)) -> 0.6666666667 | J42: =SUM(IF(INDEX(IndicData,ROW(J42)-6,0) > INDEX(IndicData,COLUMN(J42)-2,0), WeightsS)) -> 0.8333333333 | K42: =SUM(IF(INDEX(IndicData,ROW(K42)-6,0) > INDEX(IndicData,COLUMN(K42)-2,0), WeightsS)) -> 0.5 | L42: =SUM(IF(INDEX(IndicData,ROW(L42)-6,0) > INDEX(IndicData,COLUMN(L42)-2,0), WeightsS)) -> 0.8333333333 | M42: =SUM(IF(INDEX(IndicData,ROW(M42)-6,0) > INDEX(IndicData,COLUMN(M42)-2,0), WeightsS)) -> 0.5 | N42: =SUM(IF(INDEX(IndicData,ROW(N42)-6,0) > INDEX(IndicData,COLUMN(N42)-2,0), WeightsS)) -> 0.5 | O42: =SUM(IF(INDEX(IndicData,ROW(O42)-6,0) > INDEX(IndicData,COLUMN(O42)-2,0), WeightsS)) -> 0.5 | P42: =SUM(IF(INDEX(IndicData,ROW(P42)-6,0) > INDEX(IndicData,COLUMN(P42)-2,0), WeightsS)) -> 0.5 | Q42: =SUM(IF(INDEX(IndicData,ROW(Q42)-6,0) > INDEX(IndicData,COLUMN(Q42)-2,0), WeightsS)) -> 1 | R42: =SUM(IF(INDEX(IndicData,ROW(R42)-6,0) > INDEX(IndicData,COLUMN(R42)-2,0), WeightsS)) -> 0.8333333333 | S42: =SUM(IF(INDEX(IndicData,ROW(S42)-6,0) > INDEX(IndicData,COLUMN(S42)-2,0), WeightsS)) -> 0.5 | T42: =SUM(IF(INDEX(IndicData,ROW(T42)-6,0) > INDEX(IndicData,COLUMN(T42)-2,0), WeightsS)) -> 1 | U42: =SUM(IF(INDEX(IndicData,ROW(U42)-6,0) > INDEX(IndicData,COLUMN(U42)-2,0), WeightsS)) -> 0.8333333333 | V42: =SUM(IF(INDEX(IndicData,ROW(V42)-6,0) > INDEX(IndicData,COLUMN(V42)-2,0), WeightsS)) -> 0.6666666667 | W42: =SUM(IF(INDEX(IndicData,ROW(W42)-6,0) > INDEX(IndicData,COLUMN(W42)-2,0), WeightsS)) -> 0.8333333333 | X42: =SUM(IF(INDEX(IndicData,ROW(X42)-6,0) > INDEX(IndicData,COLUMN(X42)-2,0), WeightsS)) -> 0.6666666667 | Y42: =SUM(IF(INDEX(IndicData,ROW(Y42)-6,0) > INDEX(IndicData,COLUMN(Y42)-2,0), WeightsS)) -> 0.6666666667 | Z42: =SUM(IF(INDEX(IndicData,ROW(Z42)-6,0) > INDEX(IndicData,COLUMN(Z42)-2,0), WeightsS)) -> 0.5 | AA42: =SUM(IF(INDEX(IndicData,ROW(AA42)-6,0) > INDEX(IndicData,COLUMN(AA42)-2,0), WeightsS)) -> 0.6666666667 | AB42: =SUM(IF(INDEX(IndicData,ROW(AB42)-6,0) > INDEX(IndicData,COLUMN(AB42)-2,0), WeightsS)) -> 0.8333333333 | AC42: =SUM(IF(INDEX(IndicData,ROW(AC42)-6,0) > INDEX(IndicData,COLUMN(AC42)-2,0), WeightsS)) -> 0.8333333333 | AD42: =SUM(IF(INDEX(IndicData,ROW(AD42)-6,0) > INDEX(IndicData,COLUMN(AD42)-2,0), WeightsS)) -> 0.5 | AE42: =SUM(IF(INDEX(IndicData,ROW(AE42)-6,0) > INDEX(IndicData,COLUMN(AE42)-2,0), WeightsS)) -> 0.5 | AF42: =SUM(IF(INDEX(IndicData,ROW(AF42)-6,0) > INDEX(IndicData,COLUMN(AF42)-2,0), WeightsS)) -> 0.6666666667 | AG42: =SUM(IF(INDEX(IndicData,ROW(AG42)-6,0) > INDEX(IndicData,COLUMN(AG42)-2,0), WeightsS)) -> 0.5 | AH42: =SUM(IF(INDEX(IndicData,ROW(AH42)-6,0) > INDEX(IndicData,COLUMN(AH42)-2,0), WeightsS)) -> 0.6666666667 | AI42: =SUM(IF(INDEX(IndicData,ROW(AI42)-6,0) > INDEX(IndicData,COLUMN(AI42)-2,0), WeightsS)) -> 0.3333333333 | AJ42: =SUM(IF(INDEX(IndicData,ROW(AJ42)-6,0) > INDEX(IndicData,COLUMN(AJ42)-2,0), WeightsS)) -> 0.1666666667 | AK42: =SUM(IF(INDEX(IndicData,ROW(AK42)-6,0) > INDEX(IndicData,COLUMN(AK42)-2,0), WeightsS)) -> 0.1666666667 | AL42: =SUM(IF(INDEX(IndicData,ROW(AL42)-6,0) > INDEX(IndicData,COLUMN(AL42)-2,0), WeightsS)) -> 0 | AM42: =SUM(IF(INDEX(IndicData,ROW(AM42)-6,0) > INDEX(IndicData,COLUMN(AM42)-2,0), WeightsS)) -> 0 | AN42: =SUM(IF(INDEX(IndicData,ROW(AN42)-6,0) > INDEX(IndicData,COLUMN(AN42)-2,0), WeightsS)) -> 0.1666666667 | AO42: =SUM(IF(INDEX(IndicData,ROW(AO42)-6,0) > INDEX(IndicData,COLUMN(AO42)-2,0), WeightsS)) -> 0.1666666667 | AP42: =SUM(IF(INDEX(IndicData,ROW(AP42)-6,0) > INDEX(IndicData,COLUMN(AP42)-2,0), WeightsS)) -> 0 | AQ42: =SUM(IF(INDEX(IndicData,ROW(AQ42)-6,0) > INDEX(IndicData,COLUMN(AQ42)-2,0), WeightsS)) -> 0.1666666667 | AR42: =SUM(IF(INDEX(IndicData,ROW(AR42)-6,0) > INDEX(IndicData,COLUMN(AR42)-2,0), WeightsS)) -> 0.1666666667 | AS42: =SUM(IF(INDEX(IndicData,ROW(AS42)-6,0) > INDEX(IndicData,COLUMN(AS42)-2,0), WeightsS)) -> 0.5 | AT42: =SUM(IF(INDEX(IndicData,ROW(AT42)-6,0) > INDEX(IndicData,COLUMN(AT42)-2,0), WeightsS)) -> 0.3333333333 | AU42: =SUM(IF(INDEX(IndicData,ROW(AU42)-6,0) > INDEX(IndicData,COLUMN(AU42)-2,0), WeightsS)) -> 0.1666666667 | AV42: =SUM(IF(INDEX(IndicData,ROW(AV42)-6,0) > INDEX(IndicData,COLUMN(AV42)-2,0), WeightsS)) -> 0.1666666667 | AW42: =SUM(IF(INDEX(IndicData,ROW(AW42)-6,0) > INDEX(IndicData,COLUMN(AW42)-2,0), WeightsS)) -> 0.1666666667 | AX42: =SUM(IF(INDEX(IndicData,ROW(AX42)-6,0) > INDEX(IndicData,COLUMN(AX42)-2,0), WeightsS)) -> 0 | AY42: =SUM(IF(INDEX(IndicData,ROW(AY42)-6,0) > INDEX(IndicData,COLUMN(AY42)-2,0), WeightsS)) -> 0 | AZ42: =SUM(IF(INDEX(IndicData,ROW(AZ42)-6,0) > INDEX(IndicData,COLUMN(AZ42)-2,0), WeightsS)) -> 0
A43: 37 | B43: Unit37 | C43: =SUM(IF(INDEX(IndicData,ROW(C43)-6,0) > INDEX(IndicData,COLUMN(C43)-2,0), WeightsS)) -> 1 | D43: =SUM(IF(INDEX(IndicData,ROW(D43)-6,0) > INDEX(IndicData,COLUMN(D43)-2,0), WeightsS)) -> 1 | E43: =SUM(IF(INDEX(IndicData,ROW(E43)-6,0) > INDEX(IndicData,COLUMN(E43)-2,0), WeightsS)) -> 1 | F43: =SUM(IF(INDEX(IndicData,ROW(F43)-6,0) > INDEX(IndicData,COLUMN(F43)-2,0), WeightsS)) -> 0.8333333333 | G43: =SUM(IF(INDEX(IndicData,ROW(G43)-6,0) > INDEX(IndicData,COLUMN(G43)-2,0), WeightsS)) -> 0.8333333333 | H43: =SUM(IF(INDEX(IndicData,ROW(H43)-6,0) > INDEX(IndicData,COLUMN(H43)-2,0), WeightsS)) -> 0.6666666667 | I43: =SUM(IF(INDEX(IndicData,ROW(I43)-6,0) > INDEX(IndicData,COLUMN(I43)-2,0), WeightsS)) -> 0.6666666667 | J43: =SUM(IF(INDEX(IndicData,ROW(J43)-6,0) > INDEX(IndicData,COLUMN(J43)-2,0), WeightsS)) -> 0.8333333333 | K43: =SUM(IF(INDEX(IndicData,ROW(K43)-6,0) > INDEX(IndicData,COLUMN(K43)-2,0), WeightsS)) -> 0.5 | L43: =SUM(IF(INDEX(IndicData,ROW(L43)-6,0) > INDEX(IndicData,COLUMN(L43)-2,0), WeightsS)) -> 0.8333333333 | M43: =SUM(IF(INDEX(IndicData,ROW(M43)-6,0) > INDEX(IndicData,COLUMN(M43)-2,0), WeightsS)) -> 0.5 | N43: =SUM(IF(INDEX(IndicData,ROW(N43)-6,0) > INDEX(IndicData,COLUMN(N43)-2,0), WeightsS)) -> 0.5 | O43: =SUM(IF(INDEX(IndicData,ROW(O43)-6,0) > INDEX(IndicData,COLUMN(O43)-2,0), WeightsS)) -> 0.5 | P43: =SUM(IF(INDEX(IndicData,ROW(P43)-6,0) > INDEX(IndicData,COLUMN(P43)-2,0), WeightsS)) -> 0.5 | Q43: =SUM(IF(INDEX(IndicData,ROW(Q43)-6,0) > INDEX(IndicData,COLUMN(Q43)-2,0), WeightsS)) -> 1 | R43: =SUM(IF(INDEX(IndicData,ROW(R43)-6,0) > INDEX(IndicData,COLUMN(R43)-2,0), WeightsS)) -> 0.8333333333 | S43: =SUM(IF(INDEX(IndicData,ROW(S43)-6,0) > INDEX(IndicData,COLUMN(S43)-2,0), WeightsS)) -> 0.5 | T43: =SUM(IF(INDEX(IndicData,ROW(T43)-6,0) > INDEX(IndicData,COLUMN(T43)-2,0), WeightsS)) -> 1 | U43: =SUM(IF(INDEX(IndicData,ROW(U43)-6,0) > INDEX(IndicData,COLUMN(U43)-2,0), WeightsS)) -> 0.8333333333 | V43: =SUM(IF(INDEX(IndicData,ROW(V43)-6,0) > INDEX(IndicData,COLUMN(V43)-2,0), WeightsS)) -> 0.6666666667 | W43: =SUM(IF(INDEX(IndicData,ROW(W43)-6,0) > INDEX(IndicData,COLUMN(W43)-2,0), WeightsS)) -> 0.8333333333 | X43: =SUM(IF(INDEX(IndicData,ROW(X43)-6,0) > INDEX(IndicData,COLUMN(X43)-2,0), WeightsS)) -> 0.6666666667 | Y43: =SUM(IF(INDEX(IndicData,ROW(Y43)-6,0) > INDEX(IndicData,COLUMN(Y43)-2,0), WeightsS)) -> 0.6666666667 | Z43: =SUM(IF(INDEX(IndicData,ROW(Z43)-6,0) > INDEX(IndicData,COLUMN(Z43)-2,0), WeightsS)) -> 0.5 | AA43: =SUM(IF(INDEX(IndicData,ROW(AA43)-6,0) > INDEX(IndicData,COLUMN(AA43)-2,0), WeightsS)) -> 0.6666666667 | AB43: =SUM(IF(INDEX(IndicData,ROW(AB43)-6,0) > INDEX(IndicData,COLUMN(AB43)-2,0), WeightsS)) -> 0.8333333333 | AC43: =SUM(IF(INDEX(IndicData,ROW(AC43)-6,0) > INDEX(IndicData,COLUMN(AC43)-2,0), WeightsS)) -> 0.8333333333 | AD43: =SUM(IF(INDEX(IndicData,ROW(AD43)-6,0) > INDEX(IndicData,COLUMN(AD43)-2,0), WeightsS)) -> 0.5 | AE43: =SUM(IF(INDEX(IndicData,ROW(AE43)-6,0) > INDEX(IndicData,COLUMN(AE43)-2,0), WeightsS)) -> 0.5 | AF43: =SUM(IF(INDEX(IndicData,ROW(AF43)-6,0) > INDEX(IndicData,COLUMN(AF43)-2,0), WeightsS)) -> 0.6666666667 | AG43: =SUM(IF(INDEX(IndicData,ROW(AG43)-6,0) > INDEX(IndicData,COLUMN(AG43)-2,0), WeightsS)) -> 0.5 | AH43: =SUM(IF(INDEX(IndicData,ROW(AH43)-6,0) > INDEX(IndicData,COLUMN(AH43)-2,0), WeightsS)) -> 0.6666666667 | AI43: =SUM(IF(INDEX(IndicData,ROW(AI43)-6,0) > INDEX(IndicData,COLUMN(AI43)-2,0), WeightsS)) -> 0.3333333333 | AJ43: =SUM(IF(INDEX(IndicData,ROW(AJ43)-6,0) > INDEX(IndicData,COLUMN(AJ43)-2,0), WeightsS)) -> 0.1666666667 | AK43: =SUM(IF(INDEX(IndicData,ROW(AK43)-6,0) > INDEX(IndicData,COLUMN(AK43)-2,0), WeightsS)) -> 0.1666666667 | AL43: =SUM(IF(INDEX(IndicData,ROW(AL43)-6,0) > INDEX(IndicData,COLUMN(AL43)-2,0), WeightsS)) -> 0.1666666667 | AM43: =SUM(IF(INDEX(IndicData,ROW(AM43)-6,0) > INDEX(IndicData,COLUMN(AM43)-2,0), WeightsS)) -> 0 | AN43: =SUM(IF(INDEX(IndicData,ROW(AN43)-6,0) > INDEX(IndicData,COLUMN(AN43)-2,0), WeightsS)) -> 0.1666666667 | AO43: =SUM(IF(INDEX(IndicData,ROW(AO43)-6,0) > INDEX(IndicData,COLUMN(AO43)-2,0), WeightsS)) -> 0.1666666667 | AP43: =SUM(IF(INDEX(IndicData,ROW(AP43)-6,0) > INDEX(IndicData,COLUMN(AP43)-2,0), WeightsS)) -> 0.1666666667 | AQ43: =SUM(IF(INDEX(IndicData,ROW(AQ43)-6,0) > INDEX(IndicData,COLUMN(AQ43)-2,0), WeightsS)) -> 0.1666666667 | AR43: =SUM(IF(INDEX(IndicData,ROW(AR43)-6,0) > INDEX(IndicData,COLUMN(AR43)-2,0), WeightsS)) -> 0.1666666667 | AS43: =SUM(IF(INDEX(IndicData,ROW(AS43)-6,0) > INDEX(IndicData,COLUMN(AS43)-2,0), WeightsS)) -> 0.5 | AT43: =SUM(IF(INDEX(IndicData,ROW(AT43)-6,0) > INDEX(IndicData,COLUMN(AT43)-2,0), WeightsS)) -> 0.3333333333 | AU43: =SUM(IF(INDEX(IndicData,ROW(AU43)-6,0) > INDEX(IndicData,COLUMN(AU43)-2,0), WeightsS)) -> 0.1666666667 | AV43: =SUM(IF(INDEX(IndicData,ROW(AV43)-6,0) > INDEX(IndicData,COLUMN(AV43)-2,0), WeightsS)) -> 0.1666666667 | AW43: =SUM(IF(INDEX(IndicData,ROW(AW43)-6,0) > INDEX(IndicData,COLUMN(AW43)-2,0), WeightsS)) -> 0.1666666667 | AX43: =SUM(IF(INDEX(IndicData,ROW(AX43)-6,0) > INDEX(IndicData,COLUMN(AX43)-2,0), WeightsS)) -> 0.1666666667 | AY43: =SUM(IF(INDEX(IndicData,ROW(AY43)-6,0) > INDEX(IndicData,COLUMN(AY43)-2,0), WeightsS)) -> 0.1666666667 | AZ43: =SUM(IF(INDEX(IndicData,ROW(AZ43)-6,0) > INDEX(IndicData,COLUMN(AZ43)-2,0), WeightsS)) -> 0.1666666667
A44: 38 | B44: Unit38 | C44: =SUM(IF(INDEX(IndicData,ROW(C44)-6,0) > INDEX(IndicData,COLUMN(C44)-2,0), WeightsS)) -> 1 | D44: =SUM(IF(INDEX(IndicData,ROW(D44)-6,0) > INDEX(IndicData,COLUMN(D44)-2,0), WeightsS)) -> 1 | E44: =SUM(IF(INDEX(IndicData,ROW(E44)-6,0) > INDEX(IndicData,COLUMN(E44)-2,0), WeightsS)) -> 1 | F44: =SUM(IF(INDEX(IndicData,ROW(F44)-6,0) > INDEX(IndicData,COLUMN(F44)-2,0), WeightsS)) -> 1 | G44: =SUM(IF(INDEX(IndicData,ROW(G44)-6,0) > INDEX(IndicData,COLUMN(G44)-2,0), WeightsS)) -> 1 | H44: =SUM(IF(INDEX(IndicData,ROW(H44)-6,0) > INDEX(IndicData,COLUMN(H44)-2,0), WeightsS)) -> 0.8333333333 | I44: =SUM(IF(INDEX(IndicData,ROW(I44)-6,0) > INDEX(IndicData,COLUMN(I44)-2,0), WeightsS)) -> 0.8333333333 | J44: =SUM(IF(INDEX(IndicData,ROW(J44)-6,0) > INDEX(IndicData,COLUMN(J44)-2,0), WeightsS)) -> 1 | K44: =SUM(IF(INDEX(IndicData,ROW(K44)-6,0) > INDEX(IndicData,COLUMN(K44)-2,0), WeightsS)) -> 0.8333333333 | L44: =SUM(IF(INDEX(IndicData,ROW(L44)-6,0) > INDEX(IndicData,COLUMN(L44)-2,0), WeightsS)) -> 1 | M44: =SUM(IF(INDEX(IndicData,ROW(M44)-6,0) > INDEX(IndicData,COLUMN(M44)-2,0), WeightsS)) -> 0.8333333333 | N44: =SUM(IF(INDEX(IndicData,ROW(N44)-6,0) > INDEX(IndicData,COLUMN(N44)-2,0), WeightsS)) -> 0.6666666667 | O44: =SUM(IF(INDEX(IndicData,ROW(O44)-6,0) > INDEX(IndicData,COLUMN(O44)-2,0), WeightsS)) -> 0.6666666667 | P44: =SUM(IF(INDEX(IndicData,ROW(P44)-6,0) > INDEX(IndicData,COLUMN(P44)-2,0), WeightsS)) -> 0.6666666667 | Q44: =SUM(IF(INDEX(IndicData,ROW(Q44)-6,0) > INDEX(IndicData,COLUMN(Q44)-2,0), WeightsS)) -> 1 | R44: =SUM(IF(INDEX(IndicData,ROW(R44)-6,0) > INDEX(IndicData,COLUMN(R44)-2,0), WeightsS)) -> 1 | S44: =SUM(IF(INDEX(IndicData,ROW(S44)-6,0) > INDEX(IndicData,COLUMN(S44)-2,0), WeightsS)) -> 0.8333333333 | T44: =SUM(IF(INDEX(IndicData,ROW(T44)-6,0) > INDEX(IndicData,COLUMN(T44)-2,0), WeightsS)) -> 1 | U44: =SUM(IF(INDEX(IndicData,ROW(U44)-6,0) > INDEX(IndicData,COLUMN(U44)-2,0), WeightsS)) -> 1 | V44: =SUM(IF(INDEX(IndicData,ROW(V44)-6,0) > INDEX(IndicData,COLUMN(V44)-2,0), WeightsS)) -> 0.8333333333 | W44: =SUM(IF(INDEX(IndicData,ROW(W44)-6,0) > INDEX(IndicData,COLUMN(W44)-2,0), WeightsS)) -> 1 | X44: =SUM(IF(INDEX(IndicData,ROW(X44)-6,0) > INDEX(IndicData,COLUMN(X44)-2,0), WeightsS)) -> 1 | Y44: =SUM(IF(INDEX(IndicData,ROW(Y44)-6,0) > INDEX(IndicData,COLUMN(Y44)-2,0), WeightsS)) -> 1 | Z44: =SUM(IF(INDEX(IndicData,ROW(Z44)-6,0) > INDEX(IndicData,COLUMN(Z44)-2,0), WeightsS)) -> 0.8333333333 | AA44: =SUM(IF(INDEX(IndicData,ROW(AA44)-6,0) > INDEX(IndicData,COLUMN(AA44)-2,0), WeightsS)) -> 0.8333333333 | AB44: =SUM(IF(INDEX(IndicData,ROW(AB44)-6,0) > INDEX(IndicData,COLUMN(AB44)-2,0), WeightsS)) -> 0.8333333333 | AC44: =SUM(IF(INDEX(IndicData,ROW(AC44)-6,0) > INDEX(IndicData,COLUMN(AC44)-2,0), WeightsS)) -> 0.8333333333 | AD44: =SUM(IF(INDEX(IndicData,ROW(AD44)-6,0) > INDEX(IndicData,COLUMN(AD44)-2,0), WeightsS)) -> 0.5 | AE44: =SUM(IF(INDEX(IndicData,ROW(AE44)-6,0) > INDEX(IndicData,COLUMN(AE44)-2,0), WeightsS)) -> 0.6666666667 | AF44: =SUM(IF(INDEX(IndicData,ROW(AF44)-6,0) > INDEX(IndicData,COLUMN(AF44)-2,0), WeightsS)) -> 1 | AG44: =SUM(IF(INDEX(IndicData,ROW(AG44)-6,0) > INDEX(IndicData,COLUMN(AG44)-2,0), WeightsS)) -> 0.5 | AH44: =SUM(IF(INDEX(IndicData,ROW(AH44)-6,0) > INDEX(IndicData,COLUMN(AH44)-2,0), WeightsS)) -> 0.6666666667 | AI44: =SUM(IF(INDEX(IndicData,ROW(AI44)-6,0) > INDEX(IndicData,COLUMN(AI44)-2,0), WeightsS)) -> 0.3333333333 | AJ44: =SUM(IF(INDEX(IndicData,ROW(AJ44)-6,0) > INDEX(IndicData,COLUMN(AJ44)-2,0), WeightsS)) -> 0.5 | AK44: =SUM(IF(INDEX(IndicData,ROW(AK44)-6,0) > INDEX(IndicData,COLUMN(AK44)-2,0), WeightsS)) -> 0.3333333333 | AL44: =SUM(IF(INDEX(IndicData,ROW(AL44)-6,0) > INDEX(IndicData,COLUMN(AL44)-2,0), WeightsS)) -> 0.3333333333 | AM44: =SUM(IF(INDEX(IndicData,ROW(AM44)-6,0) > INDEX(IndicData,COLUMN(AM44)-2,0), WeightsS)) -> 0.3333333333 | AN44: =SUM(IF(INDEX(IndicData,ROW(AN44)-6,0) > INDEX(IndicData,COLUMN(AN44)-2,0), WeightsS)) -> 0 | AO44: =SUM(IF(INDEX(IndicData,ROW(AO44)-6,0) > INDEX(IndicData,COLUMN(AO44)-2,0), WeightsS)) -> 0 | AP44: =SUM(IF(INDEX(IndicData,ROW(AP44)-6,0) > INDEX(IndicData,COLUMN(AP44)-2,0), WeightsS)) -> 0 | AQ44: =SUM(IF(INDEX(IndicData,ROW(AQ44)-6,0) > INDEX(IndicData,COLUMN(AQ44)-2,0), WeightsS)) -> 0.1666666667 | AR44: =SUM(IF(INDEX(IndicData,ROW(AR44)-6,0) > INDEX(IndicData,COLUMN(AR44)-2,0), WeightsS)) -> 0.1666666667 | AS44: =SUM(IF(INDEX(IndicData,ROW(AS44)-6,0) > INDEX(IndicData,COLUMN(AS44)-2,0), WeightsS)) -> 0.5 | AT44: =SUM(IF(INDEX(IndicData,ROW(AT44)-6,0) > INDEX(IndicData,COLUMN(AT44)-2,0), WeightsS)) -> 0.1666666667 | AU44: =SUM(IF(INDEX(IndicData,ROW(AU44)-6,0) > INDEX(IndicData,COLUMN(AU44)-2,0), WeightsS)) -> 0 | AV44: =SUM(IF(INDEX(IndicData,ROW(AV44)-6,0) > INDEX(IndicData,COLUMN(AV44)-2,0), WeightsS)) -> 0 | AW44: =SUM(IF(INDEX(IndicData,ROW(AW44)-6,0) > INDEX(IndicData,COLUMN(AW44)-2,0), WeightsS)) -> 0 | AX44: =SUM(IF(INDEX(IndicData,ROW(AX44)-6,0) > INDEX(IndicData,COLUMN(AX44)-2,0), WeightsS)) -> 0 | AY44: =SUM(IF(INDEX(IndicData,ROW(AY44)-6,0) > INDEX(IndicData,COLUMN(AY44)-2,0), WeightsS)) -> 0 | AZ44: =SUM(IF(INDEX(IndicData,ROW(AZ44)-6,0) > INDEX(IndicData,COLUMN(AZ44)-2,0), WeightsS)) -> 0
A45: 39 | B45: Unit39 | C45: =SUM(IF(INDEX(IndicData,ROW(C45)-6,0) > INDEX(IndicData,COLUMN(C45)-2,0), WeightsS)) -> 1 | D45: =SUM(IF(INDEX(IndicData,ROW(D45)-6,0) > INDEX(IndicData,COLUMN(D45)-2,0), WeightsS)) -> 1 | E45: =SUM(IF(INDEX(IndicData,ROW(E45)-6,0) > INDEX(IndicData,COLUMN(E45)-2,0), WeightsS)) -> 1 | F45: =SUM(IF(INDEX(IndicData,ROW(F45)-6,0) > INDEX(IndicData,COLUMN(F45)-2,0), WeightsS)) -> 1 | G45: =SUM(IF(INDEX(IndicData,ROW(G45)-6,0) > INDEX(IndicData,COLUMN(G45)-2,0), WeightsS)) -> 1 | H45: =SUM(IF(INDEX(IndicData,ROW(H45)-6,0) > INDEX(IndicData,COLUMN(H45)-2,0), WeightsS)) -> 0.8333333333 | I45: =SUM(IF(INDEX(IndicData,ROW(I45)-6,0) > INDEX(IndicData,COLUMN(I45)-2,0), WeightsS)) -> 0.8333333333 | J45: =SUM(IF(INDEX(IndicData,ROW(J45)-6,0) > INDEX(IndicData,COLUMN(J45)-2,0), WeightsS)) -> 1 | K45: =SUM(IF(INDEX(IndicData,ROW(K45)-6,0) > INDEX(IndicData,COLUMN(K45)-2,0), WeightsS)) -> 0.8333333333 | L45: =SUM(IF(INDEX(IndicData,ROW(L45)-6,0) > INDEX(IndicData,COLUMN(L45)-2,0), WeightsS)) -> 1 | M45: =SUM(IF(INDEX(IndicData,ROW(M45)-6,0) > INDEX(IndicData,COLUMN(M45)-2,0), WeightsS)) -> 0.8333333333 | N45: =SUM(IF(INDEX(IndicData,ROW(N45)-6,0) > INDEX(IndicData,COLUMN(N45)-2,0), WeightsS)) -> 0.6666666667 | O45: =SUM(IF(INDEX(IndicData,ROW(O45)-6,0) > INDEX(IndicData,COLUMN(O45)-2,0), WeightsS)) -> 0.6666666667 | P45: =SUM(IF(INDEX(IndicData,ROW(P45)-6,0) > INDEX(IndicData,COLUMN(P45)-2,0), WeightsS)) -> 0.6666666667 | Q45: =SUM(IF(INDEX(IndicData,ROW(Q45)-6,0) > INDEX(IndicData,COLUMN(Q45)-2,0), WeightsS)) -> 1 | R45: =SUM(IF(INDEX(IndicData,ROW(R45)-6,0) > INDEX(IndicData,COLUMN(R45)-2,0), WeightsS)) -> 1 | S45: =SUM(IF(INDEX(IndicData,ROW(S45)-6,0) > INDEX(IndicData,COLUMN(S45)-2,0), WeightsS)) -> 0.8333333333 | T45: =SUM(IF(INDEX(IndicData,ROW(T45)-6,0) > INDEX(IndicData,COLUMN(T45)-2,0), WeightsS)) -> 1 | U45: =SUM(IF(INDEX(IndicData,ROW(U45)-6,0) > INDEX(IndicData,COLUMN(U45)-2,0), WeightsS)) -> 1 | V45: =SUM(IF(INDEX(IndicData,ROW(V45)-6,0) > INDEX(IndicData,COLUMN(V45)-2,0), WeightsS)) -> 1 | W45: =SUM(IF(INDEX(IndicData,ROW(W45)-6,0) > INDEX(IndicData,COLUMN(W45)-2,0), WeightsS)) -> 1 | X45: =SUM(IF(INDEX(IndicData,ROW(X45)-6,0) > INDEX(IndicData,COLUMN(X45)-2,0), WeightsS)) -> 1 | Y45: =SUM(IF(INDEX(IndicData,ROW(Y45)-6,0) > INDEX(IndicData,COLUMN(Y45)-2,0), WeightsS)) -> 1 | Z45: =SUM(IF(INDEX(IndicData,ROW(Z45)-6,0) > INDEX(IndicData,COLUMN(Z45)-2,0), WeightsS)) -> 0.8333333333 | AA45: =SUM(IF(INDEX(IndicData,ROW(AA45)-6,0) > INDEX(IndicData,COLUMN(AA45)-2,0), WeightsS)) -> 1 | AB45: =SUM(IF(INDEX(IndicData,ROW(AB45)-6,0) > INDEX(IndicData,COLUMN(AB45)-2,0), WeightsS)) -> 0.8333333333 | AC45: =SUM(IF(INDEX(IndicData,ROW(AC45)-6,0) > INDEX(IndicData,COLUMN(AC45)-2,0), WeightsS)) -> 0.8333333333 | AD45: =SUM(IF(INDEX(IndicData,ROW(AD45)-6,0) > INDEX(IndicData,COLUMN(AD45)-2,0), WeightsS)) -> 0.6666666667 | AE45: =SUM(IF(INDEX(IndicData,ROW(AE45)-6,0) > INDEX(IndicData,COLUMN(AE45)-2,0), WeightsS)) -> 0.8333333333 | AF45: =SUM(IF(INDEX(IndicData,ROW(AF45)-6,0) > INDEX(IndicData,COLUMN(AF45)-2,0), WeightsS)) -> 1 | AG45: =SUM(IF(INDEX(IndicData,ROW(AG45)-6,0) > INDEX(IndicData,COLUMN(AG45)-2,0), WeightsS)) -> 0.6666666667 | AH45: =SUM(IF(INDEX(IndicData,ROW(AH45)-6,0) > INDEX(IndicData,COLUMN(AH45)-2,0), WeightsS)) -> 0.8333333333 | AI45: =SUM(IF(INDEX(IndicData,ROW(AI45)-6,0) > INDEX(IndicData,COLUMN(AI45)-2,0), WeightsS)) -> 0.3333333333 | AJ45: =SUM(IF(INDEX(IndicData,ROW(AJ45)-6,0) > INDEX(IndicData,COLUMN(AJ45)-2,0), WeightsS)) -> 0.5 | AK45: =SUM(IF(INDEX(IndicData,ROW(AK45)-6,0) > INDEX(IndicData,COLUMN(AK45)-2,0), WeightsS)) -> 0.3333333333 | AL45: =SUM(IF(INDEX(IndicData,ROW(AL45)-6,0) > INDEX(IndicData,COLUMN(AL45)-2,0), WeightsS)) -> 0.3333333333 | AM45: =SUM(IF(INDEX(IndicData,ROW(AM45)-6,0) > INDEX(IndicData,COLUMN(AM45)-2,0), WeightsS)) -> 0.3333333333 | AN45: =SUM(IF(INDEX(IndicData,ROW(AN45)-6,0) > INDEX(IndicData,COLUMN(AN45)-2,0), WeightsS)) -> 0.1666666667 | AO45: =SUM(IF(INDEX(IndicData,ROW(AO45)-6,0) > INDEX(IndicData,COLUMN(AO45)-2,0), WeightsS)) -> 0 | AP45: =SUM(IF(INDEX(IndicData,ROW(AP45)-6,0) > INDEX(IndicData,COLUMN(AP45)-2,0), WeightsS)) -> 0 | AQ45: =SUM(IF(INDEX(IndicData,ROW(AQ45)-6,0) > INDEX(IndicData,COLUMN(AQ45)-2,0), WeightsS)) -> 0.1666666667 | AR45: =SUM(IF(INDEX(IndicData,ROW(AR45)-6,0) > INDEX(IndicData,COLUMN(AR45)-2,0), WeightsS)) -> 0.1666666667 | AS45: =SUM(IF(INDEX(IndicData,ROW(AS45)-6,0) > INDEX(IndicData,COLUMN(AS45)-2,0), WeightsS)) -> 0.5 | AT45: =SUM(IF(INDEX(IndicData,ROW(AT45)-6,0) > INDEX(IndicData,COLUMN(AT45)-2,0), WeightsS)) -> 0.3333333333 | AU45: =SUM(IF(INDEX(IndicData,ROW(AU45)-6,0) > INDEX(IndicData,COLUMN(AU45)-2,0), WeightsS)) -> 0 | AV45: =SUM(IF(INDEX(IndicData,ROW(AV45)-6,0) > INDEX(IndicData,COLUMN(AV45)-2,0), WeightsS)) -> 0 | AW45: =SUM(IF(INDEX(IndicData,ROW(AW45)-6,0) > INDEX(IndicData,COLUMN(AW45)-2,0), WeightsS)) -> 0 | AX45: =SUM(IF(INDEX(IndicData,ROW(AX45)-6,0) > INDEX(IndicData,COLUMN(AX45)-2,0), WeightsS)) -> 0.1666666667 | AY45: =SUM(IF(INDEX(IndicData,ROW(AY45)-6,0) > INDEX(IndicData,COLUMN(AY45)-2,0), WeightsS)) -> 0.1666666667 | AZ45: =SUM(IF(INDEX(IndicData,ROW(AZ45)-6,0) > INDEX(IndicData,COLUMN(AZ45)-2,0), WeightsS)) -> 0
A46: 40 | B46: Unit40 | C46: =SUM(IF(INDEX(IndicData,ROW(C46)-6,0) > INDEX(IndicData,COLUMN(C46)-2,0), WeightsS)) -> 1 | D46: =SUM(IF(INDEX(IndicData,ROW(D46)-6,0) > INDEX(IndicData,COLUMN(D46)-2,0), WeightsS)) -> 1 | E46: =SUM(IF(INDEX(IndicData,ROW(E46)-6,0) > INDEX(IndicData,COLUMN(E46)-2,0), WeightsS)) -> 1 | F46: =SUM(IF(INDEX(IndicData,ROW(F46)-6,0) > INDEX(IndicData,COLUMN(F46)-2,0), WeightsS)) -> 1 | G46: =SUM(IF(INDEX(IndicData,ROW(G46)-6,0) > INDEX(IndicData,COLUMN(G46)-2,0), WeightsS)) -> 1 | H46: =SUM(IF(INDEX(IndicData,ROW(H46)-6,0) > INDEX(IndicData,COLUMN(H46)-2,0), WeightsS)) -> 0.8333333333 | I46: =SUM(IF(INDEX(IndicData,ROW(I46)-6,0) > INDEX(IndicData,COLUMN(I46)-2,0), WeightsS)) -> 0.8333333333 | J46: =SUM(IF(INDEX(IndicData,ROW(J46)-6,0) > INDEX(IndicData,COLUMN(J46)-2,0), WeightsS)) -> 1 | K46: =SUM(IF(INDEX(IndicData,ROW(K46)-6,0) > INDEX(IndicData,COLUMN(K46)-2,0), WeightsS)) -> 0.8333333333 | L46: =SUM(IF(INDEX(IndicData,ROW(L46)-6,0) > INDEX(IndicData,COLUMN(L46)-2,0), WeightsS)) -> 1 | M46: =SUM(IF(INDEX(IndicData,ROW(M46)-6,0) > INDEX(IndicData,COLUMN(M46)-2,0), WeightsS)) -> 0.8333333333 | N46: =SUM(IF(INDEX(IndicData,ROW(N46)-6,0) > INDEX(IndicData,COLUMN(N46)-2,0), WeightsS)) -> 0.6666666667 | O46: =SUM(IF(INDEX(IndicData,ROW(O46)-6,0) > INDEX(IndicData,COLUMN(O46)-2,0), WeightsS)) -> 0.6666666667 | P46: =SUM(IF(INDEX(IndicData,ROW(P46)-6,0) > INDEX(IndicData,COLUMN(P46)-2,0), WeightsS)) -> 0.6666666667 | Q46: =SUM(IF(INDEX(IndicData,ROW(Q46)-6,0) > INDEX(IndicData,COLUMN(Q46)-2,0), WeightsS)) -> 1 | R46: =SUM(IF(INDEX(IndicData,ROW(R46)-6,0) > INDEX(IndicData,COLUMN(R46)-2,0), WeightsS)) -> 1 | S46: =SUM(IF(INDEX(IndicData,ROW(S46)-6,0) > INDEX(IndicData,COLUMN(S46)-2,0), WeightsS)) -> 0.8333333333 | T46: =SUM(IF(INDEX(IndicData,ROW(T46)-6,0) > INDEX(IndicData,COLUMN(T46)-2,0), WeightsS)) -> 1 | U46: =SUM(IF(INDEX(IndicData,ROW(U46)-6,0) > INDEX(IndicData,COLUMN(U46)-2,0), WeightsS)) -> 1 | V46: =SUM(IF(INDEX(IndicData,ROW(V46)-6,0) > INDEX(IndicData,COLUMN(V46)-2,0), WeightsS)) -> 1 | W46: =SUM(IF(INDEX(IndicData,ROW(W46)-6,0) > INDEX(IndicData,COLUMN(W46)-2,0), WeightsS)) -> 1 | X46: =SUM(IF(INDEX(IndicData,ROW(X46)-6,0) > INDEX(IndicData,COLUMN(X46)-2,0), WeightsS)) -> 1 | Y46: =SUM(IF(INDEX(IndicData,ROW(Y46)-6,0) > INDEX(IndicData,COLUMN(Y46)-2,0), WeightsS)) -> 1 | Z46: =SUM(IF(INDEX(IndicData,ROW(Z46)-6,0) > INDEX(IndicData,COLUMN(Z46)-2,0), WeightsS)) -> 0.8333333333 | AA46: =SUM(IF(INDEX(IndicData,ROW(AA46)-6,0) > INDEX(IndicData,COLUMN(AA46)-2,0), WeightsS)) -> 1 | AB46: =SUM(IF(INDEX(IndicData,ROW(AB46)-6,0) > INDEX(IndicData,COLUMN(AB46)-2,0), WeightsS)) -> 0.8333333333 | AC46: =SUM(IF(INDEX(IndicData,ROW(AC46)-6,0) > INDEX(IndicData,COLUMN(AC46)-2,0), WeightsS)) -> 0.8333333333 | AD46: =SUM(IF(INDEX(IndicData,ROW(AD46)-6,0) > INDEX(IndicData,COLUMN(AD46)-2,0), WeightsS)) -> 0.6666666667 | AE46: =SUM(IF(INDEX(IndicData,ROW(AE46)-6,0) > INDEX(IndicData,COLUMN(AE46)-2,0), WeightsS)) -> 0.8333333333 | AF46: =SUM(IF(INDEX(IndicData,ROW(AF46)-6,0) > INDEX(IndicData,COLUMN(AF46)-2,0), WeightsS)) -> 1 | AG46: =SUM(IF(INDEX(IndicData,ROW(AG46)-6,0) > INDEX(IndicData,COLUMN(AG46)-2,0), WeightsS)) -> 0.6666666667 | AH46: =SUM(IF(INDEX(IndicData,ROW(AH46)-6,0) > INDEX(IndicData,COLUMN(AH46)-2,0), WeightsS)) -> 0.8333333333 | AI46: =SUM(IF(INDEX(IndicData,ROW(AI46)-6,0) > INDEX(IndicData,COLUMN(AI46)-2,0), WeightsS)) -> 0.3333333333 | AJ46: =SUM(IF(INDEX(IndicData,ROW(AJ46)-6,0) > INDEX(IndicData,COLUMN(AJ46)-2,0), WeightsS)) -> 0.5 | AK46: =SUM(IF(INDEX(IndicData,ROW(AK46)-6,0) > INDEX(IndicData,COLUMN(AK46)-2,0), WeightsS)) -> 0.5 | AL46: =SUM(IF(INDEX(IndicData,ROW(AL46)-6,0) > INDEX(IndicData,COLUMN(AL46)-2,0), WeightsS)) -> 0.3333333333 | AM46: =SUM(IF(INDEX(IndicData,ROW(AM46)-6,0) > INDEX(IndicData,COLUMN(AM46)-2,0), WeightsS)) -> 0.3333333333 | AN46: =SUM(IF(INDEX(IndicData,ROW(AN46)-6,0) > INDEX(IndicData,COLUMN(AN46)-2,0), WeightsS)) -> 0.3333333333 | AO46: =SUM(IF(INDEX(IndicData,ROW(AO46)-6,0) > INDEX(IndicData,COLUMN(AO46)-2,0), WeightsS)) -> 0.1666666667 | AP46: =SUM(IF(INDEX(IndicData,ROW(AP46)-6,0) > INDEX(IndicData,COLUMN(AP46)-2,0), WeightsS)) -> 0 | AQ46: =SUM(IF(INDEX(IndicData,ROW(AQ46)-6,0) > INDEX(IndicData,COLUMN(AQ46)-2,0), WeightsS)) -> 0.1666666667 | AR46: =SUM(IF(INDEX(IndicData,ROW(AR46)-6,0) > INDEX(IndicData,COLUMN(AR46)-2,0), WeightsS)) -> 0.1666666667 | AS46: =SUM(IF(INDEX(IndicData,ROW(AS46)-6,0) > INDEX(IndicData,COLUMN(AS46)-2,0), WeightsS)) -> 0.6666666667 | AT46: =SUM(IF(INDEX(IndicData,ROW(AT46)-6,0) > INDEX(IndicData,COLUMN(AT46)-2,0), WeightsS)) -> 0.5 | AU46: =SUM(IF(INDEX(IndicData,ROW(AU46)-6,0) > INDEX(IndicData,COLUMN(AU46)-2,0), WeightsS)) -> 0.1666666667 | AV46: =SUM(IF(INDEX(IndicData,ROW(AV46)-6,0) > INDEX(IndicData,COLUMN(AV46)-2,0), WeightsS)) -> 0.1666666667 | AW46: =SUM(IF(INDEX(IndicData,ROW(AW46)-6,0) > INDEX(IndicData,COLUMN(AW46)-2,0), WeightsS)) -> 0.1666666667 | AX46: =SUM(IF(INDEX(IndicData,ROW(AX46)-6,0) > INDEX(IndicData,COLUMN(AX46)-2,0), WeightsS)) -> 0.1666666667 | AY46: =SUM(IF(INDEX(IndicData,ROW(AY46)-6,0) > INDEX(IndicData,COLUMN(AY46)-2,0), WeightsS)) -> 0.1666666667 | AZ46: =SUM(IF(INDEX(IndicData,ROW(AZ46)-6,0) > INDEX(IndicData,COLUMN(AZ46)-2,0), WeightsS)) -> 0
A47: 41 | B47: Unit41 | C47: =SUM(IF(INDEX(IndicData,ROW(C47)-6,0) > INDEX(IndicData,COLUMN(C47)-2,0), WeightsS)) -> 1 | D47: =SUM(IF(INDEX(IndicData,ROW(D47)-6,0) > INDEX(IndicData,COLUMN(D47)-2,0), WeightsS)) -> 1 | E47: =SUM(IF(INDEX(IndicData,ROW(E47)-6,0) > INDEX(IndicData,COLUMN(E47)-2,0), WeightsS)) -> 1 | F47: =SUM(IF(INDEX(IndicData,ROW(F47)-6,0) > INDEX(IndicData,COLUMN(F47)-2,0), WeightsS)) -> 1 | G47: =SUM(IF(INDEX(IndicData,ROW(G47)-6,0) > INDEX(IndicData,COLUMN(G47)-2,0), WeightsS)) -> 1 | H47: =SUM(IF(INDEX(IndicData,ROW(H47)-6,0) > INDEX(IndicData,COLUMN(H47)-2,0), WeightsS)) -> 0.8333333333 | I47: =SUM(IF(INDEX(IndicData,ROW(I47)-6,0) > INDEX(IndicData,COLUMN(I47)-2,0), WeightsS)) -> 0.8333333333 | J47: =SUM(IF(INDEX(IndicData,ROW(J47)-6,0) > INDEX(IndicData,COLUMN(J47)-2,0), WeightsS)) -> 1 | K47: =SUM(IF(INDEX(IndicData,ROW(K47)-6,0) > INDEX(IndicData,COLUMN(K47)-2,0), WeightsS)) -> 0.8333333333 | L47: =SUM(IF(INDEX(IndicData,ROW(L47)-6,0) > INDEX(IndicData,COLUMN(L47)-2,0), WeightsS)) -> 1 | M47: =SUM(IF(INDEX(IndicData,ROW(M47)-6,0) > INDEX(IndicData,COLUMN(M47)-2,0), WeightsS)) -> 0.8333333333 | N47: =SUM(IF(INDEX(IndicData,ROW(N47)-6,0) > INDEX(IndicData,COLUMN(N47)-2,0), WeightsS)) -> 0.8333333333 | O47: =SUM(IF(INDEX(IndicData,ROW(O47)-6,0) > INDEX(IndicData,COLUMN(O47)-2,0), WeightsS)) -> 0.6666666667 | P47: =SUM(IF(INDEX(IndicData,ROW(P47)-6,0) > INDEX(IndicData,COLUMN(P47)-2,0), WeightsS)) -> 0.6666666667 | Q47: =SUM(IF(INDEX(IndicData,ROW(Q47)-6,0) > INDEX(IndicData,COLUMN(Q47)-2,0), WeightsS)) -> 1 | R47: =SUM(IF(INDEX(IndicData,ROW(R47)-6,0) > INDEX(IndicData,COLUMN(R47)-2,0), WeightsS)) -> 1 | S47: =SUM(IF(INDEX(IndicData,ROW(S47)-6,0) > INDEX(IndicData,COLUMN(S47)-2,0), WeightsS)) -> 0.8333333333 | T47: =SUM(IF(INDEX(IndicData,ROW(T47)-6,0) > INDEX(IndicData,COLUMN(T47)-2,0), WeightsS)) -> 0.8333333333 | U47: =SUM(IF(INDEX(IndicData,ROW(U47)-6,0) > INDEX(IndicData,COLUMN(U47)-2,0), WeightsS)) -> 1 | V47: =SUM(IF(INDEX(IndicData,ROW(V47)-6,0) > INDEX(IndicData,COLUMN(V47)-2,0), WeightsS)) -> 1 | W47: =SUM(IF(INDEX(IndicData,ROW(W47)-6,0) > INDEX(IndicData,COLUMN(W47)-2,0), WeightsS)) -> 1 | X47: =SUM(IF(INDEX(IndicData,ROW(X47)-6,0) > INDEX(IndicData,COLUMN(X47)-2,0), WeightsS)) -> 1 | Y47: =SUM(IF(INDEX(IndicData,ROW(Y47)-6,0) > INDEX(IndicData,COLUMN(Y47)-2,0), WeightsS)) -> 1 | Z47: =SUM(IF(INDEX(IndicData,ROW(Z47)-6,0) > INDEX(IndicData,COLUMN(Z47)-2,0), WeightsS)) -> 0.8333333333 | AA47: =SUM(IF(INDEX(IndicData,ROW(AA47)-6,0) > INDEX(IndicData,COLUMN(AA47)-2,0), WeightsS)) -> 0.8333333333 | AB47: =SUM(IF(INDEX(IndicData,ROW(AB47)-6,0) > INDEX(IndicData,COLUMN(AB47)-2,0), WeightsS)) -> 1 | AC47: =SUM(IF(INDEX(IndicData,ROW(AC47)-6,0) > INDEX(IndicData,COLUMN(AC47)-2,0), WeightsS)) -> 1 | AD47: =SUM(IF(INDEX(IndicData,ROW(AD47)-6,0) > INDEX(IndicData,COLUMN(AD47)-2,0), WeightsS)) -> 0.6666666667 | AE47: =SUM(IF(INDEX(IndicData,ROW(AE47)-6,0) > INDEX(IndicData,COLUMN(AE47)-2,0), WeightsS)) -> 0.6666666667 | AF47: =SUM(IF(INDEX(IndicData,ROW(AF47)-6,0) > INDEX(IndicData,COLUMN(AF47)-2,0), WeightsS)) -> 0.8333333333 | AG47: =SUM(IF(INDEX(IndicData,ROW(AG47)-6,0) > INDEX(IndicData,COLUMN(AG47)-2,0), WeightsS)) -> 0.6666666667 | AH47: =SUM(IF(INDEX(IndicData,ROW(AH47)-6,0) > INDEX(IndicData,COLUMN(AH47)-2,0), WeightsS)) -> 0.8333333333 | AI47: =SUM(IF(INDEX(IndicData,ROW(AI47)-6,0) > INDEX(IndicData,COLUMN(AI47)-2,0), WeightsS)) -> 0.1666666667 | AJ47: =SUM(IF(INDEX(IndicData,ROW(AJ47)-6,0) > INDEX(IndicData,COLUMN(AJ47)-2,0), WeightsS)) -> 0.3333333333 | AK47: =SUM(IF(INDEX(IndicData,ROW(AK47)-6,0) > INDEX(IndicData,COLUMN(AK47)-2,0), WeightsS)) -> 0.3333333333 | AL47: =SUM(IF(INDEX(IndicData,ROW(AL47)-6,0) > INDEX(IndicData,COLUMN(AL47)-2,0), WeightsS)) -> 0.3333333333 | AM47: =SUM(IF(INDEX(IndicData,ROW(AM47)-6,0) > INDEX(IndicData,COLUMN(AM47)-2,0), WeightsS)) -> 0.3333333333 | AN47: =SUM(IF(INDEX(IndicData,ROW(AN47)-6,0) > INDEX(IndicData,COLUMN(AN47)-2,0), WeightsS)) -> 0.3333333333 | AO47: =SUM(IF(INDEX(IndicData,ROW(AO47)-6,0) > INDEX(IndicData,COLUMN(AO47)-2,0), WeightsS)) -> 0.1666666667 | AP47: =SUM(IF(INDEX(IndicData,ROW(AP47)-6,0) > INDEX(IndicData,COLUMN(AP47)-2,0), WeightsS)) -> 0.1666666667 | AQ47: =SUM(IF(INDEX(IndicData,ROW(AQ47)-6,0) > INDEX(IndicData,COLUMN(AQ47)-2,0), WeightsS)) -> 0 | AR47: =SUM(IF(INDEX(IndicData,ROW(AR47)-6,0) > INDEX(IndicData,COLUMN(AR47)-2,0), WeightsS)) -> 0 | AS47: =SUM(IF(INDEX(IndicData,ROW(AS47)-6,0) > INDEX(IndicData,COLUMN(AS47)-2,0), WeightsS)) -> 0.5 | AT47: =SUM(IF(INDEX(IndicData,ROW(AT47)-6,0) > INDEX(IndicData,COLUMN(AT47)-2,0), WeightsS)) -> 0.3333333333 | AU47: =SUM(IF(INDEX(IndicData,ROW(AU47)-6,0) > INDEX(IndicData,COLUMN(AU47)-2,0), WeightsS)) -> 0 | AV47: =SUM(IF(INDEX(IndicData,ROW(AV47)-6,0) > INDEX(IndicData,COLUMN(AV47)-2,0), WeightsS)) -> 0 | AW47: =SUM(IF(INDEX(IndicData,ROW(AW47)-6,0) > INDEX(IndicData,COLUMN(AW47)-2,0), WeightsS)) -> 0 | AX47: =SUM(IF(INDEX(IndicData,ROW(AX47)-6,0) > INDEX(IndicData,COLUMN(AX47)-2,0), WeightsS)) -> 0.1666666667 | AY47: =SUM(IF(INDEX(IndicData,ROW(AY47)-6,0) > INDEX(IndicData,COLUMN(AY47)-2,0), WeightsS)) -> 0.1666666667 | AZ47: =SUM(IF(INDEX(IndicData,ROW(AZ47)-6,0) > INDEX(IndicData,COLUMN(AZ47)-2,0), WeightsS)) -> 0
A48: 42 | B48: Unit42 | C48: =SUM(IF(INDEX(IndicData,ROW(C48)-6,0) > INDEX(IndicData,COLUMN(C48)-2,0), WeightsS)) -> 1 | D48: =SUM(IF(INDEX(IndicData,ROW(D48)-6,0) > INDEX(IndicData,COLUMN(D48)-2,0), WeightsS)) -> 1 | E48: =SUM(IF(INDEX(IndicData,ROW(E48)-6,0) > INDEX(IndicData,COLUMN(E48)-2,0), WeightsS)) -> 1 | F48: =SUM(IF(INDEX(IndicData,ROW(F48)-6,0) > INDEX(IndicData,COLUMN(F48)-2,0), WeightsS)) -> 1 | G48: =SUM(IF(INDEX(IndicData,ROW(G48)-6,0) > INDEX(IndicData,COLUMN(G48)-2,0), WeightsS)) -> 1 | H48: =SUM(IF(INDEX(IndicData,ROW(H48)-6,0) > INDEX(IndicData,COLUMN(H48)-2,0), WeightsS)) -> 0.8333333333 | I48: =SUM(IF(INDEX(IndicData,ROW(I48)-6,0) > INDEX(IndicData,COLUMN(I48)-2,0), WeightsS)) -> 0.8333333333 | J48: =SUM(IF(INDEX(IndicData,ROW(J48)-6,0) > INDEX(IndicData,COLUMN(J48)-2,0), WeightsS)) -> 1 | K48: =SUM(IF(INDEX(IndicData,ROW(K48)-6,0) > INDEX(IndicData,COLUMN(K48)-2,0), WeightsS)) -> 0.8333333333 | L48: =SUM(IF(INDEX(IndicData,ROW(L48)-6,0) > INDEX(IndicData,COLUMN(L48)-2,0), WeightsS)) -> 1 | M48: =SUM(IF(INDEX(IndicData,ROW(M48)-6,0) > INDEX(IndicData,COLUMN(M48)-2,0), WeightsS)) -> 0.8333333333 | N48: =SUM(IF(INDEX(IndicData,ROW(N48)-6,0) > INDEX(IndicData,COLUMN(N48)-2,0), WeightsS)) -> 0.8333333333 | O48: =SUM(IF(INDEX(IndicData,ROW(O48)-6,0) > INDEX(IndicData,COLUMN(O48)-2,0), WeightsS)) -> 0.6666666667 | P48: =SUM(IF(INDEX(IndicData,ROW(P48)-6,0) > INDEX(IndicData,COLUMN(P48)-2,0), WeightsS)) -> 0.6666666667 | Q48: =SUM(IF(INDEX(IndicData,ROW(Q48)-6,0) > INDEX(IndicData,COLUMN(Q48)-2,0), WeightsS)) -> 1 | R48: =SUM(IF(INDEX(IndicData,ROW(R48)-6,0) > INDEX(IndicData,COLUMN(R48)-2,0), WeightsS)) -> 1 | S48: =SUM(IF(INDEX(IndicData,ROW(S48)-6,0) > INDEX(IndicData,COLUMN(S48)-2,0), WeightsS)) -> 0.8333333333 | T48: =SUM(IF(INDEX(IndicData,ROW(T48)-6,0) > INDEX(IndicData,COLUMN(T48)-2,0), WeightsS)) -> 1 | U48: =SUM(IF(INDEX(IndicData,ROW(U48)-6,0) > INDEX(IndicData,COLUMN(U48)-2,0), WeightsS)) -> 1 | V48: =SUM(IF(INDEX(IndicData,ROW(V48)-6,0) > INDEX(IndicData,COLUMN(V48)-2,0), WeightsS)) -> 1 | W48: =SUM(IF(INDEX(IndicData,ROW(W48)-6,0) > INDEX(IndicData,COLUMN(W48)-2,0), WeightsS)) -> 1 | X48: =SUM(IF(INDEX(IndicData,ROW(X48)-6,0) > INDEX(IndicData,COLUMN(X48)-2,0), WeightsS)) -> 1 | Y48: =SUM(IF(INDEX(IndicData,ROW(Y48)-6,0) > INDEX(IndicData,COLUMN(Y48)-2,0), WeightsS)) -> 1 | Z48: =SUM(IF(INDEX(IndicData,ROW(Z48)-6,0) > INDEX(IndicData,COLUMN(Z48)-2,0), WeightsS)) -> 0.8333333333 | AA48: =SUM(IF(INDEX(IndicData,ROW(AA48)-6,0) > INDEX(IndicData,COLUMN(AA48)-2,0), WeightsS)) -> 1 | AB48: =SUM(IF(INDEX(IndicData,ROW(AB48)-6,0) > INDEX(IndicData,COLUMN(AB48)-2,0), WeightsS)) -> 1 | AC48: =SUM(IF(INDEX(IndicData,ROW(AC48)-6,0) > INDEX(IndicData,COLUMN(AC48)-2,0), WeightsS)) -> 1 | AD48: =SUM(IF(INDEX(IndicData,ROW(AD48)-6,0) > INDEX(IndicData,COLUMN(AD48)-2,0), WeightsS)) -> 0.6666666667 | AE48: =SUM(IF(INDEX(IndicData,ROW(AE48)-6,0) > INDEX(IndicData,COLUMN(AE48)-2,0), WeightsS)) -> 0.8333333333 | AF48: =SUM(IF(INDEX(IndicData,ROW(AF48)-6,0) > INDEX(IndicData,COLUMN(AF48)-2,0), WeightsS)) -> 0.8333333333 | AG48: =SUM(IF(INDEX(IndicData,ROW(AG48)-6,0) > INDEX(IndicData,COLUMN(AG48)-2,0), WeightsS)) -> 0.8333333333 | AH48: =SUM(IF(INDEX(IndicData,ROW(AH48)-6,0) > INDEX(IndicData,COLUMN(AH48)-2,0), WeightsS)) -> 0.8333333333 | AI48: =SUM(IF(INDEX(IndicData,ROW(AI48)-6,0) > INDEX(IndicData,COLUMN(AI48)-2,0), WeightsS)) -> 0.1666666667 | AJ48: =SUM(IF(INDEX(IndicData,ROW(AJ48)-6,0) > INDEX(IndicData,COLUMN(AJ48)-2,0), WeightsS)) -> 0.3333333333 | AK48: =SUM(IF(INDEX(IndicData,ROW(AK48)-6,0) > INDEX(IndicData,COLUMN(AK48)-2,0), WeightsS)) -> 0.3333333333 | AL48: =SUM(IF(INDEX(IndicData,ROW(AL48)-6,0) > INDEX(IndicData,COLUMN(AL48)-2,0), WeightsS)) -> 0.3333333333 | AM48: =SUM(IF(INDEX(IndicData,ROW(AM48)-6,0) > INDEX(IndicData,COLUMN(AM48)-2,0), WeightsS)) -> 0.3333333333 | AN48: =SUM(IF(INDEX(IndicData,ROW(AN48)-6,0) > INDEX(IndicData,COLUMN(AN48)-2,0), WeightsS)) -> 0.3333333333 | AO48: =SUM(IF(INDEX(IndicData,ROW(AO48)-6,0) > INDEX(IndicData,COLUMN(AO48)-2,0), WeightsS)) -> 0.1666666667 | AP48: =SUM(IF(INDEX(IndicData,ROW(AP48)-6,0) > INDEX(IndicData,COLUMN(AP48)-2,0), WeightsS)) -> 0.1666666667 | AQ48: =SUM(IF(INDEX(IndicData,ROW(AQ48)-6,0) > INDEX(IndicData,COLUMN(AQ48)-2,0), WeightsS)) -> 0.1666666667 | AR48: =SUM(IF(INDEX(IndicData,ROW(AR48)-6,0) > INDEX(IndicData,COLUMN(AR48)-2,0), WeightsS)) -> 0 | AS48: =SUM(IF(INDEX(IndicData,ROW(AS48)-6,0) > INDEX(IndicData,COLUMN(AS48)-2,0), WeightsS)) -> 0.5 | AT48: =SUM(IF(INDEX(IndicData,ROW(AT48)-6,0) > INDEX(IndicData,COLUMN(AT48)-2,0), WeightsS)) -> 0.3333333333 | AU48: =SUM(IF(INDEX(IndicData,ROW(AU48)-6,0) > INDEX(IndicData,COLUMN(AU48)-2,0), WeightsS)) -> 0 | AV48: =SUM(IF(INDEX(IndicData,ROW(AV48)-6,0) > INDEX(IndicData,COLUMN(AV48)-2,0), WeightsS)) -> 0 | AW48: =SUM(IF(INDEX(IndicData,ROW(AW48)-6,0) > INDEX(IndicData,COLUMN(AW48)-2,0), WeightsS)) -> 0 | AX48: =SUM(IF(INDEX(IndicData,ROW(AX48)-6,0) > INDEX(IndicData,COLUMN(AX48)-2,0), WeightsS)) -> 0.1666666667 | AY48: =SUM(IF(INDEX(IndicData,ROW(AY48)-6,0) > INDEX(IndicData,COLUMN(AY48)-2,0), WeightsS)) -> 0.1666666667 | AZ48: =SUM(IF(INDEX(IndicData,ROW(AZ48)-6,0) > INDEX(IndicData,COLUMN(AZ48)-2,0), WeightsS)) -> 0
